Workbook

Sheet S. 1
L1: =DATE(YEAR(B3),MONTH(B3),1) -> 2020-01-01 | M1: K a s s e n b u c h | P1: =DATE(2000,Q1+1,0) -> 2020-01-31 | Q1: 241 | Y1: =RIGHT(CELL("Dateiname",A1),LEN(CELL("Dateiname",A1))-FIND("]",CELL("Dateiname",A1))) -> S. 1 | Z1: =LEFT(Y1,SEARCH(" ",Y1)) -> S. | AA1: =RIGHT(Y1,LEN(Y1)-SEARCH(" ",Y1)) -> 1
A3: Monat: | B3: =P1 -> 2020-01-31 | J3: ="F"&LARGE(IF(F8:F40<>" ",ROW(F8:F40)),1) -> F8 | K3: =YEAR(L3) -> 2020 | L3: =B3 -> 2020-01-31 | M3: 1600 | N3: 1 | P3: =RIGHT(CELL("Dateiname",A1),LEN(CELL("Dateiname",A1))-FIND("]",CELL("Dateiname",A1))) -> S. 1 | Q3: =MID(P3,SEARCH(" ",P3)+1,3)*1 -> 1
K4: =MONTH(L4) -> 1 | L4: =L3 -> 2020-01-31 | N4: =IF(ISERROR(P3),"",IF(AND(RIGHT(P3,2)<>TEXT(N3," #"),RIGHT(P3,2)<>TEXT(N3,"##"),RIGHT(P3,3)<>TEXT(N3,"###")),"Name Tabellenblatt ändern in ' S. "&N3&" ' ","")) -> 
A5: Einnahmen | B5: Ausgaben | C5: Einnahmen | D5: Bestand | E5: Gegen- | F5: Beleg- | G5: Beleg- | H5: USt.- | I5: BU | J5: Gegenkonto | K5: Gegenkonto | L5: Konto | M5: Kontierung | N5: Text | O5: Skonto | P5: Festschreibung
A6: € | B6: € | C6: Ausgaben | E6: konto | F6: Nr. | G6: Datum | H6: Satz | J6: ASCII | K6: ASCII
G7: =L1 -> 43831
C8: =A8-B8 -> 0 | D8: =D6+C8 -> 0 | E8: =IF(K8="","",IF(AND(A8+B8>0,H8=""),"USt. ?",IF(OR(K8="USt. ?",K8="Name?"),K8,IF(ISERROR(INDEX(Konten!A:E,MATCH(M8,Konten!A:A,0),MATCH(H8,Konten!$A$3:$E$3,0))),"Konto ?",IF(AND(O8=0,RIGHT(K8,5)*1>=10000),RIGHT(K8,5),K8))))) ->  | F8: 1 | I8: =IF(LEN(E8)<6,"",LEFT(E8,LEN(E8)-5)) ->  | J8: =RIGHT(E8,5) ->  | K8: =IF(M8="","",IF(AND(A8+B8>0,H8=""),"USt. ?",IF(M8="diverse Kunden",INDEX(Kunden!A:E,MATCH(N8,Kunden!A:A,1),MATCH(H8,Kunden!$A$3:$E$3,0)),IF(M8="diverse Lieferanten",INDEX(Lief.!A:E,MATCH(N8,Lief.!A:A,1),MATCH(H8,Lief.!$A$3:$E$3,0)),IF(ISERROR(INDEX(Konten!A:E,MATCH(M8,Konten!A:A,0),MATCH(H8,Konten!$A$3:$E$3,0))),"Konto ?",INDEX(Konten!A:E,MATCH(M8,Konten!A:A,0),MATCH(H8,Konten!$A$3:$E$3,0))))))) ->  | L8: =$M$3 -> 1600 | P8: 0
C9: =A9-B9 -> 0 | D9: =IF(ROUND(C9,2)=0,"",D8+C9) ->  | E9: =IF(K9="","",IF(AND(A9+B9>0,H9=""),"USt. ?",IF(OR(K9="USt. ?",K9="Name?"),K9,IF(ISERROR(INDEX(Konten!A:E,MATCH(M9,Konten!A:A,0),MATCH(H9,Konten!$A$3:$E$3,0))),"Konto ?",IF(AND(O9=0,RIGHT(K9,5)*1>=10000),RIGHT(K9,5),K9))))) ->  | F9: =IF(A9+B9=0," ",F8+1) ->  | I9: =IF(LEN(E9)<6,"",LEFT(E9,LEN(E9)-5)) ->  | J9: =RIGHT(E9,5) ->  | K9: =IF(M9="","",IF(AND(A9+B9>0,H9=""),"USt. ?",IF(M9="diverse Kunden",INDEX(Kunden!A:E,MATCH(N9,Kunden!A:A,1),MATCH(H9,Kunden!$A$3:$E$3,0)),IF(M9="diverse Lieferanten",INDEX(Lief.!A:E,MATCH(N9,Lief.!A:A,1),MATCH(H9,Lief.!$A$3:$E$3,0)),IF(ISERROR(INDEX(Konten!A:E,MATCH(M9,Konten!A:A,0),MATCH(H9,Konten!$A$3:$E$3,0))),"Konto ?",INDEX(Konten!A:E,MATCH(M9,Konten!A:A,0),MATCH(H9,Konten!$A$3:$E$3,0))))))) ->  | L9: 1600 | P9: 0
C10: 0 | D10: =IF(ROUND(C10,2)=0,"",D9+C10) ->  | E10: =IF(K10="","",IF(AND(A10+B10>0,H10=""),"USt. ?",IF(OR(K10="USt. ?",K10="Name?"),K10,IF(ISERROR(INDEX(Konten!A:E,MATCH(M10,Konten!A:A,0),MATCH(H10,Konten!$A$3:$E$3,0))),"Konto ?",IF(AND(O10=0,RIGHT(K10,5)*1>=10000),RIGHT(K10,5),K10))))) ->  | K10: =IF(M10="","",IF(AND(A10+B10>0,H10=""),"USt. ?",IF(M10="diverse Kunden",INDEX(Kunden!A:E,MATCH(N10,Kunden!A:A,1),MATCH(H10,Kunden!$A$3:$E$3,0)),IF(M10="diverse Lieferanten",INDEX(Lief.!A:E,MATCH(N10,Lief.!A:A,1),MATCH(H10,Lief.!$A$3:$E$3,0)),IF(ISERROR(INDEX(Konten!A:E,MATCH(M10,Konten!A:A,0),MATCH(H10,Konten!$A$3:$E$3,0))),"Konto ?",INDEX(Konten!A:E,MATCH(M10,Konten!A:A,0),MATCH(H10,Konten!$A$3:$E$3,0))))))) ->  | L10: 1600 | P10: 0
C11: 0 | E11: =IF(K11="","",IF(AND(A11+B11>0,H11=""),"USt. ?",IF(OR(K11="USt. ?",K11="Name?"),K11,IF(ISERROR(INDEX(Konten!A:E,MATCH(M11,Konten!A:A,0),MATCH(H11,Konten!$A$3:$E$3,0))),"Konto ?",IF(AND(O11=0,RIGHT(K11,5)*1>=10000),RIGHT(K11,5),K11))))) ->  | K11: =IF(M11="","",IF(AND(A11+B11>0,H11=""),"USt. ?",IF(M11="diverse Kunden",INDEX(Kunden!A:E,MATCH(N11,Kunden!A:A,1),MATCH(H11,Kunden!$A$3:$E$3,0)),IF(M11="diverse Lieferanten",INDEX(Lief.!A:E,MATCH(N11,Lief.!A:A,1),MATCH(H11,Lief.!$A$3:$E$3,0)),IF(ISERROR(INDEX(Konten!A:E,MATCH(M11,Konten!A:A,0),MATCH(H11,Konten!$A$3:$E$3,0))),"Konto ?",INDEX(Konten!A:E,MATCH(M11,Konten!A:A,0),MATCH(H11,Konten!$A$3:$E$3,0))))))) ->  | L11: 1600 | P11: 0
C12: 0 | E12: =IF(K12="","",IF(AND(A12+B12>0,H12=""),"USt. ?",IF(OR(K12="USt. ?",K12="Name?"),K12,IF(ISERROR(INDEX(Konten!A:E,MATCH(M12,Konten!A:A,0),MATCH(H12,Konten!$A$3:$E$3,0))),"Konto ?",IF(AND(O12=0,RIGHT(K12,5)*1>=10000),RIGHT(K12,5),K12))))) ->  | K12: =IF(M12="","",IF(AND(A12+B12>0,H12=""),"USt. ?",IF(M12="diverse Kunden",INDEX(Kunden!A:E,MATCH(N12,Kunden!A:A,1),MATCH(H12,Kunden!$A$3:$E$3,0)),IF(M12="diverse Lieferanten",INDEX(Lief.!A:E,MATCH(N12,Lief.!A:A,1),MATCH(H12,Lief.!$A$3:$E$3,0)),IF(ISERROR(INDEX(Konten!A:E,MATCH(M12,Konten!A:A,0),MATCH(H12,Konten!$A$3:$E$3,0))),"Konto ?",INDEX(Konten!A:E,MATCH(M12,Konten!A:A,0),MATCH(H12,Konten!$A$3:$E$3,0))))))) ->  | L12: 1600 | P12: 0
C13: 0 | E13: =IF(K13="","",IF(AND(A13+B13>0,H13=""),"USt. ?",IF(OR(K13="USt. ?",K13="Name?"),K13,IF(ISERROR(INDEX(Konten!A:E,MATCH(M13,Konten!A:A,0),MATCH(H13,Konten!$A$3:$E$3,0))),"Konto ?",IF(AND(O13=0,RIGHT(K13,5)*1>=10000),RIGHT(K13,5),K13))))) ->  | K13: =IF(M13="","",IF(AND(A13+B13>0,H13=""),"USt. ?",IF(M13="diverse Kunden",INDEX(Kunden!A:E,MATCH(N13,Kunden!A:A,1),MATCH(H13,Kunden!$A$3:$E$3,0)),IF(M13="diverse Lieferanten",INDEX(Lief.!A:E,MATCH(N13,Lief.!A:A,1),MATCH(H13,Lief.!$A$3:$E$3,0)),IF(ISERROR(INDEX(Konten!A:E,MATCH(M13,Konten!A:A,0),MATCH(H13,Konten!$A$3:$E$3,0))),"Konto ?",INDEX(Konten!A:E,MATCH(M13,Konten!A:A,0),MATCH(H13,Konten!$A$3:$E$3,0))))))) ->  | L13: 1600 | P13: 0
C14: 0 | E14: =IF(K14="","",IF(AND(A14+B14>0,H14=""),"USt. ?",IF(OR(K14="USt. ?",K14="Name?"),K14,IF(ISERROR(INDEX(Konten!A:E,MATCH(M14,Konten!A:A,0),MATCH(H14,Konten!$A$3:$E$3,0))),"Konto ?",IF(AND(O14=0,RIGHT(K14,5)*1>=10000),RIGHT(K14,5),K14))))) ->  | K14: =IF(M14="","",IF(AND(A14+B14>0,H14=""),"USt. ?",IF(M14="diverse Kunden",INDEX(Kunden!A:E,MATCH(N14,Kunden!A:A,1),MATCH(H14,Kunden!$A$3:$E$3,0)),IF(M14="diverse Lieferanten",INDEX(Lief.!A:E,MATCH(N14,Lief.!A:A,1),MATCH(H14,Lief.!$A$3:$E$3,0)),IF(ISERROR(INDEX(Konten!A:E,MATCH(M14,Konten!A:A,0),MATCH(H14,Konten!$A$3:$E$3,0))),"Konto ?",INDEX(Konten!A:E,MATCH(M14,Konten!A:A,0),MATCH(H14,Konten!$A$3:$E$3,0))))))) ->  | L14: 1600 | P14: 0
C15: 0 | E15: =IF(K15="","",IF(AND(A15+B15>0,H15=""),"USt. ?",IF(OR(K15="USt. ?",K15="Name?"),K15,IF(ISERROR(INDEX(Konten!A:E,MATCH(M15,Konten!A:A,0),MATCH(H15,Konten!$A$3:$E$3,0))),"Konto ?",IF(AND(O15=0,RIGHT(K15,5)*1>=10000),RIGHT(K15,5),K15))))) ->  | K15: =IF(M15="","",IF(AND(A15+B15>0,H15=""),"USt. ?",IF(M15="diverse Kunden",INDEX(Kunden!A:E,MATCH(N15,Kunden!A:A,1),MATCH(H15,Kunden!$A$3:$E$3,0)),IF(M15="diverse Lieferanten",INDEX(Lief.!A:E,MATCH(N15,Lief.!A:A,1),MATCH(H15,Lief.!$A$3:$E$3,0)),IF(ISERROR(INDEX(Konten!A:E,MATCH(M15,Konten!A:A,0),MATCH(H15,Konten!$A$3:$E$3,0))),"Konto ?",INDEX(Konten!A:E,MATCH(M15,Konten!A:A,0),MATCH(H15,Konten!$A$3:$E$3,0))))))) ->  | L15: 1600 | P15: 0
C16: 0 | E16: =IF(K16="","",IF(AND(A16+B16>0,H16=""),"USt. ?",IF(OR(K16="USt. ?",K16="Name?"),K16,IF(ISERROR(INDEX(Konten!A:E,MATCH(M16,Konten!A:A,0),MATCH(H16,Konten!$A$3:$E$3,0))),"Konto ?",IF(AND(O16=0,RIGHT(K16,5)*1>=10000),RIGHT(K16,5),K16))))) ->  | K16: =IF(M16="","",IF(AND(A16+B16>0,H16=""),"USt. ?",IF(M16="diverse Kunden",INDEX(Kunden!A:E,MATCH(N16,Kunden!A:A,1),MATCH(H16,Kunden!$A$3:$E$3,0)),IF(M16="diverse Lieferanten",INDEX(Lief.!A:E,MATCH(N16,Lief.!A:A,1),MATCH(H16,Lief.!$A$3:$E$3,0)),IF(ISERROR(INDEX(Konten!A:E,MATCH(M16,Konten!A:A,0),MATCH(H16,Konten!$A$3:$E$3,0))),"Konto ?",INDEX(Konten!A:E,MATCH(M16,Konten!A:A,0),MATCH(H16,Konten!$A$3:$E$3,0))))))) ->  | L16: 1600 | P16: 0
C17: 0 | E17: =IF(K17="","",IF(AND(A17+B17>0,H17=""),"USt. ?",IF(OR(K17="USt. ?",K17="Name?"),K17,IF(ISERROR(INDEX(Konten!A:E,MATCH(M17,Konten!A:A,0),MATCH(H17,Konten!$A$3:$E$3,0))),"Konto ?",IF(AND(O17=0,RIGHT(K17,5)*1>=10000),RIGHT(K17,5),K17))))) ->  | K17: =IF(M17="","",IF(AND(A17+B17>0,H17=""),"USt. ?",IF(M17="diverse Kunden",INDEX(Kunden!A:E,MATCH(N17,Kunden!A:A,1),MATCH(H17,Kunden!$A$3:$E$3,0)),IF(M17="diverse Lieferanten",INDEX(Lief.!A:E,MATCH(N17,Lief.!A:A,1),MATCH(H17,Lief.!$A$3:$E$3,0)),IF(ISERROR(INDEX(Konten!A:E,MATCH(M17,Konten!A:A,0),MATCH(H17,Konten!$A$3:$E$3,0))),"Konto ?",INDEX(Konten!A:E,MATCH(M17,Konten!A:A,0),MATCH(H17,Konten!$A$3:$E$3,0))))))) ->  | L17: 1600 | P17: 0
C18: 0 | E18: =IF(K18="","",IF(AND(A18+B18>0,H18=""),"USt. ?",IF(OR(K18="USt. ?",K18="Name?"),K18,IF(ISERROR(INDEX(Konten!A:E,MATCH(M18,Konten!A:A,0),MATCH(H18,Konten!$A$3:$E$3,0))),"Konto ?",IF(AND(O18=0,RIGHT(K18,5)*1>=10000),RIGHT(K18,5),K18))))) ->  | K18: =IF(M18="","",IF(AND(A18+B18>0,H18=""),"USt. ?",IF(M18="diverse Kunden",INDEX(Kunden!A:E,MATCH(N18,Kunden!A:A,1),MATCH(H18,Kunden!$A$3:$E$3,0)),IF(M18="diverse Lieferanten",INDEX(Lief.!A:E,MATCH(N18,Lief.!A:A,1),MATCH(H18,Lief.!$A$3:$E$3,0)),IF(ISERROR(INDEX(Konten!A:E,MATCH(M18,Konten!A:A,0),MATCH(H18,Konten!$A$3:$E$3,0))),"Konto ?",INDEX(Konten!A:E,MATCH(M18,Konten!A:A,0),MATCH(H18,Konten!$A$3:$E$3,0))))))) ->  | L18: 1600 | P18: 0
C19: 0 | E19: =IF(K19="","",IF(AND(A19+B19>0,H19=""),"USt. ?",IF(OR(K19="USt. ?",K19="Name?"),K19,IF(ISERROR(INDEX(Konten!A:E,MATCH(M19,Konten!A:A,0),MATCH(H19,Konten!$A$3:$E$3,0))),"Konto ?",IF(AND(O19=0,RIGHT(K19,5)*1>=10000),RIGHT(K19,5),K19))))) ->  | K19: =IF(M19="","",IF(AND(A19+B19>0,H19=""),"USt. ?",IF(M19="diverse Kunden",INDEX(Kunden!A:E,MATCH(N19,Kunden!A:A,1),MATCH(H19,Kunden!$A$3:$E$3,0)),IF(M19="diverse Lieferanten",INDEX(Lief.!A:E,MATCH(N19,Lief.!A:A,1),MATCH(H19,Lief.!$A$3:$E$3,0)),IF(ISERROR(INDEX(Konten!A:E,MATCH(M19,Konten!A:A,0),MATCH(H19,Konten!$A$3:$E$3,0))),"Konto ?",INDEX(Konten!A:E,MATCH(M19,Konten!A:A,0),MATCH(H19,Konten!$A$3:$E$3,0))))))) ->  | L19: 1600 | P19: 0
C20: 0 | E20: =IF(K20="","",IF(AND(A20+B20>0,H20=""),"USt. ?",IF(OR(K20="USt. ?",K20="Name?"),K20,IF(ISERROR(INDEX(Konten!A:E,MATCH(M20,Konten!A:A,0),MATCH(H20,Konten!$A$3:$E$3,0))),"Konto ?",IF(AND(O20=0,RIGHT(K20,5)*1>=10000),RIGHT(K20,5),K20))))) ->  | K20: =IF(M20="","",IF(AND(A20+B20>0,H20=""),"USt. ?",IF(M20="diverse Kunden",INDEX(Kunden!A:E,MATCH(N20,Kunden!A:A,1),MATCH(H20,Kunden!$A$3:$E$3,0)),IF(M20="diverse Lieferanten",INDEX(Lief.!A:E,MATCH(N20,Lief.!A:A,1),MATCH(H20,Lief.!$A$3:$E$3,0)),IF(ISERROR(INDEX(Konten!A:E,MATCH(M20,Konten!A:A,0),MATCH(H20,Konten!$A$3:$E$3,0))),"Konto ?",INDEX(Konten!A:E,MATCH(M20,Konten!A:A,0),MATCH(H20,Konten!$A$3:$E$3,0))))))) ->  | L20: 1600 | P20: 0
C21: 0 | E21: =IF(K21="","",IF(AND(A21+B21>0,H21=""),"USt. ?",IF(OR(K21="USt. ?",K21="Name?"),K21,IF(ISERROR(INDEX(Konten!A:E,MATCH(M21,Konten!A:A,0),MATCH(H21,Konten!$A$3:$E$3,0))),"Konto ?",IF(AND(O21=0,RIGHT(K21,5)*1>=10000),RIGHT(K21,5),K21))))) ->  | K21: =IF(M21="","",IF(AND(A21+B21>0,H21=""),"USt. ?",IF(M21="diverse Kunden",INDEX(Kunden!A:E,MATCH(N21,Kunden!A:A,1),MATCH(H21,Kunden!$A$3:$E$3,0)),IF(M21="diverse Lieferanten",INDEX(Lief.!A:E,MATCH(N21,Lief.!A:A,1),MATCH(H21,Lief.!$A$3:$E$3,0)),IF(ISERROR(INDEX(Konten!A:E,MATCH(M21,Konten!A:A,0),MATCH(H21,Konten!$A$3:$E$3,0))),"Konto ?",INDEX(Konten!A:E,MATCH(M21,Konten!A:A,0),MATCH(H21,Konten!$A$3:$E$3,0))))))) ->  | L21: 1600 | P21: 0
C22: 0 | E22: =IF(K22="","",IF(AND(A22+B22>0,H22=""),"USt. ?",IF(OR(K22="USt. ?",K22="Name?"),K22,IF(ISERROR(INDEX(Konten!A:E,MATCH(M22,Konten!A:A,0),MATCH(H22,Konten!$A$3:$E$3,0))),"Konto ?",IF(AND(O22=0,RIGHT(K22,5)*1>=10000),RIGHT(K22,5),K22))))) ->  | K22: =IF(M22="","",IF(AND(A22+B22>0,H22=""),"USt. ?",IF(M22="diverse Kunden",INDEX(Kunden!A:E,MATCH(N22,Kunden!A:A,1),MATCH(H22,Kunden!$A$3:$E$3,0)),IF(M22="diverse Lieferanten",INDEX(Lief.!A:E,MATCH(N22,Lief.!A:A,1),MATCH(H22,Lief.!$A$3:$E$3,0)),IF(ISERROR(INDEX(Konten!A:E,MATCH(M22,Konten!A:A,0),MATCH(H22,Konten!$A$3:$E$3,0))),"Konto ?",INDEX(Konten!A:E,MATCH(M22,Konten!A:A,0),MATCH(H22,Konten!$A$3:$E$3,0))))))) ->  | L22: 1600 | P22: 0
C23: 0 | E23: =IF(K23="","",IF(AND(A23+B23>0,H23=""),"USt. ?",IF(OR(K23="USt. ?",K23="Name?"),K23,IF(ISERROR(INDEX(Konten!A:E,MATCH(M23,Konten!A:A,0),MATCH(H23,Konten!$A$3:$E$3,0))),"Konto ?",IF(AND(O23=0,RIGHT(K23,5)*1>=10000),RIGHT(K23,5),K23))))) ->  | K23: =IF(M23="","",IF(AND(A23+B23>0,H23=""),"USt. ?",IF(M23="diverse Kunden",INDEX(Kunden!A:E,MATCH(N23,Kunden!A:A,1),MATCH(H23,Kunden!$A$3:$E$3,0)),IF(M23="diverse Lieferanten",INDEX(Lief.!A:E,MATCH(N23,Lief.!A:A,1),MATCH(H23,Lief.!$A$3:$E$3,0)),IF(ISERROR(INDEX(Konten!A:E,MATCH(M23,Konten!A:A,0),MATCH(H23,Konten!$A$3:$E$3,0))),"Konto ?",INDEX(Konten!A:E,MATCH(M23,Konten!A:A,0),MATCH(H23,Konten!$A$3:$E$3,0))))))) ->  | L23: 1600 | P23: 0
C24: 0 | E24: =IF(K24="","",IF(AND(A24+B24>0,H24=""),"USt. ?",IF(OR(K24="USt. ?",K24="Name?"),K24,IF(ISERROR(INDEX(Konten!A:E,MATCH(M24,Konten!A:A,0),MATCH(H24,Konten!$A$3:$E$3,0))),"Konto ?",IF(AND(O24=0,RIGHT(K24,5)*1>=10000),RIGHT(K24,5),K24))))) ->  | K24: =IF(M24="","",IF(AND(A24+B24>0,H24=""),"USt. ?",IF(M24="diverse Kunden",INDEX(Kunden!A:E,MATCH(N24,Kunden!A:A,1),MATCH(H24,Kunden!$A$3:$E$3,0)),IF(M24="diverse Lieferanten",INDEX(Lief.!A:E,MATCH(N24,Lief.!A:A,1),MATCH(H24,Lief.!$A$3:$E$3,0)),IF(ISERROR(INDEX(Konten!A:E,MATCH(M24,Konten!A:A,0),MATCH(H24,Konten!$A$3:$E$3,0))),"Konto ?",INDEX(Konten!A:E,MATCH(M24,Konten!A:A,0),MATCH(H24,Konten!$A$3:$E$3,0))))))) ->  | L24: 1600 | P24: 0
C25: 0 | E25: =IF(K25="","",IF(AND(A25+B25>0,H25=""),"USt. ?",IF(OR(K25="USt. ?",K25="Name?"),K25,IF(ISERROR(INDEX(Konten!A:E,MATCH(M25,Konten!A:A,0),MATCH(H25,Konten!$A$3:$E$3,0))),"Konto ?",IF(AND(O25=0,RIGHT(K25,5)*1>=10000),RIGHT(K25,5),K25))))) ->  | K25: =IF(M25="","",IF(AND(A25+B25>0,H25=""),"USt. ?",IF(M25="diverse Kunden",INDEX(Kunden!A:E,MATCH(N25,Kunden!A:A,1),MATCH(H25,Kunden!$A$3:$E$3,0)),IF(M25="diverse Lieferanten",INDEX(Lief.!A:E,MATCH(N25,Lief.!A:A,1),MATCH(H25,Lief.!$A$3:$E$3,0)),IF(ISERROR(INDEX(Konten!A:E,MATCH(M25,Konten!A:A,0),MATCH(H25,Konten!$A$3:$E$3,0))),"Konto ?",INDEX(Konten!A:E,MATCH(M25,Konten!A:A,0),MATCH(H25,Konten!$A$3:$E$3,0))))))) ->  | L25: 1600 | P25: 0
C26: 0 | E26: =IF(K26="","",IF(AND(A26+B26>0,H26=""),"USt. ?",IF(OR(K26="USt. ?",K26="Name?"),K26,IF(ISERROR(INDEX(Konten!A:E,MATCH(M26,Konten!A:A,0),MATCH(H26,Konten!$A$3:$E$3,0))),"Konto ?",IF(AND(O26=0,RIGHT(K26,5)*1>=10000),RIGHT(K26,5),K26))))) ->  | K26: =IF(M26="","",IF(AND(A26+B26>0,H26=""),"USt. ?",IF(M26="diverse Kunden",INDEX(Kunden!A:E,MATCH(N26,Kunden!A:A,1),MATCH(H26,Kunden!$A$3:$E$3,0)),IF(M26="diverse Lieferanten",INDEX(Lief.!A:E,MATCH(N26,Lief.!A:A,1),MATCH(H26,Lief.!$A$3:$E$3,0)),IF(ISERROR(INDEX(Konten!A:E,MATCH(M26,Konten!A:A,0),MATCH(H26,Konten!$A$3:$E$3,0))),"Konto ?",INDEX(Konten!A:E,MATCH(M26,Konten!A:A,0),MATCH(H26,Konten!$A$3:$E$3,0))))))) ->  | L26: 1600 | P26: 0
C27: 0 | E27: =IF(K27="","",IF(AND(A27+B27>0,H27=""),"USt. ?",IF(OR(K27="USt. ?",K27="Name?"),K27,IF(ISERROR(INDEX(Konten!A:E,MATCH(M27,Konten!A:A,0),MATCH(H27,Konten!$A$3:$E$3,0))),"Konto ?",IF(AND(O27=0,RIGHT(K27,5)*1>=10000),RIGHT(K27,5),K27))))) ->  | K27: =IF(M27="","",IF(AND(A27+B27>0,H27=""),"USt. ?",IF(M27="diverse Kunden",INDEX(Kunden!A:E,MATCH(N27,Kunden!A:A,1),MATCH(H27,Kunden!$A$3:$E$3,0)),IF(M27="diverse Lieferanten",INDEX(Lief.!A:E,MATCH(N27,Lief.!A:A,1),MATCH(H27,Lief.!$A$3:$E$3,0)),IF(ISERROR(INDEX(Konten!A:E,MATCH(M27,Konten!A:A,0),MATCH(H27,Konten!$A$3:$E$3,0))),"Konto ?",INDEX(Konten!A:E,MATCH(M27,Konten!A:A,0),MATCH(H27,Konten!$A$3:$E$3,0))))))) ->  | L27: 1600 | P27: 0
C28: 0 | E28: =IF(K28="","",IF(AND(A28+B28>0,H28=""),"USt. ?",IF(OR(K28="USt. ?",K28="Name?"),K28,IF(ISERROR(INDEX(Konten!A:E,MATCH(M28,Konten!A:A,0),MATCH(H28,Konten!$A$3:$E$3,0))),"Konto ?",IF(AND(O28=0,RIGHT(K28,5)*1>=10000),RIGHT(K28,5),K28))))) ->  | K28: =IF(M28="","",IF(AND(A28+B28>0,H28=""),"USt. ?",IF(M28="diverse Kunden",INDEX(Kunden!A:E,MATCH(N28,Kunden!A:A,1),MATCH(H28,Kunden!$A$3:$E$3,0)),IF(M28="diverse Lieferanten",INDEX(Lief.!A:E,MATCH(N28,Lief.!A:A,1),MATCH(H28,Lief.!$A$3:$E$3,0)),IF(ISERROR(INDEX(Konten!A:E,MATCH(M28,Konten!A:A,0),MATCH(H28,Konten!$A$3:$E$3,0))),"Konto ?",INDEX(Konten!A:E,MATCH(M28,Konten!A:A,0),MATCH(H28,Konten!$A$3:$E$3,0))))))) ->  | L28: 1600 | P28: 0
C29: 0 | E29: =IF(K29="","",IF(AND(A29+B29>0,H29=""),"USt. ?",IF(OR(K29="USt. ?",K29="Name?"),K29,IF(ISERROR(INDEX(Konten!A:E,MATCH(M29,Konten!A:A,0),MATCH(H29,Konten!$A$3:$E$3,0))),"Konto ?",IF(AND(O29=0,RIGHT(K29,5)*1>=10000),RIGHT(K29,5),K29))))) ->  | K29: =IF(M29="","",IF(AND(A29+B29>0,H29=""),"USt. ?",IF(M29="diverse Kunden",INDEX(Kunden!A:E,MATCH(N29,Kunden!A:A,1),MATCH(H29,Kunden!$A$3:$E$3,0)),IF(M29="diverse Lieferanten",INDEX(Lief.!A:E,MATCH(N29,Lief.!A:A,1),MATCH(H29,Lief.!$A$3:$E$3,0)),IF(ISERROR(INDEX(Konten!A:E,MATCH(M29,Konten!A:A,0),MATCH(H29,Konten!$A$3:$E$3,0))),"Konto ?",INDEX(Konten!A:E,MATCH(M29,Konten!A:A,0),MATCH(H29,Konten!$A$3:$E$3,0))))))) ->  | L29: 1600 | P29: 0
C30: 0 | E30: =IF(K30="","",IF(AND(A30+B30>0,H30=""),"USt. ?",IF(OR(K30="USt. ?",K30="Name?"),K30,IF(ISERROR(INDEX(Konten!A:E,MATCH(M30,Konten!A:A,0),MATCH(H30,Konten!$A$3:$E$3,0))),"Konto ?",IF(AND(O30=0,RIGHT(K30,5)*1>=10000),RIGHT(K30,5),K30))))) ->  | K30: =IF(M30="","",IF(AND(A30+B30>0,H30=""),"USt. ?",IF(M30="diverse Kunden",INDEX(Kunden!A:E,MATCH(N30,Kunden!A:A,1),MATCH(H30,Kunden!$A$3:$E$3,0)),IF(M30="diverse Lieferanten",INDEX(Lief.!A:E,MATCH(N30,Lief.!A:A,1),MATCH(H30,Lief.!$A$3:$E$3,0)),IF(ISERROR(INDEX(Konten!A:E,MATCH(M30,Konten!A:A,0),MATCH(H30,Konten!$A$3:$E$3,0))),"Konto ?",INDEX(Konten!A:E,MATCH(M30,Konten!A:A,0),MATCH(H30,Konten!$A$3:$E$3,0))))))) ->  | L30: 1600 | P30: 0
C31: 0 | E31: =IF(K31="","",IF(AND(A31+B31>0,H31=""),"USt. ?",IF(OR(K31="USt. ?",K31="Name?"),K31,IF(ISERROR(INDEX(Konten!A:E,MATCH(M31,Konten!A:A,0),MATCH(H31,Konten!$A$3:$E$3,0))),"Konto ?",IF(AND(O31=0,RIGHT(K31,5)*1>=10000),RIGHT(K31,5),K31))))) ->  | K31: =IF(M31="","",IF(AND(A31+B31>0,H31=""),"USt. ?",IF(M31="diverse Kunden",INDEX(Kunden!A:E,MATCH(N31,Kunden!A:A,1),MATCH(H31,Kunden!$A$3:$E$3,0)),IF(M31="diverse Lieferanten",INDEX(Lief.!A:E,MATCH(N31,Lief.!A:A,1),MATCH(H31,Lief.!$A$3:$E$3,0)),IF(ISERROR(INDEX(Konten!A:E,MATCH(M31,Konten!A:A,0),MATCH(H31,Konten!$A$3:$E$3,0))),"Konto ?",INDEX(Konten!A:E,MATCH(M31,Konten!A:A,0),MATCH(H31,Konten!$A$3:$E$3,0))))))) ->  | L31: 1600 | P31: 0
C32: 0 | E32: =IF(K32="","",IF(AND(A32+B32>0,H32=""),"USt. ?",IF(OR(K32="USt. ?",K32="Name?"),K32,IF(ISERROR(INDEX(Konten!A:E,MATCH(M32,Konten!A:A,0),MATCH(H32,Konten!$A$3:$E$3,0))),"Konto ?",IF(AND(O32=0,RIGHT(K32,5)*1>=10000),RIGHT(K32,5),K32))))) ->  | K32: =IF(M32="","",IF(AND(A32+B32>0,H32=""),"USt. ?",IF(M32="diverse Kunden",INDEX(Kunden!A:E,MATCH(N32,Kunden!A:A,1),MATCH(H32,Kunden!$A$3:$E$3,0)),IF(M32="diverse Lieferanten",INDEX(Lief.!A:E,MATCH(N32,Lief.!A:A,1),MATCH(H32,Lief.!$A$3:$E$3,0)),IF(ISERROR(INDEX(Konten!A:E,MATCH(M32,Konten!A:A,0),MATCH(H32,Konten!$A$3:$E$3,0))),"Konto ?",INDEX(Konten!A:E,MATCH(M32,Konten!A:A,0),MATCH(H32,Konten!$A$3:$E$3,0))))))) ->  | L32: 1600 | P32: 0
C33: 0 | E33: =IF(K33="","",IF(AND(A33+B33>0,H33=""),"USt. ?",IF(OR(K33="USt. ?",K33="Name?"),K33,IF(ISERROR(INDEX(Konten!A:E,MATCH(M33,Konten!A:A,0),MATCH(H33,Konten!$A$3:$E$3,0))),"Konto ?",IF(AND(O33=0,RIGHT(K33,5)*1>=10000),RIGHT(K33,5),K33))))) ->  | K33: =IF(M33="","",IF(AND(A33+B33>0,H33=""),"USt. ?",IF(M33="diverse Kunden",INDEX(Kunden!A:E,MATCH(N33,Kunden!A:A,1),MATCH(H33,Kunden!$A$3:$E$3,0)),IF(M33="diverse Lieferanten",INDEX(Lief.!A:E,MATCH(N33,Lief.!A:A,1),MATCH(H33,Lief.!$A$3:$E$3,0)),IF(ISERROR(INDEX(Konten!A:E,MATCH(M33,Konten!A:A,0),MATCH(H33,Konten!$A$3:$E$3,0))),"Konto ?",INDEX(Konten!A:E,MATCH(M33,Konten!A:A,0),MATCH(H33,Konten!$A$3:$E$3,0))))))) ->  | L33: 1600 | P33: 0
C34: 0 | E34: =IF(K34="","",IF(AND(A34+B34>0,H34=""),"USt. ?",IF(OR(K34="USt. ?",K34="Name?"),K34,IF(ISERROR(INDEX(Konten!A:E,MATCH(M34,Konten!A:A,0),MATCH(H34,Konten!$A$3:$E$3,0))),"Konto ?",IF(AND(O34=0,RIGHT(K34,5)*1>=10000),RIGHT(K34,5),K34))))) ->  | K34: =IF(M34="","",IF(AND(A34+B34>0,H34=""),"USt. ?",IF(M34="diverse Kunden",INDEX(Kunden!A:E,MATCH(N34,Kunden!A:A,1),MATCH(H34,Kunden!$A$3:$E$3,0)),IF(M34="diverse Lieferanten",INDEX(Lief.!A:E,MATCH(N34,Lief.!A:A,1),MATCH(H34,Lief.!$A$3:$E$3,0)),IF(ISERROR(INDEX(Konten!A:E,MATCH(M34,Konten!A:A,0),MATCH(H34,Konten!$A$3:$E$3,0))),"Konto ?",INDEX(Konten!A:E,MATCH(M34,Konten!A:A,0),MATCH(H34,Konten!$A$3:$E$3,0))))))) ->  | L34: 1600 | P34: 0
C35: 0 | E35: =IF(K35="","",IF(AND(A35+B35>0,H35=""),"USt. ?",IF(OR(K35="USt. ?",K35="Name?"),K35,IF(ISERROR(INDEX(Konten!A:E,MATCH(M35,Konten!A:A,0),MATCH(H35,Konten!$A$3:$E$3,0))),"Konto ?",IF(AND(O35=0,RIGHT(K35,5)*1>=10000),RIGHT(K35,5),K35))))) ->  | K35: =IF(M35="","",IF(AND(A35+B35>0,H35=""),"USt. ?",IF(M35="diverse Kunden",INDEX(Kunden!A:E,MATCH(N35,Kunden!A:A,1),MATCH(H35,Kunden!$A$3:$E$3,0)),IF(M35="diverse Lieferanten",INDEX(Lief.!A:E,MATCH(N35,Lief.!A:A,1),MATCH(H35,Lief.!$A$3:$E$3,0)),IF(ISERROR(INDEX(Konten!A:E,MATCH(M35,Konten!A:A,0),MATCH(H35,Konten!$A$3:$E$3,0))),"Konto ?",INDEX(Konten!A:E,MATCH(M35,Konten!A:A,0),MATCH(H35,Konten!$A$3:$E$3,0))))))) ->  | L35: 1600 | P35: 0
C36: 0 | E36: =IF(K36="","",IF(AND(A36+B36>0,H36=""),"USt. ?",IF(OR(K36="USt. ?",K36="Name?"),K36,IF(ISERROR(INDEX(Konten!A:E,MATCH(M36,Konten!A:A,0),MATCH(H36,Konten!$A$3:$E$3,0))),"Konto ?",IF(AND(O36=0,RIGHT(K36,5)*1>=10000),RIGHT(K36,5),K36))))) ->  | K36: =IF(M36="","",IF(AND(A36+B36>0,H36=""),"USt. ?",IF(M36="diverse Kunden",INDEX(Kunden!A:E,MATCH(N36,Kunden!A:A,1),MATCH(H36,Kunden!$A$3:$E$3,0)),IF(M36="diverse Lieferanten",INDEX(Lief.!A:E,MATCH(N36,Lief.!A:A,1),MATCH(H36,Lief.!$A$3:$E$3,0)),IF(ISERROR(INDEX(Konten!A:E,MATCH(M36,Konten!A:A,0),MATCH(H36,Konten!$A$3:$E$3,0))),"Konto ?",INDEX(Konten!A:E,MATCH(M36,Konten!A:A,0),MATCH(H36,Konten!$A$3:$E$3,0))))))) ->  | L36: 1600 | P36: 0
C37: 0 | E37: =IF(K37="","",IF(AND(A37+B37>0,H37=""),"USt. ?",IF(OR(K37="USt. ?",K37="Name?"),K37,IF(ISERROR(INDEX(Konten!A:E,MATCH(M37,Konten!A:A,0),MATCH(H37,Konten!$A$3:$E$3,0))),"Konto ?",IF(AND(O37=0,RIGHT(K37,5)*1>=10000),RIGHT(K37,5),K37))))) ->  | K37: =IF(M37="","",IF(AND(A37+B37>0,H37=""),"USt. ?",IF(M37="diverse Kunden",INDEX(Kunden!A:E,MATCH(N37,Kunden!A:A,1),MATCH(H37,Kunden!$A$3:$E$3,0)),IF(M37="diverse Lieferanten",INDEX(Lief.!A:E,MATCH(N37,Lief.!A:A,1),MATCH(H37,Lief.!$A$3:$E$3,0)),IF(ISERROR(INDEX(Konten!A:E,MATCH(M37,Konten!A:A,0),MATCH(H37,Konten!$A$3:$E$3,0))),"Konto ?",INDEX(Konten!A:E,MATCH(M37,Konten!A:A,0),MATCH(H37,Konten!$A$3:$E$3,0))))))) ->  | L37: 1600 | P37: 0
C38: 0 | E38: =IF(K38="","",IF(AND(A38+B38>0,H38=""),"USt. ?",IF(OR(K38="USt. ?",K38="Name?"),K38,IF(ISERROR(INDEX(Konten!A:E,MATCH(M38,Konten!A:A,0),MATCH(H38,Konten!$A$3:$E$3,0))),"Konto ?",IF(AND(O38=0,RIGHT(K38,5)*1>=10000),RIGHT(K38,5),K38))))) ->  | K38: =IF(M38="","",IF(AND(A38+B38>0,H38=""),"USt. ?",IF(M38="diverse Kunden",INDEX(Kunden!A:E,MATCH(N38,Kunden!A:A,1),MATCH(H38,Kunden!$A$3:$E$3,0)),IF(M38="diverse Lieferanten",INDEX(Lief.!A:E,MATCH(N38,Lief.!A:A,1),MATCH(H38,Lief.!$A$3:$E$3,0)),IF(ISERROR(INDEX(Konten!A:E,MATCH(M38,Konten!A:A,0),MATCH(H38,Konten!$A$3:$E$3,0))),"Konto ?",INDEX(Konten!A:E,MATCH(M38,Konten!A:A,0),MATCH(H38,Konten!$A$3:$E$3,0))))))) ->  | L38: 1600 | P38: 0
C39: 0 | E39: =IF(K39="","",IF(AND(A39+B39>0,H39=""),"USt. ?",IF(OR(K39="USt. ?",K39="Name?"),K39,IF(ISERROR(INDEX(Konten!A:E,MATCH(M39,Konten!A:A,0),MATCH(H39,Konten!$A$3:$E$3,0))),"Konto ?",IF(AND(O39=0,RIGHT(K39,5)*1>=10000),RIGHT(K39,5),K39))))) ->  | K39: =IF(M39="","",IF(AND(A39+B39>0,H39=""),"USt. ?",IF(M39="diverse Kunden",INDEX(Kunden!A:E,MATCH(N39,Kunden!A:A,1),MATCH(H39,Kunden!$A$3:$E$3,0)),IF(M39="diverse Lieferanten",INDEX(Lief.!A:E,MATCH(N39,Lief.!A:A,1),MATCH(H39,Lief.!$A$3:$E$3,0)),IF(ISERROR(INDEX(Konten!A:E,MATCH(M39,Konten!A:A,0),MATCH(H39,Konten!$A$3:$E$3,0))),"Konto ?",INDEX(Konten!A:E,MATCH(M39,Konten!A:A,0),MATCH(H39,Konten!$A$3:$E$3,0))))))) ->  | L39: 1600 | P39: 0
C40: 0 | E40: =IF(K40="","",IF(AND(A40+B40>0,H40=""),"USt. ?",IF(OR(K40="USt. ?",K40="Name?"),K40,IF(ISERROR(INDEX(Konten!A:E,MATCH(M40,Konten!A:A,0),MATCH(H40,Konten!$A$3:$E$3,0))),"Konto ?",IF(AND(O40=0,RIGHT(K40,5)*1>=10000),RIGHT(K40,5),K40))))) ->  | K40: =IF(M40="","",IF(AND(A40+B40>0,H40=""),"USt. ?",IF(M40="diverse Kunden",INDEX(Kunden!A:E,MATCH(N40,Kunden!A:A,1),MATCH(H40,Kunden!$A$3:$E$3,0)),IF(M40="diverse Lieferanten",INDEX(Lief.!A:E,MATCH(N40,Lief.!A:A,1),MATCH(H40,Lief.!$A$3:$E$3,0)),IF(ISERROR(INDEX(Konten!A:E,MATCH(M40,Konten!A:A,0),MATCH(H40,Konten!$A$3:$E$3,0))),"Konto ?",INDEX(Konten!A:E,MATCH(M40,Konten!A:A,0),MATCH(H40,Konten!$A$3:$E$3,0))))))) ->  | L40: 1600 | P40: 0
A41: =SUM(A8:A40) -> 0 | B41: =SUM(B8:B40) -> 0 | D41: Summen | M41: Unterschrift:
A42: =D6 -> 0 | B42: =INDIRECT("D"&COUNT(D8:D40)+7) -> 0 | D42: Bestand Anfang / Ende | K42: =MIN(D8:D42) -> 0 | M42: geprüft: | N42: =IF(ROUND(A43-B43,2)<>0,"Kassendifferenz !!!","") -> 
A43: =SUM(A41:A42) -> 0 | B43: =SUM(B41:B42) -> 0 | D43: Kontrollsummen | K43: =MIN('S. 1:S. '!K42) -> 0 | M43: gebucht:
A44: =IF(ROUND(A43-B43,2)<>0,"Kassendifferenz !!!","") -> 

Sheet S. 2
A1: =INDIRECT("'S. "&N3-1&"'!A1") -> 0 | L1: =DATE(YEAR(B3),MONTH(B3),1) -> 2020-02-01 | M1: K a s s e n b u c h | P1: =INDIRECT("'S. "&N3-1&"'!B3") -> 2020-01-31 | Q1: 2 | Y1: =RIGHT(CELL("Dateiname",A1),LEN(CELL("Dateiname",A1))-FIND("]",CELL("Dateiname",A1))) -> S. 2 | Z1: =LEFT(Y1,SEARCH(" ",Y1)) -> S. | AA1: =RIGHT(Y1,LEN(Y1)-SEARCH(" ",Y1)) -> 2
A3: Monat: | B3: =DATE(YEAR(P1),MONTH(P1)+Q1,0) -> 2020-02-29 | J3: ="F"&LARGE(IF(F8:F40<>" ",ROW(F8:F40)),1) -> F8 | K3: =YEAR(L3) -> 2020 | L3: =B3 -> 2020-02-29 | M3: =INDIRECT("'S. "&N3-1&"'!M3") -> 1600 | N3: =IF(ISERROR(P3),1,IF(RIGHT(P3,1)=")",LEFT(RIGHT(P3,7),3)+1,Q3)) -> 2 | P3: =RIGHT(CELL("Dateiname",A1),LEN(CELL("Dateiname",A1))-FIND("]",CELL("Dateiname",A1))) -> S. 2 | Q3: =MID(P3,SEARCH(" ",P3)+1,3)*1 -> 2
K4: =MONTH(L4) -> 2 | L4: =L3 -> 2020-02-29 | N4: =IF(ISERROR(P3),"",IF(AND(RIGHT(P3,2)<>TEXT(N3," #"),RIGHT(P3,2)<>TEXT(N3,"##"),RIGHT(P3,3)<>TEXT(N3,"###")),"Name Tabellenblatt ändern in ' S. "&N3&" ' ","")) -> 
A5: Einnahmen | B5: Ausgaben | C5: Einnahmen | D5: Bestand | E5: Gegen- | F5: Beleg- | G5: Beleg- | H5: USt.- | I5: BU | J5: Gegenkonto | K5: Gegenkonto | L5: Konto | M5: Kontierung | N5: Text | O5: Skonto | P5: Festschreibung
A6: € | B6: € | C6: Ausgaben | D6: =INDIRECT("'S. "&N3-1&"'!B42") -> 0 | E6: konto | F6: Nr. | G6: Datum | H6: Satz | J6: ASCII | K6: ASCII
G7: =DATE(YEAR(B3),MONTH(B3),IF(MONTH(INDIRECT("'S. "&N3-1&"'!B3"))=MONTH(B3),DAY(INDIRECT("'S. "&N3-1&"'!L4")),1)) -> 43862
C8: =A8-B8 -> 0 | D8: =D6+C8 -> 0 | E8: =IF(K8="","",IF(AND(A8+B8>0,H8=""),"USt. ?",IF(OR(K8="USt. ?",K8="Name?"),K8,IF(ISERROR(INDEX(Konten!A:E,MATCH(M8,Konten!A:A,0),MATCH(H8,Konten!$A$3:$E$3,0))),"Konto ?",IF(AND(O8=0,RIGHT(K8,5)*1>=10000),RIGHT(K8,5),K8))))) ->  | F8: =IF(INDIRECT("'S. "&N3-1&"'!A43")=0,1,IF(ROUND(A41+B41,2)=0,INDIRECT("'S. "&N3-1&"'!"&INDIRECT("'S. "&N3-1&"'!J3")),INDIRECT("'S. "&N3-1&"'!"&INDIRECT("'S. "&N3-1&"'!J3"))+1)) -> 1 | I8: =IF(LEN(E8)<6,"",LEFT(E8,LEN(E8)-5)) ->  | J8: =RIGHT(E8,5) ->  | K8: =IF(M8="","",IF(AND(A8+B8>0,H8=""),"USt. ?",IF(M8="diverse Kunden",INDEX(Kunden!A:E,MATCH(N8,Kunden!A:A,1),MATCH(H8,Kunden!$A$3:$E$3,0)),IF(M8="diverse Lieferanten",INDEX(Lief.!A:E,MATCH(N8,Lief.!A:A,1),MATCH(H8,Lief.!$A$3:$E$3,0)),IF(ISERROR(INDEX(Konten!A:E,MATCH(M8,Konten!A:A,0),MATCH(H8,Konten!$A$3:$E$3,0))),"Konto ?",INDEX(Konten!A:E,MATCH(M8,Konten!A:A,0),MATCH(H8,Konten!$A$3:$E$3,0))))))) ->  | L8: =$M$3 -> 1600 | P8: 0
C9: =A9-B9 -> 0 | D9: =IF(ROUND(C9,2)=0,"",D8+C9) ->  | E9: =IF(K9="","",IF(AND(A9+B9>0,H9=""),"USt. ?",IF(OR(K9="USt. ?",K9="Name?"),K9,IF(ISERROR(INDEX(Konten!A:E,MATCH(M9,Konten!A:A,0),MATCH(H9,Konten!$A$3:$E$3,0))),"Konto ?",IF(AND(O9=0,RIGHT(K9,5)*1>=10000),RIGHT(K9,5),K9))))) ->  | F9: =IF(A9+B9=0," ",F8+1) ->  | I9: =IF(LEN(E9)<6,"",LEFT(E9,LEN(E9)-5)) ->  | J9: =RIGHT(E9,5) ->  | K9: =IF(M9="","",IF(AND(A9+B9>0,H9=""),"USt. ?",IF(M9="diverse Kunden",INDEX(Kunden!A:E,MATCH(N9,Kunden!A:A,1),MATCH(H9,Kunden!$A$3:$E$3,0)),IF(M9="diverse Lieferanten",INDEX(Lief.!A:E,MATCH(N9,Lief.!A:A,1),MATCH(H9,Lief.!$A$3:$E$3,0)),IF(ISERROR(INDEX(Konten!A:E,MATCH(M9,Konten!A:A,0),MATCH(H9,Konten!$A$3:$E$3,0))),"Konto ?",INDEX(Konten!A:E,MATCH(M9,Konten!A:A,0),MATCH(H9,Konten!$A$3:$E$3,0))))))) ->  | L9: 1600 | P9: 0
C10: 0 | D10: =IF(ROUND(C10,2)=0,"",D9+C10) ->  | E10: =IF(K10="","",IF(AND(A10+B10>0,H10=""),"USt. ?",IF(OR(K10="USt. ?",K10="Name?"),K10,IF(ISERROR(INDEX(Konten!A:E,MATCH(M10,Konten!A:A,0),MATCH(H10,Konten!$A$3:$E$3,0))),"Konto ?",IF(AND(O10=0,RIGHT(K10,5)*1>=10000),RIGHT(K10,5),K10))))) ->  | K10: =IF(M10="","",IF(AND(A10+B10>0,H10=""),"USt. ?",IF(M10="diverse Kunden",INDEX(Kunden!A:E,MATCH(N10,Kunden!A:A,1),MATCH(H10,Kunden!$A$3:$E$3,0)),IF(M10="diverse Lieferanten",INDEX(Lief.!A:E,MATCH(N10,Lief.!A:A,1),MATCH(H10,Lief.!$A$3:$E$3,0)),IF(ISERROR(INDEX(Konten!A:E,MATCH(M10,Konten!A:A,0),MATCH(H10,Konten!$A$3:$E$3,0))),"Konto ?",INDEX(Konten!A:E,MATCH(M10,Konten!A:A,0),MATCH(H10,Konten!$A$3:$E$3,0))))))) ->  | L10: 1600 | P10: 0
C11: 0 | E11: =IF(K11="","",IF(AND(A11+B11>0,H11=""),"USt. ?",IF(OR(K11="USt. ?",K11="Name?"),K11,IF(ISERROR(INDEX(Konten!A:E,MATCH(M11,Konten!A:A,0),MATCH(H11,Konten!$A$3:$E$3,0))),"Konto ?",IF(AND(O11=0,RIGHT(K11,5)*1>=10000),RIGHT(K11,5),K11))))) ->  | K11: =IF(M11="","",IF(AND(A11+B11>0,H11=""),"USt. ?",IF(M11="diverse Kunden",INDEX(Kunden!A:E,MATCH(N11,Kunden!A:A,1),MATCH(H11,Kunden!$A$3:$E$3,0)),IF(M11="diverse Lieferanten",INDEX(Lief.!A:E,MATCH(N11,Lief.!A:A,1),MATCH(H11,Lief.!$A$3:$E$3,0)),IF(ISERROR(INDEX(Konten!A:E,MATCH(M11,Konten!A:A,0),MATCH(H11,Konten!$A$3:$E$3,0))),"Konto ?",INDEX(Konten!A:E,MATCH(M11,Konten!A:A,0),MATCH(H11,Konten!$A$3:$E$3,0))))))) ->  | L11: 1600 | P11: 0
C12: 0 | E12: =IF(K12="","",IF(AND(A12+B12>0,H12=""),"USt. ?",IF(OR(K12="USt. ?",K12="Name?"),K12,IF(ISERROR(INDEX(Konten!A:E,MATCH(M12,Konten!A:A,0),MATCH(H12,Konten!$A$3:$E$3,0))),"Konto ?",IF(AND(O12=0,RIGHT(K12,5)*1>=10000),RIGHT(K12,5),K12))))) ->  | K12: =IF(M12="","",IF(AND(A12+B12>0,H12=""),"USt. ?",IF(M12="diverse Kunden",INDEX(Kunden!A:E,MATCH(N12,Kunden!A:A,1),MATCH(H12,Kunden!$A$3:$E$3,0)),IF(M12="diverse Lieferanten",INDEX(Lief.!A:E,MATCH(N12,Lief.!A:A,1),MATCH(H12,Lief.!$A$3:$E$3,0)),IF(ISERROR(INDEX(Konten!A:E,MATCH(M12,Konten!A:A,0),MATCH(H12,Konten!$A$3:$E$3,0))),"Konto ?",INDEX(Konten!A:E,MATCH(M12,Konten!A:A,0),MATCH(H12,Konten!$A$3:$E$3,0))))))) ->  | L12: 1600 | P12: 0
C13: 0 | E13: =IF(K13="","",IF(AND(A13+B13>0,H13=""),"USt. ?",IF(OR(K13="USt. ?",K13="Name?"),K13,IF(ISERROR(INDEX(Konten!A:E,MATCH(M13,Konten!A:A,0),MATCH(H13,Konten!$A$3:$E$3,0))),"Konto ?",IF(AND(O13=0,RIGHT(K13,5)*1>=10000),RIGHT(K13,5),K13))))) ->  | K13: =IF(M13="","",IF(AND(A13+B13>0,H13=""),"USt. ?",IF(M13="diverse Kunden",INDEX(Kunden!A:E,MATCH(N13,Kunden!A:A,1),MATCH(H13,Kunden!$A$3:$E$3,0)),IF(M13="diverse Lieferanten",INDEX(Lief.!A:E,MATCH(N13,Lief.!A:A,1),MATCH(H13,Lief.!$A$3:$E$3,0)),IF(ISERROR(INDEX(Konten!A:E,MATCH(M13,Konten!A:A,0),MATCH(H13,Konten!$A$3:$E$3,0))),"Konto ?",INDEX(Konten!A:E,MATCH(M13,Konten!A:A,0),MATCH(H13,Konten!$A$3:$E$3,0))))))) ->  | L13: 1600 | P13: 0
C14: 0 | E14: =IF(K14="","",IF(AND(A14+B14>0,H14=""),"USt. ?",IF(OR(K14="USt. ?",K14="Name?"),K14,IF(ISERROR(INDEX(Konten!A:E,MATCH(M14,Konten!A:A,0),MATCH(H14,Konten!$A$3:$E$3,0))),"Konto ?",IF(AND(O14=0,RIGHT(K14,5)*1>=10000),RIGHT(K14,5),K14))))) ->  | K14: =IF(M14="","",IF(AND(A14+B14>0,H14=""),"USt. ?",IF(M14="diverse Kunden",INDEX(Kunden!A:E,MATCH(N14,Kunden!A:A,1),MATCH(H14,Kunden!$A$3:$E$3,0)),IF(M14="diverse Lieferanten",INDEX(Lief.!A:E,MATCH(N14,Lief.!A:A,1),MATCH(H14,Lief.!$A$3:$E$3,0)),IF(ISERROR(INDEX(Konten!A:E,MATCH(M14,Konten!A:A,0),MATCH(H14,Konten!$A$3:$E$3,0))),"Konto ?",INDEX(Konten!A:E,MATCH(M14,Konten!A:A,0),MATCH(H14,Konten!$A$3:$E$3,0))))))) ->  | L14: 1600 | P14: 0
C15: 0 | E15: =IF(K15="","",IF(AND(A15+B15>0,H15=""),"USt. ?",IF(OR(K15="USt. ?",K15="Name?"),K15,IF(ISERROR(INDEX(Konten!A:E,MATCH(M15,Konten!A:A,0),MATCH(H15,Konten!$A$3:$E$3,0))),"Konto ?",IF(AND(O15=0,RIGHT(K15,5)*1>=10000),RIGHT(K15,5),K15))))) ->  | K15: =IF(M15="","",IF(AND(A15+B15>0,H15=""),"USt. ?",IF(M15="diverse Kunden",INDEX(Kunden!A:E,MATCH(N15,Kunden!A:A,1),MATCH(H15,Kunden!$A$3:$E$3,0)),IF(M15="diverse Lieferanten",INDEX(Lief.!A:E,MATCH(N15,Lief.!A:A,1),MATCH(H15,Lief.!$A$3:$E$3,0)),IF(ISERROR(INDEX(Konten!A:E,MATCH(M15,Konten!A:A,0),MATCH(H15,Konten!$A$3:$E$3,0))),"Konto ?",INDEX(Konten!A:E,MATCH(M15,Konten!A:A,0),MATCH(H15,Konten!$A$3:$E$3,0))))))) ->  | L15: 1600 | P15: 0
C16: 0 | E16: =IF(K16="","",IF(AND(A16+B16>0,H16=""),"USt. ?",IF(OR(K16="USt. ?",K16="Name?"),K16,IF(ISERROR(INDEX(Konten!A:E,MATCH(M16,Konten!A:A,0),MATCH(H16,Konten!$A$3:$E$3,0))),"Konto ?",IF(AND(O16=0,RIGHT(K16,5)*1>=10000),RIGHT(K16,5),K16))))) ->  | K16: =IF(M16="","",IF(AND(A16+B16>0,H16=""),"USt. ?",IF(M16="diverse Kunden",INDEX(Kunden!A:E,MATCH(N16,Kunden!A:A,1),MATCH(H16,Kunden!$A$3:$E$3,0)),IF(M16="diverse Lieferanten",INDEX(Lief.!A:E,MATCH(N16,Lief.!A:A,1),MATCH(H16,Lief.!$A$3:$E$3,0)),IF(ISERROR(INDEX(Konten!A:E,MATCH(M16,Konten!A:A,0),MATCH(H16,Konten!$A$3:$E$3,0))),"Konto ?",INDEX(Konten!A:E,MATCH(M16,Konten!A:A,0),MATCH(H16,Konten!$A$3:$E$3,0))))))) ->  | L16: 1600 | P16: 0
C17: 0 | E17: =IF(K17="","",IF(AND(A17+B17>0,H17=""),"USt. ?",IF(OR(K17="USt. ?",K17="Name?"),K17,IF(ISERROR(INDEX(Konten!A:E,MATCH(M17,Konten!A:A,0),MATCH(H17,Konten!$A$3:$E$3,0))),"Konto ?",IF(AND(O17=0,RIGHT(K17,5)*1>=10000),RIGHT(K17,5),K17))))) ->  | K17: =IF(M17="","",IF(AND(A17+B17>0,H17=""),"USt. ?",IF(M17="diverse Kunden",INDEX(Kunden!A:E,MATCH(N17,Kunden!A:A,1),MATCH(H17,Kunden!$A$3:$E$3,0)),IF(M17="diverse Lieferanten",INDEX(Lief.!A:E,MATCH(N17,Lief.!A:A,1),MATCH(H17,Lief.!$A$3:$E$3,0)),IF(ISERROR(INDEX(Konten!A:E,MATCH(M17,Konten!A:A,0),MATCH(H17,Konten!$A$3:$E$3,0))),"Konto ?",INDEX(Konten!A:E,MATCH(M17,Konten!A:A,0),MATCH(H17,Konten!$A$3:$E$3,0))))))) ->  | L17: 1600 | P17: 0
C18: 0 | E18: =IF(K18="","",IF(AND(A18+B18>0,H18=""),"USt. ?",IF(OR(K18="USt. ?",K18="Name?"),K18,IF(ISERROR(INDEX(Konten!A:E,MATCH(M18,Konten!A:A,0),MATCH(H18,Konten!$A$3:$E$3,0))),"Konto ?",IF(AND(O18=0,RIGHT(K18,5)*1>=10000),RIGHT(K18,5),K18))))) ->  | K18: =IF(M18="","",IF(AND(A18+B18>0,H18=""),"USt. ?",IF(M18="diverse Kunden",INDEX(Kunden!A:E,MATCH(N18,Kunden!A:A,1),MATCH(H18,Kunden!$A$3:$E$3,0)),IF(M18="diverse Lieferanten",INDEX(Lief.!A:E,MATCH(N18,Lief.!A:A,1),MATCH(H18,Lief.!$A$3:$E$3,0)),IF(ISERROR(INDEX(Konten!A:E,MATCH(M18,Konten!A:A,0),MATCH(H18,Konten!$A$3:$E$3,0))),"Konto ?",INDEX(Konten!A:E,MATCH(M18,Konten!A:A,0),MATCH(H18,Konten!$A$3:$E$3,0))))))) ->  | L18: 1600 | P18: 0
C19: 0 | E19: =IF(K19="","",IF(AND(A19+B19>0,H19=""),"USt. ?",IF(OR(K19="USt. ?",K19="Name?"),K19,IF(ISERROR(INDEX(Konten!A:E,MATCH(M19,Konten!A:A,0),MATCH(H19,Konten!$A$3:$E$3,0))),"Konto ?",IF(AND(O19=0,RIGHT(K19,5)*1>=10000),RIGHT(K19,5),K19))))) ->  | K19: =IF(M19="","",IF(AND(A19+B19>0,H19=""),"USt. ?",IF(M19="diverse Kunden",INDEX(Kunden!A:E,MATCH(N19,Kunden!A:A,1),MATCH(H19,Kunden!$A$3:$E$3,0)),IF(M19="diverse Lieferanten",INDEX(Lief.!A:E,MATCH(N19,Lief.!A:A,1),MATCH(H19,Lief.!$A$3:$E$3,0)),IF(ISERROR(INDEX(Konten!A:E,MATCH(M19,Konten!A:A,0),MATCH(H19,Konten!$A$3:$E$3,0))),"Konto ?",INDEX(Konten!A:E,MATCH(M19,Konten!A:A,0),MATCH(H19,Konten!$A$3:$E$3,0))))))) ->  | L19: 1600 | P19: 0
C20: 0 | E20: =IF(K20="","",IF(AND(A20+B20>0,H20=""),"USt. ?",IF(OR(K20="USt. ?",K20="Name?"),K20,IF(ISERROR(INDEX(Konten!A:E,MATCH(M20,Konten!A:A,0),MATCH(H20,Konten!$A$3:$E$3,0))),"Konto ?",IF(AND(O20=0,RIGHT(K20,5)*1>=10000),RIGHT(K20,5),K20))))) ->  | K20: =IF(M20="","",IF(AND(A20+B20>0,H20=""),"USt. ?",IF(M20="diverse Kunden",INDEX(Kunden!A:E,MATCH(N20,Kunden!A:A,1),MATCH(H20,Kunden!$A$3:$E$3,0)),IF(M20="diverse Lieferanten",INDEX(Lief.!A:E,MATCH(N20,Lief.!A:A,1),MATCH(H20,Lief.!$A$3:$E$3,0)),IF(ISERROR(INDEX(Konten!A:E,MATCH(M20,Konten!A:A,0),MATCH(H20,Konten!$A$3:$E$3,0))),"Konto ?",INDEX(Konten!A:E,MATCH(M20,Konten!A:A,0),MATCH(H20,Konten!$A$3:$E$3,0))))))) ->  | L20: 1600 | P20: 0
C21: 0 | E21: =IF(K21="","",IF(AND(A21+B21>0,H21=""),"USt. ?",IF(OR(K21="USt. ?",K21="Name?"),K21,IF(ISERROR(INDEX(Konten!A:E,MATCH(M21,Konten!A:A,0),MATCH(H21,Konten!$A$3:$E$3,0))),"Konto ?",IF(AND(O21=0,RIGHT(K21,5)*1>=10000),RIGHT(K21,5),K21))))) ->  | K21: =IF(M21="","",IF(AND(A21+B21>0,H21=""),"USt. ?",IF(M21="diverse Kunden",INDEX(Kunden!A:E,MATCH(N21,Kunden!A:A,1),MATCH(H21,Kunden!$A$3:$E$3,0)),IF(M21="diverse Lieferanten",INDEX(Lief.!A:E,MATCH(N21,Lief.!A:A,1),MATCH(H21,Lief.!$A$3:$E$3,0)),IF(ISERROR(INDEX(Konten!A:E,MATCH(M21,Konten!A:A,0),MATCH(H21,Konten!$A$3:$E$3,0))),"Konto ?",INDEX(Konten!A:E,MATCH(M21,Konten!A:A,0),MATCH(H21,Konten!$A$3:$E$3,0))))))) ->  | L21: 1600 | P21: 0
C22: 0 | E22: =IF(K22="","",IF(AND(A22+B22>0,H22=""),"USt. ?",IF(OR(K22="USt. ?",K22="Name?"),K22,IF(ISERROR(INDEX(Konten!A:E,MATCH(M22,Konten!A:A,0),MATCH(H22,Konten!$A$3:$E$3,0))),"Konto ?",IF(AND(O22=0,RIGHT(K22,5)*1>=10000),RIGHT(K22,5),K22))))) ->  | K22: =IF(M22="","",IF(AND(A22+B22>0,H22=""),"USt. ?",IF(M22="diverse Kunden",INDEX(Kunden!A:E,MATCH(N22,Kunden!A:A,1),MATCH(H22,Kunden!$A$3:$E$3,0)),IF(M22="diverse Lieferanten",INDEX(Lief.!A:E,MATCH(N22,Lief.!A:A,1),MATCH(H22,Lief.!$A$3:$E$3,0)),IF(ISERROR(INDEX(Konten!A:E,MATCH(M22,Konten!A:A,0),MATCH(H22,Konten!$A$3:$E$3,0))),"Konto ?",INDEX(Konten!A:E,MATCH(M22,Konten!A:A,0),MATCH(H22,Konten!$A$3:$E$3,0))))))) ->  | L22: 1600 | P22: 0
C23: 0 | E23: =IF(K23="","",IF(AND(A23+B23>0,H23=""),"USt. ?",IF(OR(K23="USt. ?",K23="Name?"),K23,IF(ISERROR(INDEX(Konten!A:E,MATCH(M23,Konten!A:A,0),MATCH(H23,Konten!$A$3:$E$3,0))),"Konto ?",IF(AND(O23=0,RIGHT(K23,5)*1>=10000),RIGHT(K23,5),K23))))) ->  | K23: =IF(M23="","",IF(AND(A23+B23>0,H23=""),"USt. ?",IF(M23="diverse Kunden",INDEX(Kunden!A:E,MATCH(N23,Kunden!A:A,1),MATCH(H23,Kunden!$A$3:$E$3,0)),IF(M23="diverse Lieferanten",INDEX(Lief.!A:E,MATCH(N23,Lief.!A:A,1),MATCH(H23,Lief.!$A$3:$E$3,0)),IF(ISERROR(INDEX(Konten!A:E,MATCH(M23,Konten!A:A,0),MATCH(H23,Konten!$A$3:$E$3,0))),"Konto ?",INDEX(Konten!A:E,MATCH(M23,Konten!A:A,0),MATCH(H23,Konten!$A$3:$E$3,0))))))) ->  | L23: 1600 | P23: 0
C24: 0 | E24: =IF(K24="","",IF(AND(A24+B24>0,H24=""),"USt. ?",IF(OR(K24="USt. ?",K24="Name?"),K24,IF(ISERROR(INDEX(Konten!A:E,MATCH(M24,Konten!A:A,0),MATCH(H24,Konten!$A$3:$E$3,0))),"Konto ?",IF(AND(O24=0,RIGHT(K24,5)*1>=10000),RIGHT(K24,5),K24))))) ->  | K24: =IF(M24="","",IF(AND(A24+B24>0,H24=""),"USt. ?",IF(M24="diverse Kunden",INDEX(Kunden!A:E,MATCH(N24,Kunden!A:A,1),MATCH(H24,Kunden!$A$3:$E$3,0)),IF(M24="diverse Lieferanten",INDEX(Lief.!A:E,MATCH(N24,Lief.!A:A,1),MATCH(H24,Lief.!$A$3:$E$3,0)),IF(ISERROR(INDEX(Konten!A:E,MATCH(M24,Konten!A:A,0),MATCH(H24,Konten!$A$3:$E$3,0))),"Konto ?",INDEX(Konten!A:E,MATCH(M24,Konten!A:A,0),MATCH(H24,Konten!$A$3:$E$3,0))))))) ->  | L24: 1600 | P24: 0
C25: 0 | E25: =IF(K25="","",IF(AND(A25+B25>0,H25=""),"USt. ?",IF(OR(K25="USt. ?",K25="Name?"),K25,IF(ISERROR(INDEX(Konten!A:E,MATCH(M25,Konten!A:A,0),MATCH(H25,Konten!$A$3:$E$3,0))),"Konto ?",IF(AND(O25=0,RIGHT(K25,5)*1>=10000),RIGHT(K25,5),K25))))) ->  | K25: =IF(M25="","",IF(AND(A25+B25>0,H25=""),"USt. ?",IF(M25="diverse Kunden",INDEX(Kunden!A:E,MATCH(N25,Kunden!A:A,1),MATCH(H25,Kunden!$A$3:$E$3,0)),IF(M25="diverse Lieferanten",INDEX(Lief.!A:E,MATCH(N25,Lief.!A:A,1),MATCH(H25,Lief.!$A$3:$E$3,0)),IF(ISERROR(INDEX(Konten!A:E,MATCH(M25,Konten!A:A,0),MATCH(H25,Konten!$A$3:$E$3,0))),"Konto ?",INDEX(Konten!A:E,MATCH(M25,Konten!A:A,0),MATCH(H25,Konten!$A$3:$E$3,0))))))) ->  | L25: 1600 | P25: 0
C26: 0 | E26: =IF(K26="","",IF(AND(A26+B26>0,H26=""),"USt. ?",IF(OR(K26="USt. ?",K26="Name?"),K26,IF(ISERROR(INDEX(Konten!A:E,MATCH(M26,Konten!A:A,0),MATCH(H26,Konten!$A$3:$E$3,0))),"Konto ?",IF(AND(O26=0,RIGHT(K26,5)*1>=10000),RIGHT(K26,5),K26))))) ->  | K26: =IF(M26="","",IF(AND(A26+B26>0,H26=""),"USt. ?",IF(M26="diverse Kunden",INDEX(Kunden!A:E,MATCH(N26,Kunden!A:A,1),MATCH(H26,Kunden!$A$3:$E$3,0)),IF(M26="diverse Lieferanten",INDEX(Lief.!A:E,MATCH(N26,Lief.!A:A,1),MATCH(H26,Lief.!$A$3:$E$3,0)),IF(ISERROR(INDEX(Konten!A:E,MATCH(M26,Konten!A:A,0),MATCH(H26,Konten!$A$3:$E$3,0))),"Konto ?",INDEX(Konten!A:E,MATCH(M26,Konten!A:A,0),MATCH(H26,Konten!$A$3:$E$3,0))))))) ->  | L26: 1600 | P26: 0
C27: 0 | E27: =IF(K27="","",IF(AND(A27+B27>0,H27=""),"USt. ?",IF(OR(K27="USt. ?",K27="Name?"),K27,IF(ISERROR(INDEX(Konten!A:E,MATCH(M27,Konten!A:A,0),MATCH(H27,Konten!$A$3:$E$3,0))),"Konto ?",IF(AND(O27=0,RIGHT(K27,5)*1>=10000),RIGHT(K27,5),K27))))) ->  | K27: =IF(M27="","",IF(AND(A27+B27>0,H27=""),"USt. ?",IF(M27="diverse Kunden",INDEX(Kunden!A:E,MATCH(N27,Kunden!A:A,1),MATCH(H27,Kunden!$A$3:$E$3,0)),IF(M27="diverse Lieferanten",INDEX(Lief.!A:E,MATCH(N27,Lief.!A:A,1),MATCH(H27,Lief.!$A$3:$E$3,0)),IF(ISERROR(INDEX(Konten!A:E,MATCH(M27,Konten!A:A,0),MATCH(H27,Konten!$A$3:$E$3,0))),"Konto ?",INDEX(Konten!A:E,MATCH(M27,Konten!A:A,0),MATCH(H27,Konten!$A$3:$E$3,0))))))) ->  | L27: 1600 | P27: 0
C28: 0 | E28: =IF(K28="","",IF(AND(A28+B28>0,H28=""),"USt. ?",IF(OR(K28="USt. ?",K28="Name?"),K28,IF(ISERROR(INDEX(Konten!A:E,MATCH(M28,Konten!A:A,0),MATCH(H28,Konten!$A$3:$E$3,0))),"Konto ?",IF(AND(O28=0,RIGHT(K28,5)*1>=10000),RIGHT(K28,5),K28))))) ->  | K28: =IF(M28="","",IF(AND(A28+B28>0,H28=""),"USt. ?",IF(M28="diverse Kunden",INDEX(Kunden!A:E,MATCH(N28,Kunden!A:A,1),MATCH(H28,Kunden!$A$3:$E$3,0)),IF(M28="diverse Lieferanten",INDEX(Lief.!A:E,MATCH(N28,Lief.!A:A,1),MATCH(H28,Lief.!$A$3:$E$3,0)),IF(ISERROR(INDEX(Konten!A:E,MATCH(M28,Konten!A:A,0),MATCH(H28,Konten!$A$3:$E$3,0))),"Konto ?",INDEX(Konten!A:E,MATCH(M28,Konten!A:A,0),MATCH(H28,Konten!$A$3:$E$3,0))))))) ->  | L28: 1600 | P28: 0
C29: 0 | E29: =IF(K29="","",IF(AND(A29+B29>0,H29=""),"USt. ?",IF(OR(K29="USt. ?",K29="Name?"),K29,IF(ISERROR(INDEX(Konten!A:E,MATCH(M29,Konten!A:A,0),MATCH(H29,Konten!$A$3:$E$3,0))),"Konto ?",IF(AND(O29=0,RIGHT(K29,5)*1>=10000),RIGHT(K29,5),K29))))) ->  | K29: =IF(M29="","",IF(AND(A29+B29>0,H29=""),"USt. ?",IF(M29="diverse Kunden",INDEX(Kunden!A:E,MATCH(N29,Kunden!A:A,1),MATCH(H29,Kunden!$A$3:$E$3,0)),IF(M29="diverse Lieferanten",INDEX(Lief.!A:E,MATCH(N29,Lief.!A:A,1),MATCH(H29,Lief.!$A$3:$E$3,0)),IF(ISERROR(INDEX(Konten!A:E,MATCH(M29,Konten!A:A,0),MATCH(H29,Konten!$A$3:$E$3,0))),"Konto ?",INDEX(Konten!A:E,MATCH(M29,Konten!A:A,0),MATCH(H29,Konten!$A$3:$E$3,0))))))) ->  | L29: 1600 | P29: 0
C30: 0 | E30: =IF(K30="","",IF(AND(A30+B30>0,H30=""),"USt. ?",IF(OR(K30="USt. ?",K30="Name?"),K30,IF(ISERROR(INDEX(Konten!A:E,MATCH(M30,Konten!A:A,0),MATCH(H30,Konten!$A$3:$E$3,0))),"Konto ?",IF(AND(O30=0,RIGHT(K30,5)*1>=10000),RIGHT(K30,5),K30))))) ->  | K30: =IF(M30="","",IF(AND(A30+B30>0,H30=""),"USt. ?",IF(M30="diverse Kunden",INDEX(Kunden!A:E,MATCH(N30,Kunden!A:A,1),MATCH(H30,Kunden!$A$3:$E$3,0)),IF(M30="diverse Lieferanten",INDEX(Lief.!A:E,MATCH(N30,Lief.!A:A,1),MATCH(H30,Lief.!$A$3:$E$3,0)),IF(ISERROR(INDEX(Konten!A:E,MATCH(M30,Konten!A:A,0),MATCH(H30,Konten!$A$3:$E$3,0))),"Konto ?",INDEX(Konten!A:E,MATCH(M30,Konten!A:A,0),MATCH(H30,Konten!$A$3:$E$3,0))))))) ->  | L30: 1600 | P30: 0
C31: 0 | E31: =IF(K31="","",IF(AND(A31+B31>0,H31=""),"USt. ?",IF(OR(K31="USt. ?",K31="Name?"),K31,IF(ISERROR(INDEX(Konten!A:E,MATCH(M31,Konten!A:A,0),MATCH(H31,Konten!$A$3:$E$3,0))),"Konto ?",IF(AND(O31=0,RIGHT(K31,5)*1>=10000),RIGHT(K31,5),K31))))) ->  | K31: =IF(M31="","",IF(AND(A31+B31>0,H31=""),"USt. ?",IF(M31="diverse Kunden",INDEX(Kunden!A:E,MATCH(N31,Kunden!A:A,1),MATCH(H31,Kunden!$A$3:$E$3,0)),IF(M31="diverse Lieferanten",INDEX(Lief.!A:E,MATCH(N31,Lief.!A:A,1),MATCH(H31,Lief.!$A$3:$E$3,0)),IF(ISERROR(INDEX(Konten!A:E,MATCH(M31,Konten!A:A,0),MATCH(H31,Konten!$A$3:$E$3,0))),"Konto ?",INDEX(Konten!A:E,MATCH(M31,Konten!A:A,0),MATCH(H31,Konten!$A$3:$E$3,0))))))) ->  | L31: 1600 | P31: 0
C32: 0 | E32: =IF(K32="","",IF(AND(A32+B32>0,H32=""),"USt. ?",IF(OR(K32="USt. ?",K32="Name?"),K32,IF(ISERROR(INDEX(Konten!A:E,MATCH(M32,Konten!A:A,0),MATCH(H32,Konten!$A$3:$E$3,0))),"Konto ?",IF(AND(O32=0,RIGHT(K32,5)*1>=10000),RIGHT(K32,5),K32))))) ->  | K32: =IF(M32="","",IF(AND(A32+B32>0,H32=""),"USt. ?",IF(M32="diverse Kunden",INDEX(Kunden!A:E,MATCH(N32,Kunden!A:A,1),MATCH(H32,Kunden!$A$3:$E$3,0)),IF(M32="diverse Lieferanten",INDEX(Lief.!A:E,MATCH(N32,Lief.!A:A,1),MATCH(H32,Lief.!$A$3:$E$3,0)),IF(ISERROR(INDEX(Konten!A:E,MATCH(M32,Konten!A:A,0),MATCH(H32,Konten!$A$3:$E$3,0))),"Konto ?",INDEX(Konten!A:E,MATCH(M32,Konten!A:A,0),MATCH(H32,Konten!$A$3:$E$3,0))))))) ->  | L32: 1600 | P32: 0
C33: 0 | E33: =IF(K33="","",IF(AND(A33+B33>0,H33=""),"USt. ?",IF(OR(K33="USt. ?",K33="Name?"),K33,IF(ISERROR(INDEX(Konten!A:E,MATCH(M33,Konten!A:A,0),MATCH(H33,Konten!$A$3:$E$3,0))),"Konto ?",IF(AND(O33=0,RIGHT(K33,5)*1>=10000),RIGHT(K33,5),K33))))) ->  | K33: =IF(M33="","",IF(AND(A33+B33>0,H33=""),"USt. ?",IF(M33="diverse Kunden",INDEX(Kunden!A:E,MATCH(N33,Kunden!A:A,1),MATCH(H33,Kunden!$A$3:$E$3,0)),IF(M33="diverse Lieferanten",INDEX(Lief.!A:E,MATCH(N33,Lief.!A:A,1),MATCH(H33,Lief.!$A$3:$E$3,0)),IF(ISERROR(INDEX(Konten!A:E,MATCH(M33,Konten!A:A,0),MATCH(H33,Konten!$A$3:$E$3,0))),"Konto ?",INDEX(Konten!A:E,MATCH(M33,Konten!A:A,0),MATCH(H33,Konten!$A$3:$E$3,0))))))) ->  | L33: 1600 | P33: 0
C34: 0 | E34: =IF(K34="","",IF(AND(A34+B34>0,H34=""),"USt. ?",IF(OR(K34="USt. ?",K34="Name?"),K34,IF(ISERROR(INDEX(Konten!A:E,MATCH(M34,Konten!A:A,0),MATCH(H34,Konten!$A$3:$E$3,0))),"Konto ?",IF(AND(O34=0,RIGHT(K34,5)*1>=10000),RIGHT(K34,5),K34))))) ->  | K34: =IF(M34="","",IF(AND(A34+B34>0,H34=""),"USt. ?",IF(M34="diverse Kunden",INDEX(Kunden!A:E,MATCH(N34,Kunden!A:A,1),MATCH(H34,Kunden!$A$3:$E$3,0)),IF(M34="diverse Lieferanten",INDEX(Lief.!A:E,MATCH(N34,Lief.!A:A,1),MATCH(H34,Lief.!$A$3:$E$3,0)),IF(ISERROR(INDEX(Konten!A:E,MATCH(M34,Konten!A:A,0),MATCH(H34,Konten!$A$3:$E$3,0))),"Konto ?",INDEX(Konten!A:E,MATCH(M34,Konten!A:A,0),MATCH(H34,Konten!$A$3:$E$3,0))))))) ->  | L34: 1600 | P34: 0
C35: 0 | E35: =IF(K35="","",IF(AND(A35+B35>0,H35=""),"USt. ?",IF(OR(K35="USt. ?",K35="Name?"),K35,IF(ISERROR(INDEX(Konten!A:E,MATCH(M35,Konten!A:A,0),MATCH(H35,Konten!$A$3:$E$3,0))),"Konto ?",IF(AND(O35=0,RIGHT(K35,5)*1>=10000),RIGHT(K35,5),K35))))) ->  | K35: =IF(M35="","",IF(AND(A35+B35>0,H35=""),"USt. ?",IF(M35="diverse Kunden",INDEX(Kunden!A:E,MATCH(N35,Kunden!A:A,1),MATCH(H35,Kunden!$A$3:$E$3,0)),IF(M35="diverse Lieferanten",INDEX(Lief.!A:E,MATCH(N35,Lief.!A:A,1),MATCH(H35,Lief.!$A$3:$E$3,0)),IF(ISERROR(INDEX(Konten!A:E,MATCH(M35,Konten!A:A,0),MATCH(H35,Konten!$A$3:$E$3,0))),"Konto ?",INDEX(Konten!A:E,MATCH(M35,Konten!A:A,0),MATCH(H35,Konten!$A$3:$E$3,0))))))) ->  | L35: 1600 | P35: 0
C36: 0 | E36: =IF(K36="","",IF(AND(A36+B36>0,H36=""),"USt. ?",IF(OR(K36="USt. ?",K36="Name?"),K36,IF(ISERROR(INDEX(Konten!A:E,MATCH(M36,Konten!A:A,0),MATCH(H36,Konten!$A$3:$E$3,0))),"Konto ?",IF(AND(O36=0,RIGHT(K36,5)*1>=10000),RIGHT(K36,5),K36))))) ->  | K36: =IF(M36="","",IF(AND(A36+B36>0,H36=""),"USt. ?",IF(M36="diverse Kunden",INDEX(Kunden!A:E,MATCH(N36,Kunden!A:A,1),MATCH(H36,Kunden!$A$3:$E$3,0)),IF(M36="diverse Lieferanten",INDEX(Lief.!A:E,MATCH(N36,Lief.!A:A,1),MATCH(H36,Lief.!$A$3:$E$3,0)),IF(ISERROR(INDEX(Konten!A:E,MATCH(M36,Konten!A:A,0),MATCH(H36,Konten!$A$3:$E$3,0))),"Konto ?",INDEX(Konten!A:E,MATCH(M36,Konten!A:A,0),MATCH(H36,Konten!$A$3:$E$3,0))))))) ->  | L36: 1600 | P36: 0
C37: 0 | E37: =IF(K37="","",IF(AND(A37+B37>0,H37=""),"USt. ?",IF(OR(K37="USt. ?",K37="Name?"),K37,IF(ISERROR(INDEX(Konten!A:E,MATCH(M37,Konten!A:A,0),MATCH(H37,Konten!$A$3:$E$3,0))),"Konto ?",IF(AND(O37=0,RIGHT(K37,5)*1>=10000),RIGHT(K37,5),K37))))) ->  | K37: =IF(M37="","",IF(AND(A37+B37>0,H37=""),"USt. ?",IF(M37="diverse Kunden",INDEX(Kunden!A:E,MATCH(N37,Kunden!A:A,1),MATCH(H37,Kunden!$A$3:$E$3,0)),IF(M37="diverse Lieferanten",INDEX(Lief.!A:E,MATCH(N37,Lief.!A:A,1),MATCH(H37,Lief.!$A$3:$E$3,0)),IF(ISERROR(INDEX(Konten!A:E,MATCH(M37,Konten!A:A,0),MATCH(H37,Konten!$A$3:$E$3,0))),"Konto ?",INDEX(Konten!A:E,MATCH(M37,Konten!A:A,0),MATCH(H37,Konten!$A$3:$E$3,0))))))) ->  | L37: 1600 | P37: 0
C38: 0 | E38: =IF(K38="","",IF(AND(A38+B38>0,H38=""),"USt. ?",IF(OR(K38="USt. ?",K38="Name?"),K38,IF(ISERROR(INDEX(Konten!A:E,MATCH(M38,Konten!A:A,0),MATCH(H38,Konten!$A$3:$E$3,0))),"Konto ?",IF(AND(O38=0,RIGHT(K38,5)*1>=10000),RIGHT(K38,5),K38))))) ->  | K38: =IF(M38="","",IF(AND(A38+B38>0,H38=""),"USt. ?",IF(M38="diverse Kunden",INDEX(Kunden!A:E,MATCH(N38,Kunden!A:A,1),MATCH(H38,Kunden!$A$3:$E$3,0)),IF(M38="diverse Lieferanten",INDEX(Lief.!A:E,MATCH(N38,Lief.!A:A,1),MATCH(H38,Lief.!$A$3:$E$3,0)),IF(ISERROR(INDEX(Konten!A:E,MATCH(M38,Konten!A:A,0),MATCH(H38,Konten!$A$3:$E$3,0))),"Konto ?",INDEX(Konten!A:E,MATCH(M38,Konten!A:A,0),MATCH(H38,Konten!$A$3:$E$3,0))))))) ->  | L38: 1600 | P38: 0
C39: 0 | E39: =IF(K39="","",IF(AND(A39+B39>0,H39=""),"USt. ?",IF(OR(K39="USt. ?",K39="Name?"),K39,IF(ISERROR(INDEX(Konten!A:E,MATCH(M39,Konten!A:A,0),MATCH(H39,Konten!$A$3:$E$3,0))),"Konto ?",IF(AND(O39=0,RIGHT(K39,5)*1>=10000),RIGHT(K39,5),K39))))) ->  | K39: =IF(M39="","",IF(AND(A39+B39>0,H39=""),"USt. ?",IF(M39="diverse Kunden",INDEX(Kunden!A:E,MATCH(N39,Kunden!A:A,1),MATCH(H39,Kunden!$A$3:$E$3,0)),IF(M39="diverse Lieferanten",INDEX(Lief.!A:E,MATCH(N39,Lief.!A:A,1),MATCH(H39,Lief.!$A$3:$E$3,0)),IF(ISERROR(INDEX(Konten!A:E,MATCH(M39,Konten!A:A,0),MATCH(H39,Konten!$A$3:$E$3,0))),"Konto ?",INDEX(Konten!A:E,MATCH(M39,Konten!A:A,0),MATCH(H39,Konten!$A$3:$E$3,0))))))) ->  | L39: 1600 | P39: 0
C40: 0 | E40: =IF(K40="","",IF(AND(A40+B40>0,H40=""),"USt. ?",IF(OR(K40="USt. ?",K40="Name?"),K40,IF(ISERROR(INDEX(Konten!A:E,MATCH(M40,Konten!A:A,0),MATCH(H40,Konten!$A$3:$E$3,0))),"Konto ?",IF(AND(O40=0,RIGHT(K40,5)*1>=10000),RIGHT(K40,5),K40))))) ->  | K40: =IF(M40="","",IF(AND(A40+B40>0,H40=""),"USt. ?",IF(M40="diverse Kunden",INDEX(Kunden!A:E,MATCH(N40,Kunden!A:A,1),MATCH(H40,Kunden!$A$3:$E$3,0)),IF(M40="diverse Lieferanten",INDEX(Lief.!A:E,MATCH(N40,Lief.!A:A,1),MATCH(H40,Lief.!$A$3:$E$3,0)),IF(ISERROR(INDEX(Konten!A:E,MATCH(M40,Konten!A:A,0),MATCH(H40,Konten!$A$3:$E$3,0))),"Konto ?",INDEX(Konten!A:E,MATCH(M40,Konten!A:A,0),MATCH(H40,Konten!$A$3:$E$3,0))))))) ->  | L40: 1600 | P40: 0
A41: =SUM(A8:A40) -> 0 | B41: =SUM(B8:B40) -> 0 | D41: Summen | M41: Unterschrift:
A42: =D6 -> 0 | B42: =INDIRECT("D"&COUNT(D8:D40)+7) -> 0 | D42: Bestand Anfang / Ende | K42: =MIN(D8:D42) -> 0 | M42: geprüft: | N42: =IF(ROUND(A43-B43,2)<>0,"Kassendifferenz !!!","") -> 
A43: =SUM(A41:A42) -> 0 | B43: =SUM(B41:B42) -> 0 | D43: Kontrollsummen | K43: =MIN('S. 1:S. '!K42) -> 0 | M43: gebucht:
A44: =IF(ROUND(A43-B43,2)<>0,"Kassendifferenz !!!","") -> 

Sheet S. 3
A1: =INDIRECT("'S. "&N3-1&"'!A1") -> 0 | L1: =DATE(YEAR(B3),MONTH(B3),1) -> 2020-03-01 | M1: K a s s e n b u c h | P1: =INDIRECT("'S. "&N3-1&"'!B3") -> 2020-02-29 | Q1: 2 | Y1: =RIGHT(CELL("Dateiname",A1),LEN(CELL("Dateiname",A1))-FIND("]",CELL("Dateiname",A1))) -> S. 3 | Z1: =LEFT(Y1,SEARCH(" ",Y1)) -> S. | AA1: =RIGHT(Y1,LEN(Y1)-SEARCH(" ",Y1)) -> 3
A3: Monat: | B3: =DATE(YEAR(P1),MONTH(P1)+Q1,0) -> 2020-03-31 | J3: ="F"&LARGE(IF(F8:F40<>" ",ROW(F8:F40)),1) -> F8 | K3: =YEAR(L3) -> 2020 | L3: =B3 -> 2020-03-31 | M3: =INDIRECT("'S. "&N3-1&"'!M3") -> 1600 | N3: =IF(ISERROR(P3),1,IF(RIGHT(P3,1)=")",LEFT(RIGHT(P3,7),3)+1,Q3)) -> 3 | P3: =RIGHT(CELL("Dateiname",A1),LEN(CELL("Dateiname",A1))-FIND("]",CELL("Dateiname",A1))) -> S. 3 | Q3: =MID(P3,SEARCH(" ",P3)+1,3)*1 -> 3
K4: =MONTH(L4) -> 3 | L4: =L3 -> 2020-03-31 | N4: =IF(ISERROR(P3),"",IF(AND(RIGHT(P3,2)<>TEXT(N3," #"),RIGHT(P3,2)<>TEXT(N3,"##"),RIGHT(P3,3)<>TEXT(N3,"###")),"Name Tabellenblatt ändern in ' S. "&N3&" ' ","")) -> 
A5: Einnahmen | B5: Ausgaben | C5: Einnahmen | D5: Bestand | E5: Gegen- | F5: Beleg- | G5: Beleg- | H5: USt.- | I5: BU | J5: Gegenkonto | K5: Gegenkonto | L5: Konto | M5: Kontierung | N5: Text | O5: Skonto | P5: Festschreibung
A6: € | B6: € | C6: Ausgaben | D6: =INDIRECT("'S. "&N3-1&"'!B42") -> 0 | E6: konto | F6: Nr. | G6: Datum | H6: Satz | J6: ASCII | K6: ASCII
G7: =DATE(YEAR(B3),MONTH(B3),IF(MONTH(INDIRECT("'S. "&N3-1&"'!B3"))=MONTH(B3),DAY(INDIRECT("'S. "&N3-1&"'!L4")),1)) -> 43891
C8: =A8-B8 -> 0 | D8: =D6+C8 -> 0 | E8: =IF(K8="","",IF(AND(A8+B8>0,H8=""),"USt. ?",IF(OR(K8="USt. ?",K8="Name?"),K8,IF(ISERROR(INDEX(Konten!A:E,MATCH(M8,Konten!A:A,0),MATCH(H8,Konten!$A$3:$E$3,0))),"Konto ?",IF(AND(O8=0,RIGHT(K8,5)*1>=10000),RIGHT(K8,5),K8))))) ->  | F8: =IF(INDIRECT("'S. "&N3-1&"'!A43")=0,1,IF(ROUND(A41+B41,2)=0,INDIRECT("'S. "&N3-1&"'!"&INDIRECT("'S. "&N3-1&"'!J3")),INDIRECT("'S. "&N3-1&"'!"&INDIRECT("'S. "&N3-1&"'!J3"))+1)) -> 1 | I8: =IF(LEN(E8)<6,"",LEFT(E8,LEN(E8)-5)) ->  | J8: =RIGHT(E8,5) ->  | K8: =IF(M8="","",IF(AND(A8+B8>0,H8=""),"USt. ?",IF(M8="diverse Kunden",INDEX(Kunden!A:E,MATCH(N8,Kunden!A:A,1),MATCH(H8,Kunden!$A$3:$E$3,0)),IF(M8="diverse Lieferanten",INDEX(Lief.!A:E,MATCH(N8,Lief.!A:A,1),MATCH(H8,Lief.!$A$3:$E$3,0)),IF(ISERROR(INDEX(Konten!A:E,MATCH(M8,Konten!A:A,0),MATCH(H8,Konten!$A$3:$E$3,0))),"Konto ?",INDEX(Konten!A:E,MATCH(M8,Konten!A:A,0),MATCH(H8,Konten!$A$3:$E$3,0))))))) ->  | L8: =$M$3 -> 1600 | P8: 0
C9: =A9-B9 -> 0 | D9: =IF(ROUND(C9,2)=0,"",D8+C9) ->  | E9: =IF(K9="","",IF(AND(A9+B9>0,H9=""),"USt. ?",IF(OR(K9="USt. ?",K9="Name?"),K9,IF(ISERROR(INDEX(Konten!A:E,MATCH(M9,Konten!A:A,0),MATCH(H9,Konten!$A$3:$E$3,0))),"Konto ?",IF(AND(O9=0,RIGHT(K9,5)*1>=10000),RIGHT(K9,5),K9))))) ->  | F9: =IF(A9+B9=0," ",F8+1) ->  | I9: =IF(LEN(E9)<6,"",LEFT(E9,LEN(E9)-5)) ->  | J9: =RIGHT(E9,5) ->  | K9: =IF(M9="","",IF(AND(A9+B9>0,H9=""),"USt. ?",IF(M9="diverse Kunden",INDEX(Kunden!A:E,MATCH(N9,Kunden!A:A,1),MATCH(H9,Kunden!$A$3:$E$3,0)),IF(M9="diverse Lieferanten",INDEX(Lief.!A:E,MATCH(N9,Lief.!A:A,1),MATCH(H9,Lief.!$A$3:$E$3,0)),IF(ISERROR(INDEX(Konten!A:E,MATCH(M9,Konten!A:A,0),MATCH(H9,Konten!$A$3:$E$3,0))),"Konto ?",INDEX(Konten!A:E,MATCH(M9,Konten!A:A,0),MATCH(H9,Konten!$A$3:$E$3,0))))))) ->  | L9: 1600 | P9: 0
C10: 0 | D10: =IF(ROUND(C10,2)=0,"",D9+C10) ->  | E10: =IF(K10="","",IF(AND(A10+B10>0,H10=""),"USt. ?",IF(OR(K10="USt. ?",K10="Name?"),K10,IF(ISERROR(INDEX(Konten!A:E,MATCH(M10,Konten!A:A,0),MATCH(H10,Konten!$A$3:$E$3,0))),"Konto ?",IF(AND(O10=0,RIGHT(K10,5)*1>=10000),RIGHT(K10,5),K10))))) ->  | K10: =IF(M10="","",IF(AND(A10+B10>0,H10=""),"USt. ?",IF(M10="diverse Kunden",INDEX(Kunden!A:E,MATCH(N10,Kunden!A:A,1),MATCH(H10,Kunden!$A$3:$E$3,0)),IF(M10="diverse Lieferanten",INDEX(Lief.!A:E,MATCH(N10,Lief.!A:A,1),MATCH(H10,Lief.!$A$3:$E$3,0)),IF(ISERROR(INDEX(Konten!A:E,MATCH(M10,Konten!A:A,0),MATCH(H10,Konten!$A$3:$E$3,0))),"Konto ?",INDEX(Konten!A:E,MATCH(M10,Konten!A:A,0),MATCH(H10,Konten!$A$3:$E$3,0))))))) ->  | L10: 1600 | P10: 0
C11: 0 | E11: =IF(K11="","",IF(AND(A11+B11>0,H11=""),"USt. ?",IF(OR(K11="USt. ?",K11="Name?"),K11,IF(ISERROR(INDEX(Konten!A:E,MATCH(M11,Konten!A:A,0),MATCH(H11,Konten!$A$3:$E$3,0))),"Konto ?",IF(AND(O11=0,RIGHT(K11,5)*1>=10000),RIGHT(K11,5),K11))))) ->  | K11: =IF(M11="","",IF(AND(A11+B11>0,H11=""),"USt. ?",IF(M11="diverse Kunden",INDEX(Kunden!A:E,MATCH(N11,Kunden!A:A,1),MATCH(H11,Kunden!$A$3:$E$3,0)),IF(M11="diverse Lieferanten",INDEX(Lief.!A:E,MATCH(N11,Lief.!A:A,1),MATCH(H11,Lief.!$A$3:$E$3,0)),IF(ISERROR(INDEX(Konten!A:E,MATCH(M11,Konten!A:A,0),MATCH(H11,Konten!$A$3:$E$3,0))),"Konto ?",INDEX(Konten!A:E,MATCH(M11,Konten!A:A,0),MATCH(H11,Konten!$A$3:$E$3,0))))))) ->  | L11: 1600 | P11: 0
C12: 0 | E12: =IF(K12="","",IF(AND(A12+B12>0,H12=""),"USt. ?",IF(OR(K12="USt. ?",K12="Name?"),K12,IF(ISERROR(INDEX(Konten!A:E,MATCH(M12,Konten!A:A,0),MATCH(H12,Konten!$A$3:$E$3,0))),"Konto ?",IF(AND(O12=0,RIGHT(K12,5)*1>=10000),RIGHT(K12,5),K12))))) ->  | K12: =IF(M12="","",IF(AND(A12+B12>0,H12=""),"USt. ?",IF(M12="diverse Kunden",INDEX(Kunden!A:E,MATCH(N12,Kunden!A:A,1),MATCH(H12,Kunden!$A$3:$E$3,0)),IF(M12="diverse Lieferanten",INDEX(Lief.!A:E,MATCH(N12,Lief.!A:A,1),MATCH(H12,Lief.!$A$3:$E$3,0)),IF(ISERROR(INDEX(Konten!A:E,MATCH(M12,Konten!A:A,0),MATCH(H12,Konten!$A$3:$E$3,0))),"Konto ?",INDEX(Konten!A:E,MATCH(M12,Konten!A:A,0),MATCH(H12,Konten!$A$3:$E$3,0))))))) ->  | L12: 1600 | P12: 0
C13: 0 | E13: =IF(K13="","",IF(AND(A13+B13>0,H13=""),"USt. ?",IF(OR(K13="USt. ?",K13="Name?"),K13,IF(ISERROR(INDEX(Konten!A:E,MATCH(M13,Konten!A:A,0),MATCH(H13,Konten!$A$3:$E$3,0))),"Konto ?",IF(AND(O13=0,RIGHT(K13,5)*1>=10000),RIGHT(K13,5),K13))))) ->  | K13: =IF(M13="","",IF(AND(A13+B13>0,H13=""),"USt. ?",IF(M13="diverse Kunden",INDEX(Kunden!A:E,MATCH(N13,Kunden!A:A,1),MATCH(H13,Kunden!$A$3:$E$3,0)),IF(M13="diverse Lieferanten",INDEX(Lief.!A:E,MATCH(N13,Lief.!A:A,1),MATCH(H13,Lief.!$A$3:$E$3,0)),IF(ISERROR(INDEX(Konten!A:E,MATCH(M13,Konten!A:A,0),MATCH(H13,Konten!$A$3:$E$3,0))),"Konto ?",INDEX(Konten!A:E,MATCH(M13,Konten!A:A,0),MATCH(H13,Konten!$A$3:$E$3,0))))))) ->  | L13: 1600 | P13: 0
C14: 0 | E14: =IF(K14="","",IF(AND(A14+B14>0,H14=""),"USt. ?",IF(OR(K14="USt. ?",K14="Name?"),K14,IF(ISERROR(INDEX(Konten!A:E,MATCH(M14,Konten!A:A,0),MATCH(H14,Konten!$A$3:$E$3,0))),"Konto ?",IF(AND(O14=0,RIGHT(K14,5)*1>=10000),RIGHT(K14,5),K14))))) ->  | K14: =IF(M14="","",IF(AND(A14+B14>0,H14=""),"USt. ?",IF(M14="diverse Kunden",INDEX(Kunden!A:E,MATCH(N14,Kunden!A:A,1),MATCH(H14,Kunden!$A$3:$E$3,0)),IF(M14="diverse Lieferanten",INDEX(Lief.!A:E,MATCH(N14,Lief.!A:A,1),MATCH(H14,Lief.!$A$3:$E$3,0)),IF(ISERROR(INDEX(Konten!A:E,MATCH(M14,Konten!A:A,0),MATCH(H14,Konten!$A$3:$E$3,0))),"Konto ?",INDEX(Konten!A:E,MATCH(M14,Konten!A:A,0),MATCH(H14,Konten!$A$3:$E$3,0))))))) ->  | L14: 1600 | P14: 0
C15: 0 | E15: =IF(K15="","",IF(AND(A15+B15>0,H15=""),"USt. ?",IF(OR(K15="USt. ?",K15="Name?"),K15,IF(ISERROR(INDEX(Konten!A:E,MATCH(M15,Konten!A:A,0),MATCH(H15,Konten!$A$3:$E$3,0))),"Konto ?",IF(AND(O15=0,RIGHT(K15,5)*1>=10000),RIGHT(K15,5),K15))))) ->  | K15: =IF(M15="","",IF(AND(A15+B15>0,H15=""),"USt. ?",IF(M15="diverse Kunden",INDEX(Kunden!A:E,MATCH(N15,Kunden!A:A,1),MATCH(H15,Kunden!$A$3:$E$3,0)),IF(M15="diverse Lieferanten",INDEX(Lief.!A:E,MATCH(N15,Lief.!A:A,1),MATCH(H15,Lief.!$A$3:$E$3,0)),IF(ISERROR(INDEX(Konten!A:E,MATCH(M15,Konten!A:A,0),MATCH(H15,Konten!$A$3:$E$3,0))),"Konto ?",INDEX(Konten!A:E,MATCH(M15,Konten!A:A,0),MATCH(H15,Konten!$A$3:$E$3,0))))))) ->  | L15: 1600 | P15: 0
C16: 0 | E16: =IF(K16="","",IF(AND(A16+B16>0,H16=""),"USt. ?",IF(OR(K16="USt. ?",K16="Name?"),K16,IF(ISERROR(INDEX(Konten!A:E,MATCH(M16,Konten!A:A,0),MATCH(H16,Konten!$A$3:$E$3,0))),"Konto ?",IF(AND(O16=0,RIGHT(K16,5)*1>=10000),RIGHT(K16,5),K16))))) ->  | K16: =IF(M16="","",IF(AND(A16+B16>0,H16=""),"USt. ?",IF(M16="diverse Kunden",INDEX(Kunden!A:E,MATCH(N16,Kunden!A:A,1),MATCH(H16,Kunden!$A$3:$E$3,0)),IF(M16="diverse Lieferanten",INDEX(Lief.!A:E,MATCH(N16,Lief.!A:A,1),MATCH(H16,Lief.!$A$3:$E$3,0)),IF(ISERROR(INDEX(Konten!A:E,MATCH(M16,Konten!A:A,0),MATCH(H16,Konten!$A$3:$E$3,0))),"Konto ?",INDEX(Konten!A:E,MATCH(M16,Konten!A:A,0),MATCH(H16,Konten!$A$3:$E$3,0))))))) ->  | L16: 1600 | P16: 0
C17: 0 | E17: =IF(K17="","",IF(AND(A17+B17>0,H17=""),"USt. ?",IF(OR(K17="USt. ?",K17="Name?"),K17,IF(ISERROR(INDEX(Konten!A:E,MATCH(M17,Konten!A:A,0),MATCH(H17,Konten!$A$3:$E$3,0))),"Konto ?",IF(AND(O17=0,RIGHT(K17,5)*1>=10000),RIGHT(K17,5),K17))))) ->  | K17: =IF(M17="","",IF(AND(A17+B17>0,H17=""),"USt. ?",IF(M17="diverse Kunden",INDEX(Kunden!A:E,MATCH(N17,Kunden!A:A,1),MATCH(H17,Kunden!$A$3:$E$3,0)),IF(M17="diverse Lieferanten",INDEX(Lief.!A:E,MATCH(N17,Lief.!A:A,1),MATCH(H17,Lief.!$A$3:$E$3,0)),IF(ISERROR(INDEX(Konten!A:E,MATCH(M17,Konten!A:A,0),MATCH(H17,Konten!$A$3:$E$3,0))),"Konto ?",INDEX(Konten!A:E,MATCH(M17,Konten!A:A,0),MATCH(H17,Konten!$A$3:$E$3,0))))))) ->  | L17: 1600 | P17: 0
C18: 0 | E18: =IF(K18="","",IF(AND(A18+B18>0,H18=""),"USt. ?",IF(OR(K18="USt. ?",K18="Name?"),K18,IF(ISERROR(INDEX(Konten!A:E,MATCH(M18,Konten!A:A,0),MATCH(H18,Konten!$A$3:$E$3,0))),"Konto ?",IF(AND(O18=0,RIGHT(K18,5)*1>=10000),RIGHT(K18,5),K18))))) ->  | K18: =IF(M18="","",IF(AND(A18+B18>0,H18=""),"USt. ?",IF(M18="diverse Kunden",INDEX(Kunden!A:E,MATCH(N18,Kunden!A:A,1),MATCH(H18,Kunden!$A$3:$E$3,0)),IF(M18="diverse Lieferanten",INDEX(Lief.!A:E,MATCH(N18,Lief.!A:A,1),MATCH(H18,Lief.!$A$3:$E$3,0)),IF(ISERROR(INDEX(Konten!A:E,MATCH(M18,Konten!A:A,0),MATCH(H18,Konten!$A$3:$E$3,0))),"Konto ?",INDEX(Konten!A:E,MATCH(M18,Konten!A:A,0),MATCH(H18,Konten!$A$3:$E$3,0))))))) ->  | L18: 1600 | P18: 0
C19: 0 | E19: =IF(K19="","",IF(AND(A19+B19>0,H19=""),"USt. ?",IF(OR(K19="USt. ?",K19="Name?"),K19,IF(ISERROR(INDEX(Konten!A:E,MATCH(M19,Konten!A:A,0),MATCH(H19,Konten!$A$3:$E$3,0))),"Konto ?",IF(AND(O19=0,RIGHT(K19,5)*1>=10000),RIGHT(K19,5),K19))))) ->  | K19: =IF(M19="","",IF(AND(A19+B19>0,H19=""),"USt. ?",IF(M19="diverse Kunden",INDEX(Kunden!A:E,MATCH(N19,Kunden!A:A,1),MATCH(H19,Kunden!$A$3:$E$3,0)),IF(M19="diverse Lieferanten",INDEX(Lief.!A:E,MATCH(N19,Lief.!A:A,1),MATCH(H19,Lief.!$A$3:$E$3,0)),IF(ISERROR(INDEX(Konten!A:E,MATCH(M19,Konten!A:A,0),MATCH(H19,Konten!$A$3:$E$3,0))),"Konto ?",INDEX(Konten!A:E,MATCH(M19,Konten!A:A,0),MATCH(H19,Konten!$A$3:$E$3,0))))))) ->  | L19: 1600 | P19: 0
C20: 0 | E20: =IF(K20="","",IF(AND(A20+B20>0,H20=""),"USt. ?",IF(OR(K20="USt. ?",K20="Name?"),K20,IF(ISERROR(INDEX(Konten!A:E,MATCH(M20,Konten!A:A,0),MATCH(H20,Konten!$A$3:$E$3,0))),"Konto ?",IF(AND(O20=0,RIGHT(K20,5)*1>=10000),RIGHT(K20,5),K20))))) ->  | K20: =IF(M20="","",IF(AND(A20+B20>0,H20=""),"USt. ?",IF(M20="diverse Kunden",INDEX(Kunden!A:E,MATCH(N20,Kunden!A:A,1),MATCH(H20,Kunden!$A$3:$E$3,0)),IF(M20="diverse Lieferanten",INDEX(Lief.!A:E,MATCH(N20,Lief.!A:A,1),MATCH(H20,Lief.!$A$3:$E$3,0)),IF(ISERROR(INDEX(Konten!A:E,MATCH(M20,Konten!A:A,0),MATCH(H20,Konten!$A$3:$E$3,0))),"Konto ?",INDEX(Konten!A:E,MATCH(M20,Konten!A:A,0),MATCH(H20,Konten!$A$3:$E$3,0))))))) ->  | L20: 1600 | P20: 0
C21: 0 | E21: =IF(K21="","",IF(AND(A21+B21>0,H21=""),"USt. ?",IF(OR(K21="USt. ?",K21="Name?"),K21,IF(ISERROR(INDEX(Konten!A:E,MATCH(M21,Konten!A:A,0),MATCH(H21,Konten!$A$3:$E$3,0))),"Konto ?",IF(AND(O21=0,RIGHT(K21,5)*1>=10000),RIGHT(K21,5),K21))))) ->  | K21: =IF(M21="","",IF(AND(A21+B21>0,H21=""),"USt. ?",IF(M21="diverse Kunden",INDEX(Kunden!A:E,MATCH(N21,Kunden!A:A,1),MATCH(H21,Kunden!$A$3:$E$3,0)),IF(M21="diverse Lieferanten",INDEX(Lief.!A:E,MATCH(N21,Lief.!A:A,1),MATCH(H21,Lief.!$A$3:$E$3,0)),IF(ISERROR(INDEX(Konten!A:E,MATCH(M21,Konten!A:A,0),MATCH(H21,Konten!$A$3:$E$3,0))),"Konto ?",INDEX(Konten!A:E,MATCH(M21,Konten!A:A,0),MATCH(H21,Konten!$A$3:$E$3,0))))))) ->  | L21: 1600 | P21: 0
C22: 0 | E22: =IF(K22="","",IF(AND(A22+B22>0,H22=""),"USt. ?",IF(OR(K22="USt. ?",K22="Name?"),K22,IF(ISERROR(INDEX(Konten!A:E,MATCH(M22,Konten!A:A,0),MATCH(H22,Konten!$A$3:$E$3,0))),"Konto ?",IF(AND(O22=0,RIGHT(K22,5)*1>=10000),RIGHT(K22,5),K22))))) ->  | K22: =IF(M22="","",IF(AND(A22+B22>0,H22=""),"USt. ?",IF(M22="diverse Kunden",INDEX(Kunden!A:E,MATCH(N22,Kunden!A:A,1),MATCH(H22,Kunden!$A$3:$E$3,0)),IF(M22="diverse Lieferanten",INDEX(Lief.!A:E,MATCH(N22,Lief.!A:A,1),MATCH(H22,Lief.!$A$3:$E$3,0)),IF(ISERROR(INDEX(Konten!A:E,MATCH(M22,Konten!A:A,0),MATCH(H22,Konten!$A$3:$E$3,0))),"Konto ?",INDEX(Konten!A:E,MATCH(M22,Konten!A:A,0),MATCH(H22,Konten!$A$3:$E$3,0))))))) ->  | L22: 1600 | P22: 0
C23: 0 | E23: =IF(K23="","",IF(AND(A23+B23>0,H23=""),"USt. ?",IF(OR(K23="USt. ?",K23="Name?"),K23,IF(ISERROR(INDEX(Konten!A:E,MATCH(M23,Konten!A:A,0),MATCH(H23,Konten!$A$3:$E$3,0))),"Konto ?",IF(AND(O23=0,RIGHT(K23,5)*1>=10000),RIGHT(K23,5),K23))))) ->  | K23: =IF(M23="","",IF(AND(A23+B23>0,H23=""),"USt. ?",IF(M23="diverse Kunden",INDEX(Kunden!A:E,MATCH(N23,Kunden!A:A,1),MATCH(H23,Kunden!$A$3:$E$3,0)),IF(M23="diverse Lieferanten",INDEX(Lief.!A:E,MATCH(N23,Lief.!A:A,1),MATCH(H23,Lief.!$A$3:$E$3,0)),IF(ISERROR(INDEX(Konten!A:E,MATCH(M23,Konten!A:A,0),MATCH(H23,Konten!$A$3:$E$3,0))),"Konto ?",INDEX(Konten!A:E,MATCH(M23,Konten!A:A,0),MATCH(H23,Konten!$A$3:$E$3,0))))))) ->  | L23: 1600 | P23: 0
C24: 0 | E24: =IF(K24="","",IF(AND(A24+B24>0,H24=""),"USt. ?",IF(OR(K24="USt. ?",K24="Name?"),K24,IF(ISERROR(INDEX(Konten!A:E,MATCH(M24,Konten!A:A,0),MATCH(H24,Konten!$A$3:$E$3,0))),"Konto ?",IF(AND(O24=0,RIGHT(K24,5)*1>=10000),RIGHT(K24,5),K24))))) ->  | K24: =IF(M24="","",IF(AND(A24+B24>0,H24=""),"USt. ?",IF(M24="diverse Kunden",INDEX(Kunden!A:E,MATCH(N24,Kunden!A:A,1),MATCH(H24,Kunden!$A$3:$E$3,0)),IF(M24="diverse Lieferanten",INDEX(Lief.!A:E,MATCH(N24,Lief.!A:A,1),MATCH(H24,Lief.!$A$3:$E$3,0)),IF(ISERROR(INDEX(Konten!A:E,MATCH(M24,Konten!A:A,0),MATCH(H24,Konten!$A$3:$E$3,0))),"Konto ?",INDEX(Konten!A:E,MATCH(M24,Konten!A:A,0),MATCH(H24,Konten!$A$3:$E$3,0))))))) ->  | L24: 1600 | P24: 0
C25: 0 | E25: =IF(K25="","",IF(AND(A25+B25>0,H25=""),"USt. ?",IF(OR(K25="USt. ?",K25="Name?"),K25,IF(ISERROR(INDEX(Konten!A:E,MATCH(M25,Konten!A:A,0),MATCH(H25,Konten!$A$3:$E$3,0))),"Konto ?",IF(AND(O25=0,RIGHT(K25,5)*1>=10000),RIGHT(K25,5),K25))))) ->  | K25: =IF(M25="","",IF(AND(A25+B25>0,H25=""),"USt. ?",IF(M25="diverse Kunden",INDEX(Kunden!A:E,MATCH(N25,Kunden!A:A,1),MATCH(H25,Kunden!$A$3:$E$3,0)),IF(M25="diverse Lieferanten",INDEX(Lief.!A:E,MATCH(N25,Lief.!A:A,1),MATCH(H25,Lief.!$A$3:$E$3,0)),IF(ISERROR(INDEX(Konten!A:E,MATCH(M25,Konten!A:A,0),MATCH(H25,Konten!$A$3:$E$3,0))),"Konto ?",INDEX(Konten!A:E,MATCH(M25,Konten!A:A,0),MATCH(H25,Konten!$A$3:$E$3,0))))))) ->  | L25: 1600 | P25: 0
C26: 0 | E26: =IF(K26="","",IF(AND(A26+B26>0,H26=""),"USt. ?",IF(OR(K26="USt. ?",K26="Name?"),K26,IF(ISERROR(INDEX(Konten!A:E,MATCH(M26,Konten!A:A,0),MATCH(H26,Konten!$A$3:$E$3,0))),"Konto ?",IF(AND(O26=0,RIGHT(K26,5)*1>=10000),RIGHT(K26,5),K26))))) ->  | K26: =IF(M26="","",IF(AND(A26+B26>0,H26=""),"USt. ?",IF(M26="diverse Kunden",INDEX(Kunden!A:E,MATCH(N26,Kunden!A:A,1),MATCH(H26,Kunden!$A$3:$E$3,0)),IF(M26="diverse Lieferanten",INDEX(Lief.!A:E,MATCH(N26,Lief.!A:A,1),MATCH(H26,Lief.!$A$3:$E$3,0)),IF(ISERROR(INDEX(Konten!A:E,MATCH(M26,Konten!A:A,0),MATCH(H26,Konten!$A$3:$E$3,0))),"Konto ?",INDEX(Konten!A:E,MATCH(M26,Konten!A:A,0),MATCH(H26,Konten!$A$3:$E$3,0))))))) ->  | L26: 1600 | P26: 0
C27: 0 | E27: =IF(K27="","",IF(AND(A27+B27>0,H27=""),"USt. ?",IF(OR(K27="USt. ?",K27="Name?"),K27,IF(ISERROR(INDEX(Konten!A:E,MATCH(M27,Konten!A:A,0),MATCH(H27,Konten!$A$3:$E$3,0))),"Konto ?",IF(AND(O27=0,RIGHT(K27,5)*1>=10000),RIGHT(K27,5),K27))))) ->  | K27: =IF(M27="","",IF(AND(A27+B27>0,H27=""),"USt. ?",IF(M27="diverse Kunden",INDEX(Kunden!A:E,MATCH(N27,Kunden!A:A,1),MATCH(H27,Kunden!$A$3:$E$3,0)),IF(M27="diverse Lieferanten",INDEX(Lief.!A:E,MATCH(N27,Lief.!A:A,1),MATCH(H27,Lief.!$A$3:$E$3,0)),IF(ISERROR(INDEX(Konten!A:E,MATCH(M27,Konten!A:A,0),MATCH(H27,Konten!$A$3:$E$3,0))),"Konto ?",INDEX(Konten!A:E,MATCH(M27,Konten!A:A,0),MATCH(H27,Konten!$A$3:$E$3,0))))))) ->  | L27: 1600 | P27: 0
C28: 0 | E28: =IF(K28="","",IF(AND(A28+B28>0,H28=""),"USt. ?",IF(OR(K28="USt. ?",K28="Name?"),K28,IF(ISERROR(INDEX(Konten!A:E,MATCH(M28,Konten!A:A,0),MATCH(H28,Konten!$A$3:$E$3,0))),"Konto ?",IF(AND(O28=0,RIGHT(K28,5)*1>=10000),RIGHT(K28,5),K28))))) ->  | K28: =IF(M28="","",IF(AND(A28+B28>0,H28=""),"USt. ?",IF(M28="diverse Kunden",INDEX(Kunden!A:E,MATCH(N28,Kunden!A:A,1),MATCH(H28,Kunden!$A$3:$E$3,0)),IF(M28="diverse Lieferanten",INDEX(Lief.!A:E,MATCH(N28,Lief.!A:A,1),MATCH(H28,Lief.!$A$3:$E$3,0)),IF(ISERROR(INDEX(Konten!A:E,MATCH(M28,Konten!A:A,0),MATCH(H28,Konten!$A$3:$E$3,0))),"Konto ?",INDEX(Konten!A:E,MATCH(M28,Konten!A:A,0),MATCH(H28,Konten!$A$3:$E$3,0))))))) ->  | L28: 1600 | P28: 0
C29: 0 | E29: =IF(K29="","",IF(AND(A29+B29>0,H29=""),"USt. ?",IF(OR(K29="USt. ?",K29="Name?"),K29,IF(ISERROR(INDEX(Konten!A:E,MATCH(M29,Konten!A:A,0),MATCH(H29,Konten!$A$3:$E$3,0))),"Konto ?",IF(AND(O29=0,RIGHT(K29,5)*1>=10000),RIGHT(K29,5),K29))))) ->  | K29: =IF(M29="","",IF(AND(A29+B29>0,H29=""),"USt. ?",IF(M29="diverse Kunden",INDEX(Kunden!A:E,MATCH(N29,Kunden!A:A,1),MATCH(H29,Kunden!$A$3:$E$3,0)),IF(M29="diverse Lieferanten",INDEX(Lief.!A:E,MATCH(N29,Lief.!A:A,1),MATCH(H29,Lief.!$A$3:$E$3,0)),IF(ISERROR(INDEX(Konten!A:E,MATCH(M29,Konten!A:A,0),MATCH(H29,Konten!$A$3:$E$3,0))),"Konto ?",INDEX(Konten!A:E,MATCH(M29,Konten!A:A,0),MATCH(H29,Konten!$A$3:$E$3,0))))))) ->  | L29: 1600 | P29: 0
C30: 0 | E30: =IF(K30="","",IF(AND(A30+B30>0,H30=""),"USt. ?",IF(OR(K30="USt. ?",K30="Name?"),K30,IF(ISERROR(INDEX(Konten!A:E,MATCH(M30,Konten!A:A,0),MATCH(H30,Konten!$A$3:$E$3,0))),"Konto ?",IF(AND(O30=0,RIGHT(K30,5)*1>=10000),RIGHT(K30,5),K30))))) ->  | K30: =IF(M30="","",IF(AND(A30+B30>0,H30=""),"USt. ?",IF(M30="diverse Kunden",INDEX(Kunden!A:E,MATCH(N30,Kunden!A:A,1),MATCH(H30,Kunden!$A$3:$E$3,0)),IF(M30="diverse Lieferanten",INDEX(Lief.!A:E,MATCH(N30,Lief.!A:A,1),MATCH(H30,Lief.!$A$3:$E$3,0)),IF(ISERROR(INDEX(Konten!A:E,MATCH(M30,Konten!A:A,0),MATCH(H30,Konten!$A$3:$E$3,0))),"Konto ?",INDEX(Konten!A:E,MATCH(M30,Konten!A:A,0),MATCH(H30,Konten!$A$3:$E$3,0))))))) ->  | L30: 1600 | P30: 0
C31: 0 | E31: =IF(K31="","",IF(AND(A31+B31>0,H31=""),"USt. ?",IF(OR(K31="USt. ?",K31="Name?"),K31,IF(ISERROR(INDEX(Konten!A:E,MATCH(M31,Konten!A:A,0),MATCH(H31,Konten!$A$3:$E$3,0))),"Konto ?",IF(AND(O31=0,RIGHT(K31,5)*1>=10000),RIGHT(K31,5),K31))))) ->  | K31: =IF(M31="","",IF(AND(A31+B31>0,H31=""),"USt. ?",IF(M31="diverse Kunden",INDEX(Kunden!A:E,MATCH(N31,Kunden!A:A,1),MATCH(H31,Kunden!$A$3:$E$3,0)),IF(M31="diverse Lieferanten",INDEX(Lief.!A:E,MATCH(N31,Lief.!A:A,1),MATCH(H31,Lief.!$A$3:$E$3,0)),IF(ISERROR(INDEX(Konten!A:E,MATCH(M31,Konten!A:A,0),MATCH(H31,Konten!$A$3:$E$3,0))),"Konto ?",INDEX(Konten!A:E,MATCH(M31,Konten!A:A,0),MATCH(H31,Konten!$A$3:$E$3,0))))))) ->  | L31: 1600 | P31: 0
C32: 0 | E32: =IF(K32="","",IF(AND(A32+B32>0,H32=""),"USt. ?",IF(OR(K32="USt. ?",K32="Name?"),K32,IF(ISERROR(INDEX(Konten!A:E,MATCH(M32,Konten!A:A,0),MATCH(H32,Konten!$A$3:$E$3,0))),"Konto ?",IF(AND(O32=0,RIGHT(K32,5)*1>=10000),RIGHT(K32,5),K32))))) ->  | K32: =IF(M32="","",IF(AND(A32+B32>0,H32=""),"USt. ?",IF(M32="diverse Kunden",INDEX(Kunden!A:E,MATCH(N32,Kunden!A:A,1),MATCH(H32,Kunden!$A$3:$E$3,0)),IF(M32="diverse Lieferanten",INDEX(Lief.!A:E,MATCH(N32,Lief.!A:A,1),MATCH(H32,Lief.!$A$3:$E$3,0)),IF(ISERROR(INDEX(Konten!A:E,MATCH(M32,Konten!A:A,0),MATCH(H32,Konten!$A$3:$E$3,0))),"Konto ?",INDEX(Konten!A:E,MATCH(M32,Konten!A:A,0),MATCH(H32,Konten!$A$3:$E$3,0))))))) ->  | L32: 1600 | P32: 0
C33: 0 | E33: =IF(K33="","",IF(AND(A33+B33>0,H33=""),"USt. ?",IF(OR(K33="USt. ?",K33="Name?"),K33,IF(ISERROR(INDEX(Konten!A:E,MATCH(M33,Konten!A:A,0),MATCH(H33,Konten!$A$3:$E$3,0))),"Konto ?",IF(AND(O33=0,RIGHT(K33,5)*1>=10000),RIGHT(K33,5),K33))))) ->  | K33: =IF(M33="","",IF(AND(A33+B33>0,H33=""),"USt. ?",IF(M33="diverse Kunden",INDEX(Kunden!A:E,MATCH(N33,Kunden!A:A,1),MATCH(H33,Kunden!$A$3:$E$3,0)),IF(M33="diverse Lieferanten",INDEX(Lief.!A:E,MATCH(N33,Lief.!A:A,1),MATCH(H33,Lief.!$A$3:$E$3,0)),IF(ISERROR(INDEX(Konten!A:E,MATCH(M33,Konten!A:A,0),MATCH(H33,Konten!$A$3:$E$3,0))),"Konto ?",INDEX(Konten!A:E,MATCH(M33,Konten!A:A,0),MATCH(H33,Konten!$A$3:$E$3,0))))))) ->  | L33: 1600 | P33: 0
C34: 0 | E34: =IF(K34="","",IF(AND(A34+B34>0,H34=""),"USt. ?",IF(OR(K34="USt. ?",K34="Name?"),K34,IF(ISERROR(INDEX(Konten!A:E,MATCH(M34,Konten!A:A,0),MATCH(H34,Konten!$A$3:$E$3,0))),"Konto ?",IF(AND(O34=0,RIGHT(K34,5)*1>=10000),RIGHT(K34,5),K34))))) ->  | K34: =IF(M34="","",IF(AND(A34+B34>0,H34=""),"USt. ?",IF(M34="diverse Kunden",INDEX(Kunden!A:E,MATCH(N34,Kunden!A:A,1),MATCH(H34,Kunden!$A$3:$E$3,0)),IF(M34="diverse Lieferanten",INDEX(Lief.!A:E,MATCH(N34,Lief.!A:A,1),MATCH(H34,Lief.!$A$3:$E$3,0)),IF(ISERROR(INDEX(Konten!A:E,MATCH(M34,Konten!A:A,0),MATCH(H34,Konten!$A$3:$E$3,0))),"Konto ?",INDEX(Konten!A:E,MATCH(M34,Konten!A:A,0),MATCH(H34,Konten!$A$3:$E$3,0))))))) ->  | L34: 1600 | P34: 0
C35: 0 | E35: =IF(K35="","",IF(AND(A35+B35>0,H35=""),"USt. ?",IF(OR(K35="USt. ?",K35="Name?"),K35,IF(ISERROR(INDEX(Konten!A:E,MATCH(M35,Konten!A:A,0),MATCH(H35,Konten!$A$3:$E$3,0))),"Konto ?",IF(AND(O35=0,RIGHT(K35,5)*1>=10000),RIGHT(K35,5),K35))))) ->  | K35: =IF(M35="","",IF(AND(A35+B35>0,H35=""),"USt. ?",IF(M35="diverse Kunden",INDEX(Kunden!A:E,MATCH(N35,Kunden!A:A,1),MATCH(H35,Kunden!$A$3:$E$3,0)),IF(M35="diverse Lieferanten",INDEX(Lief.!A:E,MATCH(N35,Lief.!A:A,1),MATCH(H35,Lief.!$A$3:$E$3,0)),IF(ISERROR(INDEX(Konten!A:E,MATCH(M35,Konten!A:A,0),MATCH(H35,Konten!$A$3:$E$3,0))),"Konto ?",INDEX(Konten!A:E,MATCH(M35,Konten!A:A,0),MATCH(H35,Konten!$A$3:$E$3,0))))))) ->  | L35: 1600 | P35: 0
C36: 0 | E36: =IF(K36="","",IF(AND(A36+B36>0,H36=""),"USt. ?",IF(OR(K36="USt. ?",K36="Name?"),K36,IF(ISERROR(INDEX(Konten!A:E,MATCH(M36,Konten!A:A,0),MATCH(H36,Konten!$A$3:$E$3,0))),"Konto ?",IF(AND(O36=0,RIGHT(K36,5)*1>=10000),RIGHT(K36,5),K36))))) ->  | K36: =IF(M36="","",IF(AND(A36+B36>0,H36=""),"USt. ?",IF(M36="diverse Kunden",INDEX(Kunden!A:E,MATCH(N36,Kunden!A:A,1),MATCH(H36,Kunden!$A$3:$E$3,0)),IF(M36="diverse Lieferanten",INDEX(Lief.!A:E,MATCH(N36,Lief.!A:A,1),MATCH(H36,Lief.!$A$3:$E$3,0)),IF(ISERROR(INDEX(Konten!A:E,MATCH(M36,Konten!A:A,0),MATCH(H36,Konten!$A$3:$E$3,0))),"Konto ?",INDEX(Konten!A:E,MATCH(M36,Konten!A:A,0),MATCH(H36,Konten!$A$3:$E$3,0))))))) ->  | L36: 1600 | P36: 0
C37: 0 | E37: =IF(K37="","",IF(AND(A37+B37>0,H37=""),"USt. ?",IF(OR(K37="USt. ?",K37="Name?"),K37,IF(ISERROR(INDEX(Konten!A:E,MATCH(M37,Konten!A:A,0),MATCH(H37,Konten!$A$3:$E$3,0))),"Konto ?",IF(AND(O37=0,RIGHT(K37,5)*1>=10000),RIGHT(K37,5),K37))))) ->  | K37: =IF(M37="","",IF(AND(A37+B37>0,H37=""),"USt. ?",IF(M37="diverse Kunden",INDEX(Kunden!A:E,MATCH(N37,Kunden!A:A,1),MATCH(H37,Kunden!$A$3:$E$3,0)),IF(M37="diverse Lieferanten",INDEX(Lief.!A:E,MATCH(N37,Lief.!A:A,1),MATCH(H37,Lief.!$A$3:$E$3,0)),IF(ISERROR(INDEX(Konten!A:E,MATCH(M37,Konten!A:A,0),MATCH(H37,Konten!$A$3:$E$3,0))),"Konto ?",INDEX(Konten!A:E,MATCH(M37,Konten!A:A,0),MATCH(H37,Konten!$A$3:$E$3,0))))))) ->  | L37: 1600 | P37: 0
C38: 0 | E38: =IF(K38="","",IF(AND(A38+B38>0,H38=""),"USt. ?",IF(OR(K38="USt. ?",K38="Name?"),K38,IF(ISERROR(INDEX(Konten!A:E,MATCH(M38,Konten!A:A,0),MATCH(H38,Konten!$A$3:$E$3,0))),"Konto ?",IF(AND(O38=0,RIGHT(K38,5)*1>=10000),RIGHT(K38,5),K38))))) ->  | K38: =IF(M38="","",IF(AND(A38+B38>0,H38=""),"USt. ?",IF(M38="diverse Kunden",INDEX(Kunden!A:E,MATCH(N38,Kunden!A:A,1),MATCH(H38,Kunden!$A$3:$E$3,0)),IF(M38="diverse Lieferanten",INDEX(Lief.!A:E,MATCH(N38,Lief.!A:A,1),MATCH(H38,Lief.!$A$3:$E$3,0)),IF(ISERROR(INDEX(Konten!A:E,MATCH(M38,Konten!A:A,0),MATCH(H38,Konten!$A$3:$E$3,0))),"Konto ?",INDEX(Konten!A:E,MATCH(M38,Konten!A:A,0),MATCH(H38,Konten!$A$3:$E$3,0))))))) ->  | L38: 1600 | P38: 0
C39: 0 | E39: =IF(K39="","",IF(AND(A39+B39>0,H39=""),"USt. ?",IF(OR(K39="USt. ?",K39="Name?"),K39,IF(ISERROR(INDEX(Konten!A:E,MATCH(M39,Konten!A:A,0),MATCH(H39,Konten!$A$3:$E$3,0))),"Konto ?",IF(AND(O39=0,RIGHT(K39,5)*1>=10000),RIGHT(K39,5),K39))))) ->  | K39: =IF(M39="","",IF(AND(A39+B39>0,H39=""),"USt. ?",IF(M39="diverse Kunden",INDEX(Kunden!A:E,MATCH(N39,Kunden!A:A,1),MATCH(H39,Kunden!$A$3:$E$3,0)),IF(M39="diverse Lieferanten",INDEX(Lief.!A:E,MATCH(N39,Lief.!A:A,1),MATCH(H39,Lief.!$A$3:$E$3,0)),IF(ISERROR(INDEX(Konten!A:E,MATCH(M39,Konten!A:A,0),MATCH(H39,Konten!$A$3:$E$3,0))),"Konto ?",INDEX(Konten!A:E,MATCH(M39,Konten!A:A,0),MATCH(H39,Konten!$A$3:$E$3,0))))))) ->  | L39: 1600 | P39: 0
C40: 0 | E40: =IF(K40="","",IF(AND(A40+B40>0,H40=""),"USt. ?",IF(OR(K40="USt. ?",K40="Name?"),K40,IF(ISERROR(INDEX(Konten!A:E,MATCH(M40,Konten!A:A,0),MATCH(H40,Konten!$A$3:$E$3,0))),"Konto ?",IF(AND(O40=0,RIGHT(K40,5)*1>=10000),RIGHT(K40,5),K40))))) ->  | K40: =IF(M40="","",IF(AND(A40+B40>0,H40=""),"USt. ?",IF(M40="diverse Kunden",INDEX(Kunden!A:E,MATCH(N40,Kunden!A:A,1),MATCH(H40,Kunden!$A$3:$E$3,0)),IF(M40="diverse Lieferanten",INDEX(Lief.!A:E,MATCH(N40,Lief.!A:A,1),MATCH(H40,Lief.!$A$3:$E$3,0)),IF(ISERROR(INDEX(Konten!A:E,MATCH(M40,Konten!A:A,0),MATCH(H40,Konten!$A$3:$E$3,0))),"Konto ?",INDEX(Konten!A:E,MATCH(M40,Konten!A:A,0),MATCH(H40,Konten!$A$3:$E$3,0))))))) ->  | L40: 1600 | P40: 0
A41: =SUM(A8:A40) -> 0 | B41: =SUM(B8:B40) -> 0 | D41: Summen | M41: Unterschrift:
A42: =D6 -> 0 | B42: =INDIRECT("D"&COUNT(D8:D40)+7) -> 0 | D42: Bestand Anfang / Ende | K42: =MIN(D8:D42) -> 0 | M42: geprüft: | N42: =IF(ROUND(A43-B43,2)<>0,"Kassendifferenz !!!","") -> 
A43: =SUM(A41:A42) -> 0 | B43: =SUM(B41:B42) -> 0 | D43: Kontrollsummen | K43: =MIN('S. 1:S. '!K42) -> 0 | M43: gebucht:
A44: =IF(ROUND(A43-B43,2)<>0,"Kassendifferenz !!!","") -> 

Sheet S. 4
A1: =INDIRECT("'S. "&N3-1&"'!A1") -> 0 | L1: =DATE(YEAR(B3),MONTH(B3),1) -> 2020-04-01 | M1: K a s s e n b u c h | P1: =INDIRECT("'S. "&N3-1&"'!B3") -> 2020-03-31 | Q1: 2 | Y1: =RIGHT(CELL("Dateiname",A1),LEN(CELL("Dateiname",A1))-FIND("]",CELL("Dateiname",A1))) -> S. 4 | Z1: =LEFT(Y1,SEARCH(" ",Y1)) -> S. | AA1: =RIGHT(Y1,LEN(Y1)-SEARCH(" ",Y1)) -> 4
A3: Monat: | B3: =DATE(YEAR(P1),MONTH(P1)+Q1,0) -> 2020-04-30 | J3: ="F"&LARGE(IF(F8:F40<>" ",ROW(F8:F40)),1) -> F8 | K3: =YEAR(L3) -> 2020 | L3: =B3 -> 2020-04-30 | M3: =INDIRECT("'S. "&N3-1&"'!M3") -> 1600 | N3: =IF(ISERROR(P3),1,IF(RIGHT(P3,1)=")",LEFT(RIGHT(P3,7),3)+1,Q3)) -> 4 | P3: =RIGHT(CELL("Dateiname",A1),LEN(CELL("Dateiname",A1))-FIND("]",CELL("Dateiname",A1))) -> S. 4 | Q3: =MID(P3,SEARCH(" ",P3)+1,3)*1 -> 4
K4: =MONTH(L4) -> 4 | L4: =L3 -> 2020-04-30 | N4: =IF(ISERROR(P3),"",IF(AND(RIGHT(P3,2)<>TEXT(N3," #"),RIGHT(P3,2)<>TEXT(N3,"##"),RIGHT(P3,3)<>TEXT(N3,"###")),"Name Tabellenblatt ändern in ' S. "&N3&" ' ","")) -> 
A5: Einnahmen | B5: Ausgaben | C5: Einnahmen | D5: Bestand | E5: Gegen- | F5: Beleg- | G5: Beleg- | H5: USt.- | I5: BU | J5: Gegenkonto | K5: Gegenkonto | L5: Konto | M5: Kontierung | N5: Text | O5: Skonto | P5: Festschreibung
A6: € | B6: € | C6: Ausgaben | D6: =INDIRECT("'S. "&N3-1&"'!B42") -> 0 | E6: konto | F6: Nr. | G6: Datum | H6: Satz | J6: ASCII | K6: ASCII
G7: =DATE(YEAR(B3),MONTH(B3),IF(MONTH(INDIRECT("'S. "&N3-1&"'!B3"))=MONTH(B3),DAY(INDIRECT("'S. "&N3-1&"'!L4")),1)) -> 43922
C8: =A8-B8 -> 0 | D8: =D6+C8 -> 0 | E8: =IF(K8="","",IF(AND(A8+B8>0,H8=""),"USt. ?",IF(OR(K8="USt. ?",K8="Name?"),K8,IF(ISERROR(INDEX(Konten!A:E,MATCH(M8,Konten!A:A,0),MATCH(H8,Konten!$A$3:$E$3,0))),"Konto ?",IF(AND(O8=0,RIGHT(K8,5)*1>=10000),RIGHT(K8,5),K8))))) ->  | F8: =IF(INDIRECT("'S. "&N3-1&"'!A43")=0,1,IF(ROUND(A41+B41,2)=0,INDIRECT("'S. "&N3-1&"'!"&INDIRECT("'S. "&N3-1&"'!J3")),INDIRECT("'S. "&N3-1&"'!"&INDIRECT("'S. "&N3-1&"'!J3"))+1)) -> 1 | I8: =IF(LEN(E8)<6,"",LEFT(E8,LEN(E8)-5)) ->  | J8: =RIGHT(E8,5) ->  | K8: =IF(M8="","",IF(AND(A8+B8>0,H8=""),"USt. ?",IF(M8="diverse Kunden",INDEX(Kunden!A:E,MATCH(N8,Kunden!A:A,1),MATCH(H8,Kunden!$A$3:$E$3,0)),IF(M8="diverse Lieferanten",INDEX(Lief.!A:E,MATCH(N8,Lief.!A:A,1),MATCH(H8,Lief.!$A$3:$E$3,0)),IF(ISERROR(INDEX(Konten!A:E,MATCH(M8,Konten!A:A,0),MATCH(H8,Konten!$A$3:$E$3,0))),"Konto ?",INDEX(Konten!A:E,MATCH(M8,Konten!A:A,0),MATCH(H8,Konten!$A$3:$E$3,0))))))) ->  | L8: =$M$3 -> 1600 | P8: 0
C9: =A9-B9 -> 0 | D9: =IF(ROUND(C9,2)=0,"",D8+C9) ->  | E9: =IF(K9="","",IF(AND(A9+B9>0,H9=""),"USt. ?",IF(OR(K9="USt. ?",K9="Name?"),K9,IF(ISERROR(INDEX(Konten!A:E,MATCH(M9,Konten!A:A,0),MATCH(H9,Konten!$A$3:$E$3,0))),"Konto ?",IF(AND(O9=0,RIGHT(K9,5)*1>=10000),RIGHT(K9,5),K9))))) ->  | F9: =IF(A9+B9=0," ",F8+1) ->  | I9: =IF(LEN(E9)<6,"",LEFT(E9,LEN(E9)-5)) ->  | J9: =RIGHT(E9,5) ->  | K9: =IF(M9="","",IF(AND(A9+B9>0,H9=""),"USt. ?",IF(M9="diverse Kunden",INDEX(Kunden!A:E,MATCH(N9,Kunden!A:A,1),MATCH(H9,Kunden!$A$3:$E$3,0)),IF(M9="diverse Lieferanten",INDEX(Lief.!A:E,MATCH(N9,Lief.!A:A,1),MATCH(H9,Lief.!$A$3:$E$3,0)),IF(ISERROR(INDEX(Konten!A:E,MATCH(M9,Konten!A:A,0),MATCH(H9,Konten!$A$3:$E$3,0))),"Konto ?",INDEX(Konten!A:E,MATCH(M9,Konten!A:A,0),MATCH(H9,Konten!$A$3:$E$3,0))))))) ->  | L9: 1600 | P9: 0
C10: 0 | D10: =IF(ROUND(C10,2)=0,"",D9+C10) ->  | E10: =IF(K10="","",IF(AND(A10+B10>0,H10=""),"USt. ?",IF(OR(K10="USt. ?",K10="Name?"),K10,IF(ISERROR(INDEX(Konten!A:E,MATCH(M10,Konten!A:A,0),MATCH(H10,Konten!$A$3:$E$3,0))),"Konto ?",IF(AND(O10=0,RIGHT(K10,5)*1>=10000),RIGHT(K10,5),K10))))) ->  | K10: =IF(M10="","",IF(AND(A10+B10>0,H10=""),"USt. ?",IF(M10="diverse Kunden",INDEX(Kunden!A:E,MATCH(N10,Kunden!A:A,1),MATCH(H10,Kunden!$A$3:$E$3,0)),IF(M10="diverse Lieferanten",INDEX(Lief.!A:E,MATCH(N10,Lief.!A:A,1),MATCH(H10,Lief.!$A$3:$E$3,0)),IF(ISERROR(INDEX(Konten!A:E,MATCH(M10,Konten!A:A,0),MATCH(H10,Konten!$A$3:$E$3,0))),"Konto ?",INDEX(Konten!A:E,MATCH(M10,Konten!A:A,0),MATCH(H10,Konten!$A$3:$E$3,0))))))) ->  | L10: 1600 | P10: 0
C11: 0 | E11: =IF(K11="","",IF(AND(A11+B11>0,H11=""),"USt. ?",IF(OR(K11="USt. ?",K11="Name?"),K11,IF(ISERROR(INDEX(Konten!A:E,MATCH(M11,Konten!A:A,0),MATCH(H11,Konten!$A$3:$E$3,0))),"Konto ?",IF(AND(O11=0,RIGHT(K11,5)*1>=10000),RIGHT(K11,5),K11))))) ->  | K11: =IF(M11="","",IF(AND(A11+B11>0,H11=""),"USt. ?",IF(M11="diverse Kunden",INDEX(Kunden!A:E,MATCH(N11,Kunden!A:A,1),MATCH(H11,Kunden!$A$3:$E$3,0)),IF(M11="diverse Lieferanten",INDEX(Lief.!A:E,MATCH(N11,Lief.!A:A,1),MATCH(H11,Lief.!$A$3:$E$3,0)),IF(ISERROR(INDEX(Konten!A:E,MATCH(M11,Konten!A:A,0),MATCH(H11,Konten!$A$3:$E$3,0))),"Konto ?",INDEX(Konten!A:E,MATCH(M11,Konten!A:A,0),MATCH(H11,Konten!$A$3:$E$3,0))))))) ->  | L11: 1600 | P11: 0
C12: 0 | E12: =IF(K12="","",IF(AND(A12+B12>0,H12=""),"USt. ?",IF(OR(K12="USt. ?",K12="Name?"),K12,IF(ISERROR(INDEX(Konten!A:E,MATCH(M12,Konten!A:A,0),MATCH(H12,Konten!$A$3:$E$3,0))),"Konto ?",IF(AND(O12=0,RIGHT(K12,5)*1>=10000),RIGHT(K12,5),K12))))) ->  | K12: =IF(M12="","",IF(AND(A12+B12>0,H12=""),"USt. ?",IF(M12="diverse Kunden",INDEX(Kunden!A:E,MATCH(N12,Kunden!A:A,1),MATCH(H12,Kunden!$A$3:$E$3,0)),IF(M12="diverse Lieferanten",INDEX(Lief.!A:E,MATCH(N12,Lief.!A:A,1),MATCH(H12,Lief.!$A$3:$E$3,0)),IF(ISERROR(INDEX(Konten!A:E,MATCH(M12,Konten!A:A,0),MATCH(H12,Konten!$A$3:$E$3,0))),"Konto ?",INDEX(Konten!A:E,MATCH(M12,Konten!A:A,0),MATCH(H12,Konten!$A$3:$E$3,0))))))) ->  | L12: 1600 | P12: 0
C13: 0 | E13: =IF(K13="","",IF(AND(A13+B13>0,H13=""),"USt. ?",IF(OR(K13="USt. ?",K13="Name?"),K13,IF(ISERROR(INDEX(Konten!A:E,MATCH(M13,Konten!A:A,0),MATCH(H13,Konten!$A$3:$E$3,0))),"Konto ?",IF(AND(O13=0,RIGHT(K13,5)*1>=10000),RIGHT(K13,5),K13))))) ->  | K13: =IF(M13="","",IF(AND(A13+B13>0,H13=""),"USt. ?",IF(M13="diverse Kunden",INDEX(Kunden!A:E,MATCH(N13,Kunden!A:A,1),MATCH(H13,Kunden!$A$3:$E$3,0)),IF(M13="diverse Lieferanten",INDEX(Lief.!A:E,MATCH(N13,Lief.!A:A,1),MATCH(H13,Lief.!$A$3:$E$3,0)),IF(ISERROR(INDEX(Konten!A:E,MATCH(M13,Konten!A:A,0),MATCH(H13,Konten!$A$3:$E$3,0))),"Konto ?",INDEX(Konten!A:E,MATCH(M13,Konten!A:A,0),MATCH(H13,Konten!$A$3:$E$3,0))))))) ->  | L13: 1600 | P13: 0
C14: 0 | E14: =IF(K14="","",IF(AND(A14+B14>0,H14=""),"USt. ?",IF(OR(K14="USt. ?",K14="Name?"),K14,IF(ISERROR(INDEX(Konten!A:E,MATCH(M14,Konten!A:A,0),MATCH(H14,Konten!$A$3:$E$3,0))),"Konto ?",IF(AND(O14=0,RIGHT(K14,5)*1>=10000),RIGHT(K14,5),K14))))) ->  | K14: =IF(M14="","",IF(AND(A14+B14>0,H14=""),"USt. ?",IF(M14="diverse Kunden",INDEX(Kunden!A:E,MATCH(N14,Kunden!A:A,1),MATCH(H14,Kunden!$A$3:$E$3,0)),IF(M14="diverse Lieferanten",INDEX(Lief.!A:E,MATCH(N14,Lief.!A:A,1),MATCH(H14,Lief.!$A$3:$E$3,0)),IF(ISERROR(INDEX(Konten!A:E,MATCH(M14,Konten!A:A,0),MATCH(H14,Konten!$A$3:$E$3,0))),"Konto ?",INDEX(Konten!A:E,MATCH(M14,Konten!A:A,0),MATCH(H14,Konten!$A$3:$E$3,0))))))) ->  | L14: 1600 | P14: 0
C15: 0 | E15: =IF(K15="","",IF(AND(A15+B15>0,H15=""),"USt. ?",IF(OR(K15="USt. ?",K15="Name?"),K15,IF(ISERROR(INDEX(Konten!A:E,MATCH(M15,Konten!A:A,0),MATCH(H15,Konten!$A$3:$E$3,0))),"Konto ?",IF(AND(O15=0,RIGHT(K15,5)*1>=10000),RIGHT(K15,5),K15))))) ->  | K15: =IF(M15="","",IF(AND(A15+B15>0,H15=""),"USt. ?",IF(M15="diverse Kunden",INDEX(Kunden!A:E,MATCH(N15,Kunden!A:A,1),MATCH(H15,Kunden!$A$3:$E$3,0)),IF(M15="diverse Lieferanten",INDEX(Lief.!A:E,MATCH(N15,Lief.!A:A,1),MATCH(H15,Lief.!$A$3:$E$3,0)),IF(ISERROR(INDEX(Konten!A:E,MATCH(M15,Konten!A:A,0),MATCH(H15,Konten!$A$3:$E$3,0))),"Konto ?",INDEX(Konten!A:E,MATCH(M15,Konten!A:A,0),MATCH(H15,Konten!$A$3:$E$3,0))))))) ->  | L15: 1600 | P15: 0
C16: 0 | E16: =IF(K16="","",IF(AND(A16+B16>0,H16=""),"USt. ?",IF(OR(K16="USt. ?",K16="Name?"),K16,IF(ISERROR(INDEX(Konten!A:E,MATCH(M16,Konten!A:A,0),MATCH(H16,Konten!$A$3:$E$3,0))),"Konto ?",IF(AND(O16=0,RIGHT(K16,5)*1>=10000),RIGHT(K16,5),K16))))) ->  | K16: =IF(M16="","",IF(AND(A16+B16>0,H16=""),"USt. ?",IF(M16="diverse Kunden",INDEX(Kunden!A:E,MATCH(N16,Kunden!A:A,1),MATCH(H16,Kunden!$A$3:$E$3,0)),IF(M16="diverse Lieferanten",INDEX(Lief.!A:E,MATCH(N16,Lief.!A:A,1),MATCH(H16,Lief.!$A$3:$E$3,0)),IF(ISERROR(INDEX(Konten!A:E,MATCH(M16,Konten!A:A,0),MATCH(H16,Konten!$A$3:$E$3,0))),"Konto ?",INDEX(Konten!A:E,MATCH(M16,Konten!A:A,0),MATCH(H16,Konten!$A$3:$E$3,0))))))) ->  | L16: 1600 | P16: 0
C17: 0 | E17: =IF(K17="","",IF(AND(A17+B17>0,H17=""),"USt. ?",IF(OR(K17="USt. ?",K17="Name?"),K17,IF(ISERROR(INDEX(Konten!A:E,MATCH(M17,Konten!A:A,0),MATCH(H17,Konten!$A$3:$E$3,0))),"Konto ?",IF(AND(O17=0,RIGHT(K17,5)*1>=10000),RIGHT(K17,5),K17))))) ->  | K17: =IF(M17="","",IF(AND(A17+B17>0,H17=""),"USt. ?",IF(M17="diverse Kunden",INDEX(Kunden!A:E,MATCH(N17,Kunden!A:A,1),MATCH(H17,Kunden!$A$3:$E$3,0)),IF(M17="diverse Lieferanten",INDEX(Lief.!A:E,MATCH(N17,Lief.!A:A,1),MATCH(H17,Lief.!$A$3:$E$3,0)),IF(ISERROR(INDEX(Konten!A:E,MATCH(M17,Konten!A:A,0),MATCH(H17,Konten!$A$3:$E$3,0))),"Konto ?",INDEX(Konten!A:E,MATCH(M17,Konten!A:A,0),MATCH(H17,Konten!$A$3:$E$3,0))))))) ->  | L17: 1600 | P17: 0
C18: 0 | E18: =IF(K18="","",IF(AND(A18+B18>0,H18=""),"USt. ?",IF(OR(K18="USt. ?",K18="Name?"),K18,IF(ISERROR(INDEX(Konten!A:E,MATCH(M18,Konten!A:A,0),MATCH(H18,Konten!$A$3:$E$3,0))),"Konto ?",IF(AND(O18=0,RIGHT(K18,5)*1>=10000),RIGHT(K18,5),K18))))) ->  | K18: =IF(M18="","",IF(AND(A18+B18>0,H18=""),"USt. ?",IF(M18="diverse Kunden",INDEX(Kunden!A:E,MATCH(N18,Kunden!A:A,1),MATCH(H18,Kunden!$A$3:$E$3,0)),IF(M18="diverse Lieferanten",INDEX(Lief.!A:E,MATCH(N18,Lief.!A:A,1),MATCH(H18,Lief.!$A$3:$E$3,0)),IF(ISERROR(INDEX(Konten!A:E,MATCH(M18,Konten!A:A,0),MATCH(H18,Konten!$A$3:$E$3,0))),"Konto ?",INDEX(Konten!A:E,MATCH(M18,Konten!A:A,0),MATCH(H18,Konten!$A$3:$E$3,0))))))) ->  | L18: 1600 | P18: 0
C19: 0 | E19: =IF(K19="","",IF(AND(A19+B19>0,H19=""),"USt. ?",IF(OR(K19="USt. ?",K19="Name?"),K19,IF(ISERROR(INDEX(Konten!A:E,MATCH(M19,Konten!A:A,0),MATCH(H19,Konten!$A$3:$E$3,0))),"Konto ?",IF(AND(O19=0,RIGHT(K19,5)*1>=10000),RIGHT(K19,5),K19))))) ->  | K19: =IF(M19="","",IF(AND(A19+B19>0,H19=""),"USt. ?",IF(M19="diverse Kunden",INDEX(Kunden!A:E,MATCH(N19,Kunden!A:A,1),MATCH(H19,Kunden!$A$3:$E$3,0)),IF(M19="diverse Lieferanten",INDEX(Lief.!A:E,MATCH(N19,Lief.!A:A,1),MATCH(H19,Lief.!$A$3:$E$3,0)),IF(ISERROR(INDEX(Konten!A:E,MATCH(M19,Konten!A:A,0),MATCH(H19,Konten!$A$3:$E$3,0))),"Konto ?",INDEX(Konten!A:E,MATCH(M19,Konten!A:A,0),MATCH(H19,Konten!$A$3:$E$3,0))))))) ->  | L19: 1600 | P19: 0
C20: 0 | E20: =IF(K20="","",IF(AND(A20+B20>0,H20=""),"USt. ?",IF(OR(K20="USt. ?",K20="Name?"),K20,IF(ISERROR(INDEX(Konten!A:E,MATCH(M20,Konten!A:A,0),MATCH(H20,Konten!$A$3:$E$3,0))),"Konto ?",IF(AND(O20=0,RIGHT(K20,5)*1>=10000),RIGHT(K20,5),K20))))) ->  | K20: =IF(M20="","",IF(AND(A20+B20>0,H20=""),"USt. ?",IF(M20="diverse Kunden",INDEX(Kunden!A:E,MATCH(N20,Kunden!A:A,1),MATCH(H20,Kunden!$A$3:$E$3,0)),IF(M20="diverse Lieferanten",INDEX(Lief.!A:E,MATCH(N20,Lief.!A:A,1),MATCH(H20,Lief.!$A$3:$E$3,0)),IF(ISERROR(INDEX(Konten!A:E,MATCH(M20,Konten!A:A,0),MATCH(H20,Konten!$A$3:$E$3,0))),"Konto ?",INDEX(Konten!A:E,MATCH(M20,Konten!A:A,0),MATCH(H20,Konten!$A$3:$E$3,0))))))) ->  | L20: 1600 | P20: 0
C21: 0 | E21: =IF(K21="","",IF(AND(A21+B21>0,H21=""),"USt. ?",IF(OR(K21="USt. ?",K21="Name?"),K21,IF(ISERROR(INDEX(Konten!A:E,MATCH(M21,Konten!A:A,0),MATCH(H21,Konten!$A$3:$E$3,0))),"Konto ?",IF(AND(O21=0,RIGHT(K21,5)*1>=10000),RIGHT(K21,5),K21))))) ->  | K21: =IF(M21="","",IF(AND(A21+B21>0,H21=""),"USt. ?",IF(M21="diverse Kunden",INDEX(Kunden!A:E,MATCH(N21,Kunden!A:A,1),MATCH(H21,Kunden!$A$3:$E$3,0)),IF(M21="diverse Lieferanten",INDEX(Lief.!A:E,MATCH(N21,Lief.!A:A,1),MATCH(H21,Lief.!$A$3:$E$3,0)),IF(ISERROR(INDEX(Konten!A:E,MATCH(M21,Konten!A:A,0),MATCH(H21,Konten!$A$3:$E$3,0))),"Konto ?",INDEX(Konten!A:E,MATCH(M21,Konten!A:A,0),MATCH(H21,Konten!$A$3:$E$3,0))))))) ->  | L21: 1600 | P21: 0
C22: 0 | E22: =IF(K22="","",IF(AND(A22+B22>0,H22=""),"USt. ?",IF(OR(K22="USt. ?",K22="Name?"),K22,IF(ISERROR(INDEX(Konten!A:E,MATCH(M22,Konten!A:A,0),MATCH(H22,Konten!$A$3:$E$3,0))),"Konto ?",IF(AND(O22=0,RIGHT(K22,5)*1>=10000),RIGHT(K22,5),K22))))) ->  | K22: =IF(M22="","",IF(AND(A22+B22>0,H22=""),"USt. ?",IF(M22="diverse Kunden",INDEX(Kunden!A:E,MATCH(N22,Kunden!A:A,1),MATCH(H22,Kunden!$A$3:$E$3,0)),IF(M22="diverse Lieferanten",INDEX(Lief.!A:E,MATCH(N22,Lief.!A:A,1),MATCH(H22,Lief.!$A$3:$E$3,0)),IF(ISERROR(INDEX(Konten!A:E,MATCH(M22,Konten!A:A,0),MATCH(H22,Konten!$A$3:$E$3,0))),"Konto ?",INDEX(Konten!A:E,MATCH(M22,Konten!A:A,0),MATCH(H22,Konten!$A$3:$E$3,0))))))) ->  | L22: 1600 | P22: 0
C23: 0 | E23: =IF(K23="","",IF(AND(A23+B23>0,H23=""),"USt. ?",IF(OR(K23="USt. ?",K23="Name?"),K23,IF(ISERROR(INDEX(Konten!A:E,MATCH(M23,Konten!A:A,0),MATCH(H23,Konten!$A$3:$E$3,0))),"Konto ?",IF(AND(O23=0,RIGHT(K23,5)*1>=10000),RIGHT(K23,5),K23))))) ->  | K23: =IF(M23="","",IF(AND(A23+B23>0,H23=""),"USt. ?",IF(M23="diverse Kunden",INDEX(Kunden!A:E,MATCH(N23,Kunden!A:A,1),MATCH(H23,Kunden!$A$3:$E$3,0)),IF(M23="diverse Lieferanten",INDEX(Lief.!A:E,MATCH(N23,Lief.!A:A,1),MATCH(H23,Lief.!$A$3:$E$3,0)),IF(ISERROR(INDEX(Konten!A:E,MATCH(M23,Konten!A:A,0),MATCH(H23,Konten!$A$3:$E$3,0))),"Konto ?",INDEX(Konten!A:E,MATCH(M23,Konten!A:A,0),MATCH(H23,Konten!$A$3:$E$3,0))))))) ->  | L23: 1600 | P23: 0
C24: 0 | E24: =IF(K24="","",IF(AND(A24+B24>0,H24=""),"USt. ?",IF(OR(K24="USt. ?",K24="Name?"),K24,IF(ISERROR(INDEX(Konten!A:E,MATCH(M24,Konten!A:A,0),MATCH(H24,Konten!$A$3:$E$3,0))),"Konto ?",IF(AND(O24=0,RIGHT(K24,5)*1>=10000),RIGHT(K24,5),K24))))) ->  | K24: =IF(M24="","",IF(AND(A24+B24>0,H24=""),"USt. ?",IF(M24="diverse Kunden",INDEX(Kunden!A:E,MATCH(N24,Kunden!A:A,1),MATCH(H24,Kunden!$A$3:$E$3,0)),IF(M24="diverse Lieferanten",INDEX(Lief.!A:E,MATCH(N24,Lief.!A:A,1),MATCH(H24,Lief.!$A$3:$E$3,0)),IF(ISERROR(INDEX(Konten!A:E,MATCH(M24,Konten!A:A,0),MATCH(H24,Konten!$A$3:$E$3,0))),"Konto ?",INDEX(Konten!A:E,MATCH(M24,Konten!A:A,0),MATCH(H24,Konten!$A$3:$E$3,0))))))) ->  | L24: 1600 | P24: 0
C25: 0 | E25: =IF(K25="","",IF(AND(A25+B25>0,H25=""),"USt. ?",IF(OR(K25="USt. ?",K25="Name?"),K25,IF(ISERROR(INDEX(Konten!A:E,MATCH(M25,Konten!A:A,0),MATCH(H25,Konten!$A$3:$E$3,0))),"Konto ?",IF(AND(O25=0,RIGHT(K25,5)*1>=10000),RIGHT(K25,5),K25))))) ->  | K25: =IF(M25="","",IF(AND(A25+B25>0,H25=""),"USt. ?",IF(M25="diverse Kunden",INDEX(Kunden!A:E,MATCH(N25,Kunden!A:A,1),MATCH(H25,Kunden!$A$3:$E$3,0)),IF(M25="diverse Lieferanten",INDEX(Lief.!A:E,MATCH(N25,Lief.!A:A,1),MATCH(H25,Lief.!$A$3:$E$3,0)),IF(ISERROR(INDEX(Konten!A:E,MATCH(M25,Konten!A:A,0),MATCH(H25,Konten!$A$3:$E$3,0))),"Konto ?",INDEX(Konten!A:E,MATCH(M25,Konten!A:A,0),MATCH(H25,Konten!$A$3:$E$3,0))))))) ->  | L25: 1600 | P25: 0
C26: 0 | E26: =IF(K26="","",IF(AND(A26+B26>0,H26=""),"USt. ?",IF(OR(K26="USt. ?",K26="Name?"),K26,IF(ISERROR(INDEX(Konten!A:E,MATCH(M26,Konten!A:A,0),MATCH(H26,Konten!$A$3:$E$3,0))),"Konto ?",IF(AND(O26=0,RIGHT(K26,5)*1>=10000),RIGHT(K26,5),K26))))) ->  | K26: =IF(M26="","",IF(AND(A26+B26>0,H26=""),"USt. ?",IF(M26="diverse Kunden",INDEX(Kunden!A:E,MATCH(N26,Kunden!A:A,1),MATCH(H26,Kunden!$A$3:$E$3,0)),IF(M26="diverse Lieferanten",INDEX(Lief.!A:E,MATCH(N26,Lief.!A:A,1),MATCH(H26,Lief.!$A$3:$E$3,0)),IF(ISERROR(INDEX(Konten!A:E,MATCH(M26,Konten!A:A,0),MATCH(H26,Konten!$A$3:$E$3,0))),"Konto ?",INDEX(Konten!A:E,MATCH(M26,Konten!A:A,0),MATCH(H26,Konten!$A$3:$E$3,0))))))) ->  | L26: 1600 | P26: 0
C27: 0 | E27: =IF(K27="","",IF(AND(A27+B27>0,H27=""),"USt. ?",IF(OR(K27="USt. ?",K27="Name?"),K27,IF(ISERROR(INDEX(Konten!A:E,MATCH(M27,Konten!A:A,0),MATCH(H27,Konten!$A$3:$E$3,0))),"Konto ?",IF(AND(O27=0,RIGHT(K27,5)*1>=10000),RIGHT(K27,5),K27))))) ->  | K27: =IF(M27="","",IF(AND(A27+B27>0,H27=""),"USt. ?",IF(M27="diverse Kunden",INDEX(Kunden!A:E,MATCH(N27,Kunden!A:A,1),MATCH(H27,Kunden!$A$3:$E$3,0)),IF(M27="diverse Lieferanten",INDEX(Lief.!A:E,MATCH(N27,Lief.!A:A,1),MATCH(H27,Lief.!$A$3:$E$3,0)),IF(ISERROR(INDEX(Konten!A:E,MATCH(M27,Konten!A:A,0),MATCH(H27,Konten!$A$3:$E$3,0))),"Konto ?",INDEX(Konten!A:E,MATCH(M27,Konten!A:A,0),MATCH(H27,Konten!$A$3:$E$3,0))))))) ->  | L27: 1600 | P27: 0
C28: 0 | E28: =IF(K28="","",IF(AND(A28+B28>0,H28=""),"USt. ?",IF(OR(K28="USt. ?",K28="Name?"),K28,IF(ISERROR(INDEX(Konten!A:E,MATCH(M28,Konten!A:A,0),MATCH(H28,Konten!$A$3:$E$3,0))),"Konto ?",IF(AND(O28=0,RIGHT(K28,5)*1>=10000),RIGHT(K28,5),K28))))) ->  | K28: =IF(M28="","",IF(AND(A28+B28>0,H28=""),"USt. ?",IF(M28="diverse Kunden",INDEX(Kunden!A:E,MATCH(N28,Kunden!A:A,1),MATCH(H28,Kunden!$A$3:$E$3,0)),IF(M28="diverse Lieferanten",INDEX(Lief.!A:E,MATCH(N28,Lief.!A:A,1),MATCH(H28,Lief.!$A$3:$E$3,0)),IF(ISERROR(INDEX(Konten!A:E,MATCH(M28,Konten!A:A,0),MATCH(H28,Konten!$A$3:$E$3,0))),"Konto ?",INDEX(Konten!A:E,MATCH(M28,Konten!A:A,0),MATCH(H28,Konten!$A$3:$E$3,0))))))) ->  | L28: 1600 | P28: 0
C29: 0 | E29: =IF(K29="","",IF(AND(A29+B29>0,H29=""),"USt. ?",IF(OR(K29="USt. ?",K29="Name?"),K29,IF(ISERROR(INDEX(Konten!A:E,MATCH(M29,Konten!A:A,0),MATCH(H29,Konten!$A$3:$E$3,0))),"Konto ?",IF(AND(O29=0,RIGHT(K29,5)*1>=10000),RIGHT(K29,5),K29))))) ->  | K29: =IF(M29="","",IF(AND(A29+B29>0,H29=""),"USt. ?",IF(M29="diverse Kunden",INDEX(Kunden!A:E,MATCH(N29,Kunden!A:A,1),MATCH(H29,Kunden!$A$3:$E$3,0)),IF(M29="diverse Lieferanten",INDEX(Lief.!A:E,MATCH(N29,Lief.!A:A,1),MATCH(H29,Lief.!$A$3:$E$3,0)),IF(ISERROR(INDEX(Konten!A:E,MATCH(M29,Konten!A:A,0),MATCH(H29,Konten!$A$3:$E$3,0))),"Konto ?",INDEX(Konten!A:E,MATCH(M29,Konten!A:A,0),MATCH(H29,Konten!$A$3:$E$3,0))))))) ->  | L29: 1600 | P29: 0
C30: 0 | E30: =IF(K30="","",IF(AND(A30+B30>0,H30=""),"USt. ?",IF(OR(K30="USt. ?",K30="Name?"),K30,IF(ISERROR(INDEX(Konten!A:E,MATCH(M30,Konten!A:A,0),MATCH(H30,Konten!$A$3:$E$3,0))),"Konto ?",IF(AND(O30=0,RIGHT(K30,5)*1>=10000),RIGHT(K30,5),K30))))) ->  | K30: =IF(M30="","",IF(AND(A30+B30>0,H30=""),"USt. ?",IF(M30="diverse Kunden",INDEX(Kunden!A:E,MATCH(N30,Kunden!A:A,1),MATCH(H30,Kunden!$A$3:$E$3,0)),IF(M30="diverse Lieferanten",INDEX(Lief.!A:E,MATCH(N30,Lief.!A:A,1),MATCH(H30,Lief.!$A$3:$E$3,0)),IF(ISERROR(INDEX(Konten!A:E,MATCH(M30,Konten!A:A,0),MATCH(H30,Konten!$A$3:$E$3,0))),"Konto ?",INDEX(Konten!A:E,MATCH(M30,Konten!A:A,0),MATCH(H30,Konten!$A$3:$E$3,0))))))) ->  | L30: 1600 | P30: 0
C31: 0 | E31: =IF(K31="","",IF(AND(A31+B31>0,H31=""),"USt. ?",IF(OR(K31="USt. ?",K31="Name?"),K31,IF(ISERROR(INDEX(Konten!A:E,MATCH(M31,Konten!A:A,0),MATCH(H31,Konten!$A$3:$E$3,0))),"Konto ?",IF(AND(O31=0,RIGHT(K31,5)*1>=10000),RIGHT(K31,5),K31))))) ->  | K31: =IF(M31="","",IF(AND(A31+B31>0,H31=""),"USt. ?",IF(M31="diverse Kunden",INDEX(Kunden!A:E,MATCH(N31,Kunden!A:A,1),MATCH(H31,Kunden!$A$3:$E$3,0)),IF(M31="diverse Lieferanten",INDEX(Lief.!A:E,MATCH(N31,Lief.!A:A,1),MATCH(H31,Lief.!$A$3:$E$3,0)),IF(ISERROR(INDEX(Konten!A:E,MATCH(M31,Konten!A:A,0),MATCH(H31,Konten!$A$3:$E$3,0))),"Konto ?",INDEX(Konten!A:E,MATCH(M31,Konten!A:A,0),MATCH(H31,Konten!$A$3:$E$3,0))))))) ->  | L31: 1600 | P31: 0
C32: 0 | E32: =IF(K32="","",IF(AND(A32+B32>0,H32=""),"USt. ?",IF(OR(K32="USt. ?",K32="Name?"),K32,IF(ISERROR(INDEX(Konten!A:E,MATCH(M32,Konten!A:A,0),MATCH(H32,Konten!$A$3:$E$3,0))),"Konto ?",IF(AND(O32=0,RIGHT(K32,5)*1>=10000),RIGHT(K32,5),K32))))) ->  | K32: =IF(M32="","",IF(AND(A32+B32>0,H32=""),"USt. ?",IF(M32="diverse Kunden",INDEX(Kunden!A:E,MATCH(N32,Kunden!A:A,1),MATCH(H32,Kunden!$A$3:$E$3,0)),IF(M32="diverse Lieferanten",INDEX(Lief.!A:E,MATCH(N32,Lief.!A:A,1),MATCH(H32,Lief.!$A$3:$E$3,0)),IF(ISERROR(INDEX(Konten!A:E,MATCH(M32,Konten!A:A,0),MATCH(H32,Konten!$A$3:$E$3,0))),"Konto ?",INDEX(Konten!A:E,MATCH(M32,Konten!A:A,0),MATCH(H32,Konten!$A$3:$E$3,0))))))) ->  | L32: 1600 | P32: 0
C33: 0 | E33: =IF(K33="","",IF(AND(A33+B33>0,H33=""),"USt. ?",IF(OR(K33="USt. ?",K33="Name?"),K33,IF(ISERROR(INDEX(Konten!A:E,MATCH(M33,Konten!A:A,0),MATCH(H33,Konten!$A$3:$E$3,0))),"Konto ?",IF(AND(O33=0,RIGHT(K33,5)*1>=10000),RIGHT(K33,5),K33))))) ->  | K33: =IF(M33="","",IF(AND(A33+B33>0,H33=""),"USt. ?",IF(M33="diverse Kunden",INDEX(Kunden!A:E,MATCH(N33,Kunden!A:A,1),MATCH(H33,Kunden!$A$3:$E$3,0)),IF(M33="diverse Lieferanten",INDEX(Lief.!A:E,MATCH(N33,Lief.!A:A,1),MATCH(H33,Lief.!$A$3:$E$3,0)),IF(ISERROR(INDEX(Konten!A:E,MATCH(M33,Konten!A:A,0),MATCH(H33,Konten!$A$3:$E$3,0))),"Konto ?",INDEX(Konten!A:E,MATCH(M33,Konten!A:A,0),MATCH(H33,Konten!$A$3:$E$3,0))))))) ->  | L33: 1600 | P33: 0
C34: 0 | E34: =IF(K34="","",IF(AND(A34+B34>0,H34=""),"USt. ?",IF(OR(K34="USt. ?",K34="Name?"),K34,IF(ISERROR(INDEX(Konten!A:E,MATCH(M34,Konten!A:A,0),MATCH(H34,Konten!$A$3:$E$3,0))),"Konto ?",IF(AND(O34=0,RIGHT(K34,5)*1>=10000),RIGHT(K34,5),K34))))) ->  | K34: =IF(M34="","",IF(AND(A34+B34>0,H34=""),"USt. ?",IF(M34="diverse Kunden",INDEX(Kunden!A:E,MATCH(N34,Kunden!A:A,1),MATCH(H34,Kunden!$A$3:$E$3,0)),IF(M34="diverse Lieferanten",INDEX(Lief.!A:E,MATCH(N34,Lief.!A:A,1),MATCH(H34,Lief.!$A$3:$E$3,0)),IF(ISERROR(INDEX(Konten!A:E,MATCH(M34,Konten!A:A,0),MATCH(H34,Konten!$A$3:$E$3,0))),"Konto ?",INDEX(Konten!A:E,MATCH(M34,Konten!A:A,0),MATCH(H34,Konten!$A$3:$E$3,0))))))) ->  | L34: 1600 | P34: 0
C35: 0 | E35: =IF(K35="","",IF(AND(A35+B35>0,H35=""),"USt. ?",IF(OR(K35="USt. ?",K35="Name?"),K35,IF(ISERROR(INDEX(Konten!A:E,MATCH(M35,Konten!A:A,0),MATCH(H35,Konten!$A$3:$E$3,0))),"Konto ?",IF(AND(O35=0,RIGHT(K35,5)*1>=10000),RIGHT(K35,5),K35))))) ->  | K35: =IF(M35="","",IF(AND(A35+B35>0,H35=""),"USt. ?",IF(M35="diverse Kunden",INDEX(Kunden!A:E,MATCH(N35,Kunden!A:A,1),MATCH(H35,Kunden!$A$3:$E$3,0)),IF(M35="diverse Lieferanten",INDEX(Lief.!A:E,MATCH(N35,Lief.!A:A,1),MATCH(H35,Lief.!$A$3:$E$3,0)),IF(ISERROR(INDEX(Konten!A:E,MATCH(M35,Konten!A:A,0),MATCH(H35,Konten!$A$3:$E$3,0))),"Konto ?",INDEX(Konten!A:E,MATCH(M35,Konten!A:A,0),MATCH(H35,Konten!$A$3:$E$3,0))))))) ->  | L35: 1600 | P35: 0
C36: 0 | E36: =IF(K36="","",IF(AND(A36+B36>0,H36=""),"USt. ?",IF(OR(K36="USt. ?",K36="Name?"),K36,IF(ISERROR(INDEX(Konten!A:E,MATCH(M36,Konten!A:A,0),MATCH(H36,Konten!$A$3:$E$3,0))),"Konto ?",IF(AND(O36=0,RIGHT(K36,5)*1>=10000),RIGHT(K36,5),K36))))) ->  | K36: =IF(M36="","",IF(AND(A36+B36>0,H36=""),"USt. ?",IF(M36="diverse Kunden",INDEX(Kunden!A:E,MATCH(N36,Kunden!A:A,1),MATCH(H36,Kunden!$A$3:$E$3,0)),IF(M36="diverse Lieferanten",INDEX(Lief.!A:E,MATCH(N36,Lief.!A:A,1),MATCH(H36,Lief.!$A$3:$E$3,0)),IF(ISERROR(INDEX(Konten!A:E,MATCH(M36,Konten!A:A,0),MATCH(H36,Konten!$A$3:$E$3,0))),"Konto ?",INDEX(Konten!A:E,MATCH(M36,Konten!A:A,0),MATCH(H36,Konten!$A$3:$E$3,0))))))) ->  | L36: 1600 | P36: 0
C37: 0 | E37: =IF(K37="","",IF(AND(A37+B37>0,H37=""),"USt. ?",IF(OR(K37="USt. ?",K37="Name?"),K37,IF(ISERROR(INDEX(Konten!A:E,MATCH(M37,Konten!A:A,0),MATCH(H37,Konten!$A$3:$E$3,0))),"Konto ?",IF(AND(O37=0,RIGHT(K37,5)*1>=10000),RIGHT(K37,5),K37))))) ->  | K37: =IF(M37="","",IF(AND(A37+B37>0,H37=""),"USt. ?",IF(M37="diverse Kunden",INDEX(Kunden!A:E,MATCH(N37,Kunden!A:A,1),MATCH(H37,Kunden!$A$3:$E$3,0)),IF(M37="diverse Lieferanten",INDEX(Lief.!A:E,MATCH(N37,Lief.!A:A,1),MATCH(H37,Lief.!$A$3:$E$3,0)),IF(ISERROR(INDEX(Konten!A:E,MATCH(M37,Konten!A:A,0),MATCH(H37,Konten!$A$3:$E$3,0))),"Konto ?",INDEX(Konten!A:E,MATCH(M37,Konten!A:A,0),MATCH(H37,Konten!$A$3:$E$3,0))))))) ->  | L37: 1600 | P37: 0
C38: 0 | E38: =IF(K38="","",IF(AND(A38+B38>0,H38=""),"USt. ?",IF(OR(K38="USt. ?",K38="Name?"),K38,IF(ISERROR(INDEX(Konten!A:E,MATCH(M38,Konten!A:A,0),MATCH(H38,Konten!$A$3:$E$3,0))),"Konto ?",IF(AND(O38=0,RIGHT(K38,5)*1>=10000),RIGHT(K38,5),K38))))) ->  | K38: =IF(M38="","",IF(AND(A38+B38>0,H38=""),"USt. ?",IF(M38="diverse Kunden",INDEX(Kunden!A:E,MATCH(N38,Kunden!A:A,1),MATCH(H38,Kunden!$A$3:$E$3,0)),IF(M38="diverse Lieferanten",INDEX(Lief.!A:E,MATCH(N38,Lief.!A:A,1),MATCH(H38,Lief.!$A$3:$E$3,0)),IF(ISERROR(INDEX(Konten!A:E,MATCH(M38,Konten!A:A,0),MATCH(H38,Konten!$A$3:$E$3,0))),"Konto ?",INDEX(Konten!A:E,MATCH(M38,Konten!A:A,0),MATCH(H38,Konten!$A$3:$E$3,0))))))) ->  | L38: 1600 | P38: 0
C39: 0 | E39: =IF(K39="","",IF(AND(A39+B39>0,H39=""),"USt. ?",IF(OR(K39="USt. ?",K39="Name?"),K39,IF(ISERROR(INDEX(Konten!A:E,MATCH(M39,Konten!A:A,0),MATCH(H39,Konten!$A$3:$E$3,0))),"Konto ?",IF(AND(O39=0,RIGHT(K39,5)*1>=10000),RIGHT(K39,5),K39))))) ->  | K39: =IF(M39="","",IF(AND(A39+B39>0,H39=""),"USt. ?",IF(M39="diverse Kunden",INDEX(Kunden!A:E,MATCH(N39,Kunden!A:A,1),MATCH(H39,Kunden!$A$3:$E$3,0)),IF(M39="diverse Lieferanten",INDEX(Lief.!A:E,MATCH(N39,Lief.!A:A,1),MATCH(H39,Lief.!$A$3:$E$3,0)),IF(ISERROR(INDEX(Konten!A:E,MATCH(M39,Konten!A:A,0),MATCH(H39,Konten!$A$3:$E$3,0))),"Konto ?",INDEX(Konten!A:E,MATCH(M39,Konten!A:A,0),MATCH(H39,Konten!$A$3:$E$3,0))))))) ->  | L39: 1600 | P39: 0
C40: 0 | E40: =IF(K40="","",IF(AND(A40+B40>0,H40=""),"USt. ?",IF(OR(K40="USt. ?",K40="Name?"),K40,IF(ISERROR(INDEX(Konten!A:E,MATCH(M40,Konten!A:A,0),MATCH(H40,Konten!$A$3:$E$3,0))),"Konto ?",IF(AND(O40=0,RIGHT(K40,5)*1>=10000),RIGHT(K40,5),K40))))) ->  | K40: =IF(M40="","",IF(AND(A40+B40>0,H40=""),"USt. ?",IF(M40="diverse Kunden",INDEX(Kunden!A:E,MATCH(N40,Kunden!A:A,1),MATCH(H40,Kunden!$A$3:$E$3,0)),IF(M40="diverse Lieferanten",INDEX(Lief.!A:E,MATCH(N40,Lief.!A:A,1),MATCH(H40,Lief.!$A$3:$E$3,0)),IF(ISERROR(INDEX(Konten!A:E,MATCH(M40,Konten!A:A,0),MATCH(H40,Konten!$A$3:$E$3,0))),"Konto ?",INDEX(Konten!A:E,MATCH(M40,Konten!A:A,0),MATCH(H40,Konten!$A$3:$E$3,0))))))) ->  | L40: 1600 | P40: 0
A41: =SUM(A8:A40) -> 0 | B41: =SUM(B8:B40) -> 0 | D41: Summen | M41: Unterschrift:
A42: =D6 -> 0 | B42: =INDIRECT("D"&COUNT(D8:D40)+7) -> 0 | D42: Bestand Anfang / Ende | K42: =MIN(D8:D42) -> 0 | M42: geprüft: | N42: =IF(ROUND(A43-B43,2)<>0,"Kassendifferenz !!!","") -> 
A43: =SUM(A41:A42) -> 0 | B43: =SUM(B41:B42) -> 0 | D43: Kontrollsummen | K43: =MIN('S. 1:S. '!K42) -> 0 | M43: gebucht:
A44: =IF(ROUND(A43-B43,2)<>0,"Kassendifferenz !!!","") -> 

Sheet S. 5
A1: =INDIRECT("'S. "&N3-1&"'!A1") -> 0 | L1: =DATE(YEAR(B3),MONTH(B3),1) -> 2020-05-01 | M1: K a s s e n b u c h | P1: =INDIRECT("'S. "&N3-1&"'!B3") -> 2020-04-30 | Q1: 2 | Y1: =RIGHT(CELL("Dateiname",A1),LEN(CELL("Dateiname",A1))-FIND("]",CELL("Dateiname",A1))) -> S. 5 | Z1: =LEFT(Y1,SEARCH(" ",Y1)) -> S. | AA1: =RIGHT(Y1,LEN(Y1)-SEARCH(" ",Y1)) -> 5
A3: Monat: | B3: =DATE(YEAR(P1),MONTH(P1)+Q1,0) -> 2020-05-31 | J3: ="F"&LARGE(IF(F8:F40<>" ",ROW(F8:F40)),1) -> F8 | K3: =YEAR(L3) -> 2020 | L3: =B3 -> 2020-05-31 | M3: =INDIRECT("'S. "&N3-1&"'!M3") -> 1600 | N3: =IF(ISERROR(P3),1,IF(RIGHT(P3,1)=")",LEFT(RIGHT(P3,7),3)+1,Q3)) -> 5 | P3: =RIGHT(CELL("Dateiname",A1),LEN(CELL("Dateiname",A1))-FIND("]",CELL("Dateiname",A1))) -> S. 5 | Q3: =MID(P3,SEARCH(" ",P3)+1,3)*1 -> 5
K4: =MONTH(L4) -> 5 | L4: =L3 -> 2020-05-31 | N4: =IF(ISERROR(P3),"",IF(AND(RIGHT(P3,2)<>TEXT(N3," #"),RIGHT(P3,2)<>TEXT(N3,"##"),RIGHT(P3,3)<>TEXT(N3,"###")),"Name Tabellenblatt ändern in ' S. "&N3&" ' ","")) -> 
A5: Einnahmen | B5: Ausgaben | C5: Einnahmen | D5: Bestand | E5: Gegen- | F5: Beleg- | G5: Beleg- | H5: USt.- | I5: BU | J5: Gegenkonto | K5: Gegenkonto | L5: Konto | M5: Kontierung | N5: Text | O5: Skonto | P5: Festschreibung
A6: € | B6: € | C6: Ausgaben | D6: =INDIRECT("'S. "&N3-1&"'!B42") -> 0 | E6: konto | F6: Nr. | G6: Datum | H6: Satz | J6: ASCII | K6: ASCII
G7: =DATE(YEAR(B3),MONTH(B3),IF(MONTH(INDIRECT("'S. "&N3-1&"'!B3"))=MONTH(B3),DAY(INDIRECT("'S. "&N3-1&"'!L4")),1)) -> 43952
C8: =A8-B8 -> 0 | D8: =D6+C8 -> 0 | E8: =IF(K8="","",IF(AND(A8+B8>0,H8=""),"USt. ?",IF(OR(K8="USt. ?",K8="Name?"),K8,IF(ISERROR(INDEX(Konten!A:E,MATCH(M8,Konten!A:A,0),MATCH(H8,Konten!$A$3:$E$3,0))),"Konto ?",IF(AND(O8=0,RIGHT(K8,5)*1>=10000),RIGHT(K8,5),K8))))) ->  | F8: =IF(INDIRECT("'S. "&N3-1&"'!A43")=0,1,IF(ROUND(A41+B41,2)=0,INDIRECT("'S. "&N3-1&"'!"&INDIRECT("'S. "&N3-1&"'!J3")),INDIRECT("'S. "&N3-1&"'!"&INDIRECT("'S. "&N3-1&"'!J3"))+1)) -> 1 | I8: =IF(LEN(E8)<6,"",LEFT(E8,LEN(E8)-5)) ->  | J8: =RIGHT(E8,5) ->  | K8: =IF(M8="","",IF(AND(A8+B8>0,H8=""),"USt. ?",IF(M8="diverse Kunden",INDEX(Kunden!A:E,MATCH(N8,Kunden!A:A,1),MATCH(H8,Kunden!$A$3:$E$3,0)),IF(M8="diverse Lieferanten",INDEX(Lief.!A:E,MATCH(N8,Lief.!A:A,1),MATCH(H8,Lief.!$A$3:$E$3,0)),IF(ISERROR(INDEX(Konten!A:E,MATCH(M8,Konten!A:A,0),MATCH(H8,Konten!$A$3:$E$3,0))),"Konto ?",INDEX(Konten!A:E,MATCH(M8,Konten!A:A,0),MATCH(H8,Konten!$A$3:$E$3,0))))))) ->  | L8: =$M$3 -> 1600 | P8: 0
C9: =A9-B9 -> 0 | D9: =IF(ROUND(C9,2)=0,"",D8+C9) ->  | E9: =IF(K9="","",IF(AND(A9+B9>0,H9=""),"USt. ?",IF(OR(K9="USt. ?",K9="Name?"),K9,IF(ISERROR(INDEX(Konten!A:E,MATCH(M9,Konten!A:A,0),MATCH(H9,Konten!$A$3:$E$3,0))),"Konto ?",IF(AND(O9=0,RIGHT(K9,5)*1>=10000),RIGHT(K9,5),K9))))) ->  | F9: =IF(A9+B9=0," ",F8+1) ->  | I9: =IF(LEN(E9)<6,"",LEFT(E9,LEN(E9)-5)) ->  | J9: =RIGHT(E9,5) ->  | K9: =IF(M9="","",IF(AND(A9+B9>0,H9=""),"USt. ?",IF(M9="diverse Kunden",INDEX(Kunden!A:E,MATCH(N9,Kunden!A:A,1),MATCH(H9,Kunden!$A$3:$E$3,0)),IF(M9="diverse Lieferanten",INDEX(Lief.!A:E,MATCH(N9,Lief.!A:A,1),MATCH(H9,Lief.!$A$3:$E$3,0)),IF(ISERROR(INDEX(Konten!A:E,MATCH(M9,Konten!A:A,0),MATCH(H9,Konten!$A$3:$E$3,0))),"Konto ?",INDEX(Konten!A:E,MATCH(M9,Konten!A:A,0),MATCH(H9,Konten!$A$3:$E$3,0))))))) ->  | L9: 1600 | P9: 0
C10: 0 | D10: =IF(ROUND(C10,2)=0,"",D9+C10) ->  | E10: =IF(K10="","",IF(AND(A10+B10>0,H10=""),"USt. ?",IF(OR(K10="USt. ?",K10="Name?"),K10,IF(ISERROR(INDEX(Konten!A:E,MATCH(M10,Konten!A:A,0),MATCH(H10,Konten!$A$3:$E$3,0))),"Konto ?",IF(AND(O10=0,RIGHT(K10,5)*1>=10000),RIGHT(K10,5),K10))))) ->  | K10: =IF(M10="","",IF(AND(A10+B10>0,H10=""),"USt. ?",IF(M10="diverse Kunden",INDEX(Kunden!A:E,MATCH(N10,Kunden!A:A,1),MATCH(H10,Kunden!$A$3:$E$3,0)),IF(M10="diverse Lieferanten",INDEX(Lief.!A:E,MATCH(N10,Lief.!A:A,1),MATCH(H10,Lief.!$A$3:$E$3,0)),IF(ISERROR(INDEX(Konten!A:E,MATCH(M10,Konten!A:A,0),MATCH(H10,Konten!$A$3:$E$3,0))),"Konto ?",INDEX(Konten!A:E,MATCH(M10,Konten!A:A,0),MATCH(H10,Konten!$A$3:$E$3,0))))))) ->  | L10: 1600 | P10: 0
C11: 0 | E11: =IF(K11="","",IF(AND(A11+B11>0,H11=""),"USt. ?",IF(OR(K11="USt. ?",K11="Name?"),K11,IF(ISERROR(INDEX(Konten!A:E,MATCH(M11,Konten!A:A,0),MATCH(H11,Konten!$A$3:$E$3,0))),"Konto ?",IF(AND(O11=0,RIGHT(K11,5)*1>=10000),RIGHT(K11,5),K11))))) ->  | K11: =IF(M11="","",IF(AND(A11+B11>0,H11=""),"USt. ?",IF(M11="diverse Kunden",INDEX(Kunden!A:E,MATCH(N11,Kunden!A:A,1),MATCH(H11,Kunden!$A$3:$E$3,0)),IF(M11="diverse Lieferanten",INDEX(Lief.!A:E,MATCH(N11,Lief.!A:A,1),MATCH(H11,Lief.!$A$3:$E$3,0)),IF(ISERROR(INDEX(Konten!A:E,MATCH(M11,Konten!A:A,0),MATCH(H11,Konten!$A$3:$E$3,0))),"Konto ?",INDEX(Konten!A:E,MATCH(M11,Konten!A:A,0),MATCH(H11,Konten!$A$3:$E$3,0))))))) ->  | L11: 1600 | P11: 0
C12: 0 | E12: =IF(K12="","",IF(AND(A12+B12>0,H12=""),"USt. ?",IF(OR(K12="USt. ?",K12="Name?"),K12,IF(ISERROR(INDEX(Konten!A:E,MATCH(M12,Konten!A:A,0),MATCH(H12,Konten!$A$3:$E$3,0))),"Konto ?",IF(AND(O12=0,RIGHT(K12,5)*1>=10000),RIGHT(K12,5),K12))))) ->  | K12: =IF(M12="","",IF(AND(A12+B12>0,H12=""),"USt. ?",IF(M12="diverse Kunden",INDEX(Kunden!A:E,MATCH(N12,Kunden!A:A,1),MATCH(H12,Kunden!$A$3:$E$3,0)),IF(M12="diverse Lieferanten",INDEX(Lief.!A:E,MATCH(N12,Lief.!A:A,1),MATCH(H12,Lief.!$A$3:$E$3,0)),IF(ISERROR(INDEX(Konten!A:E,MATCH(M12,Konten!A:A,0),MATCH(H12,Konten!$A$3:$E$3,0))),"Konto ?",INDEX(Konten!A:E,MATCH(M12,Konten!A:A,0),MATCH(H12,Konten!$A$3:$E$3,0))))))) ->  | L12: 1600 | P12: 0
C13: 0 | E13: =IF(K13="","",IF(AND(A13+B13>0,H13=""),"USt. ?",IF(OR(K13="USt. ?",K13="Name?"),K13,IF(ISERROR(INDEX(Konten!A:E,MATCH(M13,Konten!A:A,0),MATCH(H13,Konten!$A$3:$E$3,0))),"Konto ?",IF(AND(O13=0,RIGHT(K13,5)*1>=10000),RIGHT(K13,5),K13))))) ->  | K13: =IF(M13="","",IF(AND(A13+B13>0,H13=""),"USt. ?",IF(M13="diverse Kunden",INDEX(Kunden!A:E,MATCH(N13,Kunden!A:A,1),MATCH(H13,Kunden!$A$3:$E$3,0)),IF(M13="diverse Lieferanten",INDEX(Lief.!A:E,MATCH(N13,Lief.!A:A,1),MATCH(H13,Lief.!$A$3:$E$3,0)),IF(ISERROR(INDEX(Konten!A:E,MATCH(M13,Konten!A:A,0),MATCH(H13,Konten!$A$3:$E$3,0))),"Konto ?",INDEX(Konten!A:E,MATCH(M13,Konten!A:A,0),MATCH(H13,Konten!$A$3:$E$3,0))))))) ->  | L13: 1600 | P13: 0
C14: 0 | E14: =IF(K14="","",IF(AND(A14+B14>0,H14=""),"USt. ?",IF(OR(K14="USt. ?",K14="Name?"),K14,IF(ISERROR(INDEX(Konten!A:E,MATCH(M14,Konten!A:A,0),MATCH(H14,Konten!$A$3:$E$3,0))),"Konto ?",IF(AND(O14=0,RIGHT(K14,5)*1>=10000),RIGHT(K14,5),K14))))) ->  | K14: =IF(M14="","",IF(AND(A14+B14>0,H14=""),"USt. ?",IF(M14="diverse Kunden",INDEX(Kunden!A:E,MATCH(N14,Kunden!A:A,1),MATCH(H14,Kunden!$A$3:$E$3,0)),IF(M14="diverse Lieferanten",INDEX(Lief.!A:E,MATCH(N14,Lief.!A:A,1),MATCH(H14,Lief.!$A$3:$E$3,0)),IF(ISERROR(INDEX(Konten!A:E,MATCH(M14,Konten!A:A,0),MATCH(H14,Konten!$A$3:$E$3,0))),"Konto ?",INDEX(Konten!A:E,MATCH(M14,Konten!A:A,0),MATCH(H14,Konten!$A$3:$E$3,0))))))) ->  | L14: 1600 | P14: 0
C15: 0 | E15: =IF(K15="","",IF(AND(A15+B15>0,H15=""),"USt. ?",IF(OR(K15="USt. ?",K15="Name?"),K15,IF(ISERROR(INDEX(Konten!A:E,MATCH(M15,Konten!A:A,0),MATCH(H15,Konten!$A$3:$E$3,0))),"Konto ?",IF(AND(O15=0,RIGHT(K15,5)*1>=10000),RIGHT(K15,5),K15))))) ->  | K15: =IF(M15="","",IF(AND(A15+B15>0,H15=""),"USt. ?",IF(M15="diverse Kunden",INDEX(Kunden!A:E,MATCH(N15,Kunden!A:A,1),MATCH(H15,Kunden!$A$3:$E$3,0)),IF(M15="diverse Lieferanten",INDEX(Lief.!A:E,MATCH(N15,Lief.!A:A,1),MATCH(H15,Lief.!$A$3:$E$3,0)),IF(ISERROR(INDEX(Konten!A:E,MATCH(M15,Konten!A:A,0),MATCH(H15,Konten!$A$3:$E$3,0))),"Konto ?",INDEX(Konten!A:E,MATCH(M15,Konten!A:A,0),MATCH(H15,Konten!$A$3:$E$3,0))))))) ->  | L15: 1600 | P15: 0
C16: 0 | E16: =IF(K16="","",IF(AND(A16+B16>0,H16=""),"USt. ?",IF(OR(K16="USt. ?",K16="Name?"),K16,IF(ISERROR(INDEX(Konten!A:E,MATCH(M16,Konten!A:A,0),MATCH(H16,Konten!$A$3:$E$3,0))),"Konto ?",IF(AND(O16=0,RIGHT(K16,5)*1>=10000),RIGHT(K16,5),K16))))) ->  | K16: =IF(M16="","",IF(AND(A16+B16>0,H16=""),"USt. ?",IF(M16="diverse Kunden",INDEX(Kunden!A:E,MATCH(N16,Kunden!A:A,1),MATCH(H16,Kunden!$A$3:$E$3,0)),IF(M16="diverse Lieferanten",INDEX(Lief.!A:E,MATCH(N16,Lief.!A:A,1),MATCH(H16,Lief.!$A$3:$E$3,0)),IF(ISERROR(INDEX(Konten!A:E,MATCH(M16,Konten!A:A,0),MATCH(H16,Konten!$A$3:$E$3,0))),"Konto ?",INDEX(Konten!A:E,MATCH(M16,Konten!A:A,0),MATCH(H16,Konten!$A$3:$E$3,0))))))) ->  | L16: 1600 | P16: 0
C17: 0 | E17: =IF(K17="","",IF(AND(A17+B17>0,H17=""),"USt. ?",IF(OR(K17="USt. ?",K17="Name?"),K17,IF(ISERROR(INDEX(Konten!A:E,MATCH(M17,Konten!A:A,0),MATCH(H17,Konten!$A$3:$E$3,0))),"Konto ?",IF(AND(O17=0,RIGHT(K17,5)*1>=10000),RIGHT(K17,5),K17))))) ->  | K17: =IF(M17="","",IF(AND(A17+B17>0,H17=""),"USt. ?",IF(M17="diverse Kunden",INDEX(Kunden!A:E,MATCH(N17,Kunden!A:A,1),MATCH(H17,Kunden!$A$3:$E$3,0)),IF(M17="diverse Lieferanten",INDEX(Lief.!A:E,MATCH(N17,Lief.!A:A,1),MATCH(H17,Lief.!$A$3:$E$3,0)),IF(ISERROR(INDEX(Konten!A:E,MATCH(M17,Konten!A:A,0),MATCH(H17,Konten!$A$3:$E$3,0))),"Konto ?",INDEX(Konten!A:E,MATCH(M17,Konten!A:A,0),MATCH(H17,Konten!$A$3:$E$3,0))))))) ->  | L17: 1600 | P17: 0
C18: 0 | E18: =IF(K18="","",IF(AND(A18+B18>0,H18=""),"USt. ?",IF(OR(K18="USt. ?",K18="Name?"),K18,IF(ISERROR(INDEX(Konten!A:E,MATCH(M18,Konten!A:A,0),MATCH(H18,Konten!$A$3:$E$3,0))),"Konto ?",IF(AND(O18=0,RIGHT(K18,5)*1>=10000),RIGHT(K18,5),K18))))) ->  | K18: =IF(M18="","",IF(AND(A18+B18>0,H18=""),"USt. ?",IF(M18="diverse Kunden",INDEX(Kunden!A:E,MATCH(N18,Kunden!A:A,1),MATCH(H18,Kunden!$A$3:$E$3,0)),IF(M18="diverse Lieferanten",INDEX(Lief.!A:E,MATCH(N18,Lief.!A:A,1),MATCH(H18,Lief.!$A$3:$E$3,0)),IF(ISERROR(INDEX(Konten!A:E,MATCH(M18,Konten!A:A,0),MATCH(H18,Konten!$A$3:$E$3,0))),"Konto ?",INDEX(Konten!A:E,MATCH(M18,Konten!A:A,0),MATCH(H18,Konten!$A$3:$E$3,0))))))) ->  | L18: 1600 | P18: 0
C19: 0 | E19: =IF(K19="","",IF(AND(A19+B19>0,H19=""),"USt. ?",IF(OR(K19="USt. ?",K19="Name?"),K19,IF(ISERROR(INDEX(Konten!A:E,MATCH(M19,Konten!A:A,0),MATCH(H19,Konten!$A$3:$E$3,0))),"Konto ?",IF(AND(O19=0,RIGHT(K19,5)*1>=10000),RIGHT(K19,5),K19))))) ->  | K19: =IF(M19="","",IF(AND(A19+B19>0,H19=""),"USt. ?",IF(M19="diverse Kunden",INDEX(Kunden!A:E,MATCH(N19,Kunden!A:A,1),MATCH(H19,Kunden!$A$3:$E$3,0)),IF(M19="diverse Lieferanten",INDEX(Lief.!A:E,MATCH(N19,Lief.!A:A,1),MATCH(H19,Lief.!$A$3:$E$3,0)),IF(ISERROR(INDEX(Konten!A:E,MATCH(M19,Konten!A:A,0),MATCH(H19,Konten!$A$3:$E$3,0))),"Konto ?",INDEX(Konten!A:E,MATCH(M19,Konten!A:A,0),MATCH(H19,Konten!$A$3:$E$3,0))))))) ->  | L19: 1600 | P19: 0
C20: 0 | E20: =IF(K20="","",IF(AND(A20+B20>0,H20=""),"USt. ?",IF(OR(K20="USt. ?",K20="Name?"),K20,IF(ISERROR(INDEX(Konten!A:E,MATCH(M20,Konten!A:A,0),MATCH(H20,Konten!$A$3:$E$3,0))),"Konto ?",IF(AND(O20=0,RIGHT(K20,5)*1>=10000),RIGHT(K20,5),K20))))) ->  | K20: =IF(M20="","",IF(AND(A20+B20>0,H20=""),"USt. ?",IF(M20="diverse Kunden",INDEX(Kunden!A:E,MATCH(N20,Kunden!A:A,1),MATCH(H20,Kunden!$A$3:$E$3,0)),IF(M20="diverse Lieferanten",INDEX(Lief.!A:E,MATCH(N20,Lief.!A:A,1),MATCH(H20,Lief.!$A$3:$E$3,0)),IF(ISERROR(INDEX(Konten!A:E,MATCH(M20,Konten!A:A,0),MATCH(H20,Konten!$A$3:$E$3,0))),"Konto ?",INDEX(Konten!A:E,MATCH(M20,Konten!A:A,0),MATCH(H20,Konten!$A$3:$E$3,0))))))) ->  | L20: 1600 | P20: 0
C21: 0 | E21: =IF(K21="","",IF(AND(A21+B21>0,H21=""),"USt. ?",IF(OR(K21="USt. ?",K21="Name?"),K21,IF(ISERROR(INDEX(Konten!A:E,MATCH(M21,Konten!A:A,0),MATCH(H21,Konten!$A$3:$E$3,0))),"Konto ?",IF(AND(O21=0,RIGHT(K21,5)*1>=10000),RIGHT(K21,5),K21))))) ->  | K21: =IF(M21="","",IF(AND(A21+B21>0,H21=""),"USt. ?",IF(M21="diverse Kunden",INDEX(Kunden!A:E,MATCH(N21,Kunden!A:A,1),MATCH(H21,Kunden!$A$3:$E$3,0)),IF(M21="diverse Lieferanten",INDEX(Lief.!A:E,MATCH(N21,Lief.!A:A,1),MATCH(H21,Lief.!$A$3:$E$3,0)),IF(ISERROR(INDEX(Konten!A:E,MATCH(M21,Konten!A:A,0),MATCH(H21,Konten!$A$3:$E$3,0))),"Konto ?",INDEX(Konten!A:E,MATCH(M21,Konten!A:A,0),MATCH(H21,Konten!$A$3:$E$3,0))))))) ->  | L21: 1600 | P21: 0
C22: 0 | E22: =IF(K22="","",IF(AND(A22+B22>0,H22=""),"USt. ?",IF(OR(K22="USt. ?",K22="Name?"),K22,IF(ISERROR(INDEX(Konten!A:E,MATCH(M22,Konten!A:A,0),MATCH(H22,Konten!$A$3:$E$3,0))),"Konto ?",IF(AND(O22=0,RIGHT(K22,5)*1>=10000),RIGHT(K22,5),K22))))) ->  | K22: =IF(M22="","",IF(AND(A22+B22>0,H22=""),"USt. ?",IF(M22="diverse Kunden",INDEX(Kunden!A:E,MATCH(N22,Kunden!A:A,1),MATCH(H22,Kunden!$A$3:$E$3,0)),IF(M22="diverse Lieferanten",INDEX(Lief.!A:E,MATCH(N22,Lief.!A:A,1),MATCH(H22,Lief.!$A$3:$E$3,0)),IF(ISERROR(INDEX(Konten!A:E,MATCH(M22,Konten!A:A,0),MATCH(H22,Konten!$A$3:$E$3,0))),"Konto ?",INDEX(Konten!A:E,MATCH(M22,Konten!A:A,0),MATCH(H22,Konten!$A$3:$E$3,0))))))) ->  | L22: 1600 | P22: 0
C23: 0 | E23: =IF(K23="","",IF(AND(A23+B23>0,H23=""),"USt. ?",IF(OR(K23="USt. ?",K23="Name?"),K23,IF(ISERROR(INDEX(Konten!A:E,MATCH(M23,Konten!A:A,0),MATCH(H23,Konten!$A$3:$E$3,0))),"Konto ?",IF(AND(O23=0,RIGHT(K23,5)*1>=10000),RIGHT(K23,5),K23))))) ->  | K23: =IF(M23="","",IF(AND(A23+B23>0,H23=""),"USt. ?",IF(M23="diverse Kunden",INDEX(Kunden!A:E,MATCH(N23,Kunden!A:A,1),MATCH(H23,Kunden!$A$3:$E$3,0)),IF(M23="diverse Lieferanten",INDEX(Lief.!A:E,MATCH(N23,Lief.!A:A,1),MATCH(H23,Lief.!$A$3:$E$3,0)),IF(ISERROR(INDEX(Konten!A:E,MATCH(M23,Konten!A:A,0),MATCH(H23,Konten!$A$3:$E$3,0))),"Konto ?",INDEX(Konten!A:E,MATCH(M23,Konten!A:A,0),MATCH(H23,Konten!$A$3:$E$3,0))))))) ->  | L23: 1600 | P23: 0
C24: 0 | E24: =IF(K24="","",IF(AND(A24+B24>0,H24=""),"USt. ?",IF(OR(K24="USt. ?",K24="Name?"),K24,IF(ISERROR(INDEX(Konten!A:E,MATCH(M24,Konten!A:A,0),MATCH(H24,Konten!$A$3:$E$3,0))),"Konto ?",IF(AND(O24=0,RIGHT(K24,5)*1>=10000),RIGHT(K24,5),K24))))) ->  | K24: =IF(M24="","",IF(AND(A24+B24>0,H24=""),"USt. ?",IF(M24="diverse Kunden",INDEX(Kunden!A:E,MATCH(N24,Kunden!A:A,1),MATCH(H24,Kunden!$A$3:$E$3,0)),IF(M24="diverse Lieferanten",INDEX(Lief.!A:E,MATCH(N24,Lief.!A:A,1),MATCH(H24,Lief.!$A$3:$E$3,0)),IF(ISERROR(INDEX(Konten!A:E,MATCH(M24,Konten!A:A,0),MATCH(H24,Konten!$A$3:$E$3,0))),"Konto ?",INDEX(Konten!A:E,MATCH(M24,Konten!A:A,0),MATCH(H24,Konten!$A$3:$E$3,0))))))) ->  | L24: 1600 | P24: 0
C25: 0 | E25: =IF(K25="","",IF(AND(A25+B25>0,H25=""),"USt. ?",IF(OR(K25="USt. ?",K25="Name?"),K25,IF(ISERROR(INDEX(Konten!A:E,MATCH(M25,Konten!A:A,0),MATCH(H25,Konten!$A$3:$E$3,0))),"Konto ?",IF(AND(O25=0,RIGHT(K25,5)*1>=10000),RIGHT(K25,5),K25))))) ->  | K25: =IF(M25="","",IF(AND(A25+B25>0,H25=""),"USt. ?",IF(M25="diverse Kunden",INDEX(Kunden!A:E,MATCH(N25,Kunden!A:A,1),MATCH(H25,Kunden!$A$3:$E$3,0)),IF(M25="diverse Lieferanten",INDEX(Lief.!A:E,MATCH(N25,Lief.!A:A,1),MATCH(H25,Lief.!$A$3:$E$3,0)),IF(ISERROR(INDEX(Konten!A:E,MATCH(M25,Konten!A:A,0),MATCH(H25,Konten!$A$3:$E$3,0))),"Konto ?",INDEX(Konten!A:E,MATCH(M25,Konten!A:A,0),MATCH(H25,Konten!$A$3:$E$3,0))))))) ->  | L25: 1600 | P25: 0
C26: 0 | E26: =IF(K26="","",IF(AND(A26+B26>0,H26=""),"USt. ?",IF(OR(K26="USt. ?",K26="Name?"),K26,IF(ISERROR(INDEX(Konten!A:E,MATCH(M26,Konten!A:A,0),MATCH(H26,Konten!$A$3:$E$3,0))),"Konto ?",IF(AND(O26=0,RIGHT(K26,5)*1>=10000),RIGHT(K26,5),K26))))) ->  | K26: =IF(M26="","",IF(AND(A26+B26>0,H26=""),"USt. ?",IF(M26="diverse Kunden",INDEX(Kunden!A:E,MATCH(N26,Kunden!A:A,1),MATCH(H26,Kunden!$A$3:$E$3,0)),IF(M26="diverse Lieferanten",INDEX(Lief.!A:E,MATCH(N26,Lief.!A:A,1),MATCH(H26,Lief.!$A$3:$E$3,0)),IF(ISERROR(INDEX(Konten!A:E,MATCH(M26,Konten!A:A,0),MATCH(H26,Konten!$A$3:$E$3,0))),"Konto ?",INDEX(Konten!A:E,MATCH(M26,Konten!A:A,0),MATCH(H26,Konten!$A$3:$E$3,0))))))) ->  | L26: 1600 | P26: 0
C27: 0 | E27: =IF(K27="","",IF(AND(A27+B27>0,H27=""),"USt. ?",IF(OR(K27="USt. ?",K27="Name?"),K27,IF(ISERROR(INDEX(Konten!A:E,MATCH(M27,Konten!A:A,0),MATCH(H27,Konten!$A$3:$E$3,0))),"Konto ?",IF(AND(O27=0,RIGHT(K27,5)*1>=10000),RIGHT(K27,5),K27))))) ->  | K27: =IF(M27="","",IF(AND(A27+B27>0,H27=""),"USt. ?",IF(M27="diverse Kunden",INDEX(Kunden!A:E,MATCH(N27,Kunden!A:A,1),MATCH(H27,Kunden!$A$3:$E$3,0)),IF(M27="diverse Lieferanten",INDEX(Lief.!A:E,MATCH(N27,Lief.!A:A,1),MATCH(H27,Lief.!$A$3:$E$3,0)),IF(ISERROR(INDEX(Konten!A:E,MATCH(M27,Konten!A:A,0),MATCH(H27,Konten!$A$3:$E$3,0))),"Konto ?",INDEX(Konten!A:E,MATCH(M27,Konten!A:A,0),MATCH(H27,Konten!$A$3:$E$3,0))))))) ->  | L27: 1600 | P27: 0
C28: 0 | E28: =IF(K28="","",IF(AND(A28+B28>0,H28=""),"USt. ?",IF(OR(K28="USt. ?",K28="Name?"),K28,IF(ISERROR(INDEX(Konten!A:E,MATCH(M28,Konten!A:A,0),MATCH(H28,Konten!$A$3:$E$3,0))),"Konto ?",IF(AND(O28=0,RIGHT(K28,5)*1>=10000),RIGHT(K28,5),K28))))) ->  | K28: =IF(M28="","",IF(AND(A28+B28>0,H28=""),"USt. ?",IF(M28="diverse Kunden",INDEX(Kunden!A:E,MATCH(N28,Kunden!A:A,1),MATCH(H28,Kunden!$A$3:$E$3,0)),IF(M28="diverse Lieferanten",INDEX(Lief.!A:E,MATCH(N28,Lief.!A:A,1),MATCH(H28,Lief.!$A$3:$E$3,0)),IF(ISERROR(INDEX(Konten!A:E,MATCH(M28,Konten!A:A,0),MATCH(H28,Konten!$A$3:$E$3,0))),"Konto ?",INDEX(Konten!A:E,MATCH(M28,Konten!A:A,0),MATCH(H28,Konten!$A$3:$E$3,0))))))) ->  | L28: 1600 | P28: 0
C29: 0 | E29: =IF(K29="","",IF(AND(A29+B29>0,H29=""),"USt. ?",IF(OR(K29="USt. ?",K29="Name?"),K29,IF(ISERROR(INDEX(Konten!A:E,MATCH(M29,Konten!A:A,0),MATCH(H29,Konten!$A$3:$E$3,0))),"Konto ?",IF(AND(O29=0,RIGHT(K29,5)*1>=10000),RIGHT(K29,5),K29))))) ->  | K29: =IF(M29="","",IF(AND(A29+B29>0,H29=""),"USt. ?",IF(M29="diverse Kunden",INDEX(Kunden!A:E,MATCH(N29,Kunden!A:A,1),MATCH(H29,Kunden!$A$3:$E$3,0)),IF(M29="diverse Lieferanten",INDEX(Lief.!A:E,MATCH(N29,Lief.!A:A,1),MATCH(H29,Lief.!$A$3:$E$3,0)),IF(ISERROR(INDEX(Konten!A:E,MATCH(M29,Konten!A:A,0),MATCH(H29,Konten!$A$3:$E$3,0))),"Konto ?",INDEX(Konten!A:E,MATCH(M29,Konten!A:A,0),MATCH(H29,Konten!$A$3:$E$3,0))))))) ->  | L29: 1600 | P29: 0
C30: 0 | E30: =IF(K30="","",IF(AND(A30+B30>0,H30=""),"USt. ?",IF(OR(K30="USt. ?",K30="Name?"),K30,IF(ISERROR(INDEX(Konten!A:E,MATCH(M30,Konten!A:A,0),MATCH(H30,Konten!$A$3:$E$3,0))),"Konto ?",IF(AND(O30=0,RIGHT(K30,5)*1>=10000),RIGHT(K30,5),K30))))) ->  | K30: =IF(M30="","",IF(AND(A30+B30>0,H30=""),"USt. ?",IF(M30="diverse Kunden",INDEX(Kunden!A:E,MATCH(N30,Kunden!A:A,1),MATCH(H30,Kunden!$A$3:$E$3,0)),IF(M30="diverse Lieferanten",INDEX(Lief.!A:E,MATCH(N30,Lief.!A:A,1),MATCH(H30,Lief.!$A$3:$E$3,0)),IF(ISERROR(INDEX(Konten!A:E,MATCH(M30,Konten!A:A,0),MATCH(H30,Konten!$A$3:$E$3,0))),"Konto ?",INDEX(Konten!A:E,MATCH(M30,Konten!A:A,0),MATCH(H30,Konten!$A$3:$E$3,0))))))) ->  | L30: 1600 | P30: 0
C31: 0 | E31: =IF(K31="","",IF(AND(A31+B31>0,H31=""),"USt. ?",IF(OR(K31="USt. ?",K31="Name?"),K31,IF(ISERROR(INDEX(Konten!A:E,MATCH(M31,Konten!A:A,0),MATCH(H31,Konten!$A$3:$E$3,0))),"Konto ?",IF(AND(O31=0,RIGHT(K31,5)*1>=10000),RIGHT(K31,5),K31))))) ->  | K31: =IF(M31="","",IF(AND(A31+B31>0,H31=""),"USt. ?",IF(M31="diverse Kunden",INDEX(Kunden!A:E,MATCH(N31,Kunden!A:A,1),MATCH(H31,Kunden!$A$3:$E$3,0)),IF(M31="diverse Lieferanten",INDEX(Lief.!A:E,MATCH(N31,Lief.!A:A,1),MATCH(H31,Lief.!$A$3:$E$3,0)),IF(ISERROR(INDEX(Konten!A:E,MATCH(M31,Konten!A:A,0),MATCH(H31,Konten!$A$3:$E$3,0))),"Konto ?",INDEX(Konten!A:E,MATCH(M31,Konten!A:A,0),MATCH(H31,Konten!$A$3:$E$3,0))))))) ->  | L31: 1600 | P31: 0
C32: 0 | E32: =IF(K32="","",IF(AND(A32+B32>0,H32=""),"USt. ?",IF(OR(K32="USt. ?",K32="Name?"),K32,IF(ISERROR(INDEX(Konten!A:E,MATCH(M32,Konten!A:A,0),MATCH(H32,Konten!$A$3:$E$3,0))),"Konto ?",IF(AND(O32=0,RIGHT(K32,5)*1>=10000),RIGHT(K32,5),K32))))) ->  | K32: =IF(M32="","",IF(AND(A32+B32>0,H32=""),"USt. ?",IF(M32="diverse Kunden",INDEX(Kunden!A:E,MATCH(N32,Kunden!A:A,1),MATCH(H32,Kunden!$A$3:$E$3,0)),IF(M32="diverse Lieferanten",INDEX(Lief.!A:E,MATCH(N32,Lief.!A:A,1),MATCH(H32,Lief.!$A$3:$E$3,0)),IF(ISERROR(INDEX(Konten!A:E,MATCH(M32,Konten!A:A,0),MATCH(H32,Konten!$A$3:$E$3,0))),"Konto ?",INDEX(Konten!A:E,MATCH(M32,Konten!A:A,0),MATCH(H32,Konten!$A$3:$E$3,0))))))) ->  | L32: 1600 | P32: 0
C33: 0 | E33: =IF(K33="","",IF(AND(A33+B33>0,H33=""),"USt. ?",IF(OR(K33="USt. ?",K33="Name?"),K33,IF(ISERROR(INDEX(Konten!A:E,MATCH(M33,Konten!A:A,0),MATCH(H33,Konten!$A$3:$E$3,0))),"Konto ?",IF(AND(O33=0,RIGHT(K33,5)*1>=10000),RIGHT(K33,5),K33))))) ->  | K33: =IF(M33="","",IF(AND(A33+B33>0,H33=""),"USt. ?",IF(M33="diverse Kunden",INDEX(Kunden!A:E,MATCH(N33,Kunden!A:A,1),MATCH(H33,Kunden!$A$3:$E$3,0)),IF(M33="diverse Lieferanten",INDEX(Lief.!A:E,MATCH(N33,Lief.!A:A,1),MATCH(H33,Lief.!$A$3:$E$3,0)),IF(ISERROR(INDEX(Konten!A:E,MATCH(M33,Konten!A:A,0),MATCH(H33,Konten!$A$3:$E$3,0))),"Konto ?",INDEX(Konten!A:E,MATCH(M33,Konten!A:A,0),MATCH(H33,Konten!$A$3:$E$3,0))))))) ->  | L33: 1600 | P33: 0
C34: 0 | E34: =IF(K34="","",IF(AND(A34+B34>0,H34=""),"USt. ?",IF(OR(K34="USt. ?",K34="Name?"),K34,IF(ISERROR(INDEX(Konten!A:E,MATCH(M34,Konten!A:A,0),MATCH(H34,Konten!$A$3:$E$3,0))),"Konto ?",IF(AND(O34=0,RIGHT(K34,5)*1>=10000),RIGHT(K34,5),K34))))) ->  | K34: =IF(M34="","",IF(AND(A34+B34>0,H34=""),"USt. ?",IF(M34="diverse Kunden",INDEX(Kunden!A:E,MATCH(N34,Kunden!A:A,1),MATCH(H34,Kunden!$A$3:$E$3,0)),IF(M34="diverse Lieferanten",INDEX(Lief.!A:E,MATCH(N34,Lief.!A:A,1),MATCH(H34,Lief.!$A$3:$E$3,0)),IF(ISERROR(INDEX(Konten!A:E,MATCH(M34,Konten!A:A,0),MATCH(H34,Konten!$A$3:$E$3,0))),"Konto ?",INDEX(Konten!A:E,MATCH(M34,Konten!A:A,0),MATCH(H34,Konten!$A$3:$E$3,0))))))) ->  | L34: 1600 | P34: 0
C35: 0 | E35: =IF(K35="","",IF(AND(A35+B35>0,H35=""),"USt. ?",IF(OR(K35="USt. ?",K35="Name?"),K35,IF(ISERROR(INDEX(Konten!A:E,MATCH(M35,Konten!A:A,0),MATCH(H35,Konten!$A$3:$E$3,0))),"Konto ?",IF(AND(O35=0,RIGHT(K35,5)*1>=10000),RIGHT(K35,5),K35))))) ->  | K35: =IF(M35="","",IF(AND(A35+B35>0,H35=""),"USt. ?",IF(M35="diverse Kunden",INDEX(Kunden!A:E,MATCH(N35,Kunden!A:A,1),MATCH(H35,Kunden!$A$3:$E$3,0)),IF(M35="diverse Lieferanten",INDEX(Lief.!A:E,MATCH(N35,Lief.!A:A,1),MATCH(H35,Lief.!$A$3:$E$3,0)),IF(ISERROR(INDEX(Konten!A:E,MATCH(M35,Konten!A:A,0),MATCH(H35,Konten!$A$3:$E$3,0))),"Konto ?",INDEX(Konten!A:E,MATCH(M35,Konten!A:A,0),MATCH(H35,Konten!$A$3:$E$3,0))))))) ->  | L35: 1600 | P35: 0
C36: 0 | E36: =IF(K36="","",IF(AND(A36+B36>0,H36=""),"USt. ?",IF(OR(K36="USt. ?",K36="Name?"),K36,IF(ISERROR(INDEX(Konten!A:E,MATCH(M36,Konten!A:A,0),MATCH(H36,Konten!$A$3:$E$3,0))),"Konto ?",IF(AND(O36=0,RIGHT(K36,5)*1>=10000),RIGHT(K36,5),K36))))) ->  | K36: =IF(M36="","",IF(AND(A36+B36>0,H36=""),"USt. ?",IF(M36="diverse Kunden",INDEX(Kunden!A:E,MATCH(N36,Kunden!A:A,1),MATCH(H36,Kunden!$A$3:$E$3,0)),IF(M36="diverse Lieferanten",INDEX(Lief.!A:E,MATCH(N36,Lief.!A:A,1),MATCH(H36,Lief.!$A$3:$E$3,0)),IF(ISERROR(INDEX(Konten!A:E,MATCH(M36,Konten!A:A,0),MATCH(H36,Konten!$A$3:$E$3,0))),"Konto ?",INDEX(Konten!A:E,MATCH(M36,Konten!A:A,0),MATCH(H36,Konten!$A$3:$E$3,0))))))) ->  | L36: 1600 | P36: 0
C37: 0 | E37: =IF(K37="","",IF(AND(A37+B37>0,H37=""),"USt. ?",IF(OR(K37="USt. ?",K37="Name?"),K37,IF(ISERROR(INDEX(Konten!A:E,MATCH(M37,Konten!A:A,0),MATCH(H37,Konten!$A$3:$E$3,0))),"Konto ?",IF(AND(O37=0,RIGHT(K37,5)*1>=10000),RIGHT(K37,5),K37))))) ->  | K37: =IF(M37="","",IF(AND(A37+B37>0,H37=""),"USt. ?",IF(M37="diverse Kunden",INDEX(Kunden!A:E,MATCH(N37,Kunden!A:A,1),MATCH(H37,Kunden!$A$3:$E$3,0)),IF(M37="diverse Lieferanten",INDEX(Lief.!A:E,MATCH(N37,Lief.!A:A,1),MATCH(H37,Lief.!$A$3:$E$3,0)),IF(ISERROR(INDEX(Konten!A:E,MATCH(M37,Konten!A:A,0),MATCH(H37,Konten!$A$3:$E$3,0))),"Konto ?",INDEX(Konten!A:E,MATCH(M37,Konten!A:A,0),MATCH(H37,Konten!$A$3:$E$3,0))))))) ->  | L37: 1600 | P37: 0
C38: 0 | E38: =IF(K38="","",IF(AND(A38+B38>0,H38=""),"USt. ?",IF(OR(K38="USt. ?",K38="Name?"),K38,IF(ISERROR(INDEX(Konten!A:E,MATCH(M38,Konten!A:A,0),MATCH(H38,Konten!$A$3:$E$3,0))),"Konto ?",IF(AND(O38=0,RIGHT(K38,5)*1>=10000),RIGHT(K38,5),K38))))) ->  | K38: =IF(M38="","",IF(AND(A38+B38>0,H38=""),"USt. ?",IF(M38="diverse Kunden",INDEX(Kunden!A:E,MATCH(N38,Kunden!A:A,1),MATCH(H38,Kunden!$A$3:$E$3,0)),IF(M38="diverse Lieferanten",INDEX(Lief.!A:E,MATCH(N38,Lief.!A:A,1),MATCH(H38,Lief.!$A$3:$E$3,0)),IF(ISERROR(INDEX(Konten!A:E,MATCH(M38,Konten!A:A,0),MATCH(H38,Konten!$A$3:$E$3,0))),"Konto ?",INDEX(Konten!A:E,MATCH(M38,Konten!A:A,0),MATCH(H38,Konten!$A$3:$E$3,0))))))) ->  | L38: 1600 | P38: 0
C39: 0 | E39: =IF(K39="","",IF(AND(A39+B39>0,H39=""),"USt. ?",IF(OR(K39="USt. ?",K39="Name?"),K39,IF(ISERROR(INDEX(Konten!A:E,MATCH(M39,Konten!A:A,0),MATCH(H39,Konten!$A$3:$E$3,0))),"Konto ?",IF(AND(O39=0,RIGHT(K39,5)*1>=10000),RIGHT(K39,5),K39))))) ->  | K39: =IF(M39="","",IF(AND(A39+B39>0,H39=""),"USt. ?",IF(M39="diverse Kunden",INDEX(Kunden!A:E,MATCH(N39,Kunden!A:A,1),MATCH(H39,Kunden!$A$3:$E$3,0)),IF(M39="diverse Lieferanten",INDEX(Lief.!A:E,MATCH(N39,Lief.!A:A,1),MATCH(H39,Lief.!$A$3:$E$3,0)),IF(ISERROR(INDEX(Konten!A:E,MATCH(M39,Konten!A:A,0),MATCH(H39,Konten!$A$3:$E$3,0))),"Konto ?",INDEX(Konten!A:E,MATCH(M39,Konten!A:A,0),MATCH(H39,Konten!$A$3:$E$3,0))))))) ->  | L39: 1600 | P39: 0
C40: 0 | E40: =IF(K40="","",IF(AND(A40+B40>0,H40=""),"USt. ?",IF(OR(K40="USt. ?",K40="Name?"),K40,IF(ISERROR(INDEX(Konten!A:E,MATCH(M40,Konten!A:A,0),MATCH(H40,Konten!$A$3:$E$3,0))),"Konto ?",IF(AND(O40=0,RIGHT(K40,5)*1>=10000),RIGHT(K40,5),K40))))) ->  | K40: =IF(M40="","",IF(AND(A40+B40>0,H40=""),"USt. ?",IF(M40="diverse Kunden",INDEX(Kunden!A:E,MATCH(N40,Kunden!A:A,1),MATCH(H40,Kunden!$A$3:$E$3,0)),IF(M40="diverse Lieferanten",INDEX(Lief.!A:E,MATCH(N40,Lief.!A:A,1),MATCH(H40,Lief.!$A$3:$E$3,0)),IF(ISERROR(INDEX(Konten!A:E,MATCH(M40,Konten!A:A,0),MATCH(H40,Konten!$A$3:$E$3,0))),"Konto ?",INDEX(Konten!A:E,MATCH(M40,Konten!A:A,0),MATCH(H40,Konten!$A$3:$E$3,0))))))) ->  | L40: 1600 | P40: 0
A41: =SUM(A8:A40) -> 0 | B41: =SUM(B8:B40) -> 0 | D41: Summen | M41: Unterschrift:
A42: =D6 -> 0 | B42: =INDIRECT("D"&COUNT(D8:D40)+7) -> 0 | D42: Bestand Anfang / Ende | K42: =MIN(D8:D42) -> 0 | M42: geprüft: | N42: =IF(ROUND(A43-B43,2)<>0,"Kassendifferenz !!!","") -> 
A43: =SUM(A41:A42) -> 0 | B43: =SUM(B41:B42) -> 0 | D43: Kontrollsummen | K43: =MIN('S. 1:S. '!K42) -> 0 | M43: gebucht:
A44: =IF(ROUND(A43-B43,2)<>0,"Kassendifferenz !!!","") -> 

Sheet S. 6
A1: =INDIRECT("'S. "&N3-1&"'!A1") -> 0 | L1: =DATE(YEAR(B3),MONTH(B3),1) -> 2020-06-01 | M1: K a s s e n b u c h | P1: =INDIRECT("'S. "&N3-1&"'!B3") -> 2020-05-31 | Q1: 2 | Y1: =RIGHT(CELL("Dateiname",A1),LEN(CELL("Dateiname",A1))-FIND("]",CELL("Dateiname",A1))) -> S. 6 | Z1: =LEFT(Y1,SEARCH(" ",Y1)) -> S. | AA1: =RIGHT(Y1,LEN(Y1)-SEARCH(" ",Y1)) -> 6
A3: Monat: | B3: =DATE(YEAR(P1),MONTH(P1)+Q1,0) -> 2020-06-30 | J3: ="F"&LARGE(IF(F8:F40<>" ",ROW(F8:F40)),1) -> F8 | K3: =YEAR(L3) -> 2020 | L3: =B3 -> 2020-06-30 | M3: =INDIRECT("'S. "&N3-1&"'!M3") -> 1600 | N3: =IF(ISERROR(P3),1,IF(RIGHT(P3,1)=")",LEFT(RIGHT(P3,7),3)+1,Q3)) -> 6 | P3: =RIGHT(CELL("Dateiname",A1),LEN(CELL("Dateiname",A1))-FIND("]",CELL("Dateiname",A1))) -> S. 6 | Q3: =MID(P3,SEARCH(" ",P3)+1,3)*1 -> 6
K4: =MONTH(L4) -> 6 | L4: =L3 -> 2020-06-30 | N4: =IF(ISERROR(P3),"",IF(AND(RIGHT(P3,2)<>TEXT(N3," #"),RIGHT(P3,2)<>TEXT(N3,"##"),RIGHT(P3,3)<>TEXT(N3,"###")),"Name Tabellenblatt ändern in ' S. "&N3&" ' ","")) -> 
A5: Einnahmen | B5: Ausgaben | C5: Einnahmen | D5: Bestand | E5: Gegen- | F5: Beleg- | G5: Beleg- | H5: USt.- | I5: BU | J5: Gegenkonto | K5: Gegenkonto | L5: Konto | M5: Kontierung | N5: Text | O5: Skonto | P5: Festschreibung
A6: € | B6: € | C6: Ausgaben | D6: =INDIRECT("'S. "&N3-1&"'!B42") -> 0 | E6: konto | F6: Nr. | G6: Datum | H6: Satz | J6: ASCII | K6: ASCII
G7: =DATE(YEAR(B3),MONTH(B3),IF(MONTH(INDIRECT("'S. "&N3-1&"'!B3"))=MONTH(B3),DAY(INDIRECT("'S. "&N3-1&"'!L4")),1)) -> 43983
C8: =A8-B8 -> 0 | D8: =D6+C8 -> 0 | E8: =IF(K8="","",IF(AND(A8+B8>0,H8=""),"USt. ?",IF(OR(K8="USt. ?",K8="Name?"),K8,IF(ISERROR(INDEX(Konten!A:E,MATCH(M8,Konten!A:A,0),MATCH(H8,Konten!$A$3:$E$3,0))),"Konto ?",IF(AND(O8=0,RIGHT(K8,5)*1>=10000),RIGHT(K8,5),K8))))) ->  | F8: =IF(INDIRECT("'S. "&N3-1&"'!A43")=0,1,IF(ROUND(A41+B41,2)=0,INDIRECT("'S. "&N3-1&"'!"&INDIRECT("'S. "&N3-1&"'!J3")),INDIRECT("'S. "&N3-1&"'!"&INDIRECT("'S. "&N3-1&"'!J3"))+1)) -> 1 | I8: =IF(LEN(E8)<6,"",LEFT(E8,LEN(E8)-5)) ->  | J8: =RIGHT(E8,5) ->  | K8: =IF(M8="","",IF(AND(A8+B8>0,H8=""),"USt. ?",IF(M8="diverse Kunden",INDEX(Kunden!A:E,MATCH(N8,Kunden!A:A,1),MATCH(H8,Kunden!$A$3:$E$3,0)),IF(M8="diverse Lieferanten",INDEX(Lief.!A:E,MATCH(N8,Lief.!A:A,1),MATCH(H8,Lief.!$A$3:$E$3,0)),IF(ISERROR(INDEX(Konten!A:E,MATCH(M8,Konten!A:A,0),MATCH(H8,Konten!$A$3:$E$3,0))),"Konto ?",INDEX(Konten!A:E,MATCH(M8,Konten!A:A,0),MATCH(H8,Konten!$A$3:$E$3,0))))))) ->  | L8: =$M$3 -> 1600 | P8: 0
C9: =A9-B9 -> 0 | D9: =IF(ROUND(C9,2)=0,"",D8+C9) ->  | E9: =IF(K9="","",IF(AND(A9+B9>0,H9=""),"USt. ?",IF(OR(K9="USt. ?",K9="Name?"),K9,IF(ISERROR(INDEX(Konten!A:E,MATCH(M9,Konten!A:A,0),MATCH(H9,Konten!$A$3:$E$3,0))),"Konto ?",IF(AND(O9=0,RIGHT(K9,5)*1>=10000),RIGHT(K9,5),K9))))) ->  | F9: =IF(A9+B9=0," ",F8+1) ->  | I9: =IF(LEN(E9)<6,"",LEFT(E9,LEN(E9)-5)) ->  | J9: =RIGHT(E9,5) ->  | K9: =IF(M9="","",IF(AND(A9+B9>0,H9=""),"USt. ?",IF(M9="diverse Kunden",INDEX(Kunden!A:E,MATCH(N9,Kunden!A:A,1),MATCH(H9,Kunden!$A$3:$E$3,0)),IF(M9="diverse Lieferanten",INDEX(Lief.!A:E,MATCH(N9,Lief.!A:A,1),MATCH(H9,Lief.!$A$3:$E$3,0)),IF(ISERROR(INDEX(Konten!A:E,MATCH(M9,Konten!A:A,0),MATCH(H9,Konten!$A$3:$E$3,0))),"Konto ?",INDEX(Konten!A:E,MATCH(M9,Konten!A:A,0),MATCH(H9,Konten!$A$3:$E$3,0))))))) ->  | L9: 1600 | P9: 0
C10: 0 | D10: =IF(ROUND(C10,2)=0,"",D9+C10) ->  | E10: =IF(K10="","",IF(AND(A10+B10>0,H10=""),"USt. ?",IF(OR(K10="USt. ?",K10="Name?"),K10,IF(ISERROR(INDEX(Konten!A:E,MATCH(M10,Konten!A:A,0),MATCH(H10,Konten!$A$3:$E$3,0))),"Konto ?",IF(AND(O10=0,RIGHT(K10,5)*1>=10000),RIGHT(K10,5),K10))))) ->  | K10: =IF(M10="","",IF(AND(A10+B10>0,H10=""),"USt. ?",IF(M10="diverse Kunden",INDEX(Kunden!A:E,MATCH(N10,Kunden!A:A,1),MATCH(H10,Kunden!$A$3:$E$3,0)),IF(M10="diverse Lieferanten",INDEX(Lief.!A:E,MATCH(N10,Lief.!A:A,1),MATCH(H10,Lief.!$A$3:$E$3,0)),IF(ISERROR(INDEX(Konten!A:E,MATCH(M10,Konten!A:A,0),MATCH(H10,Konten!$A$3:$E$3,0))),"Konto ?",INDEX(Konten!A:E,MATCH(M10,Konten!A:A,0),MATCH(H10,Konten!$A$3:$E$3,0))))))) ->  | L10: 1600 | P10: 0
C11: 0 | E11: =IF(K11="","",IF(AND(A11+B11>0,H11=""),"USt. ?",IF(OR(K11="USt. ?",K11="Name?"),K11,IF(ISERROR(INDEX(Konten!A:E,MATCH(M11,Konten!A:A,0),MATCH(H11,Konten!$A$3:$E$3,0))),"Konto ?",IF(AND(O11=0,RIGHT(K11,5)*1>=10000),RIGHT(K11,5),K11))))) ->  | K11: =IF(M11="","",IF(AND(A11+B11>0,H11=""),"USt. ?",IF(M11="diverse Kunden",INDEX(Kunden!A:E,MATCH(N11,Kunden!A:A,1),MATCH(H11,Kunden!$A$3:$E$3,0)),IF(M11="diverse Lieferanten",INDEX(Lief.!A:E,MATCH(N11,Lief.!A:A,1),MATCH(H11,Lief.!$A$3:$E$3,0)),IF(ISERROR(INDEX(Konten!A:E,MATCH(M11,Konten!A:A,0),MATCH(H11,Konten!$A$3:$E$3,0))),"Konto ?",INDEX(Konten!A:E,MATCH(M11,Konten!A:A,0),MATCH(H11,Konten!$A$3:$E$3,0))))))) ->  | L11: 1600 | P11: 0
C12: 0 | E12: =IF(K12="","",IF(AND(A12+B12>0,H12=""),"USt. ?",IF(OR(K12="USt. ?",K12="Name?"),K12,IF(ISERROR(INDEX(Konten!A:E,MATCH(M12,Konten!A:A,0),MATCH(H12,Konten!$A$3:$E$3,0))),"Konto ?",IF(AND(O12=0,RIGHT(K12,5)*1>=10000),RIGHT(K12,5),K12))))) ->  | K12: =IF(M12="","",IF(AND(A12+B12>0,H12=""),"USt. ?",IF(M12="diverse Kunden",INDEX(Kunden!A:E,MATCH(N12,Kunden!A:A,1),MATCH(H12,Kunden!$A$3:$E$3,0)),IF(M12="diverse Lieferanten",INDEX(Lief.!A:E,MATCH(N12,Lief.!A:A,1),MATCH(H12,Lief.!$A$3:$E$3,0)),IF(ISERROR(INDEX(Konten!A:E,MATCH(M12,Konten!A:A,0),MATCH(H12,Konten!$A$3:$E$3,0))),"Konto ?",INDEX(Konten!A:E,MATCH(M12,Konten!A:A,0),MATCH(H12,Konten!$A$3:$E$3,0))))))) ->  | L12: 1600 | P12: 0
C13: 0 | E13: =IF(K13="","",IF(AND(A13+B13>0,H13=""),"USt. ?",IF(OR(K13="USt. ?",K13="Name?"),K13,IF(ISERROR(INDEX(Konten!A:E,MATCH(M13,Konten!A:A,0),MATCH(H13,Konten!$A$3:$E$3,0))),"Konto ?",IF(AND(O13=0,RIGHT(K13,5)*1>=10000),RIGHT(K13,5),K13))))) ->  | K13: =IF(M13="","",IF(AND(A13+B13>0,H13=""),"USt. ?",IF(M13="diverse Kunden",INDEX(Kunden!A:E,MATCH(N13,Kunden!A:A,1),MATCH(H13,Kunden!$A$3:$E$3,0)),IF(M13="diverse Lieferanten",INDEX(Lief.!A:E,MATCH(N13,Lief.!A:A,1),MATCH(H13,Lief.!$A$3:$E$3,0)),IF(ISERROR(INDEX(Konten!A:E,MATCH(M13,Konten!A:A,0),MATCH(H13,Konten!$A$3:$E$3,0))),"Konto ?",INDEX(Konten!A:E,MATCH(M13,Konten!A:A,0),MATCH(H13,Konten!$A$3:$E$3,0))))))) ->  | L13: 1600 | P13: 0
C14: 0 | E14: =IF(K14="","",IF(AND(A14+B14>0,H14=""),"USt. ?",IF(OR(K14="USt. ?",K14="Name?"),K14,IF(ISERROR(INDEX(Konten!A:E,MATCH(M14,Konten!A:A,0),MATCH(H14,Konten!$A$3:$E$3,0))),"Konto ?",IF(AND(O14=0,RIGHT(K14,5)*1>=10000),RIGHT(K14,5),K14))))) ->  | K14: =IF(M14="","",IF(AND(A14+B14>0,H14=""),"USt. ?",IF(M14="diverse Kunden",INDEX(Kunden!A:E,MATCH(N14,Kunden!A:A,1),MATCH(H14,Kunden!$A$3:$E$3,0)),IF(M14="diverse Lieferanten",INDEX(Lief.!A:E,MATCH(N14,Lief.!A:A,1),MATCH(H14,Lief.!$A$3:$E$3,0)),IF(ISERROR(INDEX(Konten!A:E,MATCH(M14,Konten!A:A,0),MATCH(H14,Konten!$A$3:$E$3,0))),"Konto ?",INDEX(Konten!A:E,MATCH(M14,Konten!A:A,0),MATCH(H14,Konten!$A$3:$E$3,0))))))) ->  | L14: 1600 | P14: 0
C15: 0 | E15: =IF(K15="","",IF(AND(A15+B15>0,H15=""),"USt. ?",IF(OR(K15="USt. ?",K15="Name?"),K15,IF(ISERROR(INDEX(Konten!A:E,MATCH(M15,Konten!A:A,0),MATCH(H15,Konten!$A$3:$E$3,0))),"Konto ?",IF(AND(O15=0,RIGHT(K15,5)*1>=10000),RIGHT(K15,5),K15))))) ->  | K15: =IF(M15="","",IF(AND(A15+B15>0,H15=""),"USt. ?",IF(M15="diverse Kunden",INDEX(Kunden!A:E,MATCH(N15,Kunden!A:A,1),MATCH(H15,Kunden!$A$3:$E$3,0)),IF(M15="diverse Lieferanten",INDEX(Lief.!A:E,MATCH(N15,Lief.!A:A,1),MATCH(H15,Lief.!$A$3:$E$3,0)),IF(ISERROR(INDEX(Konten!A:E,MATCH(M15,Konten!A:A,0),MATCH(H15,Konten!$A$3:$E$3,0))),"Konto ?",INDEX(Konten!A:E,MATCH(M15,Konten!A:A,0),MATCH(H15,Konten!$A$3:$E$3,0))))))) ->  | L15: 1600 | P15: 0
C16: 0 | E16: =IF(K16="","",IF(AND(A16+B16>0,H16=""),"USt. ?",IF(OR(K16="USt. ?",K16="Name?"),K16,IF(ISERROR(INDEX(Konten!A:E,MATCH(M16,Konten!A:A,0),MATCH(H16,Konten!$A$3:$E$3,0))),"Konto ?",IF(AND(O16=0,RIGHT(K16,5)*1>=10000),RIGHT(K16,5),K16))))) ->  | K16: =IF(M16="","",IF(AND(A16+B16>0,H16=""),"USt. ?",IF(M16="diverse Kunden",INDEX(Kunden!A:E,MATCH(N16,Kunden!A:A,1),MATCH(H16,Kunden!$A$3:$E$3,0)),IF(M16="diverse Lieferanten",INDEX(Lief.!A:E,MATCH(N16,Lief.!A:A,1),MATCH(H16,Lief.!$A$3:$E$3,0)),IF(ISERROR(INDEX(Konten!A:E,MATCH(M16,Konten!A:A,0),MATCH(H16,Konten!$A$3:$E$3,0))),"Konto ?",INDEX(Konten!A:E,MATCH(M16,Konten!A:A,0),MATCH(H16,Konten!$A$3:$E$3,0))))))) ->  | L16: 1600 | P16: 0
C17: 0 | E17: =IF(K17="","",IF(AND(A17+B17>0,H17=""),"USt. ?",IF(OR(K17="USt. ?",K17="Name?"),K17,IF(ISERROR(INDEX(Konten!A:E,MATCH(M17,Konten!A:A,0),MATCH(H17,Konten!$A$3:$E$3,0))),"Konto ?",IF(AND(O17=0,RIGHT(K17,5)*1>=10000),RIGHT(K17,5),K17))))) ->  | K17: =IF(M17="","",IF(AND(A17+B17>0,H17=""),"USt. ?",IF(M17="diverse Kunden",INDEX(Kunden!A:E,MATCH(N17,Kunden!A:A,1),MATCH(H17,Kunden!$A$3:$E$3,0)),IF(M17="diverse Lieferanten",INDEX(Lief.!A:E,MATCH(N17,Lief.!A:A,1),MATCH(H17,Lief.!$A$3:$E$3,0)),IF(ISERROR(INDEX(Konten!A:E,MATCH(M17,Konten!A:A,0),MATCH(H17,Konten!$A$3:$E$3,0))),"Konto ?",INDEX(Konten!A:E,MATCH(M17,Konten!A:A,0),MATCH(H17,Konten!$A$3:$E$3,0))))))) ->  | L17: 1600 | P17: 0
C18: 0 | E18: =IF(K18="","",IF(AND(A18+B18>0,H18=""),"USt. ?",IF(OR(K18="USt. ?",K18="Name?"),K18,IF(ISERROR(INDEX(Konten!A:E,MATCH(M18,Konten!A:A,0),MATCH(H18,Konten!$A$3:$E$3,0))),"Konto ?",IF(AND(O18=0,RIGHT(K18,5)*1>=10000),RIGHT(K18,5),K18))))) ->  | K18: =IF(M18="","",IF(AND(A18+B18>0,H18=""),"USt. ?",IF(M18="diverse Kunden",INDEX(Kunden!A:E,MATCH(N18,Kunden!A:A,1),MATCH(H18,Kunden!$A$3:$E$3,0)),IF(M18="diverse Lieferanten",INDEX(Lief.!A:E,MATCH(N18,Lief.!A:A,1),MATCH(H18,Lief.!$A$3:$E$3,0)),IF(ISERROR(INDEX(Konten!A:E,MATCH(M18,Konten!A:A,0),MATCH(H18,Konten!$A$3:$E$3,0))),"Konto ?",INDEX(Konten!A:E,MATCH(M18,Konten!A:A,0),MATCH(H18,Konten!$A$3:$E$3,0))))))) ->  | L18: 1600 | P18: 0
C19: 0 | E19: =IF(K19="","",IF(AND(A19+B19>0,H19=""),"USt. ?",IF(OR(K19="USt. ?",K19="Name?"),K19,IF(ISERROR(INDEX(Konten!A:E,MATCH(M19,Konten!A:A,0),MATCH(H19,Konten!$A$3:$E$3,0))),"Konto ?",IF(AND(O19=0,RIGHT(K19,5)*1>=10000),RIGHT(K19,5),K19))))) ->  | K19: =IF(M19="","",IF(AND(A19+B19>0,H19=""),"USt. ?",IF(M19="diverse Kunden",INDEX(Kunden!A:E,MATCH(N19,Kunden!A:A,1),MATCH(H19,Kunden!$A$3:$E$3,0)),IF(M19="diverse Lieferanten",INDEX(Lief.!A:E,MATCH(N19,Lief.!A:A,1),MATCH(H19,Lief.!$A$3:$E$3,0)),IF(ISERROR(INDEX(Konten!A:E,MATCH(M19,Konten!A:A,0),MATCH(H19,Konten!$A$3:$E$3,0))),"Konto ?",INDEX(Konten!A:E,MATCH(M19,Konten!A:A,0),MATCH(H19,Konten!$A$3:$E$3,0))))))) ->  | L19: 1600 | P19: 0
C20: 0 | E20: =IF(K20="","",IF(AND(A20+B20>0,H20=""),"USt. ?",IF(OR(K20="USt. ?",K20="Name?"),K20,IF(ISERROR(INDEX(Konten!A:E,MATCH(M20,Konten!A:A,0),MATCH(H20,Konten!$A$3:$E$3,0))),"Konto ?",IF(AND(O20=0,RIGHT(K20,5)*1>=10000),RIGHT(K20,5),K20))))) ->  | K20: =IF(M20="","",IF(AND(A20+B20>0,H20=""),"USt. ?",IF(M20="diverse Kunden",INDEX(Kunden!A:E,MATCH(N20,Kunden!A:A,1),MATCH(H20,Kunden!$A$3:$E$3,0)),IF(M20="diverse Lieferanten",INDEX(Lief.!A:E,MATCH(N20,Lief.!A:A,1),MATCH(H20,Lief.!$A$3:$E$3,0)),IF(ISERROR(INDEX(Konten!A:E,MATCH(M20,Konten!A:A,0),MATCH(H20,Konten!$A$3:$E$3,0))),"Konto ?",INDEX(Konten!A:E,MATCH(M20,Konten!A:A,0),MATCH(H20,Konten!$A$3:$E$3,0))))))) ->  | L20: 1600 | P20: 0
C21: 0 | E21: =IF(K21="","",IF(AND(A21+B21>0,H21=""),"USt. ?",IF(OR(K21="USt. ?",K21="Name?"),K21,IF(ISERROR(INDEX(Konten!A:E,MATCH(M21,Konten!A:A,0),MATCH(H21,Konten!$A$3:$E$3,0))),"Konto ?",IF(AND(O21=0,RIGHT(K21,5)*1>=10000),RIGHT(K21,5),K21))))) ->  | K21: =IF(M21="","",IF(AND(A21+B21>0,H21=""),"USt. ?",IF(M21="diverse Kunden",INDEX(Kunden!A:E,MATCH(N21,Kunden!A:A,1),MATCH(H21,Kunden!$A$3:$E$3,0)),IF(M21="diverse Lieferanten",INDEX(Lief.!A:E,MATCH(N21,Lief.!A:A,1),MATCH(H21,Lief.!$A$3:$E$3,0)),IF(ISERROR(INDEX(Konten!A:E,MATCH(M21,Konten!A:A,0),MATCH(H21,Konten!$A$3:$E$3,0))),"Konto ?",INDEX(Konten!A:E,MATCH(M21,Konten!A:A,0),MATCH(H21,Konten!$A$3:$E$3,0))))))) ->  | L21: 1600 | P21: 0
C22: 0 | E22: =IF(K22="","",IF(AND(A22+B22>0,H22=""),"USt. ?",IF(OR(K22="USt. ?",K22="Name?"),K22,IF(ISERROR(INDEX(Konten!A:E,MATCH(M22,Konten!A:A,0),MATCH(H22,Konten!$A$3:$E$3,0))),"Konto ?",IF(AND(O22=0,RIGHT(K22,5)*1>=10000),RIGHT(K22,5),K22))))) ->  | K22: =IF(M22="","",IF(AND(A22+B22>0,H22=""),"USt. ?",IF(M22="diverse Kunden",INDEX(Kunden!A:E,MATCH(N22,Kunden!A:A,1),MATCH(H22,Kunden!$A$3:$E$3,0)),IF(M22="diverse Lieferanten",INDEX(Lief.!A:E,MATCH(N22,Lief.!A:A,1),MATCH(H22,Lief.!$A$3:$E$3,0)),IF(ISERROR(INDEX(Konten!A:E,MATCH(M22,Konten!A:A,0),MATCH(H22,Konten!$A$3:$E$3,0))),"Konto ?",INDEX(Konten!A:E,MATCH(M22,Konten!A:A,0),MATCH(H22,Konten!$A$3:$E$3,0))))))) ->  | L22: 1600 | P22: 0
C23: 0 | E23: =IF(K23="","",IF(AND(A23+B23>0,H23=""),"USt. ?",IF(OR(K23="USt. ?",K23="Name?"),K23,IF(ISERROR(INDEX(Konten!A:E,MATCH(M23,Konten!A:A,0),MATCH(H23,Konten!$A$3:$E$3,0))),"Konto ?",IF(AND(O23=0,RIGHT(K23,5)*1>=10000),RIGHT(K23,5),K23))))) ->  | K23: =IF(M23="","",IF(AND(A23+B23>0,H23=""),"USt. ?",IF(M23="diverse Kunden",INDEX(Kunden!A:E,MATCH(N23,Kunden!A:A,1),MATCH(H23,Kunden!$A$3:$E$3,0)),IF(M23="diverse Lieferanten",INDEX(Lief.!A:E,MATCH(N23,Lief.!A:A,1),MATCH(H23,Lief.!$A$3:$E$3,0)),IF(ISERROR(INDEX(Konten!A:E,MATCH(M23,Konten!A:A,0),MATCH(H23,Konten!$A$3:$E$3,0))),"Konto ?",INDEX(Konten!A:E,MATCH(M23,Konten!A:A,0),MATCH(H23,Konten!$A$3:$E$3,0))))))) ->  | L23: 1600 | P23: 0
C24: 0 | E24: =IF(K24="","",IF(AND(A24+B24>0,H24=""),"USt. ?",IF(OR(K24="USt. ?",K24="Name?"),K24,IF(ISERROR(INDEX(Konten!A:E,MATCH(M24,Konten!A:A,0),MATCH(H24,Konten!$A$3:$E$3,0))),"Konto ?",IF(AND(O24=0,RIGHT(K24,5)*1>=10000),RIGHT(K24,5),K24))))) ->  | K24: =IF(M24="","",IF(AND(A24+B24>0,H24=""),"USt. ?",IF(M24="diverse Kunden",INDEX(Kunden!A:E,MATCH(N24,Kunden!A:A,1),MATCH(H24,Kunden!$A$3:$E$3,0)),IF(M24="diverse Lieferanten",INDEX(Lief.!A:E,MATCH(N24,Lief.!A:A,1),MATCH(H24,Lief.!$A$3:$E$3,0)),IF(ISERROR(INDEX(Konten!A:E,MATCH(M24,Konten!A:A,0),MATCH(H24,Konten!$A$3:$E$3,0))),"Konto ?",INDEX(Konten!A:E,MATCH(M24,Konten!A:A,0),MATCH(H24,Konten!$A$3:$E$3,0))))))) ->  | L24: 1600 | P24: 0
C25: 0 | E25: =IF(K25="","",IF(AND(A25+B25>0,H25=""),"USt. ?",IF(OR(K25="USt. ?",K25="Name?"),K25,IF(ISERROR(INDEX(Konten!A:E,MATCH(M25,Konten!A:A,0),MATCH(H25,Konten!$A$3:$E$3,0))),"Konto ?",IF(AND(O25=0,RIGHT(K25,5)*1>=10000),RIGHT(K25,5),K25))))) ->  | K25: =IF(M25="","",IF(AND(A25+B25>0,H25=""),"USt. ?",IF(M25="diverse Kunden",INDEX(Kunden!A:E,MATCH(N25,Kunden!A:A,1),MATCH(H25,Kunden!$A$3:$E$3,0)),IF(M25="diverse Lieferanten",INDEX(Lief.!A:E,MATCH(N25,Lief.!A:A,1),MATCH(H25,Lief.!$A$3:$E$3,0)),IF(ISERROR(INDEX(Konten!A:E,MATCH(M25,Konten!A:A,0),MATCH(H25,Konten!$A$3:$E$3,0))),"Konto ?",INDEX(Konten!A:E,MATCH(M25,Konten!A:A,0),MATCH(H25,Konten!$A$3:$E$3,0))))))) ->  | L25: 1600 | P25: 0
C26: 0 | E26: =IF(K26="","",IF(AND(A26+B26>0,H26=""),"USt. ?",IF(OR(K26="USt. ?",K26="Name?"),K26,IF(ISERROR(INDEX(Konten!A:E,MATCH(M26,Konten!A:A,0),MATCH(H26,Konten!$A$3:$E$3,0))),"Konto ?",IF(AND(O26=0,RIGHT(K26,5)*1>=10000),RIGHT(K26,5),K26))))) ->  | K26: =IF(M26="","",IF(AND(A26+B26>0,H26=""),"USt. ?",IF(M26="diverse Kunden",INDEX(Kunden!A:E,MATCH(N26,Kunden!A:A,1),MATCH(H26,Kunden!$A$3:$E$3,0)),IF(M26="diverse Lieferanten",INDEX(Lief.!A:E,MATCH(N26,Lief.!A:A,1),MATCH(H26,Lief.!$A$3:$E$3,0)),IF(ISERROR(INDEX(Konten!A:E,MATCH(M26,Konten!A:A,0),MATCH(H26,Konten!$A$3:$E$3,0))),"Konto ?",INDEX(Konten!A:E,MATCH(M26,Konten!A:A,0),MATCH(H26,Konten!$A$3:$E$3,0))))))) ->  | L26: 1600 | P26: 0
C27: 0 | E27: =IF(K27="","",IF(AND(A27+B27>0,H27=""),"USt. ?",IF(OR(K27="USt. ?",K27="Name?"),K27,IF(ISERROR(INDEX(Konten!A:E,MATCH(M27,Konten!A:A,0),MATCH(H27,Konten!$A$3:$E$3,0))),"Konto ?",IF(AND(O27=0,RIGHT(K27,5)*1>=10000),RIGHT(K27,5),K27))))) ->  | K27: =IF(M27="","",IF(AND(A27+B27>0,H27=""),"USt. ?",IF(M27="diverse Kunden",INDEX(Kunden!A:E,MATCH(N27,Kunden!A:A,1),MATCH(H27,Kunden!$A$3:$E$3,0)),IF(M27="diverse Lieferanten",INDEX(Lief.!A:E,MATCH(N27,Lief.!A:A,1),MATCH(H27,Lief.!$A$3:$E$3,0)),IF(ISERROR(INDEX(Konten!A:E,MATCH(M27,Konten!A:A,0),MATCH(H27,Konten!$A$3:$E$3,0))),"Konto ?",INDEX(Konten!A:E,MATCH(M27,Konten!A:A,0),MATCH(H27,Konten!$A$3:$E$3,0))))))) ->  | L27: 1600 | P27: 0
C28: 0 | E28: =IF(K28="","",IF(AND(A28+B28>0,H28=""),"USt. ?",IF(OR(K28="USt. ?",K28="Name?"),K28,IF(ISERROR(INDEX(Konten!A:E,MATCH(M28,Konten!A:A,0),MATCH(H28,Konten!$A$3:$E$3,0))),"Konto ?",IF(AND(O28=0,RIGHT(K28,5)*1>=10000),RIGHT(K28,5),K28))))) ->  | K28: =IF(M28="","",IF(AND(A28+B28>0,H28=""),"USt. ?",IF(M28="diverse Kunden",INDEX(Kunden!A:E,MATCH(N28,Kunden!A:A,1),MATCH(H28,Kunden!$A$3:$E$3,0)),IF(M28="diverse Lieferanten",INDEX(Lief.!A:E,MATCH(N28,Lief.!A:A,1),MATCH(H28,Lief.!$A$3:$E$3,0)),IF(ISERROR(INDEX(Konten!A:E,MATCH(M28,Konten!A:A,0),MATCH(H28,Konten!$A$3:$E$3,0))),"Konto ?",INDEX(Konten!A:E,MATCH(M28,Konten!A:A,0),MATCH(H28,Konten!$A$3:$E$3,0))))))) ->  | L28: 1600 | P28: 0
C29: 0 | E29: =IF(K29="","",IF(AND(A29+B29>0,H29=""),"USt. ?",IF(OR(K29="USt. ?",K29="Name?"),K29,IF(ISERROR(INDEX(Konten!A:E,MATCH(M29,Konten!A:A,0),MATCH(H29,Konten!$A$3:$E$3,0))),"Konto ?",IF(AND(O29=0,RIGHT(K29,5)*1>=10000),RIGHT(K29,5),K29))))) ->  | K29: =IF(M29="","",IF(AND(A29+B29>0,H29=""),"USt. ?",IF(M29="diverse Kunden",INDEX(Kunden!A:E,MATCH(N29,Kunden!A:A,1),MATCH(H29,Kunden!$A$3:$E$3,0)),IF(M29="diverse Lieferanten",INDEX(Lief.!A:E,MATCH(N29,Lief.!A:A,1),MATCH(H29,Lief.!$A$3:$E$3,0)),IF(ISERROR(INDEX(Konten!A:E,MATCH(M29,Konten!A:A,0),MATCH(H29,Konten!$A$3:$E$3,0))),"Konto ?",INDEX(Konten!A:E,MATCH(M29,Konten!A:A,0),MATCH(H29,Konten!$A$3:$E$3,0))))))) ->  | L29: 1600 | P29: 0
C30: 0 | E30: =IF(K30="","",IF(AND(A30+B30>0,H30=""),"USt. ?",IF(OR(K30="USt. ?",K30="Name?"),K30,IF(ISERROR(INDEX(Konten!A:E,MATCH(M30,Konten!A:A,0),MATCH(H30,Konten!$A$3:$E$3,0))),"Konto ?",IF(AND(O30=0,RIGHT(K30,5)*1>=10000),RIGHT(K30,5),K30))))) ->  | K30: =IF(M30="","",IF(AND(A30+B30>0,H30=""),"USt. ?",IF(M30="diverse Kunden",INDEX(Kunden!A:E,MATCH(N30,Kunden!A:A,1),MATCH(H30,Kunden!$A$3:$E$3,0)),IF(M30="diverse Lieferanten",INDEX(Lief.!A:E,MATCH(N30,Lief.!A:A,1),MATCH(H30,Lief.!$A$3:$E$3,0)),IF(ISERROR(INDEX(Konten!A:E,MATCH(M30,Konten!A:A,0),MATCH(H30,Konten!$A$3:$E$3,0))),"Konto ?",INDEX(Konten!A:E,MATCH(M30,Konten!A:A,0),MATCH(H30,Konten!$A$3:$E$3,0))))))) ->  | L30: 1600 | P30: 0
C31: 0 | E31: =IF(K31="","",IF(AND(A31+B31>0,H31=""),"USt. ?",IF(OR(K31="USt. ?",K31="Name?"),K31,IF(ISERROR(INDEX(Konten!A:E,MATCH(M31,Konten!A:A,0),MATCH(H31,Konten!$A$3:$E$3,0))),"Konto ?",IF(AND(O31=0,RIGHT(K31,5)*1>=10000),RIGHT(K31,5),K31))))) ->  | K31: =IF(M31="","",IF(AND(A31+B31>0,H31=""),"USt. ?",IF(M31="diverse Kunden",INDEX(Kunden!A:E,MATCH(N31,Kunden!A:A,1),MATCH(H31,Kunden!$A$3:$E$3,0)),IF(M31="diverse Lieferanten",INDEX(Lief.!A:E,MATCH(N31,Lief.!A:A,1),MATCH(H31,Lief.!$A$3:$E$3,0)),IF(ISERROR(INDEX(Konten!A:E,MATCH(M31,Konten!A:A,0),MATCH(H31,Konten!$A$3:$E$3,0))),"Konto ?",INDEX(Konten!A:E,MATCH(M31,Konten!A:A,0),MATCH(H31,Konten!$A$3:$E$3,0))))))) ->  | L31: 1600 | P31: 0
C32: 0 | E32: =IF(K32="","",IF(AND(A32+B32>0,H32=""),"USt. ?",IF(OR(K32="USt. ?",K32="Name?"),K32,IF(ISERROR(INDEX(Konten!A:E,MATCH(M32,Konten!A:A,0),MATCH(H32,Konten!$A$3:$E$3,0))),"Konto ?",IF(AND(O32=0,RIGHT(K32,5)*1>=10000),RIGHT(K32,5),K32))))) ->  | K32: =IF(M32="","",IF(AND(A32+B32>0,H32=""),"USt. ?",IF(M32="diverse Kunden",INDEX(Kunden!A:E,MATCH(N32,Kunden!A:A,1),MATCH(H32,Kunden!$A$3:$E$3,0)),IF(M32="diverse Lieferanten",INDEX(Lief.!A:E,MATCH(N32,Lief.!A:A,1),MATCH(H32,Lief.!$A$3:$E$3,0)),IF(ISERROR(INDEX(Konten!A:E,MATCH(M32,Konten!A:A,0),MATCH(H32,Konten!$A$3:$E$3,0))),"Konto ?",INDEX(Konten!A:E,MATCH(M32,Konten!A:A,0),MATCH(H32,Konten!$A$3:$E$3,0))))))) ->  | L32: 1600 | P32: 0
C33: 0 | E33: =IF(K33="","",IF(AND(A33+B33>0,H33=""),"USt. ?",IF(OR(K33="USt. ?",K33="Name?"),K33,IF(ISERROR(INDEX(Konten!A:E,MATCH(M33,Konten!A:A,0),MATCH(H33,Konten!$A$3:$E$3,0))),"Konto ?",IF(AND(O33=0,RIGHT(K33,5)*1>=10000),RIGHT(K33,5),K33))))) ->  | K33: =IF(M33="","",IF(AND(A33+B33>0,H33=""),"USt. ?",IF(M33="diverse Kunden",INDEX(Kunden!A:E,MATCH(N33,Kunden!A:A,1),MATCH(H33,Kunden!$A$3:$E$3,0)),IF(M33="diverse Lieferanten",INDEX(Lief.!A:E,MATCH(N33,Lief.!A:A,1),MATCH(H33,Lief.!$A$3:$E$3,0)),IF(ISERROR(INDEX(Konten!A:E,MATCH(M33,Konten!A:A,0),MATCH(H33,Konten!$A$3:$E$3,0))),"Konto ?",INDEX(Konten!A:E,MATCH(M33,Konten!A:A,0),MATCH(H33,Konten!$A$3:$E$3,0))))))) ->  | L33: 1600 | P33: 0
C34: 0 | E34: =IF(K34="","",IF(AND(A34+B34>0,H34=""),"USt. ?",IF(OR(K34="USt. ?",K34="Name?"),K34,IF(ISERROR(INDEX(Konten!A:E,MATCH(M34,Konten!A:A,0),MATCH(H34,Konten!$A$3:$E$3,0))),"Konto ?",IF(AND(O34=0,RIGHT(K34,5)*1>=10000),RIGHT(K34,5),K34))))) ->  | K34: =IF(M34="","",IF(AND(A34+B34>0,H34=""),"USt. ?",IF(M34="diverse Kunden",INDEX(Kunden!A:E,MATCH(N34,Kunden!A:A,1),MATCH(H34,Kunden!$A$3:$E$3,0)),IF(M34="diverse Lieferanten",INDEX(Lief.!A:E,MATCH(N34,Lief.!A:A,1),MATCH(H34,Lief.!$A$3:$E$3,0)),IF(ISERROR(INDEX(Konten!A:E,MATCH(M34,Konten!A:A,0),MATCH(H34,Konten!$A$3:$E$3,0))),"Konto ?",INDEX(Konten!A:E,MATCH(M34,Konten!A:A,0),MATCH(H34,Konten!$A$3:$E$3,0))))))) ->  | L34: 1600 | P34: 0
C35: 0 | E35: =IF(K35="","",IF(AND(A35+B35>0,H35=""),"USt. ?",IF(OR(K35="USt. ?",K35="Name?"),K35,IF(ISERROR(INDEX(Konten!A:E,MATCH(M35,Konten!A:A,0),MATCH(H35,Konten!$A$3:$E$3,0))),"Konto ?",IF(AND(O35=0,RIGHT(K35,5)*1>=10000),RIGHT(K35,5),K35))))) ->  | K35: =IF(M35="","",IF(AND(A35+B35>0,H35=""),"USt. ?",IF(M35="diverse Kunden",INDEX(Kunden!A:E,MATCH(N35,Kunden!A:A,1),MATCH(H35,Kunden!$A$3:$E$3,0)),IF(M35="diverse Lieferanten",INDEX(Lief.!A:E,MATCH(N35,Lief.!A:A,1),MATCH(H35,Lief.!$A$3:$E$3,0)),IF(ISERROR(INDEX(Konten!A:E,MATCH(M35,Konten!A:A,0),MATCH(H35,Konten!$A$3:$E$3,0))),"Konto ?",INDEX(Konten!A:E,MATCH(M35,Konten!A:A,0),MATCH(H35,Konten!$A$3:$E$3,0))))))) ->  | L35: 1600 | P35: 0
C36: 0 | E36: =IF(K36="","",IF(AND(A36+B36>0,H36=""),"USt. ?",IF(OR(K36="USt. ?",K36="Name?"),K36,IF(ISERROR(INDEX(Konten!A:E,MATCH(M36,Konten!A:A,0),MATCH(H36,Konten!$A$3:$E$3,0))),"Konto ?",IF(AND(O36=0,RIGHT(K36,5)*1>=10000),RIGHT(K36,5),K36))))) ->  | K36: =IF(M36="","",IF(AND(A36+B36>0,H36=""),"USt. ?",IF(M36="diverse Kunden",INDEX(Kunden!A:E,MATCH(N36,Kunden!A:A,1),MATCH(H36,Kunden!$A$3:$E$3,0)),IF(M36="diverse Lieferanten",INDEX(Lief.!A:E,MATCH(N36,Lief.!A:A,1),MATCH(H36,Lief.!$A$3:$E$3,0)),IF(ISERROR(INDEX(Konten!A:E,MATCH(M36,Konten!A:A,0),MATCH(H36,Konten!$A$3:$E$3,0))),"Konto ?",INDEX(Konten!A:E,MATCH(M36,Konten!A:A,0),MATCH(H36,Konten!$A$3:$E$3,0))))))) ->  | L36: 1600 | P36: 0
C37: 0 | E37: =IF(K37="","",IF(AND(A37+B37>0,H37=""),"USt. ?",IF(OR(K37="USt. ?",K37="Name?"),K37,IF(ISERROR(INDEX(Konten!A:E,MATCH(M37,Konten!A:A,0),MATCH(H37,Konten!$A$3:$E$3,0))),"Konto ?",IF(AND(O37=0,RIGHT(K37,5)*1>=10000),RIGHT(K37,5),K37))))) ->  | K37: =IF(M37="","",IF(AND(A37+B37>0,H37=""),"USt. ?",IF(M37="diverse Kunden",INDEX(Kunden!A:E,MATCH(N37,Kunden!A:A,1),MATCH(H37,Kunden!$A$3:$E$3,0)),IF(M37="diverse Lieferanten",INDEX(Lief.!A:E,MATCH(N37,Lief.!A:A,1),MATCH(H37,Lief.!$A$3:$E$3,0)),IF(ISERROR(INDEX(Konten!A:E,MATCH(M37,Konten!A:A,0),MATCH(H37,Konten!$A$3:$E$3,0))),"Konto ?",INDEX(Konten!A:E,MATCH(M37,Konten!A:A,0),MATCH(H37,Konten!$A$3:$E$3,0))))))) ->  | L37: 1600 | P37: 0
C38: 0 | E38: =IF(K38="","",IF(AND(A38+B38>0,H38=""),"USt. ?",IF(OR(K38="USt. ?",K38="Name?"),K38,IF(ISERROR(INDEX(Konten!A:E,MATCH(M38,Konten!A:A,0),MATCH(H38,Konten!$A$3:$E$3,0))),"Konto ?",IF(AND(O38=0,RIGHT(K38,5)*1>=10000),RIGHT(K38,5),K38))))) ->  | K38: =IF(M38="","",IF(AND(A38+B38>0,H38=""),"USt. ?",IF(M38="diverse Kunden",INDEX(Kunden!A:E,MATCH(N38,Kunden!A:A,1),MATCH(H38,Kunden!$A$3:$E$3,0)),IF(M38="diverse Lieferanten",INDEX(Lief.!A:E,MATCH(N38,Lief.!A:A,1),MATCH(H38,Lief.!$A$3:$E$3,0)),IF(ISERROR(INDEX(Konten!A:E,MATCH(M38,Konten!A:A,0),MATCH(H38,Konten!$A$3:$E$3,0))),"Konto ?",INDEX(Konten!A:E,MATCH(M38,Konten!A:A,0),MATCH(H38,Konten!$A$3:$E$3,0))))))) ->  | L38: 1600 | P38: 0
C39: 0 | E39: =IF(K39="","",IF(AND(A39+B39>0,H39=""),"USt. ?",IF(OR(K39="USt. ?",K39="Name?"),K39,IF(ISERROR(INDEX(Konten!A:E,MATCH(M39,Konten!A:A,0),MATCH(H39,Konten!$A$3:$E$3,0))),"Konto ?",IF(AND(O39=0,RIGHT(K39,5)*1>=10000),RIGHT(K39,5),K39))))) ->  | K39: =IF(M39="","",IF(AND(A39+B39>0,H39=""),"USt. ?",IF(M39="diverse Kunden",INDEX(Kunden!A:E,MATCH(N39,Kunden!A:A,1),MATCH(H39,Kunden!$A$3:$E$3,0)),IF(M39="diverse Lieferanten",INDEX(Lief.!A:E,MATCH(N39,Lief.!A:A,1),MATCH(H39,Lief.!$A$3:$E$3,0)),IF(ISERROR(INDEX(Konten!A:E,MATCH(M39,Konten!A:A,0),MATCH(H39,Konten!$A$3:$E$3,0))),"Konto ?",INDEX(Konten!A:E,MATCH(M39,Konten!A:A,0),MATCH(H39,Konten!$A$3:$E$3,0))))))) ->  | L39: 1600 | P39: 0
C40: 0 | E40: =IF(K40="","",IF(AND(A40+B40>0,H40=""),"USt. ?",IF(OR(K40="USt. ?",K40="Name?"),K40,IF(ISERROR(INDEX(Konten!A:E,MATCH(M40,Konten!A:A,0),MATCH(H40,Konten!$A$3:$E$3,0))),"Konto ?",IF(AND(O40=0,RIGHT(K40,5)*1>=10000),RIGHT(K40,5),K40))))) ->  | K40: =IF(M40="","",IF(AND(A40+B40>0,H40=""),"USt. ?",IF(M40="diverse Kunden",INDEX(Kunden!A:E,MATCH(N40,Kunden!A:A,1),MATCH(H40,Kunden!$A$3:$E$3,0)),IF(M40="diverse Lieferanten",INDEX(Lief.!A:E,MATCH(N40,Lief.!A:A,1),MATCH(H40,Lief.!$A$3:$E$3,0)),IF(ISERROR(INDEX(Konten!A:E,MATCH(M40,Konten!A:A,0),MATCH(H40,Konten!$A$3:$E$3,0))),"Konto ?",INDEX(Konten!A:E,MATCH(M40,Konten!A:A,0),MATCH(H40,Konten!$A$3:$E$3,0))))))) ->  | L40: 1600 | P40: 0
A41: =SUM(A8:A40) -> 0 | B41: =SUM(B8:B40) -> 0 | D41: Summen | M41: Unterschrift:
A42: =D6 -> 0 | B42: =INDIRECT("D"&COUNT(D8:D40)+7) -> 0 | D42: Bestand Anfang / Ende | K42: =MIN(D8:D42) -> 0 | M42: geprüft: | N42: =IF(ROUND(A43-B43,2)<>0,"Kassendifferenz !!!","") -> 
A43: =SUM(A41:A42) -> 0 | B43: =SUM(B41:B42) -> 0 | D43: Kontrollsummen | K43: =MIN('S. 1:S. '!K42) -> 0 | M43: gebucht:
A44: =IF(ROUND(A43-B43,2)<>0,"Kassendifferenz !!!","") -> 

Sheet S. 7
A1: =INDIRECT("'S. "&N3-1&"'!A1") -> 0 | L1: =DATE(YEAR(B3),MONTH(B3),1) -> 2020-07-01 | M1: K a s s e n b u c h | P1: =INDIRECT("'S. "&N3-1&"'!B3") -> 2020-06-30 | Q1: 2 | Y1: =RIGHT(CELL("Dateiname",A1),LEN(CELL("Dateiname",A1))-FIND("]",CELL("Dateiname",A1))) -> S. 7 | Z1: =LEFT(Y1,SEARCH(" ",Y1)) -> S. | AA1: =RIGHT(Y1,LEN(Y1)-SEARCH(" ",Y1)) -> 7
A3: Monat: | B3: =DATE(YEAR(P1),MONTH(P1)+Q1,0) -> 2020-07-31 | J3: ="F"&LARGE(IF(F8:F40<>" ",ROW(F8:F40)),1) -> F8 | K3: =YEAR(L3) -> 2020 | L3: =B3 -> 2020-07-31 | M3: =INDIRECT("'S. "&N3-1&"'!M3") -> 1600 | N3: =IF(ISERROR(P3),1,IF(RIGHT(P3,1)=")",LEFT(RIGHT(P3,7),3)+1,Q3)) -> 7 | P3: =RIGHT(CELL("Dateiname",A1),LEN(CELL("Dateiname",A1))-FIND("]",CELL("Dateiname",A1))) -> S. 7 | Q3: =MID(P3,SEARCH(" ",P3)+1,3)*1 -> 7
K4: =MONTH(L4) -> 7 | L4: =L3 -> 2020-07-31 | N4: =IF(ISERROR(P3),"",IF(AND(RIGHT(P3,2)<>TEXT(N3," #"),RIGHT(P3,2)<>TEXT(N3,"##"),RIGHT(P3,3)<>TEXT(N3,"###")),"Name Tabellenblatt ändern in ' S. "&N3&" ' ","")) -> 
A5: Einnahmen | B5: Ausgaben | C5: Einnahmen | D5: Bestand | E5: Gegen- | F5: Beleg- | G5: Beleg- | H5: USt.- | I5: BU | J5: Gegenkonto | K5: Gegenkonto | L5: Konto | M5: Kontierung | N5: Text | O5: Skonto | P5: Festschreibung
A6: € | B6: € | C6: Ausgaben | D6: =INDIRECT("'S. "&N3-1&"'!B42") -> 0 | E6: konto | F6: Nr. | G6: Datum | H6: Satz | J6: ASCII | K6: ASCII
G7: =DATE(YEAR(B3),MONTH(B3),IF(MONTH(INDIRECT("'S. "&N3-1&"'!B3"))=MONTH(B3),DAY(INDIRECT("'S. "&N3-1&"'!L4")),1)) -> 44013
C8: =A8-B8 -> 0 | D8: =D6+C8 -> 0 | E8: =IF(K8="","",IF(AND(A8+B8>0,H8=""),"USt. ?",IF(OR(K8="USt. ?",K8="Name?"),K8,IF(ISERROR(INDEX(Konten!A:E,MATCH(M8,Konten!A:A,0),MATCH(H8,Konten!$A$3:$E$3,0))),"Konto ?",IF(AND(O8=0,RIGHT(K8,5)*1>=10000),RIGHT(K8,5),K8))))) ->  | F8: =IF(INDIRECT("'S. "&N3-1&"'!A43")=0,1,IF(ROUND(A41+B41,2)=0,INDIRECT("'S. "&N3-1&"'!"&INDIRECT("'S. "&N3-1&"'!J3")),INDIRECT("'S. "&N3-1&"'!"&INDIRECT("'S. "&N3-1&"'!J3"))+1)) -> 1 | I8: =IF(LEN(E8)<6,"",LEFT(E8,LEN(E8)-5)) ->  | J8: =RIGHT(E8,5) ->  | K8: =IF(M8="","",IF(AND(A8+B8>0,H8=""),"USt. ?",IF(M8="diverse Kunden",INDEX(Kunden!A:E,MATCH(N8,Kunden!A:A,1),MATCH(H8,Kunden!$A$3:$E$3,0)),IF(M8="diverse Lieferanten",INDEX(Lief.!A:E,MATCH(N8,Lief.!A:A,1),MATCH(H8,Lief.!$A$3:$E$3,0)),IF(ISERROR(INDEX(Konten!A:E,MATCH(M8,Konten!A:A,0),MATCH(H8,Konten!$A$3:$E$3,0))),"Konto ?",INDEX(Konten!A:E,MATCH(M8,Konten!A:A,0),MATCH(H8,Konten!$A$3:$E$3,0))))))) ->  | L8: =$M$3 -> 1600 | P8: 0
C9: =A9-B9 -> 0 | D9: =IF(ROUND(C9,2)=0,"",D8+C9) ->  | E9: =IF(K9="","",IF(AND(A9+B9>0,H9=""),"USt. ?",IF(OR(K9="USt. ?",K9="Name?"),K9,IF(ISERROR(INDEX(Konten!A:E,MATCH(M9,Konten!A:A,0),MATCH(H9,Konten!$A$3:$E$3,0))),"Konto ?",IF(AND(O9=0,RIGHT(K9,5)*1>=10000),RIGHT(K9,5),K9))))) ->  | F9: =IF(A9+B9=0," ",F8+1) ->  | I9: =IF(LEN(E9)<6,"",LEFT(E9,LEN(E9)-5)) ->  | J9: =RIGHT(E9,5) ->  | K9: =IF(M9="","",IF(AND(A9+B9>0,H9=""),"USt. ?",IF(M9="diverse Kunden",INDEX(Kunden!A:E,MATCH(N9,Kunden!A:A,1),MATCH(H9,Kunden!$A$3:$E$3,0)),IF(M9="diverse Lieferanten",INDEX(Lief.!A:E,MATCH(N9,Lief.!A:A,1),MATCH(H9,Lief.!$A$3:$E$3,0)),IF(ISERROR(INDEX(Konten!A:E,MATCH(M9,Konten!A:A,0),MATCH(H9,Konten!$A$3:$E$3,0))),"Konto ?",INDEX(Konten!A:E,MATCH(M9,Konten!A:A,0),MATCH(H9,Konten!$A$3:$E$3,0))))))) ->  | L9: 1600 | P9: 0
C10: 0 | D10: =IF(ROUND(C10,2)=0,"",D9+C10) ->  | E10: =IF(K10="","",IF(AND(A10+B10>0,H10=""),"USt. ?",IF(OR(K10="USt. ?",K10="Name?"),K10,IF(ISERROR(INDEX(Konten!A:E,MATCH(M10,Konten!A:A,0),MATCH(H10,Konten!$A$3:$E$3,0))),"Konto ?",IF(AND(O10=0,RIGHT(K10,5)*1>=10000),RIGHT(K10,5),K10))))) ->  | K10: =IF(M10="","",IF(AND(A10+B10>0,H10=""),"USt. ?",IF(M10="diverse Kunden",INDEX(Kunden!A:E,MATCH(N10,Kunden!A:A,1),MATCH(H10,Kunden!$A$3:$E$3,0)),IF(M10="diverse Lieferanten",INDEX(Lief.!A:E,MATCH(N10,Lief.!A:A,1),MATCH(H10,Lief.!$A$3:$E$3,0)),IF(ISERROR(INDEX(Konten!A:E,MATCH(M10,Konten!A:A,0),MATCH(H10,Konten!$A$3:$E$3,0))),"Konto ?",INDEX(Konten!A:E,MATCH(M10,Konten!A:A,0),MATCH(H10,Konten!$A$3:$E$3,0))))))) ->  | L10: 1600 | P10: 0
C11: 0 | E11: =IF(K11="","",IF(AND(A11+B11>0,H11=""),"USt. ?",IF(OR(K11="USt. ?",K11="Name?"),K11,IF(ISERROR(INDEX(Konten!A:E,MATCH(M11,Konten!A:A,0),MATCH(H11,Konten!$A$3:$E$3,0))),"Konto ?",IF(AND(O11=0,RIGHT(K11,5)*1>=10000),RIGHT(K11,5),K11))))) ->  | K11: =IF(M11="","",IF(AND(A11+B11>0,H11=""),"USt. ?",IF(M11="diverse Kunden",INDEX(Kunden!A:E,MATCH(N11,Kunden!A:A,1),MATCH(H11,Kunden!$A$3:$E$3,0)),IF(M11="diverse Lieferanten",INDEX(Lief.!A:E,MATCH(N11,Lief.!A:A,1),MATCH(H11,Lief.!$A$3:$E$3,0)),IF(ISERROR(INDEX(Konten!A:E,MATCH(M11,Konten!A:A,0),MATCH(H11,Konten!$A$3:$E$3,0))),"Konto ?",INDEX(Konten!A:E,MATCH(M11,Konten!A:A,0),MATCH(H11,Konten!$A$3:$E$3,0))))))) ->  | L11: 1600 | P11: 0
C12: 0 | E12: =IF(K12="","",IF(AND(A12+B12>0,H12=""),"USt. ?",IF(OR(K12="USt. ?",K12="Name?"),K12,IF(ISERROR(INDEX(Konten!A:E,MATCH(M12,Konten!A:A,0),MATCH(H12,Konten!$A$3:$E$3,0))),"Konto ?",IF(AND(O12=0,RIGHT(K12,5)*1>=10000),RIGHT(K12,5),K12))))) ->  | K12: =IF(M12="","",IF(AND(A12+B12>0,H12=""),"USt. ?",IF(M12="diverse Kunden",INDEX(Kunden!A:E,MATCH(N12,Kunden!A:A,1),MATCH(H12,Kunden!$A$3:$E$3,0)),IF(M12="diverse Lieferanten",INDEX(Lief.!A:E,MATCH(N12,Lief.!A:A,1),MATCH(H12,Lief.!$A$3:$E$3,0)),IF(ISERROR(INDEX(Konten!A:E,MATCH(M12,Konten!A:A,0),MATCH(H12,Konten!$A$3:$E$3,0))),"Konto ?",INDEX(Konten!A:E,MATCH(M12,Konten!A:A,0),MATCH(H12,Konten!$A$3:$E$3,0))))))) ->  | L12: 1600 | P12: 0
C13: 0 | E13: =IF(K13="","",IF(AND(A13+B13>0,H13=""),"USt. ?",IF(OR(K13="USt. ?",K13="Name?"),K13,IF(ISERROR(INDEX(Konten!A:E,MATCH(M13,Konten!A:A,0),MATCH(H13,Konten!$A$3:$E$3,0))),"Konto ?",IF(AND(O13=0,RIGHT(K13,5)*1>=10000),RIGHT(K13,5),K13))))) ->  | K13: =IF(M13="","",IF(AND(A13+B13>0,H13=""),"USt. ?",IF(M13="diverse Kunden",INDEX(Kunden!A:E,MATCH(N13,Kunden!A:A,1),MATCH(H13,Kunden!$A$3:$E$3,0)),IF(M13="diverse Lieferanten",INDEX(Lief.!A:E,MATCH(N13,Lief.!A:A,1),MATCH(H13,Lief.!$A$3:$E$3,0)),IF(ISERROR(INDEX(Konten!A:E,MATCH(M13,Konten!A:A,0),MATCH(H13,Konten!$A$3:$E$3,0))),"Konto ?",INDEX(Konten!A:E,MATCH(M13,Konten!A:A,0),MATCH(H13,Konten!$A$3:$E$3,0))))))) ->  | L13: 1600 | P13: 0
C14: 0 | E14: =IF(K14="","",IF(AND(A14+B14>0,H14=""),"USt. ?",IF(OR(K14="USt. ?",K14="Name?"),K14,IF(ISERROR(INDEX(Konten!A:E,MATCH(M14,Konten!A:A,0),MATCH(H14,Konten!$A$3:$E$3,0))),"Konto ?",IF(AND(O14=0,RIGHT(K14,5)*1>=10000),RIGHT(K14,5),K14))))) ->  | K14: =IF(M14="","",IF(AND(A14+B14>0,H14=""),"USt. ?",IF(M14="diverse Kunden",INDEX(Kunden!A:E,MATCH(N14,Kunden!A:A,1),MATCH(H14,Kunden!$A$3:$E$3,0)),IF(M14="diverse Lieferanten",INDEX(Lief.!A:E,MATCH(N14,Lief.!A:A,1),MATCH(H14,Lief.!$A$3:$E$3,0)),IF(ISERROR(INDEX(Konten!A:E,MATCH(M14,Konten!A:A,0),MATCH(H14,Konten!$A$3:$E$3,0))),"Konto ?",INDEX(Konten!A:E,MATCH(M14,Konten!A:A,0),MATCH(H14,Konten!$A$3:$E$3,0))))))) ->  | L14: 1600 | P14: 0
C15: 0 | E15: =IF(K15="","",IF(AND(A15+B15>0,H15=""),"USt. ?",IF(OR(K15="USt. ?",K15="Name?"),K15,IF(ISERROR(INDEX(Konten!A:E,MATCH(M15,Konten!A:A,0),MATCH(H15,Konten!$A$3:$E$3,0))),"Konto ?",IF(AND(O15=0,RIGHT(K15,5)*1>=10000),RIGHT(K15,5),K15))))) ->  | K15: =IF(M15="","",IF(AND(A15+B15>0,H15=""),"USt. ?",IF(M15="diverse Kunden",INDEX(Kunden!A:E,MATCH(N15,Kunden!A:A,1),MATCH(H15,Kunden!$A$3:$E$3,0)),IF(M15="diverse Lieferanten",INDEX(Lief.!A:E,MATCH(N15,Lief.!A:A,1),MATCH(H15,Lief.!$A$3:$E$3,0)),IF(ISERROR(INDEX(Konten!A:E,MATCH(M15,Konten!A:A,0),MATCH(H15,Konten!$A$3:$E$3,0))),"Konto ?",INDEX(Konten!A:E,MATCH(M15,Konten!A:A,0),MATCH(H15,Konten!$A$3:$E$3,0))))))) ->  | L15: 1600 | P15: 0
C16: 0 | E16: =IF(K16="","",IF(AND(A16+B16>0,H16=""),"USt. ?",IF(OR(K16="USt. ?",K16="Name?"),K16,IF(ISERROR(INDEX(Konten!A:E,MATCH(M16,Konten!A:A,0),MATCH(H16,Konten!$A$3:$E$3,0))),"Konto ?",IF(AND(O16=0,RIGHT(K16,5)*1>=10000),RIGHT(K16,5),K16))))) ->  | K16: =IF(M16="","",IF(AND(A16+B16>0,H16=""),"USt. ?",IF(M16="diverse Kunden",INDEX(Kunden!A:E,MATCH(N16,Kunden!A:A,1),MATCH(H16,Kunden!$A$3:$E$3,0)),IF(M16="diverse Lieferanten",INDEX(Lief.!A:E,MATCH(N16,Lief.!A:A,1),MATCH(H16,Lief.!$A$3:$E$3,0)),IF(ISERROR(INDEX(Konten!A:E,MATCH(M16,Konten!A:A,0),MATCH(H16,Konten!$A$3:$E$3,0))),"Konto ?",INDEX(Konten!A:E,MATCH(M16,Konten!A:A,0),MATCH(H16,Konten!$A$3:$E$3,0))))))) ->  | L16: 1600 | P16: 0
C17: 0 | E17: =IF(K17="","",IF(AND(A17+B17>0,H17=""),"USt. ?",IF(OR(K17="USt. ?",K17="Name?"),K17,IF(ISERROR(INDEX(Konten!A:E,MATCH(M17,Konten!A:A,0),MATCH(H17,Konten!$A$3:$E$3,0))),"Konto ?",IF(AND(O17=0,RIGHT(K17,5)*1>=10000),RIGHT(K17,5),K17))))) ->  | K17: =IF(M17="","",IF(AND(A17+B17>0,H17=""),"USt. ?",IF(M17="diverse Kunden",INDEX(Kunden!A:E,MATCH(N17,Kunden!A:A,1),MATCH(H17,Kunden!$A$3:$E$3,0)),IF(M17="diverse Lieferanten",INDEX(Lief.!A:E,MATCH(N17,Lief.!A:A,1),MATCH(H17,Lief.!$A$3:$E$3,0)),IF(ISERROR(INDEX(Konten!A:E,MATCH(M17,Konten!A:A,0),MATCH(H17,Konten!$A$3:$E$3,0))),"Konto ?",INDEX(Konten!A:E,MATCH(M17,Konten!A:A,0),MATCH(H17,Konten!$A$3:$E$3,0))))))) ->  | L17: 1600 | P17: 0
C18: 0 | E18: =IF(K18="","",IF(AND(A18+B18>0,H18=""),"USt. ?",IF(OR(K18="USt. ?",K18="Name?"),K18,IF(ISERROR(INDEX(Konten!A:E,MATCH(M18,Konten!A:A,0),MATCH(H18,Konten!$A$3:$E$3,0))),"Konto ?",IF(AND(O18=0,RIGHT(K18,5)*1>=10000),RIGHT(K18,5),K18))))) ->  | K18: =IF(M18="","",IF(AND(A18+B18>0,H18=""),"USt. ?",IF(M18="diverse Kunden",INDEX(Kunden!A:E,MATCH(N18,Kunden!A:A,1),MATCH(H18,Kunden!$A$3:$E$3,0)),IF(M18="diverse Lieferanten",INDEX(Lief.!A:E,MATCH(N18,Lief.!A:A,1),MATCH(H18,Lief.!$A$3:$E$3,0)),IF(ISERROR(INDEX(Konten!A:E,MATCH(M18,Konten!A:A,0),MATCH(H18,Konten!$A$3:$E$3,0))),"Konto ?",INDEX(Konten!A:E,MATCH(M18,Konten!A:A,0),MATCH(H18,Konten!$A$3:$E$3,0))))))) ->  | L18: 1600 | P18: 0
C19: 0 | E19: =IF(K19="","",IF(AND(A19+B19>0,H19=""),"USt. ?",IF(OR(K19="USt. ?",K19="Name?"),K19,IF(ISERROR(INDEX(Konten!A:E,MATCH(M19,Konten!A:A,0),MATCH(H19,Konten!$A$3:$E$3,0))),"Konto ?",IF(AND(O19=0,RIGHT(K19,5)*1>=10000),RIGHT(K19,5),K19))))) ->  | K19: =IF(M19="","",IF(AND(A19+B19>0,H19=""),"USt. ?",IF(M19="diverse Kunden",INDEX(Kunden!A:E,MATCH(N19,Kunden!A:A,1),MATCH(H19,Kunden!$A$3:$E$3,0)),IF(M19="diverse Lieferanten",INDEX(Lief.!A:E,MATCH(N19,Lief.!A:A,1),MATCH(H19,Lief.!$A$3:$E$3,0)),IF(ISERROR(INDEX(Konten!A:E,MATCH(M19,Konten!A:A,0),MATCH(H19,Konten!$A$3:$E$3,0))),"Konto ?",INDEX(Konten!A:E,MATCH(M19,Konten!A:A,0),MATCH(H19,Konten!$A$3:$E$3,0))))))) ->  | L19: 1600 | P19: 0
C20: 0 | E20: =IF(K20="","",IF(AND(A20+B20>0,H20=""),"USt. ?",IF(OR(K20="USt. ?",K20="Name?"),K20,IF(ISERROR(INDEX(Konten!A:E,MATCH(M20,Konten!A:A,0),MATCH(H20,Konten!$A$3:$E$3,0))),"Konto ?",IF(AND(O20=0,RIGHT(K20,5)*1>=10000),RIGHT(K20,5),K20))))) ->  | K20: =IF(M20="","",IF(AND(A20+B20>0,H20=""),"USt. ?",IF(M20="diverse Kunden",INDEX(Kunden!A:E,MATCH(N20,Kunden!A:A,1),MATCH(H20,Kunden!$A$3:$E$3,0)),IF(M20="diverse Lieferanten",INDEX(Lief.!A:E,MATCH(N20,Lief.!A:A,1),MATCH(H20,Lief.!$A$3:$E$3,0)),IF(ISERROR(INDEX(Konten!A:E,MATCH(M20,Konten!A:A,0),MATCH(H20,Konten!$A$3:$E$3,0))),"Konto ?",INDEX(Konten!A:E,MATCH(M20,Konten!A:A,0),MATCH(H20,Konten!$A$3:$E$3,0))))))) ->  | L20: 1600 | P20: 0
C21: 0 | E21: =IF(K21="","",IF(AND(A21+B21>0,H21=""),"USt. ?",IF(OR(K21="USt. ?",K21="Name?"),K21,IF(ISERROR(INDEX(Konten!A:E,MATCH(M21,Konten!A:A,0),MATCH(H21,Konten!$A$3:$E$3,0))),"Konto ?",IF(AND(O21=0,RIGHT(K21,5)*1>=10000),RIGHT(K21,5),K21))))) ->  | K21: =IF(M21="","",IF(AND(A21+B21>0,H21=""),"USt. ?",IF(M21="diverse Kunden",INDEX(Kunden!A:E,MATCH(N21,Kunden!A:A,1),MATCH(H21,Kunden!$A$3:$E$3,0)),IF(M21="diverse Lieferanten",INDEX(Lief.!A:E,MATCH(N21,Lief.!A:A,1),MATCH(H21,Lief.!$A$3:$E$3,0)),IF(ISERROR(INDEX(Konten!A:E,MATCH(M21,Konten!A:A,0),MATCH(H21,Konten!$A$3:$E$3,0))),"Konto ?",INDEX(Konten!A:E,MATCH(M21,Konten!A:A,0),MATCH(H21,Konten!$A$3:$E$3,0))))))) ->  | L21: 1600 | P21: 0
C22: 0 | E22: =IF(K22="","",IF(AND(A22+B22>0,H22=""),"USt. ?",IF(OR(K22="USt. ?",K22="Name?"),K22,IF(ISERROR(INDEX(Konten!A:E,MATCH(M22,Konten!A:A,0),MATCH(H22,Konten!$A$3:$E$3,0))),"Konto ?",IF(AND(O22=0,RIGHT(K22,5)*1>=10000),RIGHT(K22,5),K22))))) ->  | K22: =IF(M22="","",IF(AND(A22+B22>0,H22=""),"USt. ?",IF(M22="diverse Kunden",INDEX(Kunden!A:E,MATCH(N22,Kunden!A:A,1),MATCH(H22,Kunden!$A$3:$E$3,0)),IF(M22="diverse Lieferanten",INDEX(Lief.!A:E,MATCH(N22,Lief.!A:A,1),MATCH(H22,Lief.!$A$3:$E$3,0)),IF(ISERROR(INDEX(Konten!A:E,MATCH(M22,Konten!A:A,0),MATCH(H22,Konten!$A$3:$E$3,0))),"Konto ?",INDEX(Konten!A:E,MATCH(M22,Konten!A:A,0),MATCH(H22,Konten!$A$3:$E$3,0))))))) ->  | L22: 1600 | P22: 0
C23: 0 | E23: =IF(K23="","",IF(AND(A23+B23>0,H23=""),"USt. ?",IF(OR(K23="USt. ?",K23="Name?"),K23,IF(ISERROR(INDEX(Konten!A:E,MATCH(M23,Konten!A:A,0),MATCH(H23,Konten!$A$3:$E$3,0))),"Konto ?",IF(AND(O23=0,RIGHT(K23,5)*1>=10000),RIGHT(K23,5),K23))))) ->  | K23: =IF(M23="","",IF(AND(A23+B23>0,H23=""),"USt. ?",IF(M23="diverse Kunden",INDEX(Kunden!A:E,MATCH(N23,Kunden!A:A,1),MATCH(H23,Kunden!$A$3:$E$3,0)),IF(M23="diverse Lieferanten",INDEX(Lief.!A:E,MATCH(N23,Lief.!A:A,1),MATCH(H23,Lief.!$A$3:$E$3,0)),IF(ISERROR(INDEX(Konten!A:E,MATCH(M23,Konten!A:A,0),MATCH(H23,Konten!$A$3:$E$3,0))),"Konto ?",INDEX(Konten!A:E,MATCH(M23,Konten!A:A,0),MATCH(H23,Konten!$A$3:$E$3,0))))))) ->  | L23: 1600 | P23: 0
C24: 0 | E24: =IF(K24="","",IF(AND(A24+B24>0,H24=""),"USt. ?",IF(OR(K24="USt. ?",K24="Name?"),K24,IF(ISERROR(INDEX(Konten!A:E,MATCH(M24,Konten!A:A,0),MATCH(H24,Konten!$A$3:$E$3,0))),"Konto ?",IF(AND(O24=0,RIGHT(K24,5)*1>=10000),RIGHT(K24,5),K24))))) ->  | K24: =IF(M24="","",IF(AND(A24+B24>0,H24=""),"USt. ?",IF(M24="diverse Kunden",INDEX(Kunden!A:E,MATCH(N24,Kunden!A:A,1),MATCH(H24,Kunden!$A$3:$E$3,0)),IF(M24="diverse Lieferanten",INDEX(Lief.!A:E,MATCH(N24,Lief.!A:A,1),MATCH(H24,Lief.!$A$3:$E$3,0)),IF(ISERROR(INDEX(Konten!A:E,MATCH(M24,Konten!A:A,0),MATCH(H24,Konten!$A$3:$E$3,0))),"Konto ?",INDEX(Konten!A:E,MATCH(M24,Konten!A:A,0),MATCH(H24,Konten!$A$3:$E$3,0))))))) ->  | L24: 1600 | P24: 0
C25: 0 | E25: =IF(K25="","",IF(AND(A25+B25>0,H25=""),"USt. ?",IF(OR(K25="USt. ?",K25="Name?"),K25,IF(ISERROR(INDEX(Konten!A:E,MATCH(M25,Konten!A:A,0),MATCH(H25,Konten!$A$3:$E$3,0))),"Konto ?",IF(AND(O25=0,RIGHT(K25,5)*1>=10000),RIGHT(K25,5),K25))))) ->  | K25: =IF(M25="","",IF(AND(A25+B25>0,H25=""),"USt. ?",IF(M25="diverse Kunden",INDEX(Kunden!A:E,MATCH(N25,Kunden!A:A,1),MATCH(H25,Kunden!$A$3:$E$3,0)),IF(M25="diverse Lieferanten",INDEX(Lief.!A:E,MATCH(N25,Lief.!A:A,1),MATCH(H25,Lief.!$A$3:$E$3,0)),IF(ISERROR(INDEX(Konten!A:E,MATCH(M25,Konten!A:A,0),MATCH(H25,Konten!$A$3:$E$3,0))),"Konto ?",INDEX(Konten!A:E,MATCH(M25,Konten!A:A,0),MATCH(H25,Konten!$A$3:$E$3,0))))))) ->  | L25: 1600 | P25: 0
C26: 0 | E26: =IF(K26="","",IF(AND(A26+B26>0,H26=""),"USt. ?",IF(OR(K26="USt. ?",K26="Name?"),K26,IF(ISERROR(INDEX(Konten!A:E,MATCH(M26,Konten!A:A,0),MATCH(H26,Konten!$A$3:$E$3,0))),"Konto ?",IF(AND(O26=0,RIGHT(K26,5)*1>=10000),RIGHT(K26,5),K26))))) ->  | K26: =IF(M26="","",IF(AND(A26+B26>0,H26=""),"USt. ?",IF(M26="diverse Kunden",INDEX(Kunden!A:E,MATCH(N26,Kunden!A:A,1),MATCH(H26,Kunden!$A$3:$E$3,0)),IF(M26="diverse Lieferanten",INDEX(Lief.!A:E,MATCH(N26,Lief.!A:A,1),MATCH(H26,Lief.!$A$3:$E$3,0)),IF(ISERROR(INDEX(Konten!A:E,MATCH(M26,Konten!A:A,0),MATCH(H26,Konten!$A$3:$E$3,0))),"Konto ?",INDEX(Konten!A:E,MATCH(M26,Konten!A:A,0),MATCH(H26,Konten!$A$3:$E$3,0))))))) ->  | L26: 1600 | P26: 0
C27: 0 | E27: =IF(K27="","",IF(AND(A27+B27>0,H27=""),"USt. ?",IF(OR(K27="USt. ?",K27="Name?"),K27,IF(ISERROR(INDEX(Konten!A:E,MATCH(M27,Konten!A:A,0),MATCH(H27,Konten!$A$3:$E$3,0))),"Konto ?",IF(AND(O27=0,RIGHT(K27,5)*1>=10000),RIGHT(K27,5),K27))))) ->  | K27: =IF(M27="","",IF(AND(A27+B27>0,H27=""),"USt. ?",IF(M27="diverse Kunden",INDEX(Kunden!A:E,MATCH(N27,Kunden!A:A,1),MATCH(H27,Kunden!$A$3:$E$3,0)),IF(M27="diverse Lieferanten",INDEX(Lief.!A:E,MATCH(N27,Lief.!A:A,1),MATCH(H27,Lief.!$A$3:$E$3,0)),IF(ISERROR(INDEX(Konten!A:E,MATCH(M27,Konten!A:A,0),MATCH(H27,Konten!$A$3:$E$3,0))),"Konto ?",INDEX(Konten!A:E,MATCH(M27,Konten!A:A,0),MATCH(H27,Konten!$A$3:$E$3,0))))))) ->  | L27: 1600 | P27: 0
C28: 0 | E28: =IF(K28="","",IF(AND(A28+B28>0,H28=""),"USt. ?",IF(OR(K28="USt. ?",K28="Name?"),K28,IF(ISERROR(INDEX(Konten!A:E,MATCH(M28,Konten!A:A,0),MATCH(H28,Konten!$A$3:$E$3,0))),"Konto ?",IF(AND(O28=0,RIGHT(K28,5)*1>=10000),RIGHT(K28,5),K28))))) ->  | K28: =IF(M28="","",IF(AND(A28+B28>0,H28=""),"USt. ?",IF(M28="diverse Kunden",INDEX(Kunden!A:E,MATCH(N28,Kunden!A:A,1),MATCH(H28,Kunden!$A$3:$E$3,0)),IF(M28="diverse Lieferanten",INDEX(Lief.!A:E,MATCH(N28,Lief.!A:A,1),MATCH(H28,Lief.!$A$3:$E$3,0)),IF(ISERROR(INDEX(Konten!A:E,MATCH(M28,Konten!A:A,0),MATCH(H28,Konten!$A$3:$E$3,0))),"Konto ?",INDEX(Konten!A:E,MATCH(M28,Konten!A:A,0),MATCH(H28,Konten!$A$3:$E$3,0))))))) ->  | L28: 1600 | P28: 0
C29: 0 | E29: =IF(K29="","",IF(AND(A29+B29>0,H29=""),"USt. ?",IF(OR(K29="USt. ?",K29="Name?"),K29,IF(ISERROR(INDEX(Konten!A:E,MATCH(M29,Konten!A:A,0),MATCH(H29,Konten!$A$3:$E$3,0))),"Konto ?",IF(AND(O29=0,RIGHT(K29,5)*1>=10000),RIGHT(K29,5),K29))))) ->  | K29: =IF(M29="","",IF(AND(A29+B29>0,H29=""),"USt. ?",IF(M29="diverse Kunden",INDEX(Kunden!A:E,MATCH(N29,Kunden!A:A,1),MATCH(H29,Kunden!$A$3:$E$3,0)),IF(M29="diverse Lieferanten",INDEX(Lief.!A:E,MATCH(N29,Lief.!A:A,1),MATCH(H29,Lief.!$A$3:$E$3,0)),IF(ISERROR(INDEX(Konten!A:E,MATCH(M29,Konten!A:A,0),MATCH(H29,Konten!$A$3:$E$3,0))),"Konto ?",INDEX(Konten!A:E,MATCH(M29,Konten!A:A,0),MATCH(H29,Konten!$A$3:$E$3,0))))))) ->  | L29: 1600 | P29: 0
C30: 0 | E30: =IF(K30="","",IF(AND(A30+B30>0,H30=""),"USt. ?",IF(OR(K30="USt. ?",K30="Name?"),K30,IF(ISERROR(INDEX(Konten!A:E,MATCH(M30,Konten!A:A,0),MATCH(H30,Konten!$A$3:$E$3,0))),"Konto ?",IF(AND(O30=0,RIGHT(K30,5)*1>=10000),RIGHT(K30,5),K30))))) ->  | K30: =IF(M30="","",IF(AND(A30+B30>0,H30=""),"USt. ?",IF(M30="diverse Kunden",INDEX(Kunden!A:E,MATCH(N30,Kunden!A:A,1),MATCH(H30,Kunden!$A$3:$E$3,0)),IF(M30="diverse Lieferanten",INDEX(Lief.!A:E,MATCH(N30,Lief.!A:A,1),MATCH(H30,Lief.!$A$3:$E$3,0)),IF(ISERROR(INDEX(Konten!A:E,MATCH(M30,Konten!A:A,0),MATCH(H30,Konten!$A$3:$E$3,0))),"Konto ?",INDEX(Konten!A:E,MATCH(M30,Konten!A:A,0),MATCH(H30,Konten!$A$3:$E$3,0))))))) ->  | L30: 1600 | P30: 0
C31: 0 | E31: =IF(K31="","",IF(AND(A31+B31>0,H31=""),"USt. ?",IF(OR(K31="USt. ?",K31="Name?"),K31,IF(ISERROR(INDEX(Konten!A:E,MATCH(M31,Konten!A:A,0),MATCH(H31,Konten!$A$3:$E$3,0))),"Konto ?",IF(AND(O31=0,RIGHT(K31,5)*1>=10000),RIGHT(K31,5),K31))))) ->  | K31: =IF(M31="","",IF(AND(A31+B31>0,H31=""),"USt. ?",IF(M31="diverse Kunden",INDEX(Kunden!A:E,MATCH(N31,Kunden!A:A,1),MATCH(H31,Kunden!$A$3:$E$3,0)),IF(M31="diverse Lieferanten",INDEX(Lief.!A:E,MATCH(N31,Lief.!A:A,1),MATCH(H31,Lief.!$A$3:$E$3,0)),IF(ISERROR(INDEX(Konten!A:E,MATCH(M31,Konten!A:A,0),MATCH(H31,Konten!$A$3:$E$3,0))),"Konto ?",INDEX(Konten!A:E,MATCH(M31,Konten!A:A,0),MATCH(H31,Konten!$A$3:$E$3,0))))))) ->  | L31: 1600 | P31: 0
C32: 0 | E32: =IF(K32="","",IF(AND(A32+B32>0,H32=""),"USt. ?",IF(OR(K32="USt. ?",K32="Name?"),K32,IF(ISERROR(INDEX(Konten!A:E,MATCH(M32,Konten!A:A,0),MATCH(H32,Konten!$A$3:$E$3,0))),"Konto ?",IF(AND(O32=0,RIGHT(K32,5)*1>=10000),RIGHT(K32,5),K32))))) ->  | K32: =IF(M32="","",IF(AND(A32+B32>0,H32=""),"USt. ?",IF(M32="diverse Kunden",INDEX(Kunden!A:E,MATCH(N32,Kunden!A:A,1),MATCH(H32,Kunden!$A$3:$E$3,0)),IF(M32="diverse Lieferanten",INDEX(Lief.!A:E,MATCH(N32,Lief.!A:A,1),MATCH(H32,Lief.!$A$3:$E$3,0)),IF(ISERROR(INDEX(Konten!A:E,MATCH(M32,Konten!A:A,0),MATCH(H32,Konten!$A$3:$E$3,0))),"Konto ?",INDEX(Konten!A:E,MATCH(M32,Konten!A:A,0),MATCH(H32,Konten!$A$3:$E$3,0))))))) ->  | L32: 1600 | P32: 0
C33: 0 | E33: =IF(K33="","",IF(AND(A33+B33>0,H33=""),"USt. ?",IF(OR(K33="USt. ?",K33="Name?"),K33,IF(ISERROR(INDEX(Konten!A:E,MATCH(M33,Konten!A:A,0),MATCH(H33,Konten!$A$3:$E$3,0))),"Konto ?",IF(AND(O33=0,RIGHT(K33,5)*1>=10000),RIGHT(K33,5),K33))))) ->  | K33: =IF(M33="","",IF(AND(A33+B33>0,H33=""),"USt. ?",IF(M33="diverse Kunden",INDEX(Kunden!A:E,MATCH(N33,Kunden!A:A,1),MATCH(H33,Kunden!$A$3:$E$3,0)),IF(M33="diverse Lieferanten",INDEX(Lief.!A:E,MATCH(N33,Lief.!A:A,1),MATCH(H33,Lief.!$A$3:$E$3,0)),IF(ISERROR(INDEX(Konten!A:E,MATCH(M33,Konten!A:A,0),MATCH(H33,Konten!$A$3:$E$3,0))),"Konto ?",INDEX(Konten!A:E,MATCH(M33,Konten!A:A,0),MATCH(H33,Konten!$A$3:$E$3,0))))))) ->  | L33: 1600 | P33: 0
C34: 0 | E34: =IF(K34="","",IF(AND(A34+B34>0,H34=""),"USt. ?",IF(OR(K34="USt. ?",K34="Name?"),K34,IF(ISERROR(INDEX(Konten!A:E,MATCH(M34,Konten!A:A,0),MATCH(H34,Konten!$A$3:$E$3,0))),"Konto ?",IF(AND(O34=0,RIGHT(K34,5)*1>=10000),RIGHT(K34,5),K34))))) ->  | K34: =IF(M34="","",IF(AND(A34+B34>0,H34=""),"USt. ?",IF(M34="diverse Kunden",INDEX(Kunden!A:E,MATCH(N34,Kunden!A:A,1),MATCH(H34,Kunden!$A$3:$E$3,0)),IF(M34="diverse Lieferanten",INDEX(Lief.!A:E,MATCH(N34,Lief.!A:A,1),MATCH(H34,Lief.!$A$3:$E$3,0)),IF(ISERROR(INDEX(Konten!A:E,MATCH(M34,Konten!A:A,0),MATCH(H34,Konten!$A$3:$E$3,0))),"Konto ?",INDEX(Konten!A:E,MATCH(M34,Konten!A:A,0),MATCH(H34,Konten!$A$3:$E$3,0))))))) ->  | L34: 1600 | P34: 0
C35: 0 | E35: =IF(K35="","",IF(AND(A35+B35>0,H35=""),"USt. ?",IF(OR(K35="USt. ?",K35="Name?"),K35,IF(ISERROR(INDEX(Konten!A:E,MATCH(M35,Konten!A:A,0),MATCH(H35,Konten!$A$3:$E$3,0))),"Konto ?",IF(AND(O35=0,RIGHT(K35,5)*1>=10000),RIGHT(K35,5),K35))))) ->  | K35: =IF(M35="","",IF(AND(A35+B35>0,H35=""),"USt. ?",IF(M35="diverse Kunden",INDEX(Kunden!A:E,MATCH(N35,Kunden!A:A,1),MATCH(H35,Kunden!$A$3:$E$3,0)),IF(M35="diverse Lieferanten",INDEX(Lief.!A:E,MATCH(N35,Lief.!A:A,1),MATCH(H35,Lief.!$A$3:$E$3,0)),IF(ISERROR(INDEX(Konten!A:E,MATCH(M35,Konten!A:A,0),MATCH(H35,Konten!$A$3:$E$3,0))),"Konto ?",INDEX(Konten!A:E,MATCH(M35,Konten!A:A,0),MATCH(H35,Konten!$A$3:$E$3,0))))))) ->  | L35: 1600 | P35: 0
C36: 0 | E36: =IF(K36="","",IF(AND(A36+B36>0,H36=""),"USt. ?",IF(OR(K36="USt. ?",K36="Name?"),K36,IF(ISERROR(INDEX(Konten!A:E,MATCH(M36,Konten!A:A,0),MATCH(H36,Konten!$A$3:$E$3,0))),"Konto ?",IF(AND(O36=0,RIGHT(K36,5)*1>=10000),RIGHT(K36,5),K36))))) ->  | K36: =IF(M36="","",IF(AND(A36+B36>0,H36=""),"USt. ?",IF(M36="diverse Kunden",INDEX(Kunden!A:E,MATCH(N36,Kunden!A:A,1),MATCH(H36,Kunden!$A$3:$E$3,0)),IF(M36="diverse Lieferanten",INDEX(Lief.!A:E,MATCH(N36,Lief.!A:A,1),MATCH(H36,Lief.!$A$3:$E$3,0)),IF(ISERROR(INDEX(Konten!A:E,MATCH(M36,Konten!A:A,0),MATCH(H36,Konten!$A$3:$E$3,0))),"Konto ?",INDEX(Konten!A:E,MATCH(M36,Konten!A:A,0),MATCH(H36,Konten!$A$3:$E$3,0))))))) ->  | L36: 1600 | P36: 0
C37: 0 | E37: =IF(K37="","",IF(AND(A37+B37>0,H37=""),"USt. ?",IF(OR(K37="USt. ?",K37="Name?"),K37,IF(ISERROR(INDEX(Konten!A:E,MATCH(M37,Konten!A:A,0),MATCH(H37,Konten!$A$3:$E$3,0))),"Konto ?",IF(AND(O37=0,RIGHT(K37,5)*1>=10000),RIGHT(K37,5),K37))))) ->  | K37: =IF(M37="","",IF(AND(A37+B37>0,H37=""),"USt. ?",IF(M37="diverse Kunden",INDEX(Kunden!A:E,MATCH(N37,Kunden!A:A,1),MATCH(H37,Kunden!$A$3:$E$3,0)),IF(M37="diverse Lieferanten",INDEX(Lief.!A:E,MATCH(N37,Lief.!A:A,1),MATCH(H37,Lief.!$A$3:$E$3,0)),IF(ISERROR(INDEX(Konten!A:E,MATCH(M37,Konten!A:A,0),MATCH(H37,Konten!$A$3:$E$3,0))),"Konto ?",INDEX(Konten!A:E,MATCH(M37,Konten!A:A,0),MATCH(H37,Konten!$A$3:$E$3,0))))))) ->  | L37: 1600 | P37: 0
C38: 0 | E38: =IF(K38="","",IF(AND(A38+B38>0,H38=""),"USt. ?",IF(OR(K38="USt. ?",K38="Name?"),K38,IF(ISERROR(INDEX(Konten!A:E,MATCH(M38,Konten!A:A,0),MATCH(H38,Konten!$A$3:$E$3,0))),"Konto ?",IF(AND(O38=0,RIGHT(K38,5)*1>=10000),RIGHT(K38,5),K38))))) ->  | K38: =IF(M38="","",IF(AND(A38+B38>0,H38=""),"USt. ?",IF(M38="diverse Kunden",INDEX(Kunden!A:E,MATCH(N38,Kunden!A:A,1),MATCH(H38,Kunden!$A$3:$E$3,0)),IF(M38="diverse Lieferanten",INDEX(Lief.!A:E,MATCH(N38,Lief.!A:A,1),MATCH(H38,Lief.!$A$3:$E$3,0)),IF(ISERROR(INDEX(Konten!A:E,MATCH(M38,Konten!A:A,0),MATCH(H38,Konten!$A$3:$E$3,0))),"Konto ?",INDEX(Konten!A:E,MATCH(M38,Konten!A:A,0),MATCH(H38,Konten!$A$3:$E$3,0))))))) ->  | L38: 1600 | P38: 0
C39: 0 | E39: =IF(K39="","",IF(AND(A39+B39>0,H39=""),"USt. ?",IF(OR(K39="USt. ?",K39="Name?"),K39,IF(ISERROR(INDEX(Konten!A:E,MATCH(M39,Konten!A:A,0),MATCH(H39,Konten!$A$3:$E$3,0))),"Konto ?",IF(AND(O39=0,RIGHT(K39,5)*1>=10000),RIGHT(K39,5),K39))))) ->  | K39: =IF(M39="","",IF(AND(A39+B39>0,H39=""),"USt. ?",IF(M39="diverse Kunden",INDEX(Kunden!A:E,MATCH(N39,Kunden!A:A,1),MATCH(H39,Kunden!$A$3:$E$3,0)),IF(M39="diverse Lieferanten",INDEX(Lief.!A:E,MATCH(N39,Lief.!A:A,1),MATCH(H39,Lief.!$A$3:$E$3,0)),IF(ISERROR(INDEX(Konten!A:E,MATCH(M39,Konten!A:A,0),MATCH(H39,Konten!$A$3:$E$3,0))),"Konto ?",INDEX(Konten!A:E,MATCH(M39,Konten!A:A,0),MATCH(H39,Konten!$A$3:$E$3,0))))))) ->  | L39: 1600 | P39: 0
C40: 0 | E40: =IF(K40="","",IF(AND(A40+B40>0,H40=""),"USt. ?",IF(OR(K40="USt. ?",K40="Name?"),K40,IF(ISERROR(INDEX(Konten!A:E,MATCH(M40,Konten!A:A,0),MATCH(H40,Konten!$A$3:$E$3,0))),"Konto ?",IF(AND(O40=0,RIGHT(K40,5)*1>=10000),RIGHT(K40,5),K40))))) ->  | K40: =IF(M40="","",IF(AND(A40+B40>0,H40=""),"USt. ?",IF(M40="diverse Kunden",INDEX(Kunden!A:E,MATCH(N40,Kunden!A:A,1),MATCH(H40,Kunden!$A$3:$E$3,0)),IF(M40="diverse Lieferanten",INDEX(Lief.!A:E,MATCH(N40,Lief.!A:A,1),MATCH(H40,Lief.!$A$3:$E$3,0)),IF(ISERROR(INDEX(Konten!A:E,MATCH(M40,Konten!A:A,0),MATCH(H40,Konten!$A$3:$E$3,0))),"Konto ?",INDEX(Konten!A:E,MATCH(M40,Konten!A:A,0),MATCH(H40,Konten!$A$3:$E$3,0))))))) ->  | L40: 1600 | P40: 0
A41: =SUM(A8:A40) -> 0 | B41: =SUM(B8:B40) -> 0 | D41: Summen | M41: Unterschrift:
A42: =D6 -> 0 | B42: =INDIRECT("D"&COUNT(D8:D40)+7) -> 0 | D42: Bestand Anfang / Ende | K42: =MIN(D8:D42) -> 0 | M42: geprüft: | N42: =IF(ROUND(A43-B43,2)<>0,"Kassendifferenz !!!","") -> 
A43: =SUM(A41:A42) -> 0 | B43: =SUM(B41:B42) -> 0 | D43: Kontrollsummen | K43: =MIN('S. 1:S. '!K42) -> 0 | M43: gebucht:
A44: =IF(ROUND(A43-B43,2)<>0,"Kassendifferenz !!!","") -> 

Sheet S. 8
A1: =INDIRECT("'S. "&N3-1&"'!A1") -> 0 | L1: =DATE(YEAR(B3),MONTH(B3),1) -> 2020-08-01 | M1: K a s s e n b u c h | P1: =INDIRECT("'S. "&N3-1&"'!B3") -> 2020-07-31 | Q1: 2 | Y1: =RIGHT(CELL("Dateiname",A1),LEN(CELL("Dateiname",A1))-FIND("]",CELL("Dateiname",A1))) -> S. 8 | Z1: =LEFT(Y1,SEARCH(" ",Y1)) -> S. | AA1: =RIGHT(Y1,LEN(Y1)-SEARCH(" ",Y1)) -> 8
A3: Monat: | B3: =DATE(YEAR(P1),MONTH(P1)+Q1,0) -> 2020-08-31 | J3: ="F"&LARGE(IF(F8:F40<>" ",ROW(F8:F40)),1) -> F8 | K3: =YEAR(L3) -> 2020 | L3: =B3 -> 2020-08-31 | M3: =INDIRECT("'S. "&N3-1&"'!M3") -> 1600 | N3: =IF(ISERROR(P3),1,IF(RIGHT(P3,1)=")",LEFT(RIGHT(P3,7),3)+1,Q3)) -> 8 | P3: =RIGHT(CELL("Dateiname",A1),LEN(CELL("Dateiname",A1))-FIND("]",CELL("Dateiname",A1))) -> S. 8 | Q3: =MID(P3,SEARCH(" ",P3)+1,3)*1 -> 8
K4: =MONTH(L4) -> 8 | L4: =L3 -> 2020-08-31 | N4: =IF(ISERROR(P3),"",IF(AND(RIGHT(P3,2)<>TEXT(N3," #"),RIGHT(P3,2)<>TEXT(N3,"##"),RIGHT(P3,3)<>TEXT(N3,"###")),"Name Tabellenblatt ändern in ' S. "&N3&" ' ","")) -> 
A5: Einnahmen | B5: Ausgaben | C5: Einnahmen | D5: Bestand | E5: Gegen- | F5: Beleg- | G5: Beleg- | H5: USt.- | I5: BU | J5: Gegenkonto | K5: Gegenkonto | L5: Konto | M5: Kontierung | N5: Text | O5: Skonto | P5: Festschreibung
A6: € | B6: € | C6: Ausgaben | D6: =INDIRECT("'S. "&N3-1&"'!B42") -> 0 | E6: konto | F6: Nr. | G6: Datum | H6: Satz | J6: ASCII | K6: ASCII
G7: =DATE(YEAR(B3),MONTH(B3),IF(MONTH(INDIRECT("'S. "&N3-1&"'!B3"))=MONTH(B3),DAY(INDIRECT("'S. "&N3-1&"'!L4")),1)) -> 44044
C8: =A8-B8 -> 0 | D8: =D6+C8 -> 0 | E8: =IF(K8="","",IF(AND(A8+B8>0,H8=""),"USt. ?",IF(OR(K8="USt. ?",K8="Name?"),K8,IF(ISERROR(INDEX(Konten!A:E,MATCH(M8,Konten!A:A,0),MATCH(H8,Konten!$A$3:$E$3,0))),"Konto ?",IF(AND(O8=0,RIGHT(K8,5)*1>=10000),RIGHT(K8,5),K8))))) ->  | F8: =IF(INDIRECT("'S. "&N3-1&"'!A43")=0,1,IF(ROUND(A41+B41,2)=0,INDIRECT("'S. "&N3-1&"'!"&INDIRECT("'S. "&N3-1&"'!J3")),INDIRECT("'S. "&N3-1&"'!"&INDIRECT("'S. "&N3-1&"'!J3"))+1)) -> 1 | I8: =IF(LEN(E8)<6,"",LEFT(E8,LEN(E8)-5)) ->  | J8: =RIGHT(E8,5) ->  | K8: =IF(M8="","",IF(AND(A8+B8>0,H8=""),"USt. ?",IF(M8="diverse Kunden",INDEX(Kunden!A:E,MATCH(N8,Kunden!A:A,1),MATCH(H8,Kunden!$A$3:$E$3,0)),IF(M8="diverse Lieferanten",INDEX(Lief.!A:E,MATCH(N8,Lief.!A:A,1),MATCH(H8,Lief.!$A$3:$E$3,0)),IF(ISERROR(INDEX(Konten!A:E,MATCH(M8,Konten!A:A,0),MATCH(H8,Konten!$A$3:$E$3,0))),"Konto ?",INDEX(Konten!A:E,MATCH(M8,Konten!A:A,0),MATCH(H8,Konten!$A$3:$E$3,0))))))) ->  | L8: =$M$3 -> 1600 | P8: 0
C9: =A9-B9 -> 0 | D9: =IF(ROUND(C9,2)=0,"",D8+C9) ->  | E9: =IF(K9="","",IF(AND(A9+B9>0,H9=""),"USt. ?",IF(OR(K9="USt. ?",K9="Name?"),K9,IF(ISERROR(INDEX(Konten!A:E,MATCH(M9,Konten!A:A,0),MATCH(H9,Konten!$A$3:$E$3,0))),"Konto ?",IF(AND(O9=0,RIGHT(K9,5)*1>=10000),RIGHT(K9,5),K9))))) ->  | F9: =IF(A9+B9=0," ",F8+1) ->  | I9: =IF(LEN(E9)<6,"",LEFT(E9,LEN(E9)-5)) ->  | J9: =RIGHT(E9,5) ->  | K9: =IF(M9="","",IF(AND(A9+B9>0,H9=""),"USt. ?",IF(M9="diverse Kunden",INDEX(Kunden!A:E,MATCH(N9,Kunden!A:A,1),MATCH(H9,Kunden!$A$3:$E$3,0)),IF(M9="diverse Lieferanten",INDEX(Lief.!A:E,MATCH(N9,Lief.!A:A,1),MATCH(H9,Lief.!$A$3:$E$3,0)),IF(ISERROR(INDEX(Konten!A:E,MATCH(M9,Konten!A:A,0),MATCH(H9,Konten!$A$3:$E$3,0))),"Konto ?",INDEX(Konten!A:E,MATCH(M9,Konten!A:A,0),MATCH(H9,Konten!$A$3:$E$3,0))))))) ->  | L9: 1600 | P9: 0
C10: 0 | D10: =IF(ROUND(C10,2)=0,"",D9+C10) ->  | E10: =IF(K10="","",IF(AND(A10+B10>0,H10=""),"USt. ?",IF(OR(K10="USt. ?",K10="Name?"),K10,IF(ISERROR(INDEX(Konten!A:E,MATCH(M10,Konten!A:A,0),MATCH(H10,Konten!$A$3:$E$3,0))),"Konto ?",IF(AND(O10=0,RIGHT(K10,5)*1>=10000),RIGHT(K10,5),K10))))) ->  | K10: =IF(M10="","",IF(AND(A10+B10>0,H10=""),"USt. ?",IF(M10="diverse Kunden",INDEX(Kunden!A:E,MATCH(N10,Kunden!A:A,1),MATCH(H10,Kunden!$A$3:$E$3,0)),IF(M10="diverse Lieferanten",INDEX(Lief.!A:E,MATCH(N10,Lief.!A:A,1),MATCH(H10,Lief.!$A$3:$E$3,0)),IF(ISERROR(INDEX(Konten!A:E,MATCH(M10,Konten!A:A,0),MATCH(H10,Konten!$A$3:$E$3,0))),"Konto ?",INDEX(Konten!A:E,MATCH(M10,Konten!A:A,0),MATCH(H10,Konten!$A$3:$E$3,0))))))) ->  | L10: 1600 | P10: 0
C11: 0 | E11: =IF(K11="","",IF(AND(A11+B11>0,H11=""),"USt. ?",IF(OR(K11="USt. ?",K11="Name?"),K11,IF(ISERROR(INDEX(Konten!A:E,MATCH(M11,Konten!A:A,0),MATCH(H11,Konten!$A$3:$E$3,0))),"Konto ?",IF(AND(O11=0,RIGHT(K11,5)*1>=10000),RIGHT(K11,5),K11))))) ->  | K11: =IF(M11="","",IF(AND(A11+B11>0,H11=""),"USt. ?",IF(M11="diverse Kunden",INDEX(Kunden!A:E,MATCH(N11,Kunden!A:A,1),MATCH(H11,Kunden!$A$3:$E$3,0)),IF(M11="diverse Lieferanten",INDEX(Lief.!A:E,MATCH(N11,Lief.!A:A,1),MATCH(H11,Lief.!$A$3:$E$3,0)),IF(ISERROR(INDEX(Konten!A:E,MATCH(M11,Konten!A:A,0),MATCH(H11,Konten!$A$3:$E$3,0))),"Konto ?",INDEX(Konten!A:E,MATCH(M11,Konten!A:A,0),MATCH(H11,Konten!$A$3:$E$3,0))))))) ->  | L11: 1600 | P11: 0
C12: 0 | E12: =IF(K12="","",IF(AND(A12+B12>0,H12=""),"USt. ?",IF(OR(K12="USt. ?",K12="Name?"),K12,IF(ISERROR(INDEX(Konten!A:E,MATCH(M12,Konten!A:A,0),MATCH(H12,Konten!$A$3:$E$3,0))),"Konto ?",IF(AND(O12=0,RIGHT(K12,5)*1>=10000),RIGHT(K12,5),K12))))) ->  | K12: =IF(M12="","",IF(AND(A12+B12>0,H12=""),"USt. ?",IF(M12="diverse Kunden",INDEX(Kunden!A:E,MATCH(N12,Kunden!A:A,1),MATCH(H12,Kunden!$A$3:$E$3,0)),IF(M12="diverse Lieferanten",INDEX(Lief.!A:E,MATCH(N12,Lief.!A:A,1),MATCH(H12,Lief.!$A$3:$E$3,0)),IF(ISERROR(INDEX(Konten!A:E,MATCH(M12,Konten!A:A,0),MATCH(H12,Konten!$A$3:$E$3,0))),"Konto ?",INDEX(Konten!A:E,MATCH(M12,Konten!A:A,0),MATCH(H12,Konten!$A$3:$E$3,0))))))) ->  | L12: 1600 | P12: 0
C13: 0 | E13: =IF(K13="","",IF(AND(A13+B13>0,H13=""),"USt. ?",IF(OR(K13="USt. ?",K13="Name?"),K13,IF(ISERROR(INDEX(Konten!A:E,MATCH(M13,Konten!A:A,0),MATCH(H13,Konten!$A$3:$E$3,0))),"Konto ?",IF(AND(O13=0,RIGHT(K13,5)*1>=10000),RIGHT(K13,5),K13))))) ->  | K13: =IF(M13="","",IF(AND(A13+B13>0,H13=""),"USt. ?",IF(M13="diverse Kunden",INDEX(Kunden!A:E,MATCH(N13,Kunden!A:A,1),MATCH(H13,Kunden!$A$3:$E$3,0)),IF(M13="diverse Lieferanten",INDEX(Lief.!A:E,MATCH(N13,Lief.!A:A,1),MATCH(H13,Lief.!$A$3:$E$3,0)),IF(ISERROR(INDEX(Konten!A:E,MATCH(M13,Konten!A:A,0),MATCH(H13,Konten!$A$3:$E$3,0))),"Konto ?",INDEX(Konten!A:E,MATCH(M13,Konten!A:A,0),MATCH(H13,Konten!$A$3:$E$3,0))))))) ->  | L13: 1600 | P13: 0
C14: 0 | E14: =IF(K14="","",IF(AND(A14+B14>0,H14=""),"USt. ?",IF(OR(K14="USt. ?",K14="Name?"),K14,IF(ISERROR(INDEX(Konten!A:E,MATCH(M14,Konten!A:A,0),MATCH(H14,Konten!$A$3:$E$3,0))),"Konto ?",IF(AND(O14=0,RIGHT(K14,5)*1>=10000),RIGHT(K14,5),K14))))) ->  | K14: =IF(M14="","",IF(AND(A14+B14>0,H14=""),"USt. ?",IF(M14="diverse Kunden",INDEX(Kunden!A:E,MATCH(N14,Kunden!A:A,1),MATCH(H14,Kunden!$A$3:$E$3,0)),IF(M14="diverse Lieferanten",INDEX(Lief.!A:E,MATCH(N14,Lief.!A:A,1),MATCH(H14,Lief.!$A$3:$E$3,0)),IF(ISERROR(INDEX(Konten!A:E,MATCH(M14,Konten!A:A,0),MATCH(H14,Konten!$A$3:$E$3,0))),"Konto ?",INDEX(Konten!A:E,MATCH(M14,Konten!A:A,0),MATCH(H14,Konten!$A$3:$E$3,0))))))) ->  | L14: 1600 | P14: 0
C15: 0 | E15: =IF(K15="","",IF(AND(A15+B15>0,H15=""),"USt. ?",IF(OR(K15="USt. ?",K15="Name?"),K15,IF(ISERROR(INDEX(Konten!A:E,MATCH(M15,Konten!A:A,0),MATCH(H15,Konten!$A$3:$E$3,0))),"Konto ?",IF(AND(O15=0,RIGHT(K15,5)*1>=10000),RIGHT(K15,5),K15))))) ->  | K15: =IF(M15="","",IF(AND(A15+B15>0,H15=""),"USt. ?",IF(M15="diverse Kunden",INDEX(Kunden!A:E,MATCH(N15,Kunden!A:A,1),MATCH(H15,Kunden!$A$3:$E$3,0)),IF(M15="diverse Lieferanten",INDEX(Lief.!A:E,MATCH(N15,Lief.!A:A,1),MATCH(H15,Lief.!$A$3:$E$3,0)),IF(ISERROR(INDEX(Konten!A:E,MATCH(M15,Konten!A:A,0),MATCH(H15,Konten!$A$3:$E$3,0))),"Konto ?",INDEX(Konten!A:E,MATCH(M15,Konten!A:A,0),MATCH(H15,Konten!$A$3:$E$3,0))))))) ->  | L15: 1600 | P15: 0
C16: 0 | E16: =IF(K16="","",IF(AND(A16+B16>0,H16=""),"USt. ?",IF(OR(K16="USt. ?",K16="Name?"),K16,IF(ISERROR(INDEX(Konten!A:E,MATCH(M16,Konten!A:A,0),MATCH(H16,Konten!$A$3:$E$3,0))),"Konto ?",IF(AND(O16=0,RIGHT(K16,5)*1>=10000),RIGHT(K16,5),K16))))) ->  | K16: =IF(M16="","",IF(AND(A16+B16>0,H16=""),"USt. ?",IF(M16="diverse Kunden",INDEX(Kunden!A:E,MATCH(N16,Kunden!A:A,1),MATCH(H16,Kunden!$A$3:$E$3,0)),IF(M16="diverse Lieferanten",INDEX(Lief.!A:E,MATCH(N16,Lief.!A:A,1),MATCH(H16,Lief.!$A$3:$E$3,0)),IF(ISERROR(INDEX(Konten!A:E,MATCH(M16,Konten!A:A,0),MATCH(H16,Konten!$A$3:$E$3,0))),"Konto ?",INDEX(Konten!A:E,MATCH(M16,Konten!A:A,0),MATCH(H16,Konten!$A$3:$E$3,0))))))) ->  | L16: 1600 | P16: 0
C17: 0 | E17: =IF(K17="","",IF(AND(A17+B17>0,H17=""),"USt. ?",IF(OR(K17="USt. ?",K17="Name?"),K17,IF(ISERROR(INDEX(Konten!A:E,MATCH(M17,Konten!A:A,0),MATCH(H17,Konten!$A$3:$E$3,0))),"Konto ?",IF(AND(O17=0,RIGHT(K17,5)*1>=10000),RIGHT(K17,5),K17))))) ->  | K17: =IF(M17="","",IF(AND(A17+B17>0,H17=""),"USt. ?",IF(M17="diverse Kunden",INDEX(Kunden!A:E,MATCH(N17,Kunden!A:A,1),MATCH(H17,Kunden!$A$3:$E$3,0)),IF(M17="diverse Lieferanten",INDEX(Lief.!A:E,MATCH(N17,Lief.!A:A,1),MATCH(H17,Lief.!$A$3:$E$3,0)),IF(ISERROR(INDEX(Konten!A:E,MATCH(M17,Konten!A:A,0),MATCH(H17,Konten!$A$3:$E$3,0))),"Konto ?",INDEX(Konten!A:E,MATCH(M17,Konten!A:A,0),MATCH(H17,Konten!$A$3:$E$3,0))))))) ->  | L17: 1600 | P17: 0
C18: 0 | E18: =IF(K18="","",IF(AND(A18+B18>0,H18=""),"USt. ?",IF(OR(K18="USt. ?",K18="Name?"),K18,IF(ISERROR(INDEX(Konten!A:E,MATCH(M18,Konten!A:A,0),MATCH(H18,Konten!$A$3:$E$3,0))),"Konto ?",IF(AND(O18=0,RIGHT(K18,5)*1>=10000),RIGHT(K18,5),K18))))) ->  | K18: =IF(M18="","",IF(AND(A18+B18>0,H18=""),"USt. ?",IF(M18="diverse Kunden",INDEX(Kunden!A:E,MATCH(N18,Kunden!A:A,1),MATCH(H18,Kunden!$A$3:$E$3,0)),IF(M18="diverse Lieferanten",INDEX(Lief.!A:E,MATCH(N18,Lief.!A:A,1),MATCH(H18,Lief.!$A$3:$E$3,0)),IF(ISERROR(INDEX(Konten!A:E,MATCH(M18,Konten!A:A,0),MATCH(H18,Konten!$A$3:$E$3,0))),"Konto ?",INDEX(Konten!A:E,MATCH(M18,Konten!A:A,0),MATCH(H18,Konten!$A$3:$E$3,0))))))) ->  | L18: 1600 | P18: 0
C19: 0 | E19: =IF(K19="","",IF(AND(A19+B19>0,H19=""),"USt. ?",IF(OR(K19="USt. ?",K19="Name?"),K19,IF(ISERROR(INDEX(Konten!A:E,MATCH(M19,Konten!A:A,0),MATCH(H19,Konten!$A$3:$E$3,0))),"Konto ?",IF(AND(O19=0,RIGHT(K19,5)*1>=10000),RIGHT(K19,5),K19))))) ->  | K19: =IF(M19="","",IF(AND(A19+B19>0,H19=""),"USt. ?",IF(M19="diverse Kunden",INDEX(Kunden!A:E,MATCH(N19,Kunden!A:A,1),MATCH(H19,Kunden!$A$3:$E$3,0)),IF(M19="diverse Lieferanten",INDEX(Lief.!A:E,MATCH(N19,Lief.!A:A,1),MATCH(H19,Lief.!$A$3:$E$3,0)),IF(ISERROR(INDEX(Konten!A:E,MATCH(M19,Konten!A:A,0),MATCH(H19,Konten!$A$3:$E$3,0))),"Konto ?",INDEX(Konten!A:E,MATCH(M19,Konten!A:A,0),MATCH(H19,Konten!$A$3:$E$3,0))))))) ->  | L19: 1600 | P19: 0
C20: 0 | E20: =IF(K20="","",IF(AND(A20+B20>0,H20=""),"USt. ?",IF(OR(K20="USt. ?",K20="Name?"),K20,IF(ISERROR(INDEX(Konten!A:E,MATCH(M20,Konten!A:A,0),MATCH(H20,Konten!$A$3:$E$3,0))),"Konto ?",IF(AND(O20=0,RIGHT(K20,5)*1>=10000),RIGHT(K20,5),K20))))) ->  | K20: =IF(M20="","",IF(AND(A20+B20>0,H20=""),"USt. ?",IF(M20="diverse Kunden",INDEX(Kunden!A:E,MATCH(N20,Kunden!A:A,1),MATCH(H20,Kunden!$A$3:$E$3,0)),IF(M20="diverse Lieferanten",INDEX(Lief.!A:E,MATCH(N20,Lief.!A:A,1),MATCH(H20,Lief.!$A$3:$E$3,0)),IF(ISERROR(INDEX(Konten!A:E,MATCH(M20,Konten!A:A,0),MATCH(H20,Konten!$A$3:$E$3,0))),"Konto ?",INDEX(Konten!A:E,MATCH(M20,Konten!A:A,0),MATCH(H20,Konten!$A$3:$E$3,0))))))) ->  | L20: 1600 | P20: 0
C21: 0 | E21: =IF(K21="","",IF(AND(A21+B21>0,H21=""),"USt. ?",IF(OR(K21="USt. ?",K21="Name?"),K21,IF(ISERROR(INDEX(Konten!A:E,MATCH(M21,Konten!A:A,0),MATCH(H21,Konten!$A$3:$E$3,0))),"Konto ?",IF(AND(O21=0,RIGHT(K21,5)*1>=10000),RIGHT(K21,5),K21))))) ->  | K21: =IF(M21="","",IF(AND(A21+B21>0,H21=""),"USt. ?",IF(M21="diverse Kunden",INDEX(Kunden!A:E,MATCH(N21,Kunden!A:A,1),MATCH(H21,Kunden!$A$3:$E$3,0)),IF(M21="diverse Lieferanten",INDEX(Lief.!A:E,MATCH(N21,Lief.!A:A,1),MATCH(H21,Lief.!$A$3:$E$3,0)),IF(ISERROR(INDEX(Konten!A:E,MATCH(M21,Konten!A:A,0),MATCH(H21,Konten!$A$3:$E$3,0))),"Konto ?",INDEX(Konten!A:E,MATCH(M21,Konten!A:A,0),MATCH(H21,Konten!$A$3:$E$3,0))))))) ->  | L21: 1600 | P21: 0
C22: 0 | E22: =IF(K22="","",IF(AND(A22+B22>0,H22=""),"USt. ?",IF(OR(K22="USt. ?",K22="Name?"),K22,IF(ISERROR(INDEX(Konten!A:E,MATCH(M22,Konten!A:A,0),MATCH(H22,Konten!$A$3:$E$3,0))),"Konto ?",IF(AND(O22=0,RIGHT(K22,5)*1>=10000),RIGHT(K22,5),K22))))) ->  | K22: =IF(M22="","",IF(AND(A22+B22>0,H22=""),"USt. ?",IF(M22="diverse Kunden",INDEX(Kunden!A:E,MATCH(N22,Kunden!A:A,1),MATCH(H22,Kunden!$A$3:$E$3,0)),IF(M22="diverse Lieferanten",INDEX(Lief.!A:E,MATCH(N22,Lief.!A:A,1),MATCH(H22,Lief.!$A$3:$E$3,0)),IF(ISERROR(INDEX(Konten!A:E,MATCH(M22,Konten!A:A,0),MATCH(H22,Konten!$A$3:$E$3,0))),"Konto ?",INDEX(Konten!A:E,MATCH(M22,Konten!A:A,0),MATCH(H22,Konten!$A$3:$E$3,0))))))) ->  | L22: 1600 | P22: 0
C23: 0 | E23: =IF(K23="","",IF(AND(A23+B23>0,H23=""),"USt. ?",IF(OR(K23="USt. ?",K23="Name?"),K23,IF(ISERROR(INDEX(Konten!A:E,MATCH(M23,Konten!A:A,0),MATCH(H23,Konten!$A$3:$E$3,0))),"Konto ?",IF(AND(O23=0,RIGHT(K23,5)*1>=10000),RIGHT(K23,5),K23))))) ->  | K23: =IF(M23="","",IF(AND(A23+B23>0,H23=""),"USt. ?",IF(M23="diverse Kunden",INDEX(Kunden!A:E,MATCH(N23,Kunden!A:A,1),MATCH(H23,Kunden!$A$3:$E$3,0)),IF(M23="diverse Lieferanten",INDEX(Lief.!A:E,MATCH(N23,Lief.!A:A,1),MATCH(H23,Lief.!$A$3:$E$3,0)),IF(ISERROR(INDEX(Konten!A:E,MATCH(M23,Konten!A:A,0),MATCH(H23,Konten!$A$3:$E$3,0))),"Konto ?",INDEX(Konten!A:E,MATCH(M23,Konten!A:A,0),MATCH(H23,Konten!$A$3:$E$3,0))))))) ->  | L23: 1600 | P23: 0
C24: 0 | E24: =IF(K24="","",IF(AND(A24+B24>0,H24=""),"USt. ?",IF(OR(K24="USt. ?",K24="Name?"),K24,IF(ISERROR(INDEX(Konten!A:E,MATCH(M24,Konten!A:A,0),MATCH(H24,Konten!$A$3:$E$3,0))),"Konto ?",IF(AND(O24=0,RIGHT(K24,5)*1>=10000),RIGHT(K24,5),K24))))) ->  | K24: =IF(M24="","",IF(AND(A24+B24>0,H24=""),"USt. ?",IF(M24="diverse Kunden",INDEX(Kunden!A:E,MATCH(N24,Kunden!A:A,1),MATCH(H24,Kunden!$A$3:$E$3,0)),IF(M24="diverse Lieferanten",INDEX(Lief.!A:E,MATCH(N24,Lief.!A:A,1),MATCH(H24,Lief.!$A$3:$E$3,0)),IF(ISERROR(INDEX(Konten!A:E,MATCH(M24,Konten!A:A,0),MATCH(H24,Konten!$A$3:$E$3,0))),"Konto ?",INDEX(Konten!A:E,MATCH(M24,Konten!A:A,0),MATCH(H24,Konten!$A$3:$E$3,0))))))) ->  | L24: 1600 | P24: 0
C25: 0 | E25: =IF(K25="","",IF(AND(A25+B25>0,H25=""),"USt. ?",IF(OR(K25="USt. ?",K25="Name?"),K25,IF(ISERROR(INDEX(Konten!A:E,MATCH(M25,Konten!A:A,0),MATCH(H25,Konten!$A$3:$E$3,0))),"Konto ?",IF(AND(O25=0,RIGHT(K25,5)*1>=10000),RIGHT(K25,5),K25))))) ->  | K25: =IF(M25="","",IF(AND(A25+B25>0,H25=""),"USt. ?",IF(M25="diverse Kunden",INDEX(Kunden!A:E,MATCH(N25,Kunden!A:A,1),MATCH(H25,Kunden!$A$3:$E$3,0)),IF(M25="diverse Lieferanten",INDEX(Lief.!A:E,MATCH(N25,Lief.!A:A,1),MATCH(H25,Lief.!$A$3:$E$3,0)),IF(ISERROR(INDEX(Konten!A:E,MATCH(M25,Konten!A:A,0),MATCH(H25,Konten!$A$3:$E$3,0))),"Konto ?",INDEX(Konten!A:E,MATCH(M25,Konten!A:A,0),MATCH(H25,Konten!$A$3:$E$3,0))))))) ->  | L25: 1600 | P25: 0
C26: 0 | E26: =IF(K26="","",IF(AND(A26+B26>0,H26=""),"USt. ?",IF(OR(K26="USt. ?",K26="Name?"),K26,IF(ISERROR(INDEX(Konten!A:E,MATCH(M26,Konten!A:A,0),MATCH(H26,Konten!$A$3:$E$3,0))),"Konto ?",IF(AND(O26=0,RIGHT(K26,5)*1>=10000),RIGHT(K26,5),K26))))) ->  | K26: =IF(M26="","",IF(AND(A26+B26>0,H26=""),"USt. ?",IF(M26="diverse Kunden",INDEX(Kunden!A:E,MATCH(N26,Kunden!A:A,1),MATCH(H26,Kunden!$A$3:$E$3,0)),IF(M26="diverse Lieferanten",INDEX(Lief.!A:E,MATCH(N26,Lief.!A:A,1),MATCH(H26,Lief.!$A$3:$E$3,0)),IF(ISERROR(INDEX(Konten!A:E,MATCH(M26,Konten!A:A,0),MATCH(H26,Konten!$A$3:$E$3,0))),"Konto ?",INDEX(Konten!A:E,MATCH(M26,Konten!A:A,0),MATCH(H26,Konten!$A$3:$E$3,0))))))) ->  | L26: 1600 | P26: 0
C27: 0 | E27: =IF(K27="","",IF(AND(A27+B27>0,H27=""),"USt. ?",IF(OR(K27="USt. ?",K27="Name?"),K27,IF(ISERROR(INDEX(Konten!A:E,MATCH(M27,Konten!A:A,0),MATCH(H27,Konten!$A$3:$E$3,0))),"Konto ?",IF(AND(O27=0,RIGHT(K27,5)*1>=10000),RIGHT(K27,5),K27))))) ->  | K27: =IF(M27="","",IF(AND(A27+B27>0,H27=""),"USt. ?",IF(M27="diverse Kunden",INDEX(Kunden!A:E,MATCH(N27,Kunden!A:A,1),MATCH(H27,Kunden!$A$3:$E$3,0)),IF(M27="diverse Lieferanten",INDEX(Lief.!A:E,MATCH(N27,Lief.!A:A,1),MATCH(H27,Lief.!$A$3:$E$3,0)),IF(ISERROR(INDEX(Konten!A:E,MATCH(M27,Konten!A:A,0),MATCH(H27,Konten!$A$3:$E$3,0))),"Konto ?",INDEX(Konten!A:E,MATCH(M27,Konten!A:A,0),MATCH(H27,Konten!$A$3:$E$3,0))))))) ->  | L27: 1600 | P27: 0
C28: 0 | E28: =IF(K28="","",IF(AND(A28+B28>0,H28=""),"USt. ?",IF(OR(K28="USt. ?",K28="Name?"),K28,IF(ISERROR(INDEX(Konten!A:E,MATCH(M28,Konten!A:A,0),MATCH(H28,Konten!$A$3:$E$3,0))),"Konto ?",IF(AND(O28=0,RIGHT(K28,5)*1>=10000),RIGHT(K28,5),K28))))) ->  | K28: =IF(M28="","",IF(AND(A28+B28>0,H28=""),"USt. ?",IF(M28="diverse Kunden",INDEX(Kunden!A:E,MATCH(N28,Kunden!A:A,1),MATCH(H28,Kunden!$A$3:$E$3,0)),IF(M28="diverse Lieferanten",INDEX(Lief.!A:E,MATCH(N28,Lief.!A:A,1),MATCH(H28,Lief.!$A$3:$E$3,0)),IF(ISERROR(INDEX(Konten!A:E,MATCH(M28,Konten!A:A,0),MATCH(H28,Konten!$A$3:$E$3,0))),"Konto ?",INDEX(Konten!A:E,MATCH(M28,Konten!A:A,0),MATCH(H28,Konten!$A$3:$E$3,0))))))) ->  | L28: 1600 | P28: 0
C29: 0 | E29: =IF(K29="","",IF(AND(A29+B29>0,H29=""),"USt. ?",IF(OR(K29="USt. ?",K29="Name?"),K29,IF(ISERROR(INDEX(Konten!A:E,MATCH(M29,Konten!A:A,0),MATCH(H29,Konten!$A$3:$E$3,0))),"Konto ?",IF(AND(O29=0,RIGHT(K29,5)*1>=10000),RIGHT(K29,5),K29))))) ->  | K29: =IF(M29="","",IF(AND(A29+B29>0,H29=""),"USt. ?",IF(M29="diverse Kunden",INDEX(Kunden!A:E,MATCH(N29,Kunden!A:A,1),MATCH(H29,Kunden!$A$3:$E$3,0)),IF(M29="diverse Lieferanten",INDEX(Lief.!A:E,MATCH(N29,Lief.!A:A,1),MATCH(H29,Lief.!$A$3:$E$3,0)),IF(ISERROR(INDEX(Konten!A:E,MATCH(M29,Konten!A:A,0),MATCH(H29,Konten!$A$3:$E$3,0))),"Konto ?",INDEX(Konten!A:E,MATCH(M29,Konten!A:A,0),MATCH(H29,Konten!$A$3:$E$3,0))))))) ->  | L29: 1600 | P29: 0
C30: 0 | E30: =IF(K30="","",IF(AND(A30+B30>0,H30=""),"USt. ?",IF(OR(K30="USt. ?",K30="Name?"),K30,IF(ISERROR(INDEX(Konten!A:E,MATCH(M30,Konten!A:A,0),MATCH(H30,Konten!$A$3:$E$3,0))),"Konto ?",IF(AND(O30=0,RIGHT(K30,5)*1>=10000),RIGHT(K30,5),K30))))) ->  | K30: =IF(M30="","",IF(AND(A30+B30>0,H30=""),"USt. ?",IF(M30="diverse Kunden",INDEX(Kunden!A:E,MATCH(N30,Kunden!A:A,1),MATCH(H30,Kunden!$A$3:$E$3,0)),IF(M30="diverse Lieferanten",INDEX(Lief.!A:E,MATCH(N30,Lief.!A:A,1),MATCH(H30,Lief.!$A$3:$E$3,0)),IF(ISERROR(INDEX(Konten!A:E,MATCH(M30,Konten!A:A,0),MATCH(H30,Konten!$A$3:$E$3,0))),"Konto ?",INDEX(Konten!A:E,MATCH(M30,Konten!A:A,0),MATCH(H30,Konten!$A$3:$E$3,0))))))) ->  | L30: 1600 | P30: 0
C31: 0 | E31: =IF(K31="","",IF(AND(A31+B31>0,H31=""),"USt. ?",IF(OR(K31="USt. ?",K31="Name?"),K31,IF(ISERROR(INDEX(Konten!A:E,MATCH(M31,Konten!A:A,0),MATCH(H31,Konten!$A$3:$E$3,0))),"Konto ?",IF(AND(O31=0,RIGHT(K31,5)*1>=10000),RIGHT(K31,5),K31))))) ->  | K31: =IF(M31="","",IF(AND(A31+B31>0,H31=""),"USt. ?",IF(M31="diverse Kunden",INDEX(Kunden!A:E,MATCH(N31,Kunden!A:A,1),MATCH(H31,Kunden!$A$3:$E$3,0)),IF(M31="diverse Lieferanten",INDEX(Lief.!A:E,MATCH(N31,Lief.!A:A,1),MATCH(H31,Lief.!$A$3:$E$3,0)),IF(ISERROR(INDEX(Konten!A:E,MATCH(M31,Konten!A:A,0),MATCH(H31,Konten!$A$3:$E$3,0))),"Konto ?",INDEX(Konten!A:E,MATCH(M31,Konten!A:A,0),MATCH(H31,Konten!$A$3:$E$3,0))))))) ->  | L31: 1600 | P31: 0
C32: 0 | E32: =IF(K32="","",IF(AND(A32+B32>0,H32=""),"USt. ?",IF(OR(K32="USt. ?",K32="Name?"),K32,IF(ISERROR(INDEX(Konten!A:E,MATCH(M32,Konten!A:A,0),MATCH(H32,Konten!$A$3:$E$3,0))),"Konto ?",IF(AND(O32=0,RIGHT(K32,5)*1>=10000),RIGHT(K32,5),K32))))) ->  | K32: =IF(M32="","",IF(AND(A32+B32>0,H32=""),"USt. ?",IF(M32="diverse Kunden",INDEX(Kunden!A:E,MATCH(N32,Kunden!A:A,1),MATCH(H32,Kunden!$A$3:$E$3,0)),IF(M32="diverse Lieferanten",INDEX(Lief.!A:E,MATCH(N32,Lief.!A:A,1),MATCH(H32,Lief.!$A$3:$E$3,0)),IF(ISERROR(INDEX(Konten!A:E,MATCH(M32,Konten!A:A,0),MATCH(H32,Konten!$A$3:$E$3,0))),"Konto ?",INDEX(Konten!A:E,MATCH(M32,Konten!A:A,0),MATCH(H32,Konten!$A$3:$E$3,0))))))) ->  | L32: 1600 | P32: 0
C33: 0 | E33: =IF(K33="","",IF(AND(A33+B33>0,H33=""),"USt. ?",IF(OR(K33="USt. ?",K33="Name?"),K33,IF(ISERROR(INDEX(Konten!A:E,MATCH(M33,Konten!A:A,0),MATCH(H33,Konten!$A$3:$E$3,0))),"Konto ?",IF(AND(O33=0,RIGHT(K33,5)*1>=10000),RIGHT(K33,5),K33))))) ->  | K33: =IF(M33="","",IF(AND(A33+B33>0,H33=""),"USt. ?",IF(M33="diverse Kunden",INDEX(Kunden!A:E,MATCH(N33,Kunden!A:A,1),MATCH(H33,Kunden!$A$3:$E$3,0)),IF(M33="diverse Lieferanten",INDEX(Lief.!A:E,MATCH(N33,Lief.!A:A,1),MATCH(H33,Lief.!$A$3:$E$3,0)),IF(ISERROR(INDEX(Konten!A:E,MATCH(M33,Konten!A:A,0),MATCH(H33,Konten!$A$3:$E$3,0))),"Konto ?",INDEX(Konten!A:E,MATCH(M33,Konten!A:A,0),MATCH(H33,Konten!$A$3:$E$3,0))))))) ->  | L33: 1600 | P33: 0
C34: 0 | E34: =IF(K34="","",IF(AND(A34+B34>0,H34=""),"USt. ?",IF(OR(K34="USt. ?",K34="Name?"),K34,IF(ISERROR(INDEX(Konten!A:E,MATCH(M34,Konten!A:A,0),MATCH(H34,Konten!$A$3:$E$3,0))),"Konto ?",IF(AND(O34=0,RIGHT(K34,5)*1>=10000),RIGHT(K34,5),K34))))) ->  | K34: =IF(M34="","",IF(AND(A34+B34>0,H34=""),"USt. ?",IF(M34="diverse Kunden",INDEX(Kunden!A:E,MATCH(N34,Kunden!A:A,1),MATCH(H34,Kunden!$A$3:$E$3,0)),IF(M34="diverse Lieferanten",INDEX(Lief.!A:E,MATCH(N34,Lief.!A:A,1),MATCH(H34,Lief.!$A$3:$E$3,0)),IF(ISERROR(INDEX(Konten!A:E,MATCH(M34,Konten!A:A,0),MATCH(H34,Konten!$A$3:$E$3,0))),"Konto ?",INDEX(Konten!A:E,MATCH(M34,Konten!A:A,0),MATCH(H34,Konten!$A$3:$E$3,0))))))) ->  | L34: 1600 | P34: 0
C35: 0 | E35: =IF(K35="","",IF(AND(A35+B35>0,H35=""),"USt. ?",IF(OR(K35="USt. ?",K35="Name?"),K35,IF(ISERROR(INDEX(Konten!A:E,MATCH(M35,Konten!A:A,0),MATCH(H35,Konten!$A$3:$E$3,0))),"Konto ?",IF(AND(O35=0,RIGHT(K35,5)*1>=10000),RIGHT(K35,5),K35))))) ->  | K35: =IF(M35="","",IF(AND(A35+B35>0,H35=""),"USt. ?",IF(M35="diverse Kunden",INDEX(Kunden!A:E,MATCH(N35,Kunden!A:A,1),MATCH(H35,Kunden!$A$3:$E$3,0)),IF(M35="diverse Lieferanten",INDEX(Lief.!A:E,MATCH(N35,Lief.!A:A,1),MATCH(H35,Lief.!$A$3:$E$3,0)),IF(ISERROR(INDEX(Konten!A:E,MATCH(M35,Konten!A:A,0),MATCH(H35,Konten!$A$3:$E$3,0))),"Konto ?",INDEX(Konten!A:E,MATCH(M35,Konten!A:A,0),MATCH(H35,Konten!$A$3:$E$3,0))))))) ->  | L35: 1600 | P35: 0
C36: 0 | E36: =IF(K36="","",IF(AND(A36+B36>0,H36=""),"USt. ?",IF(OR(K36="USt. ?",K36="Name?"),K36,IF(ISERROR(INDEX(Konten!A:E,MATCH(M36,Konten!A:A,0),MATCH(H36,Konten!$A$3:$E$3,0))),"Konto ?",IF(AND(O36=0,RIGHT(K36,5)*1>=10000),RIGHT(K36,5),K36))))) ->  | K36: =IF(M36="","",IF(AND(A36+B36>0,H36=""),"USt. ?",IF(M36="diverse Kunden",INDEX(Kunden!A:E,MATCH(N36,Kunden!A:A,1),MATCH(H36,Kunden!$A$3:$E$3,0)),IF(M36="diverse Lieferanten",INDEX(Lief.!A:E,MATCH(N36,Lief.!A:A,1),MATCH(H36,Lief.!$A$3:$E$3,0)),IF(ISERROR(INDEX(Konten!A:E,MATCH(M36,Konten!A:A,0),MATCH(H36,Konten!$A$3:$E$3,0))),"Konto ?",INDEX(Konten!A:E,MATCH(M36,Konten!A:A,0),MATCH(H36,Konten!$A$3:$E$3,0))))))) ->  | L36: 1600 | P36: 0
C37: 0 | E37: =IF(K37="","",IF(AND(A37+B37>0,H37=""),"USt. ?",IF(OR(K37="USt. ?",K37="Name?"),K37,IF(ISERROR(INDEX(Konten!A:E,MATCH(M37,Konten!A:A,0),MATCH(H37,Konten!$A$3:$E$3,0))),"Konto ?",IF(AND(O37=0,RIGHT(K37,5)*1>=10000),RIGHT(K37,5),K37))))) ->  | K37: =IF(M37="","",IF(AND(A37+B37>0,H37=""),"USt. ?",IF(M37="diverse Kunden",INDEX(Kunden!A:E,MATCH(N37,Kunden!A:A,1),MATCH(H37,Kunden!$A$3:$E$3,0)),IF(M37="diverse Lieferanten",INDEX(Lief.!A:E,MATCH(N37,Lief.!A:A,1),MATCH(H37,Lief.!$A$3:$E$3,0)),IF(ISERROR(INDEX(Konten!A:E,MATCH(M37,Konten!A:A,0),MATCH(H37,Konten!$A$3:$E$3,0))),"Konto ?",INDEX(Konten!A:E,MATCH(M37,Konten!A:A,0),MATCH(H37,Konten!$A$3:$E$3,0))))))) ->  | L37: 1600 | P37: 0
C38: 0 | E38: =IF(K38="","",IF(AND(A38+B38>0,H38=""),"USt. ?",IF(OR(K38="USt. ?",K38="Name?"),K38,IF(ISERROR(INDEX(Konten!A:E,MATCH(M38,Konten!A:A,0),MATCH(H38,Konten!$A$3:$E$3,0))),"Konto ?",IF(AND(O38=0,RIGHT(K38,5)*1>=10000),RIGHT(K38,5),K38))))) ->  | K38: =IF(M38="","",IF(AND(A38+B38>0,H38=""),"USt. ?",IF(M38="diverse Kunden",INDEX(Kunden!A:E,MATCH(N38,Kunden!A:A,1),MATCH(H38,Kunden!$A$3:$E$3,0)),IF(M38="diverse Lieferanten",INDEX(Lief.!A:E,MATCH(N38,Lief.!A:A,1),MATCH(H38,Lief.!$A$3:$E$3,0)),IF(ISERROR(INDEX(Konten!A:E,MATCH(M38,Konten!A:A,0),MATCH(H38,Konten!$A$3:$E$3,0))),"Konto ?",INDEX(Konten!A:E,MATCH(M38,Konten!A:A,0),MATCH(H38,Konten!$A$3:$E$3,0))))))) ->  | L38: 1600 | P38: 0
C39: 0 | E39: =IF(K39="","",IF(AND(A39+B39>0,H39=""),"USt. ?",IF(OR(K39="USt. ?",K39="Name?"),K39,IF(ISERROR(INDEX(Konten!A:E,MATCH(M39,Konten!A:A,0),MATCH(H39,Konten!$A$3:$E$3,0))),"Konto ?",IF(AND(O39=0,RIGHT(K39,5)*1>=10000),RIGHT(K39,5),K39))))) ->  | K39: =IF(M39="","",IF(AND(A39+B39>0,H39=""),"USt. ?",IF(M39="diverse Kunden",INDEX(Kunden!A:E,MATCH(N39,Kunden!A:A,1),MATCH(H39,Kunden!$A$3:$E$3,0)),IF(M39="diverse Lieferanten",INDEX(Lief.!A:E,MATCH(N39,Lief.!A:A,1),MATCH(H39,Lief.!$A$3:$E$3,0)),IF(ISERROR(INDEX(Konten!A:E,MATCH(M39,Konten!A:A,0),MATCH(H39,Konten!$A$3:$E$3,0))),"Konto ?",INDEX(Konten!A:E,MATCH(M39,Konten!A:A,0),MATCH(H39,Konten!$A$3:$E$3,0))))))) ->  | L39: 1600 | P39: 0
C40: 0 | E40: =IF(K40="","",IF(AND(A40+B40>0,H40=""),"USt. ?",IF(OR(K40="USt. ?",K40="Name?"),K40,IF(ISERROR(INDEX(Konten!A:E,MATCH(M40,Konten!A:A,0),MATCH(H40,Konten!$A$3:$E$3,0))),"Konto ?",IF(AND(O40=0,RIGHT(K40,5)*1>=10000),RIGHT(K40,5),K40))))) ->  | K40: =IF(M40="","",IF(AND(A40+B40>0,H40=""),"USt. ?",IF(M40="diverse Kunden",INDEX(Kunden!A:E,MATCH(N40,Kunden!A:A,1),MATCH(H40,Kunden!$A$3:$E$3,0)),IF(M40="diverse Lieferanten",INDEX(Lief.!A:E,MATCH(N40,Lief.!A:A,1),MATCH(H40,Lief.!$A$3:$E$3,0)),IF(ISERROR(INDEX(Konten!A:E,MATCH(M40,Konten!A:A,0),MATCH(H40,Konten!$A$3:$E$3,0))),"Konto ?",INDEX(Konten!A:E,MATCH(M40,Konten!A:A,0),MATCH(H40,Konten!$A$3:$E$3,0))))))) ->  | L40: 1600 | P40: 0
A41: =SUM(A8:A40) -> 0 | B41: =SUM(B8:B40) -> 0 | D41: Summen | M41: Unterschrift:
A42: =D6 -> 0 | B42: =INDIRECT("D"&COUNT(D8:D40)+7) -> 0 | D42: Bestand Anfang / Ende | K42: =MIN(D8:D42) -> 0 | M42: geprüft: | N42: =IF(ROUND(A43-B43,2)<>0,"Kassendifferenz !!!","") -> 
A43: =SUM(A41:A42) -> 0 | B43: =SUM(B41:B42) -> 0 | D43: Kontrollsummen | K43: =MIN('S. 1:S. '!K42) -> 0 | M43: gebucht:
A44: =IF(ROUND(A43-B43,2)<>0,"Kassendifferenz !!!","") -> 

Sheet S. 9
A1: =INDIRECT("'S. "&N3-1&"'!A1") -> 0 | L1: =DATE(YEAR(B3),MONTH(B3),1) -> 2020-09-01 | M1: K a s s e n b u c h | P1: =INDIRECT("'S. "&N3-1&"'!B3") -> 2020-08-31 | Q1: 2 | Y1: =RIGHT(CELL("Dateiname",A1),LEN(CELL("Dateiname",A1))-FIND("]",CELL("Dateiname",A1))) -> S. 9 | Z1: =LEFT(Y1,SEARCH(" ",Y1)) -> S. | AA1: =RIGHT(Y1,LEN(Y1)-SEARCH(" ",Y1)) -> 9
A3: Monat: | B3: =DATE(YEAR(P1),MONTH(P1)+Q1,0) -> 2020-09-30 | J3: ="F"&LARGE(IF(F8:F40<>" ",ROW(F8:F40)),1) -> F8 | K3: =YEAR(L3) -> 2020 | L3: =B3 -> 2020-09-30 | M3: =INDIRECT("'S. "&N3-1&"'!M3") -> 1600 | N3: =IF(ISERROR(P3),1,IF(RIGHT(P3,1)=")",LEFT(RIGHT(P3,7),3)+1,Q3)) -> 9 | P3: =RIGHT(CELL("Dateiname",A1),LEN(CELL("Dateiname",A1))-FIND("]",CELL("Dateiname",A1))) -> S. 9 | Q3: =MID(P3,SEARCH(" ",P3)+1,3)*1 -> 9
K4: =MONTH(L4) -> 9 | L4: =L3 -> 2020-09-30 | N4: =IF(ISERROR(P3),"",IF(AND(RIGHT(P3,2)<>TEXT(N3," #"),RIGHT(P3,2)<>TEXT(N3,"##"),RIGHT(P3,3)<>TEXT(N3,"###")),"Name Tabellenblatt ändern in ' S. "&N3&" ' ","")) -> 
A5: Einnahmen | B5: Ausgaben | C5: Einnahmen | D5: Bestand | E5: Gegen- | F5: Beleg- | G5: Beleg- | H5: USt.- | I5: BU | J5: Gegenkonto | K5: Gegenkonto | L5: Konto | M5: Kontierung | N5: Text | O5: Skonto | P5: Festschreibung
A6: € | B6: € | C6: Ausgaben | D6: =INDIRECT("'S. "&N3-1&"'!B42") -> 0 | E6: konto | F6: Nr. | G6: Datum | H6: Satz | J6: ASCII | K6: ASCII
G7: =DATE(YEAR(B3),MONTH(B3),IF(MONTH(INDIRECT("'S. "&N3-1&"'!B3"))=MONTH(B3),DAY(INDIRECT("'S. "&N3-1&"'!L4")),1)) -> 44075
C8: =A8-B8 -> 0 | D8: =D6+C8 -> 0 | E8: =IF(K8="","",IF(AND(A8+B8>0,H8=""),"USt. ?",IF(OR(K8="USt. ?",K8="Name?"),K8,IF(ISERROR(INDEX(Konten!A:E,MATCH(M8,Konten!A:A,0),MATCH(H8,Konten!$A$3:$E$3,0))),"Konto ?",IF(AND(O8=0,RIGHT(K8,5)*1>=10000),RIGHT(K8,5),K8))))) ->  | F8: =IF(INDIRECT("'S. "&N3-1&"'!A43")=0,1,IF(ROUND(A41+B41,2)=0,INDIRECT("'S. "&N3-1&"'!"&INDIRECT("'S. "&N3-1&"'!J3")),INDIRECT("'S. "&N3-1&"'!"&INDIRECT("'S. "&N3-1&"'!J3"))+1)) -> 1 | I8: =IF(LEN(E8)<6,"",LEFT(E8,LEN(E8)-5)) ->  | J8: =RIGHT(E8,5) ->  | K8: =IF(M8="","",IF(AND(A8+B8>0,H8=""),"USt. ?",IF(M8="diverse Kunden",INDEX(Kunden!A:E,MATCH(N8,Kunden!A:A,1),MATCH(H8,Kunden!$A$3:$E$3,0)),IF(M8="diverse Lieferanten",INDEX(Lief.!A:E,MATCH(N8,Lief.!A:A,1),MATCH(H8,Lief.!$A$3:$E$3,0)),IF(ISERROR(INDEX(Konten!A:E,MATCH(M8,Konten!A:A,0),MATCH(H8,Konten!$A$3:$E$3,0))),"Konto ?",INDEX(Konten!A:E,MATCH(M8,Konten!A:A,0),MATCH(H8,Konten!$A$3:$E$3,0))))))) ->  | L8: =$M$3 -> 1600 | P8: 0
C9: =A9-B9 -> 0 | D9: =IF(ROUND(C9,2)=0,"",D8+C9) ->  | E9: =IF(K9="","",IF(AND(A9+B9>0,H9=""),"USt. ?",IF(OR(K9="USt. ?",K9="Name?"),K9,IF(ISERROR(INDEX(Konten!A:E,MATCH(M9,Konten!A:A,0),MATCH(H9,Konten!$A$3:$E$3,0))),"Konto ?",IF(AND(O9=0,RIGHT(K9,5)*1>=10000),RIGHT(K9,5),K9))))) ->  | F9: =IF(A9+B9=0," ",F8+1) ->  | I9: =IF(LEN(E9)<6,"",LEFT(E9,LEN(E9)-5)) ->  | J9: =RIGHT(E9,5) ->  | K9: =IF(M9="","",IF(AND(A9+B9>0,H9=""),"USt. ?",IF(M9="diverse Kunden",INDEX(Kunden!A:E,MATCH(N9,Kunden!A:A,1),MATCH(H9,Kunden!$A$3:$E$3,0)),IF(M9="diverse Lieferanten",INDEX(Lief.!A:E,MATCH(N9,Lief.!A:A,1),MATCH(H9,Lief.!$A$3:$E$3,0)),IF(ISERROR(INDEX(Konten!A:E,MATCH(M9,Konten!A:A,0),MATCH(H9,Konten!$A$3:$E$3,0))),"Konto ?",INDEX(Konten!A:E,MATCH(M9,Konten!A:A,0),MATCH(H9,Konten!$A$3:$E$3,0))))))) ->  | L9: 1600 | P9: 0
C10: 0 | D10: =IF(ROUND(C10,2)=0,"",D9+C10) ->  | E10: =IF(K10="","",IF(AND(A10+B10>0,H10=""),"USt. ?",IF(OR(K10="USt. ?",K10="Name?"),K10,IF(ISERROR(INDEX(Konten!A:E,MATCH(M10,Konten!A:A,0),MATCH(H10,Konten!$A$3:$E$3,0))),"Konto ?",IF(AND(O10=0,RIGHT(K10,5)*1>=10000),RIGHT(K10,5),K10))))) ->  | K10: =IF(M10="","",IF(AND(A10+B10>0,H10=""),"USt. ?",IF(M10="diverse Kunden",INDEX(Kunden!A:E,MATCH(N10,Kunden!A:A,1),MATCH(H10,Kunden!$A$3:$E$3,0)),IF(M10="diverse Lieferanten",INDEX(Lief.!A:E,MATCH(N10,Lief.!A:A,1),MATCH(H10,Lief.!$A$3:$E$3,0)),IF(ISERROR(INDEX(Konten!A:E,MATCH(M10,Konten!A:A,0),MATCH(H10,Konten!$A$3:$E$3,0))),"Konto ?",INDEX(Konten!A:E,MATCH(M10,Konten!A:A,0),MATCH(H10,Konten!$A$3:$E$3,0))))))) ->  | L10: 1600 | P10: 0
C11: 0 | E11: =IF(K11="","",IF(AND(A11+B11>0,H11=""),"USt. ?",IF(OR(K11="USt. ?",K11="Name?"),K11,IF(ISERROR(INDEX(Konten!A:E,MATCH(M11,Konten!A:A,0),MATCH(H11,Konten!$A$3:$E$3,0))),"Konto ?",IF(AND(O11=0,RIGHT(K11,5)*1>=10000),RIGHT(K11,5),K11))))) ->  | K11: =IF(M11="","",IF(AND(A11+B11>0,H11=""),"USt. ?",IF(M11="diverse Kunden",INDEX(Kunden!A:E,MATCH(N11,Kunden!A:A,1),MATCH(H11,Kunden!$A$3:$E$3,0)),IF(M11="diverse Lieferanten",INDEX(Lief.!A:E,MATCH(N11,Lief.!A:A,1),MATCH(H11,Lief.!$A$3:$E$3,0)),IF(ISERROR(INDEX(Konten!A:E,MATCH(M11,Konten!A:A,0),MATCH(H11,Konten!$A$3:$E$3,0))),"Konto ?",INDEX(Konten!A:E,MATCH(M11,Konten!A:A,0),MATCH(H11,Konten!$A$3:$E$3,0))))))) ->  | L11: 1600 | P11: 0
C12: 0 | E12: =IF(K12="","",IF(AND(A12+B12>0,H12=""),"USt. ?",IF(OR(K12="USt. ?",K12="Name?"),K12,IF(ISERROR(INDEX(Konten!A:E,MATCH(M12,Konten!A:A,0),MATCH(H12,Konten!$A$3:$E$3,0))),"Konto ?",IF(AND(O12=0,RIGHT(K12,5)*1>=10000),RIGHT(K12,5),K12))))) ->  | K12: =IF(M12="","",IF(AND(A12+B12>0,H12=""),"USt. ?",IF(M12="diverse Kunden",INDEX(Kunden!A:E,MATCH(N12,Kunden!A:A,1),MATCH(H12,Kunden!$A$3:$E$3,0)),IF(M12="diverse Lieferanten",INDEX(Lief.!A:E,MATCH(N12,Lief.!A:A,1),MATCH(H12,Lief.!$A$3:$E$3,0)),IF(ISERROR(INDEX(Konten!A:E,MATCH(M12,Konten!A:A,0),MATCH(H12,Konten!$A$3:$E$3,0))),"Konto ?",INDEX(Konten!A:E,MATCH(M12,Konten!A:A,0),MATCH(H12,Konten!$A$3:$E$3,0))))))) ->  | L12: 1600 | P12: 0
C13: 0 | E13: =IF(K13="","",IF(AND(A13+B13>0,H13=""),"USt. ?",IF(OR(K13="USt. ?",K13="Name?"),K13,IF(ISERROR(INDEX(Konten!A:E,MATCH(M13,Konten!A:A,0),MATCH(H13,Konten!$A$3:$E$3,0))),"Konto ?",IF(AND(O13=0,RIGHT(K13,5)*1>=10000),RIGHT(K13,5),K13))))) ->  | K13: =IF(M13="","",IF(AND(A13+B13>0,H13=""),"USt. ?",IF(M13="diverse Kunden",INDEX(Kunden!A:E,MATCH(N13,Kunden!A:A,1),MATCH(H13,Kunden!$A$3:$E$3,0)),IF(M13="diverse Lieferanten",INDEX(Lief.!A:E,MATCH(N13,Lief.!A:A,1),MATCH(H13,Lief.!$A$3:$E$3,0)),IF(ISERROR(INDEX(Konten!A:E,MATCH(M13,Konten!A:A,0),MATCH(H13,Konten!$A$3:$E$3,0))),"Konto ?",INDEX(Konten!A:E,MATCH(M13,Konten!A:A,0),MATCH(H13,Konten!$A$3:$E$3,0))))))) ->  | L13: 1600 | P13: 0
C14: 0 | E14: =IF(K14="","",IF(AND(A14+B14>0,H14=""),"USt. ?",IF(OR(K14="USt. ?",K14="Name?"),K14,IF(ISERROR(INDEX(Konten!A:E,MATCH(M14,Konten!A:A,0),MATCH(H14,Konten!$A$3:$E$3,0))),"Konto ?",IF(AND(O14=0,RIGHT(K14,5)*1>=10000),RIGHT(K14,5),K14))))) ->  | K14: =IF(M14="","",IF(AND(A14+B14>0,H14=""),"USt. ?",IF(M14="diverse Kunden",INDEX(Kunden!A:E,MATCH(N14,Kunden!A:A,1),MATCH(H14,Kunden!$A$3:$E$3,0)),IF(M14="diverse Lieferanten",INDEX(Lief.!A:E,MATCH(N14,Lief.!A:A,1),MATCH(H14,Lief.!$A$3:$E$3,0)),IF(ISERROR(INDEX(Konten!A:E,MATCH(M14,Konten!A:A,0),MATCH(H14,Konten!$A$3:$E$3,0))),"Konto ?",INDEX(Konten!A:E,MATCH(M14,Konten!A:A,0),MATCH(H14,Konten!$A$3:$E$3,0))))))) ->  | L14: 1600 | P14: 0
C15: 0 | E15: =IF(K15="","",IF(AND(A15+B15>0,H15=""),"USt. ?",IF(OR(K15="USt. ?",K15="Name?"),K15,IF(ISERROR(INDEX(Konten!A:E,MATCH(M15,Konten!A:A,0),MATCH(H15,Konten!$A$3:$E$3,0))),"Konto ?",IF(AND(O15=0,RIGHT(K15,5)*1>=10000),RIGHT(K15,5),K15))))) ->  | K15: =IF(M15="","",IF(AND(A15+B15>0,H15=""),"USt. ?",IF(M15="diverse Kunden",INDEX(Kunden!A:E,MATCH(N15,Kunden!A:A,1),MATCH(H15,Kunden!$A$3:$E$3,0)),IF(M15="diverse Lieferanten",INDEX(Lief.!A:E,MATCH(N15,Lief.!A:A,1),MATCH(H15,Lief.!$A$3:$E$3,0)),IF(ISERROR(INDEX(Konten!A:E,MATCH(M15,Konten!A:A,0),MATCH(H15,Konten!$A$3:$E$3,0))),"Konto ?",INDEX(Konten!A:E,MATCH(M15,Konten!A:A,0),MATCH(H15,Konten!$A$3:$E$3,0))))))) ->  | L15: 1600 | P15: 0
C16: 0 | E16: =IF(K16="","",IF(AND(A16+B16>0,H16=""),"USt. ?",IF(OR(K16="USt. ?",K16="Name?"),K16,IF(ISERROR(INDEX(Konten!A:E,MATCH(M16,Konten!A:A,0),MATCH(H16,Konten!$A$3:$E$3,0))),"Konto ?",IF(AND(O16=0,RIGHT(K16,5)*1>=10000),RIGHT(K16,5),K16))))) ->  | K16: =IF(M16="","",IF(AND(A16+B16>0,H16=""),"USt. ?",IF(M16="diverse Kunden",INDEX(Kunden!A:E,MATCH(N16,Kunden!A:A,1),MATCH(H16,Kunden!$A$3:$E$3,0)),IF(M16="diverse Lieferanten",INDEX(Lief.!A:E,MATCH(N16,Lief.!A:A,1),MATCH(H16,Lief.!$A$3:$E$3,0)),IF(ISERROR(INDEX(Konten!A:E,MATCH(M16,Konten!A:A,0),MATCH(H16,Konten!$A$3:$E$3,0))),"Konto ?",INDEX(Konten!A:E,MATCH(M16,Konten!A:A,0),MATCH(H16,Konten!$A$3:$E$3,0))))))) ->  | L16: 1600 | P16: 0
C17: 0 | E17: =IF(K17="","",IF(AND(A17+B17>0,H17=""),"USt. ?",IF(OR(K17="USt. ?",K17="Name?"),K17,IF(ISERROR(INDEX(Konten!A:E,MATCH(M17,Konten!A:A,0),MATCH(H17,Konten!$A$3:$E$3,0))),"Konto ?",IF(AND(O17=0,RIGHT(K17,5)*1>=10000),RIGHT(K17,5),K17))))) ->  | K17: =IF(M17="","",IF(AND(A17+B17>0,H17=""),"USt. ?",IF(M17="diverse Kunden",INDEX(Kunden!A:E,MATCH(N17,Kunden!A:A,1),MATCH(H17,Kunden!$A$3:$E$3,0)),IF(M17="diverse Lieferanten",INDEX(Lief.!A:E,MATCH(N17,Lief.!A:A,1),MATCH(H17,Lief.!$A$3:$E$3,0)),IF(ISERROR(INDEX(Konten!A:E,MATCH(M17,Konten!A:A,0),MATCH(H17,Konten!$A$3:$E$3,0))),"Konto ?",INDEX(Konten!A:E,MATCH(M17,Konten!A:A,0),MATCH(H17,Konten!$A$3:$E$3,0))))))) ->  | L17: 1600 | P17: 0
C18: 0 | E18: =IF(K18="","",IF(AND(A18+B18>0,H18=""),"USt. ?",IF(OR(K18="USt. ?",K18="Name?"),K18,IF(ISERROR(INDEX(Konten!A:E,MATCH(M18,Konten!A:A,0),MATCH(H18,Konten!$A$3:$E$3,0))),"Konto ?",IF(AND(O18=0,RIGHT(K18,5)*1>=10000),RIGHT(K18,5),K18))))) ->  | K18: =IF(M18="","",IF(AND(A18+B18>0,H18=""),"USt. ?",IF(M18="diverse Kunden",INDEX(Kunden!A:E,MATCH(N18,Kunden!A:A,1),MATCH(H18,Kunden!$A$3:$E$3,0)),IF(M18="diverse Lieferanten",INDEX(Lief.!A:E,MATCH(N18,Lief.!A:A,1),MATCH(H18,Lief.!$A$3:$E$3,0)),IF(ISERROR(INDEX(Konten!A:E,MATCH(M18,Konten!A:A,0),MATCH(H18,Konten!$A$3:$E$3,0))),"Konto ?",INDEX(Konten!A:E,MATCH(M18,Konten!A:A,0),MATCH(H18,Konten!$A$3:$E$3,0))))))) ->  | L18: 1600 | P18: 0
C19: 0 | E19: =IF(K19="","",IF(AND(A19+B19>0,H19=""),"USt. ?",IF(OR(K19="USt. ?",K19="Name?"),K19,IF(ISERROR(INDEX(Konten!A:E,MATCH(M19,Konten!A:A,0),MATCH(H19,Konten!$A$3:$E$3,0))),"Konto ?",IF(AND(O19=0,RIGHT(K19,5)*1>=10000),RIGHT(K19,5),K19))))) ->  | K19: =IF(M19="","",IF(AND(A19+B19>0,H19=""),"USt. ?",IF(M19="diverse Kunden",INDEX(Kunden!A:E,MATCH(N19,Kunden!A:A,1),MATCH(H19,Kunden!$A$3:$E$3,0)),IF(M19="diverse Lieferanten",INDEX(Lief.!A:E,MATCH(N19,Lief.!A:A,1),MATCH(H19,Lief.!$A$3:$E$3,0)),IF(ISERROR(INDEX(Konten!A:E,MATCH(M19,Konten!A:A,0),MATCH(H19,Konten!$A$3:$E$3,0))),"Konto ?",INDEX(Konten!A:E,MATCH(M19,Konten!A:A,0),MATCH(H19,Konten!$A$3:$E$3,0))))))) ->  | L19: 1600 | P19: 0
C20: 0 | E20: =IF(K20="","",IF(AND(A20+B20>0,H20=""),"USt. ?",IF(OR(K20="USt. ?",K20="Name?"),K20,IF(ISERROR(INDEX(Konten!A:E,MATCH(M20,Konten!A:A,0),MATCH(H20,Konten!$A$3:$E$3,0))),"Konto ?",IF(AND(O20=0,RIGHT(K20,5)*1>=10000),RIGHT(K20,5),K20))))) ->  | K20: =IF(M20="","",IF(AND(A20+B20>0,H20=""),"USt. ?",IF(M20="diverse Kunden",INDEX(Kunden!A:E,MATCH(N20,Kunden!A:A,1),MATCH(H20,Kunden!$A$3:$E$3,0)),IF(M20="diverse Lieferanten",INDEX(Lief.!A:E,MATCH(N20,Lief.!A:A,1),MATCH(H20,Lief.!$A$3:$E$3,0)),IF(ISERROR(INDEX(Konten!A:E,MATCH(M20,Konten!A:A,0),MATCH(H20,Konten!$A$3:$E$3,0))),"Konto ?",INDEX(Konten!A:E,MATCH(M20,Konten!A:A,0),MATCH(H20,Konten!$A$3:$E$3,0))))))) ->  | L20: 1600 | P20: 0
C21: 0 | E21: =IF(K21="","",IF(AND(A21+B21>0,H21=""),"USt. ?",IF(OR(K21="USt. ?",K21="Name?"),K21,IF(ISERROR(INDEX(Konten!A:E,MATCH(M21,Konten!A:A,0),MATCH(H21,Konten!$A$3:$E$3,0))),"Konto ?",IF(AND(O21=0,RIGHT(K21,5)*1>=10000),RIGHT(K21,5),K21))))) ->  | K21: =IF(M21="","",IF(AND(A21+B21>0,H21=""),"USt. ?",IF(M21="diverse Kunden",INDEX(Kunden!A:E,MATCH(N21,Kunden!A:A,1),MATCH(H21,Kunden!$A$3:$E$3,0)),IF(M21="diverse Lieferanten",INDEX(Lief.!A:E,MATCH(N21,Lief.!A:A,1),MATCH(H21,Lief.!$A$3:$E$3,0)),IF(ISERROR(INDEX(Konten!A:E,MATCH(M21,Konten!A:A,0),MATCH(H21,Konten!$A$3:$E$3,0))),"Konto ?",INDEX(Konten!A:E,MATCH(M21,Konten!A:A,0),MATCH(H21,Konten!$A$3:$E$3,0))))))) ->  | L21: 1600 | P21: 0
C22: 0 | E22: =IF(K22="","",IF(AND(A22+B22>0,H22=""),"USt. ?",IF(OR(K22="USt. ?",K22="Name?"),K22,IF(ISERROR(INDEX(Konten!A:E,MATCH(M22,Konten!A:A,0),MATCH(H22,Konten!$A$3:$E$3,0))),"Konto ?",IF(AND(O22=0,RIGHT(K22,5)*1>=10000),RIGHT(K22,5),K22))))) ->  | K22: =IF(M22="","",IF(AND(A22+B22>0,H22=""),"USt. ?",IF(M22="diverse Kunden",INDEX(Kunden!A:E,MATCH(N22,Kunden!A:A,1),MATCH(H22,Kunden!$A$3:$E$3,0)),IF(M22="diverse Lieferanten",INDEX(Lief.!A:E,MATCH(N22,Lief.!A:A,1),MATCH(H22,Lief.!$A$3:$E$3,0)),IF(ISERROR(INDEX(Konten!A:E,MATCH(M22,Konten!A:A,0),MATCH(H22,Konten!$A$3:$E$3,0))),"Konto ?",INDEX(Konten!A:E,MATCH(M22,Konten!A:A,0),MATCH(H22,Konten!$A$3:$E$3,0))))))) ->  | L22: 1600 | P22: 0
C23: 0 | E23: =IF(K23="","",IF(AND(A23+B23>0,H23=""),"USt. ?",IF(OR(K23="USt. ?",K23="Name?"),K23,IF(ISERROR(INDEX(Konten!A:E,MATCH(M23,Konten!A:A,0),MATCH(H23,Konten!$A$3:$E$3,0))),"Konto ?",IF(AND(O23=0,RIGHT(K23,5)*1>=10000),RIGHT(K23,5),K23))))) ->  | K23: =IF(M23="","",IF(AND(A23+B23>0,H23=""),"USt. ?",IF(M23="diverse Kunden",INDEX(Kunden!A:E,MATCH(N23,Kunden!A:A,1),MATCH(H23,Kunden!$A$3:$E$3,0)),IF(M23="diverse Lieferanten",INDEX(Lief.!A:E,MATCH(N23,Lief.!A:A,1),MATCH(H23,Lief.!$A$3:$E$3,0)),IF(ISERROR(INDEX(Konten!A:E,MATCH(M23,Konten!A:A,0),MATCH(H23,Konten!$A$3:$E$3,0))),"Konto ?",INDEX(Konten!A:E,MATCH(M23,Konten!A:A,0),MATCH(H23,Konten!$A$3:$E$3,0))))))) ->  | L23: 1600 | P23: 0
C24: 0 | E24: =IF(K24="","",IF(AND(A24+B24>0,H24=""),"USt. ?",IF(OR(K24="USt. ?",K24="Name?"),K24,IF(ISERROR(INDEX(Konten!A:E,MATCH(M24,Konten!A:A,0),MATCH(H24,Konten!$A$3:$E$3,0))),"Konto ?",IF(AND(O24=0,RIGHT(K24,5)*1>=10000),RIGHT(K24,5),K24))))) ->  | K24: =IF(M24="","",IF(AND(A24+B24>0,H24=""),"USt. ?",IF(M24="diverse Kunden",INDEX(Kunden!A:E,MATCH(N24,Kunden!A:A,1),MATCH(H24,Kunden!$A$3:$E$3,0)),IF(M24="diverse Lieferanten",INDEX(Lief.!A:E,MATCH(N24,Lief.!A:A,1),MATCH(H24,Lief.!$A$3:$E$3,0)),IF(ISERROR(INDEX(Konten!A:E,MATCH(M24,Konten!A:A,0),MATCH(H24,Konten!$A$3:$E$3,0))),"Konto ?",INDEX(Konten!A:E,MATCH(M24,Konten!A:A,0),MATCH(H24,Konten!$A$3:$E$3,0))))))) ->  | L24: 1600 | P24: 0
C25: 0 | E25: =IF(K25="","",IF(AND(A25+B25>0,H25=""),"USt. ?",IF(OR(K25="USt. ?",K25="Name?"),K25,IF(ISERROR(INDEX(Konten!A:E,MATCH(M25,Konten!A:A,0),MATCH(H25,Konten!$A$3:$E$3,0))),"Konto ?",IF(AND(O25=0,RIGHT(K25,5)*1>=10000),RIGHT(K25,5),K25))))) ->  | K25: =IF(M25="","",IF(AND(A25+B25>0,H25=""),"USt. ?",IF(M25="diverse Kunden",INDEX(Kunden!A:E,MATCH(N25,Kunden!A:A,1),MATCH(H25,Kunden!$A$3:$E$3,0)),IF(M25="diverse Lieferanten",INDEX(Lief.!A:E,MATCH(N25,Lief.!A:A,1),MATCH(H25,Lief.!$A$3:$E$3,0)),IF(ISERROR(INDEX(Konten!A:E,MATCH(M25,Konten!A:A,0),MATCH(H25,Konten!$A$3:$E$3,0))),"Konto ?",INDEX(Konten!A:E,MATCH(M25,Konten!A:A,0),MATCH(H25,Konten!$A$3:$E$3,0))))))) ->  | L25: 1600 | P25: 0
C26: 0 | E26: =IF(K26="","",IF(AND(A26+B26>0,H26=""),"USt. ?",IF(OR(K26="USt. ?",K26="Name?"),K26,IF(ISERROR(INDEX(Konten!A:E,MATCH(M26,Konten!A:A,0),MATCH(H26,Konten!$A$3:$E$3,0))),"Konto ?",IF(AND(O26=0,RIGHT(K26,5)*1>=10000),RIGHT(K26,5),K26))))) ->  | K26: =IF(M26="","",IF(AND(A26+B26>0,H26=""),"USt. ?",IF(M26="diverse Kunden",INDEX(Kunden!A:E,MATCH(N26,Kunden!A:A,1),MATCH(H26,Kunden!$A$3:$E$3,0)),IF(M26="diverse Lieferanten",INDEX(Lief.!A:E,MATCH(N26,Lief.!A:A,1),MATCH(H26,Lief.!$A$3:$E$3,0)),IF(ISERROR(INDEX(Konten!A:E,MATCH(M26,Konten!A:A,0),MATCH(H26,Konten!$A$3:$E$3,0))),"Konto ?",INDEX(Konten!A:E,MATCH(M26,Konten!A:A,0),MATCH(H26,Konten!$A$3:$E$3,0))))))) ->  | L26: 1600 | P26: 0
C27: 0 | E27: =IF(K27="","",IF(AND(A27+B27>0,H27=""),"USt. ?",IF(OR(K27="USt. ?",K27="Name?"),K27,IF(ISERROR(INDEX(Konten!A:E,MATCH(M27,Konten!A:A,0),MATCH(H27,Konten!$A$3:$E$3,0))),"Konto ?",IF(AND(O27=0,RIGHT(K27,5)*1>=10000),RIGHT(K27,5),K27))))) ->  | K27: =IF(M27="","",IF(AND(A27+B27>0,H27=""),"USt. ?",IF(M27="diverse Kunden",INDEX(Kunden!A:E,MATCH(N27,Kunden!A:A,1),MATCH(H27,Kunden!$A$3:$E$3,0)),IF(M27="diverse Lieferanten",INDEX(Lief.!A:E,MATCH(N27,Lief.!A:A,1),MATCH(H27,Lief.!$A$3:$E$3,0)),IF(ISERROR(INDEX(Konten!A:E,MATCH(M27,Konten!A:A,0),MATCH(H27,Konten!$A$3:$E$3,0))),"Konto ?",INDEX(Konten!A:E,MATCH(M27,Konten!A:A,0),MATCH(H27,Konten!$A$3:$E$3,0))))))) ->  | L27: 1600 | P27: 0
C28: 0 | E28: =IF(K28="","",IF(AND(A28+B28>0,H28=""),"USt. ?",IF(OR(K28="USt. ?",K28="Name?"),K28,IF(ISERROR(INDEX(Konten!A:E,MATCH(M28,Konten!A:A,0),MATCH(H28,Konten!$A$3:$E$3,0))),"Konto ?",IF(AND(O28=0,RIGHT(K28,5)*1>=10000),RIGHT(K28,5),K28))))) ->  | K28: =IF(M28="","",IF(AND(A28+B28>0,H28=""),"USt. ?",IF(M28="diverse Kunden",INDEX(Kunden!A:E,MATCH(N28,Kunden!A:A,1),MATCH(H28,Kunden!$A$3:$E$3,0)),IF(M28="diverse Lieferanten",INDEX(Lief.!A:E,MATCH(N28,Lief.!A:A,1),MATCH(H28,Lief.!$A$3:$E$3,0)),IF(ISERROR(INDEX(Konten!A:E,MATCH(M28,Konten!A:A,0),MATCH(H28,Konten!$A$3:$E$3,0))),"Konto ?",INDEX(Konten!A:E,MATCH(M28,Konten!A:A,0),MATCH(H28,Konten!$A$3:$E$3,0))))))) ->  | L28: 1600 | P28: 0
C29: 0 | E29: =IF(K29="","",IF(AND(A29+B29>0,H29=""),"USt. ?",IF(OR(K29="USt. ?",K29="Name?"),K29,IF(ISERROR(INDEX(Konten!A:E,MATCH(M29,Konten!A:A,0),MATCH(H29,Konten!$A$3:$E$3,0))),"Konto ?",IF(AND(O29=0,RIGHT(K29,5)*1>=10000),RIGHT(K29,5),K29))))) ->  | K29: =IF(M29="","",IF(AND(A29+B29>0,H29=""),"USt. ?",IF(M29="diverse Kunden",INDEX(Kunden!A:E,MATCH(N29,Kunden!A:A,1),MATCH(H29,Kunden!$A$3:$E$3,0)),IF(M29="diverse Lieferanten",INDEX(Lief.!A:E,MATCH(N29,Lief.!A:A,1),MATCH(H29,Lief.!$A$3:$E$3,0)),IF(ISERROR(INDEX(Konten!A:E,MATCH(M29,Konten!A:A,0),MATCH(H29,Konten!$A$3:$E$3,0))),"Konto ?",INDEX(Konten!A:E,MATCH(M29,Konten!A:A,0),MATCH(H29,Konten!$A$3:$E$3,0))))))) ->  | L29: 1600 | P29: 0
C30: 0 | E30: =IF(K30="","",IF(AND(A30+B30>0,H30=""),"USt. ?",IF(OR(K30="USt. ?",K30="Name?"),K30,IF(ISERROR(INDEX(Konten!A:E,MATCH(M30,Konten!A:A,0),MATCH(H30,Konten!$A$3:$E$3,0))),"Konto ?",IF(AND(O30=0,RIGHT(K30,5)*1>=10000),RIGHT(K30,5),K30))))) ->  | K30: =IF(M30="","",IF(AND(A30+B30>0,H30=""),"USt. ?",IF(M30="diverse Kunden",INDEX(Kunden!A:E,MATCH(N30,Kunden!A:A,1),MATCH(H30,Kunden!$A$3:$E$3,0)),IF(M30="diverse Lieferanten",INDEX(Lief.!A:E,MATCH(N30,Lief.!A:A,1),MATCH(H30,Lief.!$A$3:$E$3,0)),IF(ISERROR(INDEX(Konten!A:E,MATCH(M30,Konten!A:A,0),MATCH(H30,Konten!$A$3:$E$3,0))),"Konto ?",INDEX(Konten!A:E,MATCH(M30,Konten!A:A,0),MATCH(H30,Konten!$A$3:$E$3,0))))))) ->  | L30: 1600 | P30: 0
C31: 0 | E31: =IF(K31="","",IF(AND(A31+B31>0,H31=""),"USt. ?",IF(OR(K31="USt. ?",K31="Name?"),K31,IF(ISERROR(INDEX(Konten!A:E,MATCH(M31,Konten!A:A,0),MATCH(H31,Konten!$A$3:$E$3,0))),"Konto ?",IF(AND(O31=0,RIGHT(K31,5)*1>=10000),RIGHT(K31,5),K31))))) ->  | K31: =IF(M31="","",IF(AND(A31+B31>0,H31=""),"USt. ?",IF(M31="diverse Kunden",INDEX(Kunden!A:E,MATCH(N31,Kunden!A:A,1),MATCH(H31,Kunden!$A$3:$E$3,0)),IF(M31="diverse Lieferanten",INDEX(Lief.!A:E,MATCH(N31,Lief.!A:A,1),MATCH(H31,Lief.!$A$3:$E$3,0)),IF(ISERROR(INDEX(Konten!A:E,MATCH(M31,Konten!A:A,0),MATCH(H31,Konten!$A$3:$E$3,0))),"Konto ?",INDEX(Konten!A:E,MATCH(M31,Konten!A:A,0),MATCH(H31,Konten!$A$3:$E$3,0))))))) ->  | L31: 1600 | P31: 0
C32: 0 | E32: =IF(K32="","",IF(AND(A32+B32>0,H32=""),"USt. ?",IF(OR(K32="USt. ?",K32="Name?"),K32,IF(ISERROR(INDEX(Konten!A:E,MATCH(M32,Konten!A:A,0),MATCH(H32,Konten!$A$3:$E$3,0))),"Konto ?",IF(AND(O32=0,RIGHT(K32,5)*1>=10000),RIGHT(K32,5),K32))))) ->  | K32: =IF(M32="","",IF(AND(A32+B32>0,H32=""),"USt. ?",IF(M32="diverse Kunden",INDEX(Kunden!A:E,MATCH(N32,Kunden!A:A,1),MATCH(H32,Kunden!$A$3:$E$3,0)),IF(M32="diverse Lieferanten",INDEX(Lief.!A:E,MATCH(N32,Lief.!A:A,1),MATCH(H32,Lief.!$A$3:$E$3,0)),IF(ISERROR(INDEX(Konten!A:E,MATCH(M32,Konten!A:A,0),MATCH(H32,Konten!$A$3:$E$3,0))),"Konto ?",INDEX(Konten!A:E,MATCH(M32,Konten!A:A,0),MATCH(H32,Konten!$A$3:$E$3,0))))))) ->  | L32: 1600 | P32: 0
C33: 0 | E33: =IF(K33="","",IF(AND(A33+B33>0,H33=""),"USt. ?",IF(OR(K33="USt. ?",K33="Name?"),K33,IF(ISERROR(INDEX(Konten!A:E,MATCH(M33,Konten!A:A,0),MATCH(H33,Konten!$A$3:$E$3,0))),"Konto ?",IF(AND(O33=0,RIGHT(K33,5)*1>=10000),RIGHT(K33,5),K33))))) ->  | K33: =IF(M33="","",IF(AND(A33+B33>0,H33=""),"USt. ?",IF(M33="diverse Kunden",INDEX(Kunden!A:E,MATCH(N33,Kunden!A:A,1),MATCH(H33,Kunden!$A$3:$E$3,0)),IF(M33="diverse Lieferanten",INDEX(Lief.!A:E,MATCH(N33,Lief.!A:A,1),MATCH(H33,Lief.!$A$3:$E$3,0)),IF(ISERROR(INDEX(Konten!A:E,MATCH(M33,Konten!A:A,0),MATCH(H33,Konten!$A$3:$E$3,0))),"Konto ?",INDEX(Konten!A:E,MATCH(M33,Konten!A:A,0),MATCH(H33,Konten!$A$3:$E$3,0))))))) ->  | L33: 1600 | P33: 0
C34: 0 | E34: =IF(K34="","",IF(AND(A34+B34>0,H34=""),"USt. ?",IF(OR(K34="USt. ?",K34="Name?"),K34,IF(ISERROR(INDEX(Konten!A:E,MATCH(M34,Konten!A:A,0),MATCH(H34,Konten!$A$3:$E$3,0))),"Konto ?",IF(AND(O34=0,RIGHT(K34,5)*1>=10000),RIGHT(K34,5),K34))))) ->  | K34: =IF(M34="","",IF(AND(A34+B34>0,H34=""),"USt. ?",IF(M34="diverse Kunden",INDEX(Kunden!A:E,MATCH(N34,Kunden!A:A,1),MATCH(H34,Kunden!$A$3:$E$3,0)),IF(M34="diverse Lieferanten",INDEX(Lief.!A:E,MATCH(N34,Lief.!A:A,1),MATCH(H34,Lief.!$A$3:$E$3,0)),IF(ISERROR(INDEX(Konten!A:E,MATCH(M34,Konten!A:A,0),MATCH(H34,Konten!$A$3:$E$3,0))),"Konto ?",INDEX(Konten!A:E,MATCH(M34,Konten!A:A,0),MATCH(H34,Konten!$A$3:$E$3,0))))))) ->  | L34: 1600 | P34: 0
C35: 0 | E35: =IF(K35="","",IF(AND(A35+B35>0,H35=""),"USt. ?",IF(OR(K35="USt. ?",K35="Name?"),K35,IF(ISERROR(INDEX(Konten!A:E,MATCH(M35,Konten!A:A,0),MATCH(H35,Konten!$A$3:$E$3,0))),"Konto ?",IF(AND(O35=0,RIGHT(K35,5)*1>=10000),RIGHT(K35,5),K35))))) ->  | K35: =IF(M35="","",IF(AND(A35+B35>0,H35=""),"USt. ?",IF(M35="diverse Kunden",INDEX(Kunden!A:E,MATCH(N35,Kunden!A:A,1),MATCH(H35,Kunden!$A$3:$E$3,0)),IF(M35="diverse Lieferanten",INDEX(Lief.!A:E,MATCH(N35,Lief.!A:A,1),MATCH(H35,Lief.!$A$3:$E$3,0)),IF(ISERROR(INDEX(Konten!A:E,MATCH(M35,Konten!A:A,0),MATCH(H35,Konten!$A$3:$E$3,0))),"Konto ?",INDEX(Konten!A:E,MATCH(M35,Konten!A:A,0),MATCH(H35,Konten!$A$3:$E$3,0))))))) ->  | L35: 1600 | P35: 0
C36: 0 | E36: =IF(K36="","",IF(AND(A36+B36>0,H36=""),"USt. ?",IF(OR(K36="USt. ?",K36="Name?"),K36,IF(ISERROR(INDEX(Konten!A:E,MATCH(M36,Konten!A:A,0),MATCH(H36,Konten!$A$3:$E$3,0))),"Konto ?",IF(AND(O36=0,RIGHT(K36,5)*1>=10000),RIGHT(K36,5),K36))))) ->  | K36: =IF(M36="","",IF(AND(A36+B36>0,H36=""),"USt. ?",IF(M36="diverse Kunden",INDEX(Kunden!A:E,MATCH(N36,Kunden!A:A,1),MATCH(H36,Kunden!$A$3:$E$3,0)),IF(M36="diverse Lieferanten",INDEX(Lief.!A:E,MATCH(N36,Lief.!A:A,1),MATCH(H36,Lief.!$A$3:$E$3,0)),IF(ISERROR(INDEX(Konten!A:E,MATCH(M36,Konten!A:A,0),MATCH(H36,Konten!$A$3:$E$3,0))),"Konto ?",INDEX(Konten!A:E,MATCH(M36,Konten!A:A,0),MATCH(H36,Konten!$A$3:$E$3,0))))))) ->  | L36: 1600 | P36: 0
C37: 0 | E37: =IF(K37="","",IF(AND(A37+B37>0,H37=""),"USt. ?",IF(OR(K37="USt. ?",K37="Name?"),K37,IF(ISERROR(INDEX(Konten!A:E,MATCH(M37,Konten!A:A,0),MATCH(H37,Konten!$A$3:$E$3,0))),"Konto ?",IF(AND(O37=0,RIGHT(K37,5)*1>=10000),RIGHT(K37,5),K37))))) ->  | K37: =IF(M37="","",IF(AND(A37+B37>0,H37=""),"USt. ?",IF(M37="diverse Kunden",INDEX(Kunden!A:E,MATCH(N37,Kunden!A:A,1),MATCH(H37,Kunden!$A$3:$E$3,0)),IF(M37="diverse Lieferanten",INDEX(Lief.!A:E,MATCH(N37,Lief.!A:A,1),MATCH(H37,Lief.!$A$3:$E$3,0)),IF(ISERROR(INDEX(Konten!A:E,MATCH(M37,Konten!A:A,0),MATCH(H37,Konten!$A$3:$E$3,0))),"Konto ?",INDEX(Konten!A:E,MATCH(M37,Konten!A:A,0),MATCH(H37,Konten!$A$3:$E$3,0))))))) ->  | L37: 1600 | P37: 0
C38: 0 | E38: =IF(K38="","",IF(AND(A38+B38>0,H38=""),"USt. ?",IF(OR(K38="USt. ?",K38="Name?"),K38,IF(ISERROR(INDEX(Konten!A:E,MATCH(M38,Konten!A:A,0),MATCH(H38,Konten!$A$3:$E$3,0))),"Konto ?",IF(AND(O38=0,RIGHT(K38,5)*1>=10000),RIGHT(K38,5),K38))))) ->  | K38: =IF(M38="","",IF(AND(A38+B38>0,H38=""),"USt. ?",IF(M38="diverse Kunden",INDEX(Kunden!A:E,MATCH(N38,Kunden!A:A,1),MATCH(H38,Kunden!$A$3:$E$3,0)),IF(M38="diverse Lieferanten",INDEX(Lief.!A:E,MATCH(N38,Lief.!A:A,1),MATCH(H38,Lief.!$A$3:$E$3,0)),IF(ISERROR(INDEX(Konten!A:E,MATCH(M38,Konten!A:A,0),MATCH(H38,Konten!$A$3:$E$3,0))),"Konto ?",INDEX(Konten!A:E,MATCH(M38,Konten!A:A,0),MATCH(H38,Konten!$A$3:$E$3,0))))))) ->  | L38: 1600 | P38: 0
C39: 0 | E39: =IF(K39="","",IF(AND(A39+B39>0,H39=""),"USt. ?",IF(OR(K39="USt. ?",K39="Name?"),K39,IF(ISERROR(INDEX(Konten!A:E,MATCH(M39,Konten!A:A,0),MATCH(H39,Konten!$A$3:$E$3,0))),"Konto ?",IF(AND(O39=0,RIGHT(K39,5)*1>=10000),RIGHT(K39,5),K39))))) ->  | K39: =IF(M39="","",IF(AND(A39+B39>0,H39=""),"USt. ?",IF(M39="diverse Kunden",INDEX(Kunden!A:E,MATCH(N39,Kunden!A:A,1),MATCH(H39,Kunden!$A$3:$E$3,0)),IF(M39="diverse Lieferanten",INDEX(Lief.!A:E,MATCH(N39,Lief.!A:A,1),MATCH(H39,Lief.!$A$3:$E$3,0)),IF(ISERROR(INDEX(Konten!A:E,MATCH(M39,Konten!A:A,0),MATCH(H39,Konten!$A$3:$E$3,0))),"Konto ?",INDEX(Konten!A:E,MATCH(M39,Konten!A:A,0),MATCH(H39,Konten!$A$3:$E$3,0))))))) ->  | L39: 1600 | P39: 0
C40: 0 | E40: =IF(K40="","",IF(AND(A40+B40>0,H40=""),"USt. ?",IF(OR(K40="USt. ?",K40="Name?"),K40,IF(ISERROR(INDEX(Konten!A:E,MATCH(M40,Konten!A:A,0),MATCH(H40,Konten!$A$3:$E$3,0))),"Konto ?",IF(AND(O40=0,RIGHT(K40,5)*1>=10000),RIGHT(K40,5),K40))))) ->  | K40: =IF(M40="","",IF(AND(A40+B40>0,H40=""),"USt. ?",IF(M40="diverse Kunden",INDEX(Kunden!A:E,MATCH(N40,Kunden!A:A,1),MATCH(H40,Kunden!$A$3:$E$3,0)),IF(M40="diverse Lieferanten",INDEX(Lief.!A:E,MATCH(N40,Lief.!A:A,1),MATCH(H40,Lief.!$A$3:$E$3,0)),IF(ISERROR(INDEX(Konten!A:E,MATCH(M40,Konten!A:A,0),MATCH(H40,Konten!$A$3:$E$3,0))),"Konto ?",INDEX(Konten!A:E,MATCH(M40,Konten!A:A,0),MATCH(H40,Konten!$A$3:$E$3,0))))))) ->  | L40: 1600 | P40: 0
A41: =SUM(A8:A40) -> 0 | B41: =SUM(B8:B40) -> 0 | D41: Summen | M41: Unterschrift:
A42: =D6 -> 0 | B42: =INDIRECT("D"&COUNT(D8:D40)+7) -> 0 | D42: Bestand Anfang / Ende | K42: =MIN(D8:D42) -> 0 | M42: geprüft: | N42: =IF(ROUND(A43-B43,2)<>0,"Kassendifferenz !!!","") -> 
A43: =SUM(A41:A42) -> 0 | B43: =SUM(B41:B42) -> 0 | D43: Kontrollsummen | K43: =MIN('S. 1:S. '!K42) -> 0 | M43: gebucht:
A44: =IF(ROUND(A43-B43,2)<>0,"Kassendifferenz !!!","") -> 

Sheet S. 10
A1: =INDIRECT("'S. "&N3-1&"'!A1") -> 0 | L1: =DATE(YEAR(B3),MONTH(B3),1) -> 2020-10-01 | M1: K a s s e n b u c h | P1: =INDIRECT("'S. "&N3-1&"'!B3") -> 2020-09-30 | Q1: 2 | Y1: =RIGHT(CELL("Dateiname",A1),LEN(CELL("Dateiname",A1))-FIND("]",CELL("Dateiname",A1))) -> S. 10 | Z1: =LEFT(Y1,SEARCH(" ",Y1)) -> S. | AA1: =RIGHT(Y1,LEN(Y1)-SEARCH(" ",Y1)) -> 10
A3: Monat: | B3: =DATE(YEAR(P1),MONTH(P1)+Q1,0) -> 2020-10-31 | J3: ="F"&LARGE(IF(F8:F40<>" ",ROW(F8:F40)),1) -> F8 | K3: =YEAR(L3) -> 2020 | L3: =B3 -> 2020-10-31 | M3: =INDIRECT("'S. "&N3-1&"'!M3") -> 1600 | N3: =IF(ISERROR(P3),1,IF(RIGHT(P3,1)=")",LEFT(RIGHT(P3,7),3)+1,Q3)) -> 10 | P3: =RIGHT(CELL("Dateiname",A1),LEN(CELL("Dateiname",A1))-FIND("]",CELL("Dateiname",A1))) -> S. 10 | Q3: =MID(P3,SEARCH(" ",P3)+1,3)*1 -> 10
K4: =MONTH(L4) -> 10 | L4: =L3 -> 2020-10-31 | N4: =IF(ISERROR(P3),"",IF(AND(RIGHT(P3,2)<>TEXT(N3," #"),RIGHT(P3,2)<>TEXT(N3,"##"),RIGHT(P3,3)<>TEXT(N3,"###")),"Name Tabellenblatt ändern in ' S. "&N3&" ' ","")) -> 
A5: Einnahmen | B5: Ausgaben | C5: Einnahmen | D5: Bestand | E5: Gegen- | F5: Beleg- | G5: Beleg- | H5: USt.- | I5: BU | J5: Gegenkonto | K5: Gegenkonto | L5: Konto | M5: Kontierung | N5: Text | O5: Skonto | P5: Festschreibung
A6: € | B6: € | C6: Ausgaben | D6: =INDIRECT("'S. "&N3-1&"'!B42") -> 0 | E6: konto | F6: Nr. | G6: Datum | H6: Satz | J6: ASCII | K6: ASCII
G7: =DATE(YEAR(B3),MONTH(B3),IF(MONTH(INDIRECT("'S. "&N3-1&"'!B3"))=MONTH(B3),DAY(INDIRECT("'S. "&N3-1&"'!L4")),1)) -> 44105
C8: =A8-B8 -> 0 | D8: =D6+C8 -> 0 | E8: =IF(K8="","",IF(AND(A8+B8>0,H8=""),"USt. ?",IF(OR(K8="USt. ?",K8="Name?"),K8,IF(ISERROR(INDEX(Konten!A:E,MATCH(M8,Konten!A:A,0),MATCH(H8,Konten!$A$3:$E$3,0))),"Konto ?",IF(AND(O8=0,RIGHT(K8,5)*1>=10000),RIGHT(K8,5),K8))))) ->  | F8: =IF(INDIRECT("'S. "&N3-1&"'!A43")=0,1,IF(ROUND(A41+B41,2)=0,INDIRECT("'S. "&N3-1&"'!"&INDIRECT("'S. "&N3-1&"'!J3")),INDIRECT("'S. "&N3-1&"'!"&INDIRECT("'S. "&N3-1&"'!J3"))+1)) -> 1 | I8: =IF(LEN(E8)<6,"",LEFT(E8,LEN(E8)-5)) ->  | J8: =RIGHT(E8,5) ->  | K8: =IF(M8="","",IF(AND(A8+B8>0,H8=""),"USt. ?",IF(M8="diverse Kunden",INDEX(Kunden!A:E,MATCH(N8,Kunden!A:A,1),MATCH(H8,Kunden!$A$3:$E$3,0)),IF(M8="diverse Lieferanten",INDEX(Lief.!A:E,MATCH(N8,Lief.!A:A,1),MATCH(H8,Lief.!$A$3:$E$3,0)),IF(ISERROR(INDEX(Konten!A:E,MATCH(M8,Konten!A:A,0),MATCH(H8,Konten!$A$3:$E$3,0))),"Konto ?",INDEX(Konten!A:E,MATCH(M8,Konten!A:A,0),MATCH(H8,Konten!$A$3:$E$3,0))))))) ->  | L8: =$M$3 -> 1600 | P8: 0
C9: =A9-B9 -> 0 | D9: =IF(ROUND(C9,2)=0,"",D8+C9) ->  | E9: =IF(K9="","",IF(AND(A9+B9>0,H9=""),"USt. ?",IF(OR(K9="USt. ?",K9="Name?"),K9,IF(ISERROR(INDEX(Konten!A:E,MATCH(M9,Konten!A:A,0),MATCH(H9,Konten!$A$3:$E$3,0))),"Konto ?",IF(AND(O9=0,RIGHT(K9,5)*1>=10000),RIGHT(K9,5),K9))))) ->  | F9: =IF(A9+B9=0," ",F8+1) ->  | I9: =IF(LEN(E9)<6,"",LEFT(E9,LEN(E9)-5)) ->  | J9: =RIGHT(E9,5) ->  | K9: =IF(M9="","",IF(AND(A9+B9>0,H9=""),"USt. ?",IF(M9="diverse Kunden",INDEX(Kunden!A:E,MATCH(N9,Kunden!A:A,1),MATCH(H9,Kunden!$A$3:$E$3,0)),IF(M9="diverse Lieferanten",INDEX(Lief.!A:E,MATCH(N9,Lief.!A:A,1),MATCH(H9,Lief.!$A$3:$E$3,0)),IF(ISERROR(INDEX(Konten!A:E,MATCH(M9,Konten!A:A,0),MATCH(H9,Konten!$A$3:$E$3,0))),"Konto ?",INDEX(Konten!A:E,MATCH(M9,Konten!A:A,0),MATCH(H9,Konten!$A$3:$E$3,0))))))) ->  | L9: 1600 | P9: 0
C10: 0 | D10: =IF(ROUND(C10,2)=0,"",D9+C10) ->  | E10: =IF(K10="","",IF(AND(A10+B10>0,H10=""),"USt. ?",IF(OR(K10="USt. ?",K10="Name?"),K10,IF(ISERROR(INDEX(Konten!A:E,MATCH(M10,Konten!A:A,0),MATCH(H10,Konten!$A$3:$E$3,0))),"Konto ?",IF(AND(O10=0,RIGHT(K10,5)*1>=10000),RIGHT(K10,5),K10))))) ->  | K10: =IF(M10="","",IF(AND(A10+B10>0,H10=""),"USt. ?",IF(M10="diverse Kunden",INDEX(Kunden!A:E,MATCH(N10,Kunden!A:A,1),MATCH(H10,Kunden!$A$3:$E$3,0)),IF(M10="diverse Lieferanten",INDEX(Lief.!A:E,MATCH(N10,Lief.!A:A,1),MATCH(H10,Lief.!$A$3:$E$3,0)),IF(ISERROR(INDEX(Konten!A:E,MATCH(M10,Konten!A:A,0),MATCH(H10,Konten!$A$3:$E$3,0))),"Konto ?",INDEX(Konten!A:E,MATCH(M10,Konten!A:A,0),MATCH(H10,Konten!$A$3:$E$3,0))))))) ->  | L10: 1600 | P10: 0
C11: 0 | E11: =IF(K11="","",IF(AND(A11+B11>0,H11=""),"USt. ?",IF(OR(K11="USt. ?",K11="Name?"),K11,IF(ISERROR(INDEX(Konten!A:E,MATCH(M11,Konten!A:A,0),MATCH(H11,Konten!$A$3:$E$3,0))),"Konto ?",IF(AND(O11=0,RIGHT(K11,5)*1>=10000),RIGHT(K11,5),K11))))) ->  | K11: =IF(M11="","",IF(AND(A11+B11>0,H11=""),"USt. ?",IF(M11="diverse Kunden",INDEX(Kunden!A:E,MATCH(N11,Kunden!A:A,1),MATCH(H11,Kunden!$A$3:$E$3,0)),IF(M11="diverse Lieferanten",INDEX(Lief.!A:E,MATCH(N11,Lief.!A:A,1),MATCH(H11,Lief.!$A$3:$E$3,0)),IF(ISERROR(INDEX(Konten!A:E,MATCH(M11,Konten!A:A,0),MATCH(H11,Konten!$A$3:$E$3,0))),"Konto ?",INDEX(Konten!A:E,MATCH(M11,Konten!A:A,0),MATCH(H11,Konten!$A$3:$E$3,0))))))) ->  | L11: 1600 | P11: 0
C12: 0 | E12: =IF(K12="","",IF(AND(A12+B12>0,H12=""),"USt. ?",IF(OR(K12="USt. ?",K12="Name?"),K12,IF(ISERROR(INDEX(Konten!A:E,MATCH(M12,Konten!A:A,0),MATCH(H12,Konten!$A$3:$E$3,0))),"Konto ?",IF(AND(O12=0,RIGHT(K12,5)*1>=10000),RIGHT(K12,5),K12))))) ->  | K12: =IF(M12="","",IF(AND(A12+B12>0,H12=""),"USt. ?",IF(M12="diverse Kunden",INDEX(Kunden!A:E,MATCH(N12,Kunden!A:A,1),MATCH(H12,Kunden!$A$3:$E$3,0)),IF(M12="diverse Lieferanten",INDEX(Lief.!A:E,MATCH(N12,Lief.!A:A,1),MATCH(H12,Lief.!$A$3:$E$3,0)),IF(ISERROR(INDEX(Konten!A:E,MATCH(M12,Konten!A:A,0),MATCH(H12,Konten!$A$3:$E$3,0))),"Konto ?",INDEX(Konten!A:E,MATCH(M12,Konten!A:A,0),MATCH(H12,Konten!$A$3:$E$3,0))))))) ->  | L12: 1600 | P12: 0
C13: 0 | E13: =IF(K13="","",IF(AND(A13+B13>0,H13=""),"USt. ?",IF(OR(K13="USt. ?",K13="Name?"),K13,IF(ISERROR(INDEX(Konten!A:E,MATCH(M13,Konten!A:A,0),MATCH(H13,Konten!$A$3:$E$3,0))),"Konto ?",IF(AND(O13=0,RIGHT(K13,5)*1>=10000),RIGHT(K13,5),K13))))) ->  | K13: =IF(M13="","",IF(AND(A13+B13>0,H13=""),"USt. ?",IF(M13="diverse Kunden",INDEX(Kunden!A:E,MATCH(N13,Kunden!A:A,1),MATCH(H13,Kunden!$A$3:$E$3,0)),IF(M13="diverse Lieferanten",INDEX(Lief.!A:E,MATCH(N13,Lief.!A:A,1),MATCH(H13,Lief.!$A$3:$E$3,0)),IF(ISERROR(INDEX(Konten!A:E,MATCH(M13,Konten!A:A,0),MATCH(H13,Konten!$A$3:$E$3,0))),"Konto ?",INDEX(Konten!A:E,MATCH(M13,Konten!A:A,0),MATCH(H13,Konten!$A$3:$E$3,0))))))) ->  | L13: 1600 | P13: 0
C14: 0 | E14: =IF(K14="","",IF(AND(A14+B14>0,H14=""),"USt. ?",IF(OR(K14="USt. ?",K14="Name?"),K14,IF(ISERROR(INDEX(Konten!A:E,MATCH(M14,Konten!A:A,0),MATCH(H14,Konten!$A$3:$E$3,0))),"Konto ?",IF(AND(O14=0,RIGHT(K14,5)*1>=10000),RIGHT(K14,5),K14))))) ->  | K14: =IF(M14="","",IF(AND(A14+B14>0,H14=""),"USt. ?",IF(M14="diverse Kunden",INDEX(Kunden!A:E,MATCH(N14,Kunden!A:A,1),MATCH(H14,Kunden!$A$3:$E$3,0)),IF(M14="diverse Lieferanten",INDEX(Lief.!A:E,MATCH(N14,Lief.!A:A,1),MATCH(H14,Lief.!$A$3:$E$3,0)),IF(ISERROR(INDEX(Konten!A:E,MATCH(M14,Konten!A:A,0),MATCH(H14,Konten!$A$3:$E$3,0))),"Konto ?",INDEX(Konten!A:E,MATCH(M14,Konten!A:A,0),MATCH(H14,Konten!$A$3:$E$3,0))))))) ->  | L14: 1600 | P14: 0
C15: 0 | E15: =IF(K15="","",IF(AND(A15+B15>0,H15=""),"USt. ?",IF(OR(K15="USt. ?",K15="Name?"),K15,IF(ISERROR(INDEX(Konten!A:E,MATCH(M15,Konten!A:A,0),MATCH(H15,Konten!$A$3:$E$3,0))),"Konto ?",IF(AND(O15=0,RIGHT(K15,5)*1>=10000),RIGHT(K15,5),K15))))) ->  | K15: =IF(M15="","",IF(AND(A15+B15>0,H15=""),"USt. ?",IF(M15="diverse Kunden",INDEX(Kunden!A:E,MATCH(N15,Kunden!A:A,1),MATCH(H15,Kunden!$A$3:$E$3,0)),IF(M15="diverse Lieferanten",INDEX(Lief.!A:E,MATCH(N15,Lief.!A:A,1),MATCH(H15,Lief.!$A$3:$E$3,0)),IF(ISERROR(INDEX(Konten!A:E,MATCH(M15,Konten!A:A,0),MATCH(H15,Konten!$A$3:$E$3,0))),"Konto ?",INDEX(Konten!A:E,MATCH(M15,Konten!A:A,0),MATCH(H15,Konten!$A$3:$E$3,0))))))) ->  | L15: 1600 | P15: 0
C16: 0 | E16: =IF(K16="","",IF(AND(A16+B16>0,H16=""),"USt. ?",IF(OR(K16="USt. ?",K16="Name?"),K16,IF(ISERROR(INDEX(Konten!A:E,MATCH(M16,Konten!A:A,0),MATCH(H16,Konten!$A$3:$E$3,0))),"Konto ?",IF(AND(O16=0,RIGHT(K16,5)*1>=10000),RIGHT(K16,5),K16))))) ->  | K16: =IF(M16="","",IF(AND(A16+B16>0,H16=""),"USt. ?",IF(M16="diverse Kunden",INDEX(Kunden!A:E,MATCH(N16,Kunden!A:A,1),MATCH(H16,Kunden!$A$3:$E$3,0)),IF(M16="diverse Lieferanten",INDEX(Lief.!A:E,MATCH(N16,Lief.!A:A,1),MATCH(H16,Lief.!$A$3:$E$3,0)),IF(ISERROR(INDEX(Konten!A:E,MATCH(M16,Konten!A:A,0),MATCH(H16,Konten!$A$3:$E$3,0))),"Konto ?",INDEX(Konten!A:E,MATCH(M16,Konten!A:A,0),MATCH(H16,Konten!$A$3:$E$3,0))))))) ->  | L16: 1600 | P16: 0
C17: 0 | E17: =IF(K17="","",IF(AND(A17+B17>0,H17=""),"USt. ?",IF(OR(K17="USt. ?",K17="Name?"),K17,IF(ISERROR(INDEX(Konten!A:E,MATCH(M17,Konten!A:A,0),MATCH(H17,Konten!$A$3:$E$3,0))),"Konto ?",IF(AND(O17=0,RIGHT(K17,5)*1>=10000),RIGHT(K17,5),K17))))) ->  | K17: =IF(M17="","",IF(AND(A17+B17>0,H17=""),"USt. ?",IF(M17="diverse Kunden",INDEX(Kunden!A:E,MATCH(N17,Kunden!A:A,1),MATCH(H17,Kunden!$A$3:$E$3,0)),IF(M17="diverse Lieferanten",INDEX(Lief.!A:E,MATCH(N17,Lief.!A:A,1),MATCH(H17,Lief.!$A$3:$E$3,0)),IF(ISERROR(INDEX(Konten!A:E,MATCH(M17,Konten!A:A,0),MATCH(H17,Konten!$A$3:$E$3,0))),"Konto ?",INDEX(Konten!A:E,MATCH(M17,Konten!A:A,0),MATCH(H17,Konten!$A$3:$E$3,0))))))) ->  | L17: 1600 | P17: 0
C18: 0 | E18: =IF(K18="","",IF(AND(A18+B18>0,H18=""),"USt. ?",IF(OR(K18="USt. ?",K18="Name?"),K18,IF(ISERROR(INDEX(Konten!A:E,MATCH(M18,Konten!A:A,0),MATCH(H18,Konten!$A$3:$E$3,0))),"Konto ?",IF(AND(O18=0,RIGHT(K18,5)*1>=10000),RIGHT(K18,5),K18))))) ->  | K18: =IF(M18="","",IF(AND(A18+B18>0,H18=""),"USt. ?",IF(M18="diverse Kunden",INDEX(Kunden!A:E,MATCH(N18,Kunden!A:A,1),MATCH(H18,Kunden!$A$3:$E$3,0)),IF(M18="diverse Lieferanten",INDEX(Lief.!A:E,MATCH(N18,Lief.!A:A,1),MATCH(H18,Lief.!$A$3:$E$3,0)),IF(ISERROR(INDEX(Konten!A:E,MATCH(M18,Konten!A:A,0),MATCH(H18,Konten!$A$3:$E$3,0))),"Konto ?",INDEX(Konten!A:E,MATCH(M18,Konten!A:A,0),MATCH(H18,Konten!$A$3:$E$3,0))))))) ->  | L18: 1600 | P18: 0
C19: 0 | E19: =IF(K19="","",IF(AND(A19+B19>0,H19=""),"USt. ?",IF(OR(K19="USt. ?",K19="Name?"),K19,IF(ISERROR(INDEX(Konten!A:E,MATCH(M19,Konten!A:A,0),MATCH(H19,Konten!$A$3:$E$3,0))),"Konto ?",IF(AND(O19=0,RIGHT(K19,5)*1>=10000),RIGHT(K19,5),K19))))) ->  | K19: =IF(M19="","",IF(AND(A19+B19>0,H19=""),"USt. ?",IF(M19="diverse Kunden",INDEX(Kunden!A:E,MATCH(N19,Kunden!A:A,1),MATCH(H19,Kunden!$A$3:$E$3,0)),IF(M19="diverse Lieferanten",INDEX(Lief.!A:E,MATCH(N19,Lief.!A:A,1),MATCH(H19,Lief.!$A$3:$E$3,0)),IF(ISERROR(INDEX(Konten!A:E,MATCH(M19,Konten!A:A,0),MATCH(H19,Konten!$A$3:$E$3,0))),"Konto ?",INDEX(Konten!A:E,MATCH(M19,Konten!A:A,0),MATCH(H19,Konten!$A$3:$E$3,0))))))) ->  | L19: 1600 | P19: 0
C20: 0 | E20: =IF(K20="","",IF(AND(A20+B20>0,H20=""),"USt. ?",IF(OR(K20="USt. ?",K20="Name?"),K20,IF(ISERROR(INDEX(Konten!A:E,MATCH(M20,Konten!A:A,0),MATCH(H20,Konten!$A$3:$E$3,0))),"Konto ?",IF(AND(O20=0,RIGHT(K20,5)*1>=10000),RIGHT(K20,5),K20))))) ->  | K20: =IF(M20="","",IF(AND(A20+B20>0,H20=""),"USt. ?",IF(M20="diverse Kunden",INDEX(Kunden!A:E,MATCH(N20,Kunden!A:A,1),MATCH(H20,Kunden!$A$3:$E$3,0)),IF(M20="diverse Lieferanten",INDEX(Lief.!A:E,MATCH(N20,Lief.!A:A,1),MATCH(H20,Lief.!$A$3:$E$3,0)),IF(ISERROR(INDEX(Konten!A:E,MATCH(M20,Konten!A:A,0),MATCH(H20,Konten!$A$3:$E$3,0))),"Konto ?",INDEX(Konten!A:E,MATCH(M20,Konten!A:A,0),MATCH(H20,Konten!$A$3:$E$3,0))))))) ->  | L20: 1600 | P20: 0
C21: 0 | E21: =IF(K21="","",IF(AND(A21+B21>0,H21=""),"USt. ?",IF(OR(K21="USt. ?",K21="Name?"),K21,IF(ISERROR(INDEX(Konten!A:E,MATCH(M21,Konten!A:A,0),MATCH(H21,Konten!$A$3:$E$3,0))),"Konto ?",IF(AND(O21=0,RIGHT(K21,5)*1>=10000),RIGHT(K21,5),K21))))) ->  | K21: =IF(M21="","",IF(AND(A21+B21>0,H21=""),"USt. ?",IF(M21="diverse Kunden",INDEX(Kunden!A:E,MATCH(N21,Kunden!A:A,1),MATCH(H21,Kunden!$A$3:$E$3,0)),IF(M21="diverse Lieferanten",INDEX(Lief.!A:E,MATCH(N21,Lief.!A:A,1),MATCH(H21,Lief.!$A$3:$E$3,0)),IF(ISERROR(INDEX(Konten!A:E,MATCH(M21,Konten!A:A,0),MATCH(H21,Konten!$A$3:$E$3,0))),"Konto ?",INDEX(Konten!A:E,MATCH(M21,Konten!A:A,0),MATCH(H21,Konten!$A$3:$E$3,0))))))) ->  | L21: 1600 | P21: 0
C22: 0 | E22: =IF(K22="","",IF(AND(A22+B22>0,H22=""),"USt. ?",IF(OR(K22="USt. ?",K22="Name?"),K22,IF(ISERROR(INDEX(Konten!A:E,MATCH(M22,Konten!A:A,0),MATCH(H22,Konten!$A$3:$E$3,0))),"Konto ?",IF(AND(O22=0,RIGHT(K22,5)*1>=10000),RIGHT(K22,5),K22))))) ->  | K22: =IF(M22="","",IF(AND(A22+B22>0,H22=""),"USt. ?",IF(M22="diverse Kunden",INDEX(Kunden!A:E,MATCH(N22,Kunden!A:A,1),MATCH(H22,Kunden!$A$3:$E$3,0)),IF(M22="diverse Lieferanten",INDEX(Lief.!A:E,MATCH(N22,Lief.!A:A,1),MATCH(H22,Lief.!$A$3:$E$3,0)),IF(ISERROR(INDEX(Konten!A:E,MATCH(M22,Konten!A:A,0),MATCH(H22,Konten!$A$3:$E$3,0))),"Konto ?",INDEX(Konten!A:E,MATCH(M22,Konten!A:A,0),MATCH(H22,Konten!$A$3:$E$3,0))))))) ->  | L22: 1600 | P22: 0
C23: 0 | E23: =IF(K23="","",IF(AND(A23+B23>0,H23=""),"USt. ?",IF(OR(K23="USt. ?",K23="Name?"),K23,IF(ISERROR(INDEX(Konten!A:E,MATCH(M23,Konten!A:A,0),MATCH(H23,Konten!$A$3:$E$3,0))),"Konto ?",IF(AND(O23=0,RIGHT(K23,5)*1>=10000),RIGHT(K23,5),K23))))) ->  | K23: =IF(M23="","",IF(AND(A23+B23>0,H23=""),"USt. ?",IF(M23="diverse Kunden",INDEX(Kunden!A:E,MATCH(N23,Kunden!A:A,1),MATCH(H23,Kunden!$A$3:$E$3,0)),IF(M23="diverse Lieferanten",INDEX(Lief.!A:E,MATCH(N23,Lief.!A:A,1),MATCH(H23,Lief.!$A$3:$E$3,0)),IF(ISERROR(INDEX(Konten!A:E,MATCH(M23,Konten!A:A,0),MATCH(H23,Konten!$A$3:$E$3,0))),"Konto ?",INDEX(Konten!A:E,MATCH(M23,Konten!A:A,0),MATCH(H23,Konten!$A$3:$E$3,0))))))) ->  | L23: 1600 | P23: 0
C24: 0 | E24: =IF(K24="","",IF(AND(A24+B24>0,H24=""),"USt. ?",IF(OR(K24="USt. ?",K24="Name?"),K24,IF(ISERROR(INDEX(Konten!A:E,MATCH(M24,Konten!A:A,0),MATCH(H24,Konten!$A$3:$E$3,0))),"Konto ?",IF(AND(O24=0,RIGHT(K24,5)*1>=10000),RIGHT(K24,5),K24))))) ->  | K24: =IF(M24="","",IF(AND(A24+B24>0,H24=""),"USt. ?",IF(M24="diverse Kunden",INDEX(Kunden!A:E,MATCH(N24,Kunden!A:A,1),MATCH(H24,Kunden!$A$3:$E$3,0)),IF(M24="diverse Lieferanten",INDEX(Lief.!A:E,MATCH(N24,Lief.!A:A,1),MATCH(H24,Lief.!$A$3:$E$3,0)),IF(ISERROR(INDEX(Konten!A:E,MATCH(M24,Konten!A:A,0),MATCH(H24,Konten!$A$3:$E$3,0))),"Konto ?",INDEX(Konten!A:E,MATCH(M24,Konten!A:A,0),MATCH(H24,Konten!$A$3:$E$3,0))))))) ->  | L24: 1600 | P24: 0
C25: 0 | E25: =IF(K25="","",IF(AND(A25+B25>0,H25=""),"USt. ?",IF(OR(K25="USt. ?",K25="Name?"),K25,IF(ISERROR(INDEX(Konten!A:E,MATCH(M25,Konten!A:A,0),MATCH(H25,Konten!$A$3:$E$3,0))),"Konto ?",IF(AND(O25=0,RIGHT(K25,5)*1>=10000),RIGHT(K25,5),K25))))) ->  | K25: =IF(M25="","",IF(AND(A25+B25>0,H25=""),"USt. ?",IF(M25="diverse Kunden",INDEX(Kunden!A:E,MATCH(N25,Kunden!A:A,1),MATCH(H25,Kunden!$A$3:$E$3,0)),IF(M25="diverse Lieferanten",INDEX(Lief.!A:E,MATCH(N25,Lief.!A:A,1),MATCH(H25,Lief.!$A$3:$E$3,0)),IF(ISERROR(INDEX(Konten!A:E,MATCH(M25,Konten!A:A,0),MATCH(H25,Konten!$A$3:$E$3,0))),"Konto ?",INDEX(Konten!A:E,MATCH(M25,Konten!A:A,0),MATCH(H25,Konten!$A$3:$E$3,0))))))) ->  | L25: 1600 | P25: 0
C26: 0 | E26: =IF(K26="","",IF(AND(A26+B26>0,H26=""),"USt. ?",IF(OR(K26="USt. ?",K26="Name?"),K26,IF(ISERROR(INDEX(Konten!A:E,MATCH(M26,Konten!A:A,0),MATCH(H26,Konten!$A$3:$E$3,0))),"Konto ?",IF(AND(O26=0,RIGHT(K26,5)*1>=10000),RIGHT(K26,5),K26))))) ->  | K26: =IF(M26="","",IF(AND(A26+B26>0,H26=""),"USt. ?",IF(M26="diverse Kunden",INDEX(Kunden!A:E,MATCH(N26,Kunden!A:A,1),MATCH(H26,Kunden!$A$3:$E$3,0)),IF(M26="diverse Lieferanten",INDEX(Lief.!A:E,MATCH(N26,Lief.!A:A,1),MATCH(H26,Lief.!$A$3:$E$3,0)),IF(ISERROR(INDEX(Konten!A:E,MATCH(M26,Konten!A:A,0),MATCH(H26,Konten!$A$3:$E$3,0))),"Konto ?",INDEX(Konten!A:E,MATCH(M26,Konten!A:A,0),MATCH(H26,Konten!$A$3:$E$3,0))))))) ->  | L26: 1600 | P26: 0
C27: 0 | E27: =IF(K27="","",IF(AND(A27+B27>0,H27=""),"USt. ?",IF(OR(K27="USt. ?",K27="Name?"),K27,IF(ISERROR(INDEX(Konten!A:E,MATCH(M27,Konten!A:A,0),MATCH(H27,Konten!$A$3:$E$3,0))),"Konto ?",IF(AND(O27=0,RIGHT(K27,5)*1>=10000),RIGHT(K27,5),K27))))) ->  | K27: =IF(M27="","",IF(AND(A27+B27>0,H27=""),"USt. ?",IF(M27="diverse Kunden",INDEX(Kunden!A:E,MATCH(N27,Kunden!A:A,1),MATCH(H27,Kunden!$A$3:$E$3,0)),IF(M27="diverse Lieferanten",INDEX(Lief.!A:E,MATCH(N27,Lief.!A:A,1),MATCH(H27,Lief.!$A$3:$E$3,0)),IF(ISERROR(INDEX(Konten!A:E,MATCH(M27,Konten!A:A,0),MATCH(H27,Konten!$A$3:$E$3,0))),"Konto ?",INDEX(Konten!A:E,MATCH(M27,Konten!A:A,0),MATCH(H27,Konten!$A$3:$E$3,0))))))) ->  | L27: 1600 | P27: 0
C28: 0 | E28: =IF(K28="","",IF(AND(A28+B28>0,H28=""),"USt. ?",IF(OR(K28="USt. ?",K28="Name?"),K28,IF(ISERROR(INDEX(Konten!A:E,MATCH(M28,Konten!A:A,0),MATCH(H28,Konten!$A$3:$E$3,0))),"Konto ?",IF(AND(O28=0,RIGHT(K28,5)*1>=10000),RIGHT(K28,5),K28))))) ->  | K28: =IF(M28="","",IF(AND(A28+B28>0,H28=""),"USt. ?",IF(M28="diverse Kunden",INDEX(Kunden!A:E,MATCH(N28,Kunden!A:A,1),MATCH(H28,Kunden!$A$3:$E$3,0)),IF(M28="diverse Lieferanten",INDEX(Lief.!A:E,MATCH(N28,Lief.!A:A,1),MATCH(H28,Lief.!$A$3:$E$3,0)),IF(ISERROR(INDEX(Konten!A:E,MATCH(M28,Konten!A:A,0),MATCH(H28,Konten!$A$3:$E$3,0))),"Konto ?",INDEX(Konten!A:E,MATCH(M28,Konten!A:A,0),MATCH(H28,Konten!$A$3:$E$3,0))))))) ->  | L28: 1600 | P28: 0
C29: 0 | E29: =IF(K29="","",IF(AND(A29+B29>0,H29=""),"USt. ?",IF(OR(K29="USt. ?",K29="Name?"),K29,IF(ISERROR(INDEX(Konten!A:E,MATCH(M29,Konten!A:A,0),MATCH(H29,Konten!$A$3:$E$3,0))),"Konto ?",IF(AND(O29=0,RIGHT(K29,5)*1>=10000),RIGHT(K29,5),K29))))) ->  | K29: =IF(M29="","",IF(AND(A29+B29>0,H29=""),"USt. ?",IF(M29="diverse Kunden",INDEX(Kunden!A:E,MATCH(N29,Kunden!A:A,1),MATCH(H29,Kunden!$A$3:$E$3,0)),IF(M29="diverse Lieferanten",INDEX(Lief.!A:E,MATCH(N29,Lief.!A:A,1),MATCH(H29,Lief.!$A$3:$E$3,0)),IF(ISERROR(INDEX(Konten!A:E,MATCH(M29,Konten!A:A,0),MATCH(H29,Konten!$A$3:$E$3,0))),"Konto ?",INDEX(Konten!A:E,MATCH(M29,Konten!A:A,0),MATCH(H29,Konten!$A$3:$E$3,0))))))) ->  | L29: 1600 | P29: 0
C30: 0 | E30: =IF(K30="","",IF(AND(A30+B30>0,H30=""),"USt. ?",IF(OR(K30="USt. ?",K30="Name?"),K30,IF(ISERROR(INDEX(Konten!A:E,MATCH(M30,Konten!A:A,0),MATCH(H30,Konten!$A$3:$E$3,0))),"Konto ?",IF(AND(O30=0,RIGHT(K30,5)*1>=10000),RIGHT(K30,5),K30))))) ->  | K30: =IF(M30="","",IF(AND(A30+B30>0,H30=""),"USt. ?",IF(M30="diverse Kunden",INDEX(Kunden!A:E,MATCH(N30,Kunden!A:A,1),MATCH(H30,Kunden!$A$3:$E$3,0)),IF(M30="diverse Lieferanten",INDEX(Lief.!A:E,MATCH(N30,Lief.!A:A,1),MATCH(H30,Lief.!$A$3:$E$3,0)),IF(ISERROR(INDEX(Konten!A:E,MATCH(M30,Konten!A:A,0),MATCH(H30,Konten!$A$3:$E$3,0))),"Konto ?",INDEX(Konten!A:E,MATCH(M30,Konten!A:A,0),MATCH(H30,Konten!$A$3:$E$3,0))))))) ->  | L30: 1600 | P30: 0
C31: 0 | E31: =IF(K31="","",IF(AND(A31+B31>0,H31=""),"USt. ?",IF(OR(K31="USt. ?",K31="Name?"),K31,IF(ISERROR(INDEX(Konten!A:E,MATCH(M31,Konten!A:A,0),MATCH(H31,Konten!$A$3:$E$3,0))),"Konto ?",IF(AND(O31=0,RIGHT(K31,5)*1>=10000),RIGHT(K31,5),K31))))) ->  | K31: =IF(M31="","",IF(AND(A31+B31>0,H31=""),"USt. ?",IF(M31="diverse Kunden",INDEX(Kunden!A:E,MATCH(N31,Kunden!A:A,1),MATCH(H31,Kunden!$A$3:$E$3,0)),IF(M31="diverse Lieferanten",INDEX(Lief.!A:E,MATCH(N31,Lief.!A:A,1),MATCH(H31,Lief.!$A$3:$E$3,0)),IF(ISERROR(INDEX(Konten!A:E,MATCH(M31,Konten!A:A,0),MATCH(H31,Konten!$A$3:$E$3,0))),"Konto ?",INDEX(Konten!A:E,MATCH(M31,Konten!A:A,0),MATCH(H31,Konten!$A$3:$E$3,0))))))) ->  | L31: 1600 | P31: 0
C32: 0 | E32: =IF(K32="","",IF(AND(A32+B32>0,H32=""),"USt. ?",IF(OR(K32="USt. ?",K32="Name?"),K32,IF(ISERROR(INDEX(Konten!A:E,MATCH(M32,Konten!A:A,0),MATCH(H32,Konten!$A$3:$E$3,0))),"Konto ?",IF(AND(O32=0,RIGHT(K32,5)*1>=10000),RIGHT(K32,5),K32))))) ->  | K32: =IF(M32="","",IF(AND(A32+B32>0,H32=""),"USt. ?",IF(M32="diverse Kunden",INDEX(Kunden!A:E,MATCH(N32,Kunden!A:A,1),MATCH(H32,Kunden!$A$3:$E$3,0)),IF(M32="diverse Lieferanten",INDEX(Lief.!A:E,MATCH(N32,Lief.!A:A,1),MATCH(H32,Lief.!$A$3:$E$3,0)),IF(ISERROR(INDEX(Konten!A:E,MATCH(M32,Konten!A:A,0),MATCH(H32,Konten!$A$3:$E$3,0))),"Konto ?",INDEX(Konten!A:E,MATCH(M32,Konten!A:A,0),MATCH(H32,Konten!$A$3:$E$3,0))))))) ->  | L32: 1600 | P32: 0
C33: 0 | E33: =IF(K33="","",IF(AND(A33+B33>0,H33=""),"USt. ?",IF(OR(K33="USt. ?",K33="Name?"),K33,IF(ISERROR(INDEX(Konten!A:E,MATCH(M33,Konten!A:A,0),MATCH(H33,Konten!$A$3:$E$3,0))),"Konto ?",IF(AND(O33=0,RIGHT(K33,5)*1>=10000),RIGHT(K33,5),K33))))) ->  | K33: =IF(M33="","",IF(AND(A33+B33>0,H33=""),"USt. ?",IF(M33="diverse Kunden",INDEX(Kunden!A:E,MATCH(N33,Kunden!A:A,1),MATCH(H33,Kunden!$A$3:$E$3,0)),IF(M33="diverse Lieferanten",INDEX(Lief.!A:E,MATCH(N33,Lief.!A:A,1),MATCH(H33,Lief.!$A$3:$E$3,0)),IF(ISERROR(INDEX(Konten!A:E,MATCH(M33,Konten!A:A,0),MATCH(H33,Konten!$A$3:$E$3,0))),"Konto ?",INDEX(Konten!A:E,MATCH(M33,Konten!A:A,0),MATCH(H33,Konten!$A$3:$E$3,0))))))) ->  | L33: 1600 | P33: 0
C34: 0 | E34: =IF(K34="","",IF(AND(A34+B34>0,H34=""),"USt. ?",IF(OR(K34="USt. ?",K34="Name?"),K34,IF(ISERROR(INDEX(Konten!A:E,MATCH(M34,Konten!A:A,0),MATCH(H34,Konten!$A$3:$E$3,0))),"Konto ?",IF(AND(O34=0,RIGHT(K34,5)*1>=10000),RIGHT(K34,5),K34))))) ->  | K34: =IF(M34="","",IF(AND(A34+B34>0,H34=""),"USt. ?",IF(M34="diverse Kunden",INDEX(Kunden!A:E,MATCH(N34,Kunden!A:A,1),MATCH(H34,Kunden!$A$3:$E$3,0)),IF(M34="diverse Lieferanten",INDEX(Lief.!A:E,MATCH(N34,Lief.!A:A,1),MATCH(H34,Lief.!$A$3:$E$3,0)),IF(ISERROR(INDEX(Konten!A:E,MATCH(M34,Konten!A:A,0),MATCH(H34,Konten!$A$3:$E$3,0))),"Konto ?",INDEX(Konten!A:E,MATCH(M34,Konten!A:A,0),MATCH(H34,Konten!$A$3:$E$3,0))))))) ->  | L34: 1600 | P34: 0
C35: 0 | E35: =IF(K35="","",IF(AND(A35+B35>0,H35=""),"USt. ?",IF(OR(K35="USt. ?",K35="Name?"),K35,IF(ISERROR(INDEX(Konten!A:E,MATCH(M35,Konten!A:A,0),MATCH(H35,Konten!$A$3:$E$3,0))),"Konto ?",IF(AND(O35=0,RIGHT(K35,5)*1>=10000),RIGHT(K35,5),K35))))) ->  | K35: =IF(M35="","",IF(AND(A35+B35>0,H35=""),"USt. ?",IF(M35="diverse Kunden",INDEX(Kunden!A:E,MATCH(N35,Kunden!A:A,1),MATCH(H35,Kunden!$A$3:$E$3,0)),IF(M35="diverse Lieferanten",INDEX(Lief.!A:E,MATCH(N35,Lief.!A:A,1),MATCH(H35,Lief.!$A$3:$E$3,0)),IF(ISERROR(INDEX(Konten!A:E,MATCH(M35,Konten!A:A,0),MATCH(H35,Konten!$A$3:$E$3,0))),"Konto ?",INDEX(Konten!A:E,MATCH(M35,Konten!A:A,0),MATCH(H35,Konten!$A$3:$E$3,0))))))) ->  | L35: 1600 | P35: 0
C36: 0 | E36: =IF(K36="","",IF(AND(A36+B36>0,H36=""),"USt. ?",IF(OR(K36="USt. ?",K36="Name?"),K36,IF(ISERROR(INDEX(Konten!A:E,MATCH(M36,Konten!A:A,0),MATCH(H36,Konten!$A$3:$E$3,0))),"Konto ?",IF(AND(O36=0,RIGHT(K36,5)*1>=10000),RIGHT(K36,5),K36))))) ->  | K36: =IF(M36="","",IF(AND(A36+B36>0,H36=""),"USt. ?",IF(M36="diverse Kunden",INDEX(Kunden!A:E,MATCH(N36,Kunden!A:A,1),MATCH(H36,Kunden!$A$3:$E$3,0)),IF(M36="diverse Lieferanten",INDEX(Lief.!A:E,MATCH(N36,Lief.!A:A,1),MATCH(H36,Lief.!$A$3:$E$3,0)),IF(ISERROR(INDEX(Konten!A:E,MATCH(M36,Konten!A:A,0),MATCH(H36,Konten!$A$3:$E$3,0))),"Konto ?",INDEX(Konten!A:E,MATCH(M36,Konten!A:A,0),MATCH(H36,Konten!$A$3:$E$3,0))))))) ->  | L36: 1600 | P36: 0
C37: 0 | E37: =IF(K37="","",IF(AND(A37+B37>0,H37=""),"USt. ?",IF(OR(K37="USt. ?",K37="Name?"),K37,IF(ISERROR(INDEX(Konten!A:E,MATCH(M37,Konten!A:A,0),MATCH(H37,Konten!$A$3:$E$3,0))),"Konto ?",IF(AND(O37=0,RIGHT(K37,5)*1>=10000),RIGHT(K37,5),K37))))) ->  | K37: =IF(M37="","",IF(AND(A37+B37>0,H37=""),"USt. ?",IF(M37="diverse Kunden",INDEX(Kunden!A:E,MATCH(N37,Kunden!A:A,1),MATCH(H37,Kunden!$A$3:$E$3,0)),IF(M37="diverse Lieferanten",INDEX(Lief.!A:E,MATCH(N37,Lief.!A:A,1),MATCH(H37,Lief.!$A$3:$E$3,0)),IF(ISERROR(INDEX(Konten!A:E,MATCH(M37,Konten!A:A,0),MATCH(H37,Konten!$A$3:$E$3,0))),"Konto ?",INDEX(Konten!A:E,MATCH(M37,Konten!A:A,0),MATCH(H37,Konten!$A$3:$E$3,0))))))) ->  | L37: 1600 | P37: 0
C38: 0 | E38: =IF(K38="","",IF(AND(A38+B38>0,H38=""),"USt. ?",IF(OR(K38="USt. ?",K38="Name?"),K38,IF(ISERROR(INDEX(Konten!A:E,MATCH(M38,Konten!A:A,0),MATCH(H38,Konten!$A$3:$E$3,0))),"Konto ?",IF(AND(O38=0,RIGHT(K38,5)*1>=10000),RIGHT(K38,5),K38))))) ->  | K38: =IF(M38="","",IF(AND(A38+B38>0,H38=""),"USt. ?",IF(M38="diverse Kunden",INDEX(Kunden!A:E,MATCH(N38,Kunden!A:A,1),MATCH(H38,Kunden!$A$3:$E$3,0)),IF(M38="diverse Lieferanten",INDEX(Lief.!A:E,MATCH(N38,Lief.!A:A,1),MATCH(H38,Lief.!$A$3:$E$3,0)),IF(ISERROR(INDEX(Konten!A:E,MATCH(M38,Konten!A:A,0),MATCH(H38,Konten!$A$3:$E$3,0))),"Konto ?",INDEX(Konten!A:E,MATCH(M38,Konten!A:A,0),MATCH(H38,Konten!$A$3:$E$3,0))))))) ->  | L38: 1600 | P38: 0
C39: 0 | E39: =IF(K39="","",IF(AND(A39+B39>0,H39=""),"USt. ?",IF(OR(K39="USt. ?",K39="Name?"),K39,IF(ISERROR(INDEX(Konten!A:E,MATCH(M39,Konten!A:A,0),MATCH(H39,Konten!$A$3:$E$3,0))),"Konto ?",IF(AND(O39=0,RIGHT(K39,5)*1>=10000),RIGHT(K39,5),K39))))) ->  | K39: =IF(M39="","",IF(AND(A39+B39>0,H39=""),"USt. ?",IF(M39="diverse Kunden",INDEX(Kunden!A:E,MATCH(N39,Kunden!A:A,1),MATCH(H39,Kunden!$A$3:$E$3,0)),IF(M39="diverse Lieferanten",INDEX(Lief.!A:E,MATCH(N39,Lief.!A:A,1),MATCH(H39,Lief.!$A$3:$E$3,0)),IF(ISERROR(INDEX(Konten!A:E,MATCH(M39,Konten!A:A,0),MATCH(H39,Konten!$A$3:$E$3,0))),"Konto ?",INDEX(Konten!A:E,MATCH(M39,Konten!A:A,0),MATCH(H39,Konten!$A$3:$E$3,0))))))) ->  | L39: 1600 | P39: 0
C40: 0 | E40: =IF(K40="","",IF(AND(A40+B40>0,H40=""),"USt. ?",IF(OR(K40="USt. ?",K40="Name?"),K40,IF(ISERROR(INDEX(Konten!A:E,MATCH(M40,Konten!A:A,0),MATCH(H40,Konten!$A$3:$E$3,0))),"Konto ?",IF(AND(O40=0,RIGHT(K40,5)*1>=10000),RIGHT(K40,5),K40))))) ->  | K40: =IF(M40="","",IF(AND(A40+B40>0,H40=""),"USt. ?",IF(M40="diverse Kunden",INDEX(Kunden!A:E,MATCH(N40,Kunden!A:A,1),MATCH(H40,Kunden!$A$3:$E$3,0)),IF(M40="diverse Lieferanten",INDEX(Lief.!A:E,MATCH(N40,Lief.!A:A,1),MATCH(H40,Lief.!$A$3:$E$3,0)),IF(ISERROR(INDEX(Konten!A:E,MATCH(M40,Konten!A:A,0),MATCH(H40,Konten!$A$3:$E$3,0))),"Konto ?",INDEX(Konten!A:E,MATCH(M40,Konten!A:A,0),MATCH(H40,Konten!$A$3:$E$3,0))))))) ->  | L40: 1600 | P40: 0
A41: =SUM(A8:A40) -> 0 | B41: =SUM(B8:B40) -> 0 | D41: Summen | M41: Unterschrift:
A42: =D6 -> 0 | B42: =INDIRECT("D"&COUNT(D8:D40)+7) -> 0 | D42: Bestand Anfang / Ende | K42: =MIN(D8:D42) -> 0 | M42: geprüft: | N42: =IF(ROUND(A43-B43,2)<>0,"Kassendifferenz !!!","") -> 
A43: =SUM(A41:A42) -> 0 | B43: =SUM(B41:B42) -> 0 | D43: Kontrollsummen | K43: =MIN('S. 1:S. '!K42) -> 0 | M43: gebucht:
A44: =IF(ROUND(A43-B43,2)<>0,"Kassendifferenz !!!","") -> 

Sheet S. 11
A1: =INDIRECT("'S. "&N3-1&"'!A1") -> 0 | L1: =DATE(YEAR(B3),MONTH(B3),1) -> 2020-11-01 | M1: K a s s e n b u c h | P1: =INDIRECT("'S. "&N3-1&"'!B3") -> 2020-10-31 | Q1: 2 | Y1: =RIGHT(CELL("Dateiname",A1),LEN(CELL("Dateiname",A1))-FIND("]",CELL("Dateiname",A1))) -> S. 11 | Z1: =LEFT(Y1,SEARCH(" ",Y1)) -> S. | AA1: =RIGHT(Y1,LEN(Y1)-SEARCH(" ",Y1)) -> 11
A3: Monat: | B3: =DATE(YEAR(P1),MONTH(P1)+Q1,0) -> 2020-11-30 | J3: ="F"&LARGE(IF(F8:F40<>" ",ROW(F8:F40)),1) -> F8 | K3: =YEAR(L3) -> 2020 | L3: =B3 -> 2020-11-30 | M3: =INDIRECT("'S. "&N3-1&"'!M3") -> 1600 | N3: =IF(ISERROR(P3),1,IF(RIGHT(P3,1)=")",LEFT(RIGHT(P3,7),3)+1,Q3)) -> 11 | P3: =RIGHT(CELL("Dateiname",A1),LEN(CELL("Dateiname",A1))-FIND("]",CELL("Dateiname",A1))) -> S. 11 | Q3: =MID(P3,SEARCH(" ",P3)+1,3)*1 -> 11
K4: =MONTH(L4) -> 11 | L4: =L3 -> 2020-11-30 | N4: =IF(ISERROR(P3),"",IF(AND(RIGHT(P3,2)<>TEXT(N3," #"),RIGHT(P3,2)<>TEXT(N3,"##"),RIGHT(P3,3)<>TEXT(N3,"###")),"Name Tabellenblatt ändern in ' S. "&N3&" ' ","")) -> 
A5: Einnahmen | B5: Ausgaben | C5: Einnahmen | D5: Bestand | E5: Gegen- | F5: Beleg- | G5: Beleg- | H5: USt.- | I5: BU | J5: Gegenkonto | K5: Gegenkonto | L5: Konto | M5: Kontierung | N5: Text | O5: Skonto | P5: Festschreibung
A6: € | B6: € | C6: Ausgaben | D6: =INDIRECT("'S. "&N3-1&"'!B42") -> 0 | E6: konto | F6: Nr. | G6: Datum | H6: Satz | J6: ASCII | K6: ASCII
G7: =DATE(YEAR(B3),MONTH(B3),IF(MONTH(INDIRECT("'S. "&N3-1&"'!B3"))=MONTH(B3),DAY(INDIRECT("'S. "&N3-1&"'!L4")),1)) -> 44136
C8: =A8-B8 -> 0 | D8: =D6+C8 -> 0 | E8: =IF(K8="","",IF(AND(A8+B8>0,H8=""),"USt. ?",IF(OR(K8="USt. ?",K8="Name?"),K8,IF(ISERROR(INDEX(Konten!A:E,MATCH(M8,Konten!A:A,0),MATCH(H8,Konten!$A$3:$E$3,0))),"Konto ?",IF(AND(O8=0,RIGHT(K8,5)*1>=10000),RIGHT(K8,5),K8))))) ->  | F8: =IF(INDIRECT("'S. "&N3-1&"'!A43")=0,1,IF(ROUND(A41+B41,2)=0,INDIRECT("'S. "&N3-1&"'!"&INDIRECT("'S. "&N3-1&"'!J3")),INDIRECT("'S. "&N3-1&"'!"&INDIRECT("'S. "&N3-1&"'!J3"))+1)) -> 1 | I8: =IF(LEN(E8)<6,"",LEFT(E8,LEN(E8)-5)) ->  | J8: =RIGHT(E8,5) ->  | K8: =IF(M8="","",IF(AND(A8+B8>0,H8=""),"USt. ?",IF(M8="diverse Kunden",INDEX(Kunden!A:E,MATCH(N8,Kunden!A:A,1),MATCH(H8,Kunden!$A$3:$E$3,0)),IF(M8="diverse Lieferanten",INDEX(Lief.!A:E,MATCH(N8,Lief.!A:A,1),MATCH(H8,Lief.!$A$3:$E$3,0)),IF(ISERROR(INDEX(Konten!A:E,MATCH(M8,Konten!A:A,0),MATCH(H8,Konten!$A$3:$E$3,0))),"Konto ?",INDEX(Konten!A:E,MATCH(M8,Konten!A:A,0),MATCH(H8,Konten!$A$3:$E$3,0))))))) ->  | L8: =$M$3 -> 1600 | P8: 0
C9: =A9-B9 -> 0 | D9: =IF(ROUND(C9,2)=0,"",D8+C9) ->  | E9: =IF(K9="","",IF(AND(A9+B9>0,H9=""),"USt. ?",IF(OR(K9="USt. ?",K9="Name?"),K9,IF(ISERROR(INDEX(Konten!A:E,MATCH(M9,Konten!A:A,0),MATCH(H9,Konten!$A$3:$E$3,0))),"Konto ?",IF(AND(O9=0,RIGHT(K9,5)*1>=10000),RIGHT(K9,5),K9))))) ->  | F9: =IF(A9+B9=0," ",F8+1) ->  | I9: =IF(LEN(E9)<6,"",LEFT(E9,LEN(E9)-5)) ->  | J9: =RIGHT(E9,5) ->  | K9: =IF(M9="","",IF(AND(A9+B9>0,H9=""),"USt. ?",IF(M9="diverse Kunden",INDEX(Kunden!A:E,MATCH(N9,Kunden!A:A,1),MATCH(H9,Kunden!$A$3:$E$3,0)),IF(M9="diverse Lieferanten",INDEX(Lief.!A:E,MATCH(N9,Lief.!A:A,1),MATCH(H9,Lief.!$A$3:$E$3,0)),IF(ISERROR(INDEX(Konten!A:E,MATCH(M9,Konten!A:A,0),MATCH(H9,Konten!$A$3:$E$3,0))),"Konto ?",INDEX(Konten!A:E,MATCH(M9,Konten!A:A,0),MATCH(H9,Konten!$A$3:$E$3,0))))))) ->  | L9: 1600 | P9: 0
C10: 0 | D10: =IF(ROUND(C10,2)=0,"",D9+C10) ->  | E10: =IF(K10="","",IF(AND(A10+B10>0,H10=""),"USt. ?",IF(OR(K10="USt. ?",K10="Name?"),K10,IF(ISERROR(INDEX(Konten!A:E,MATCH(M10,Konten!A:A,0),MATCH(H10,Konten!$A$3:$E$3,0))),"Konto ?",IF(AND(O10=0,RIGHT(K10,5)*1>=10000),RIGHT(K10,5),K10))))) ->  | K10: =IF(M10="","",IF(AND(A10+B10>0,H10=""),"USt. ?",IF(M10="diverse Kunden",INDEX(Kunden!A:E,MATCH(N10,Kunden!A:A,1),MATCH(H10,Kunden!$A$3:$E$3,0)),IF(M10="diverse Lieferanten",INDEX(Lief.!A:E,MATCH(N10,Lief.!A:A,1),MATCH(H10,Lief.!$A$3:$E$3,0)),IF(ISERROR(INDEX(Konten!A:E,MATCH(M10,Konten!A:A,0),MATCH(H10,Konten!$A$3:$E$3,0))),"Konto ?",INDEX(Konten!A:E,MATCH(M10,Konten!A:A,0),MATCH(H10,Konten!$A$3:$E$3,0))))))) ->  | L10: 1600 | P10: 0
C11: 0 | E11: =IF(K11="","",IF(AND(A11+B11>0,H11=""),"USt. ?",IF(OR(K11="USt. ?",K11="Name?"),K11,IF(ISERROR(INDEX(Konten!A:E,MATCH(M11,Konten!A:A,0),MATCH(H11,Konten!$A$3:$E$3,0))),"Konto ?",IF(AND(O11=0,RIGHT(K11,5)*1>=10000),RIGHT(K11,5),K11))))) ->  | K11: =IF(M11="","",IF(AND(A11+B11>0,H11=""),"USt. ?",IF(M11="diverse Kunden",INDEX(Kunden!A:E,MATCH(N11,Kunden!A:A,1),MATCH(H11,Kunden!$A$3:$E$3,0)),IF(M11="diverse Lieferanten",INDEX(Lief.!A:E,MATCH(N11,Lief.!A:A,1),MATCH(H11,Lief.!$A$3:$E$3,0)),IF(ISERROR(INDEX(Konten!A:E,MATCH(M11,Konten!A:A,0),MATCH(H11,Konten!$A$3:$E$3,0))),"Konto ?",INDEX(Konten!A:E,MATCH(M11,Konten!A:A,0),MATCH(H11,Konten!$A$3:$E$3,0))))))) ->  | L11: 1600 | P11: 0
C12: 0 | E12: =IF(K12="","",IF(AND(A12+B12>0,H12=""),"USt. ?",IF(OR(K12="USt. ?",K12="Name?"),K12,IF(ISERROR(INDEX(Konten!A:E,MATCH(M12,Konten!A:A,0),MATCH(H12,Konten!$A$3:$E$3,0))),"Konto ?",IF(AND(O12=0,RIGHT(K12,5)*1>=10000),RIGHT(K12,5),K12))))) ->  | K12: =IF(M12="","",IF(AND(A12+B12>0,H12=""),"USt. ?",IF(M12="diverse Kunden",INDEX(Kunden!A:E,MATCH(N12,Kunden!A:A,1),MATCH(H12,Kunden!$A$3:$E$3,0)),IF(M12="diverse Lieferanten",INDEX(Lief.!A:E,MATCH(N12,Lief.!A:A,1),MATCH(H12,Lief.!$A$3:$E$3,0)),IF(ISERROR(INDEX(Konten!A:E,MATCH(M12,Konten!A:A,0),MATCH(H12,Konten!$A$3:$E$3,0))),"Konto ?",INDEX(Konten!A:E,MATCH(M12,Konten!A:A,0),MATCH(H12,Konten!$A$3:$E$3,0))))))) ->  | L12: 1600 | P12: 0
C13: 0 | E13: =IF(K13="","",IF(AND(A13+B13>0,H13=""),"USt. ?",IF(OR(K13="USt. ?",K13="Name?"),K13,IF(ISERROR(INDEX(Konten!A:E,MATCH(M13,Konten!A:A,0),MATCH(H13,Konten!$A$3:$E$3,0))),"Konto ?",IF(AND(O13=0,RIGHT(K13,5)*1>=10000),RIGHT(K13,5),K13))))) ->  | K13: =IF(M13="","",IF(AND(A13+B13>0,H13=""),"USt. ?",IF(M13="diverse Kunden",INDEX(Kunden!A:E,MATCH(N13,Kunden!A:A,1),MATCH(H13,Kunden!$A$3:$E$3,0)),IF(M13="diverse Lieferanten",INDEX(Lief.!A:E,MATCH(N13,Lief.!A:A,1),MATCH(H13,Lief.!$A$3:$E$3,0)),IF(ISERROR(INDEX(Konten!A:E,MATCH(M13,Konten!A:A,0),MATCH(H13,Konten!$A$3:$E$3,0))),"Konto ?",INDEX(Konten!A:E,MATCH(M13,Konten!A:A,0),MATCH(H13,Konten!$A$3:$E$3,0))))))) ->  | L13: 1600 | P13: 0
C14: 0 | E14: =IF(K14="","",IF(AND(A14+B14>0,H14=""),"USt. ?",IF(OR(K14="USt. ?",K14="Name?"),K14,IF(ISERROR(INDEX(Konten!A:E,MATCH(M14,Konten!A:A,0),MATCH(H14,Konten!$A$3:$E$3,0))),"Konto ?",IF(AND(O14=0,RIGHT(K14,5)*1>=10000),RIGHT(K14,5),K14))))) ->  | K14: =IF(M14="","",IF(AND(A14+B14>0,H14=""),"USt. ?",IF(M14="diverse Kunden",INDEX(Kunden!A:E,MATCH(N14,Kunden!A:A,1),MATCH(H14,Kunden!$A$3:$E$3,0)),IF(M14="diverse Lieferanten",INDEX(Lief.!A:E,MATCH(N14,Lief.!A:A,1),MATCH(H14,Lief.!$A$3:$E$3,0)),IF(ISERROR(INDEX(Konten!A:E,MATCH(M14,Konten!A:A,0),MATCH(H14,Konten!$A$3:$E$3,0))),"Konto ?",INDEX(Konten!A:E,MATCH(M14,Konten!A:A,0),MATCH(H14,Konten!$A$3:$E$3,0))))))) ->  | L14: 1600 | P14: 0
C15: 0 | E15: =IF(K15="","",IF(AND(A15+B15>0,H15=""),"USt. ?",IF(OR(K15="USt. ?",K15="Name?"),K15,IF(ISERROR(INDEX(Konten!A:E,MATCH(M15,Konten!A:A,0),MATCH(H15,Konten!$A$3:$E$3,0))),"Konto ?",IF(AND(O15=0,RIGHT(K15,5)*1>=10000),RIGHT(K15,5),K15))))) ->  | K15: =IF(M15="","",IF(AND(A15+B15>0,H15=""),"USt. ?",IF(M15="diverse Kunden",INDEX(Kunden!A:E,MATCH(N15,Kunden!A:A,1),MATCH(H15,Kunden!$A$3:$E$3,0)),IF(M15="diverse Lieferanten",INDEX(Lief.!A:E,MATCH(N15,Lief.!A:A,1),MATCH(H15,Lief.!$A$3:$E$3,0)),IF(ISERROR(INDEX(Konten!A:E,MATCH(M15,Konten!A:A,0),MATCH(H15,Konten!$A$3:$E$3,0))),"Konto ?",INDEX(Konten!A:E,MATCH(M15,Konten!A:A,0),MATCH(H15,Konten!$A$3:$E$3,0))))))) ->  | L15: 1600 | P15: 0
C16: 0 | E16: =IF(K16="","",IF(AND(A16+B16>0,H16=""),"USt. ?",IF(OR(K16="USt. ?",K16="Name?"),K16,IF(ISERROR(INDEX(Konten!A:E,MATCH(M16,Konten!A:A,0),MATCH(H16,Konten!$A$3:$E$3,0))),"Konto ?",IF(AND(O16=0,RIGHT(K16,5)*1>=10000),RIGHT(K16,5),K16))))) ->  | K16: =IF(M16="","",IF(AND(A16+B16>0,H16=""),"USt. ?",IF(M16="diverse Kunden",INDEX(Kunden!A:E,MATCH(N16,Kunden!A:A,1),MATCH(H16,Kunden!$A$3:$E$3,0)),IF(M16="diverse Lieferanten",INDEX(Lief.!A:E,MATCH(N16,Lief.!A:A,1),MATCH(H16,Lief.!$A$3:$E$3,0)),IF(ISERROR(INDEX(Konten!A:E,MATCH(M16,Konten!A:A,0),MATCH(H16,Konten!$A$3:$E$3,0))),"Konto ?",INDEX(Konten!A:E,MATCH(M16,Konten!A:A,0),MATCH(H16,Konten!$A$3:$E$3,0))))))) ->  | L16: 1600 | P16: 0
C17: 0 | E17: =IF(K17="","",IF(AND(A17+B17>0,H17=""),"USt. ?",IF(OR(K17="USt. ?",K17="Name?"),K17,IF(ISERROR(INDEX(Konten!A:E,MATCH(M17,Konten!A:A,0),MATCH(H17,Konten!$A$3:$E$3,0))),"Konto ?",IF(AND(O17=0,RIGHT(K17,5)*1>=10000),RIGHT(K17,5),K17))))) ->  | K17: =IF(M17="","",IF(AND(A17+B17>0,H17=""),"USt. ?",IF(M17="diverse Kunden",INDEX(Kunden!A:E,MATCH(N17,Kunden!A:A,1),MATCH(H17,Kunden!$A$3:$E$3,0)),IF(M17="diverse Lieferanten",INDEX(Lief.!A:E,MATCH(N17,Lief.!A:A,1),MATCH(H17,Lief.!$A$3:$E$3,0)),IF(ISERROR(INDEX(Konten!A:E,MATCH(M17,Konten!A:A,0),MATCH(H17,Konten!$A$3:$E$3,0))),"Konto ?",INDEX(Konten!A:E,MATCH(M17,Konten!A:A,0),MATCH(H17,Konten!$A$3:$E$3,0))))))) ->  | L17: 1600 | P17: 0
C18: 0 | E18: =IF(K18="","",IF(AND(A18+B18>0,H18=""),"USt. ?",IF(OR(K18="USt. ?",K18="Name?"),K18,IF(ISERROR(INDEX(Konten!A:E,MATCH(M18,Konten!A:A,0),MATCH(H18,Konten!$A$3:$E$3,0))),"Konto ?",IF(AND(O18=0,RIGHT(K18,5)*1>=10000),RIGHT(K18,5),K18))))) ->  | K18: =IF(M18="","",IF(AND(A18+B18>0,H18=""),"USt. ?",IF(M18="diverse Kunden",INDEX(Kunden!A:E,MATCH(N18,Kunden!A:A,1),MATCH(H18,Kunden!$A$3:$E$3,0)),IF(M18="diverse Lieferanten",INDEX(Lief.!A:E,MATCH(N18,Lief.!A:A,1),MATCH(H18,Lief.!$A$3:$E$3,0)),IF(ISERROR(INDEX(Konten!A:E,MATCH(M18,Konten!A:A,0),MATCH(H18,Konten!$A$3:$E$3,0))),"Konto ?",INDEX(Konten!A:E,MATCH(M18,Konten!A:A,0),MATCH(H18,Konten!$A$3:$E$3,0))))))) ->  | L18: 1600 | P18: 0
C19: 0 | E19: =IF(K19="","",IF(AND(A19+B19>0,H19=""),"USt. ?",IF(OR(K19="USt. ?",K19="Name?"),K19,IF(ISERROR(INDEX(Konten!A:E,MATCH(M19,Konten!A:A,0),MATCH(H19,Konten!$A$3:$E$3,0))),"Konto ?",IF(AND(O19=0,RIGHT(K19,5)*1>=10000),RIGHT(K19,5),K19))))) ->  | K19: =IF(M19="","",IF(AND(A19+B19>0,H19=""),"USt. ?",IF(M19="diverse Kunden",INDEX(Kunden!A:E,MATCH(N19,Kunden!A:A,1),MATCH(H19,Kunden!$A$3:$E$3,0)),IF(M19="diverse Lieferanten",INDEX(Lief.!A:E,MATCH(N19,Lief.!A:A,1),MATCH(H19,Lief.!$A$3:$E$3,0)),IF(ISERROR(INDEX(Konten!A:E,MATCH(M19,Konten!A:A,0),MATCH(H19,Konten!$A$3:$E$3,0))),"Konto ?",INDEX(Konten!A:E,MATCH(M19,Konten!A:A,0),MATCH(H19,Konten!$A$3:$E$3,0))))))) ->  | L19: 1600 | P19: 0
C20: 0 | E20: =IF(K20="","",IF(AND(A20+B20>0,H20=""),"USt. ?",IF(OR(K20="USt. ?",K20="Name?"),K20,IF(ISERROR(INDEX(Konten!A:E,MATCH(M20,Konten!A:A,0),MATCH(H20,Konten!$A$3:$E$3,0))),"Konto ?",IF(AND(O20=0,RIGHT(K20,5)*1>=10000),RIGHT(K20,5),K20))))) ->  | K20: =IF(M20="","",IF(AND(A20+B20>0,H20=""),"USt. ?",IF(M20="diverse Kunden",INDEX(Kunden!A:E,MATCH(N20,Kunden!A:A,1),MATCH(H20,Kunden!$A$3:$E$3,0)),IF(M20="diverse Lieferanten",INDEX(Lief.!A:E,MATCH(N20,Lief.!A:A,1),MATCH(H20,Lief.!$A$3:$E$3,0)),IF(ISERROR(INDEX(Konten!A:E,MATCH(M20,Konten!A:A,0),MATCH(H20,Konten!$A$3:$E$3,0))),"Konto ?",INDEX(Konten!A:E,MATCH(M20,Konten!A:A,0),MATCH(H20,Konten!$A$3:$E$3,0))))))) ->  | L20: 1600 | P20: 0
C21: 0 | E21: =IF(K21="","",IF(AND(A21+B21>0,H21=""),"USt. ?",IF(OR(K21="USt. ?",K21="Name?"),K21,IF(ISERROR(INDEX(Konten!A:E,MATCH(M21,Konten!A:A,0),MATCH(H21,Konten!$A$3:$E$3,0))),"Konto ?",IF(AND(O21=0,RIGHT(K21,5)*1>=10000),RIGHT(K21,5),K21))))) ->  | K21: =IF(M21="","",IF(AND(A21+B21>0,H21=""),"USt. ?",IF(M21="diverse Kunden",INDEX(Kunden!A:E,MATCH(N21,Kunden!A:A,1),MATCH(H21,Kunden!$A$3:$E$3,0)),IF(M21="diverse Lieferanten",INDEX(Lief.!A:E,MATCH(N21,Lief.!A:A,1),MATCH(H21,Lief.!$A$3:$E$3,0)),IF(ISERROR(INDEX(Konten!A:E,MATCH(M21,Konten!A:A,0),MATCH(H21,Konten!$A$3:$E$3,0))),"Konto ?",INDEX(Konten!A:E,MATCH(M21,Konten!A:A,0),MATCH(H21,Konten!$A$3:$E$3,0))))))) ->  | L21: 1600 | P21: 0
C22: 0 | E22: =IF(K22="","",IF(AND(A22+B22>0,H22=""),"USt. ?",IF(OR(K22="USt. ?",K22="Name?"),K22,IF(ISERROR(INDEX(Konten!A:E,MATCH(M22,Konten!A:A,0),MATCH(H22,Konten!$A$3:$E$3,0))),"Konto ?",IF(AND(O22=0,RIGHT(K22,5)*1>=10000),RIGHT(K22,5),K22))))) ->  | K22: =IF(M22="","",IF(AND(A22+B22>0,H22=""),"USt. ?",IF(M22="diverse Kunden",INDEX(Kunden!A:E,MATCH(N22,Kunden!A:A,1),MATCH(H22,Kunden!$A$3:$E$3,0)),IF(M22="diverse Lieferanten",INDEX(Lief.!A:E,MATCH(N22,Lief.!A:A,1),MATCH(H22,Lief.!$A$3:$E$3,0)),IF(ISERROR(INDEX(Konten!A:E,MATCH(M22,Konten!A:A,0),MATCH(H22,Konten!$A$3:$E$3,0))),"Konto ?",INDEX(Konten!A:E,MATCH(M22,Konten!A:A,0),MATCH(H22,Konten!$A$3:$E$3,0))))))) ->  | L22: 1600 | P22: 0
C23: 0 | E23: =IF(K23="","",IF(AND(A23+B23>0,H23=""),"USt. ?",IF(OR(K23="USt. ?",K23="Name?"),K23,IF(ISERROR(INDEX(Konten!A:E,MATCH(M23,Konten!A:A,0),MATCH(H23,Konten!$A$3:$E$3,0))),"Konto ?",IF(AND(O23=0,RIGHT(K23,5)*1>=10000),RIGHT(K23,5),K23))))) ->  | K23: =IF(M23="","",IF(AND(A23+B23>0,H23=""),"USt. ?",IF(M23="diverse Kunden",INDEX(Kunden!A:E,MATCH(N23,Kunden!A:A,1),MATCH(H23,Kunden!$A$3:$E$3,0)),IF(M23="diverse Lieferanten",INDEX(Lief.!A:E,MATCH(N23,Lief.!A:A,1),MATCH(H23,Lief.!$A$3:$E$3,0)),IF(ISERROR(INDEX(Konten!A:E,MATCH(M23,Konten!A:A,0),MATCH(H23,Konten!$A$3:$E$3,0))),"Konto ?",INDEX(Konten!A:E,MATCH(M23,Konten!A:A,0),MATCH(H23,Konten!$A$3:$E$3,0))))))) ->  | L23: 1600 | P23: 0
C24: 0 | E24: =IF(K24="","",IF(AND(A24+B24>0,H24=""),"USt. ?",IF(OR(K24="USt. ?",K24="Name?"),K24,IF(ISERROR(INDEX(Konten!A:E,MATCH(M24,Konten!A:A,0),MATCH(H24,Konten!$A$3:$E$3,0))),"Konto ?",IF(AND(O24=0,RIGHT(K24,5)*1>=10000),RIGHT(K24,5),K24))))) ->  | K24: =IF(M24="","",IF(AND(A24+B24>0,H24=""),"USt. ?",IF(M24="diverse Kunden",INDEX(Kunden!A:E,MATCH(N24,Kunden!A:A,1),MATCH(H24,Kunden!$A$3:$E$3,0)),IF(M24="diverse Lieferanten",INDEX(Lief.!A:E,MATCH(N24,Lief.!A:A,1),MATCH(H24,Lief.!$A$3:$E$3,0)),IF(ISERROR(INDEX(Konten!A:E,MATCH(M24,Konten!A:A,0),MATCH(H24,Konten!$A$3:$E$3,0))),"Konto ?",INDEX(Konten!A:E,MATCH(M24,Konten!A:A,0),MATCH(H24,Konten!$A$3:$E$3,0))))))) ->  | L24: 1600 | P24: 0
C25: 0 | E25: =IF(K25="","",IF(AND(A25+B25>0,H25=""),"USt. ?",IF(OR(K25="USt. ?",K25="Name?"),K25,IF(ISERROR(INDEX(Konten!A:E,MATCH(M25,Konten!A:A,0),MATCH(H25,Konten!$A$3:$E$3,0))),"Konto ?",IF(AND(O25=0,RIGHT(K25,5)*1>=10000),RIGHT(K25,5),K25))))) ->  | K25: =IF(M25="","",IF(AND(A25+B25>0,H25=""),"USt. ?",IF(M25="diverse Kunden",INDEX(Kunden!A:E,MATCH(N25,Kunden!A:A,1),MATCH(H25,Kunden!$A$3:$E$3,0)),IF(M25="diverse Lieferanten",INDEX(Lief.!A:E,MATCH(N25,Lief.!A:A,1),MATCH(H25,Lief.!$A$3:$E$3,0)),IF(ISERROR(INDEX(Konten!A:E,MATCH(M25,Konten!A:A,0),MATCH(H25,Konten!$A$3:$E$3,0))),"Konto ?",INDEX(Konten!A:E,MATCH(M25,Konten!A:A,0),MATCH(H25,Konten!$A$3:$E$3,0))))))) ->  | L25: 1600 | P25: 0
C26: 0 | E26: =IF(K26="","",IF(AND(A26+B26>0,H26=""),"USt. ?",IF(OR(K26="USt. ?",K26="Name?"),K26,IF(ISERROR(INDEX(Konten!A:E,MATCH(M26,Konten!A:A,0),MATCH(H26,Konten!$A$3:$E$3,0))),"Konto ?",IF(AND(O26=0,RIGHT(K26,5)*1>=10000),RIGHT(K26,5),K26))))) ->  | K26: =IF(M26="","",IF(AND(A26+B26>0,H26=""),"USt. ?",IF(M26="diverse Kunden",INDEX(Kunden!A:E,MATCH(N26,Kunden!A:A,1),MATCH(H26,Kunden!$A$3:$E$3,0)),IF(M26="diverse Lieferanten",INDEX(Lief.!A:E,MATCH(N26,Lief.!A:A,1),MATCH(H26,Lief.!$A$3:$E$3,0)),IF(ISERROR(INDEX(Konten!A:E,MATCH(M26,Konten!A:A,0),MATCH(H26,Konten!$A$3:$E$3,0))),"Konto ?",INDEX(Konten!A:E,MATCH(M26,Konten!A:A,0),MATCH(H26,Konten!$A$3:$E$3,0))))))) ->  | L26: 1600 | P26: 0
C27: 0 | E27: =IF(K27="","",IF(AND(A27+B27>0,H27=""),"USt. ?",IF(OR(K27="USt. ?",K27="Name?"),K27,IF(ISERROR(INDEX(Konten!A:E,MATCH(M27,Konten!A:A,0),MATCH(H27,Konten!$A$3:$E$3,0))),"Konto ?",IF(AND(O27=0,RIGHT(K27,5)*1>=10000),RIGHT(K27,5),K27))))) ->  | K27: =IF(M27="","",IF(AND(A27+B27>0,H27=""),"USt. ?",IF(M27="diverse Kunden",INDEX(Kunden!A:E,MATCH(N27,Kunden!A:A,1),MATCH(H27,Kunden!$A$3:$E$3,0)),IF(M27="diverse Lieferanten",INDEX(Lief.!A:E,MATCH(N27,Lief.!A:A,1),MATCH(H27,Lief.!$A$3:$E$3,0)),IF(ISERROR(INDEX(Konten!A:E,MATCH(M27,Konten!A:A,0),MATCH(H27,Konten!$A$3:$E$3,0))),"Konto ?",INDEX(Konten!A:E,MATCH(M27,Konten!A:A,0),MATCH(H27,Konten!$A$3:$E$3,0))))))) ->  | L27: 1600 | P27: 0
C28: 0 | E28: =IF(K28="","",IF(AND(A28+B28>0,H28=""),"USt. ?",IF(OR(K28="USt. ?",K28="Name?"),K28,IF(ISERROR(INDEX(Konten!A:E,MATCH(M28,Konten!A:A,0),MATCH(H28,Konten!$A$3:$E$3,0))),"Konto ?",IF(AND(O28=0,RIGHT(K28,5)*1>=10000),RIGHT(K28,5),K28))))) ->  | K28: =IF(M28="","",IF(AND(A28+B28>0,H28=""),"USt. ?",IF(M28="diverse Kunden",INDEX(Kunden!A:E,MATCH(N28,Kunden!A:A,1),MATCH(H28,Kunden!$A$3:$E$3,0)),IF(M28="diverse Lieferanten",INDEX(Lief.!A:E,MATCH(N28,Lief.!A:A,1),MATCH(H28,Lief.!$A$3:$E$3,0)),IF(ISERROR(INDEX(Konten!A:E,MATCH(M28,Konten!A:A,0),MATCH(H28,Konten!$A$3:$E$3,0))),"Konto ?",INDEX(Konten!A:E,MATCH(M28,Konten!A:A,0),MATCH(H28,Konten!$A$3:$E$3,0))))))) ->  | L28: 1600 | P28: 0
C29: 0 | E29: =IF(K29="","",IF(AND(A29+B29>0,H29=""),"USt. ?",IF(OR(K29="USt. ?",K29="Name?"),K29,IF(ISERROR(INDEX(Konten!A:E,MATCH(M29,Konten!A:A,0),MATCH(H29,Konten!$A$3:$E$3,0))),"Konto ?",IF(AND(O29=0,RIGHT(K29,5)*1>=10000),RIGHT(K29,5),K29))))) ->  | K29: =IF(M29="","",IF(AND(A29+B29>0,H29=""),"USt. ?",IF(M29="diverse Kunden",INDEX(Kunden!A:E,MATCH(N29,Kunden!A:A,1),MATCH(H29,Kunden!$A$3:$E$3,0)),IF(M29="diverse Lieferanten",INDEX(Lief.!A:E,MATCH(N29,Lief.!A:A,1),MATCH(H29,Lief.!$A$3:$E$3,0)),IF(ISERROR(INDEX(Konten!A:E,MATCH(M29,Konten!A:A,0),MATCH(H29,Konten!$A$3:$E$3,0))),"Konto ?",INDEX(Konten!A:E,MATCH(M29,Konten!A:A,0),MATCH(H29,Konten!$A$3:$E$3,0))))))) ->  | L29: 1600 | P29: 0
C30: 0 | E30: =IF(K30="","",IF(AND(A30+B30>0,H30=""),"USt. ?",IF(OR(K30="USt. ?",K30="Name?"),K30,IF(ISERROR(INDEX(Konten!A:E,MATCH(M30,Konten!A:A,0),MATCH(H30,Konten!$A$3:$E$3,0))),"Konto ?",IF(AND(O30=0,RIGHT(K30,5)*1>=10000),RIGHT(K30,5),K30))))) ->  | K30: =IF(M30="","",IF(AND(A30+B30>0,H30=""),"USt. ?",IF(M30="diverse Kunden",INDEX(Kunden!A:E,MATCH(N30,Kunden!A:A,1),MATCH(H30,Kunden!$A$3:$E$3,0)),IF(M30="diverse Lieferanten",INDEX(Lief.!A:E,MATCH(N30,Lief.!A:A,1),MATCH(H30,Lief.!$A$3:$E$3,0)),IF(ISERROR(INDEX(Konten!A:E,MATCH(M30,Konten!A:A,0),MATCH(H30,Konten!$A$3:$E$3,0))),"Konto ?",INDEX(Konten!A:E,MATCH(M30,Konten!A:A,0),MATCH(H30,Konten!$A$3:$E$3,0))))))) ->  | L30: 1600 | P30: 0
C31: 0 | E31: =IF(K31="","",IF(AND(A31+B31>0,H31=""),"USt. ?",IF(OR(K31="USt. ?",K31="Name?"),K31,IF(ISERROR(INDEX(Konten!A:E,MATCH(M31,Konten!A:A,0),MATCH(H31,Konten!$A$3:$E$3,0))),"Konto ?",IF(AND(O31=0,RIGHT(K31,5)*1>=10000),RIGHT(K31,5),K31))))) ->  | K31: =IF(M31="","",IF(AND(A31+B31>0,H31=""),"USt. ?",IF(M31="diverse Kunden",INDEX(Kunden!A:E,MATCH(N31,Kunden!A:A,1),MATCH(H31,Kunden!$A$3:$E$3,0)),IF(M31="diverse Lieferanten",INDEX(Lief.!A:E,MATCH(N31,Lief.!A:A,1),MATCH(H31,Lief.!$A$3:$E$3,0)),IF(ISERROR(INDEX(Konten!A:E,MATCH(M31,Konten!A:A,0),MATCH(H31,Konten!$A$3:$E$3,0))),"Konto ?",INDEX(Konten!A:E,MATCH(M31,Konten!A:A,0),MATCH(H31,Konten!$A$3:$E$3,0))))))) ->  | L31: 1600 | P31: 0
C32: 0 | E32: =IF(K32="","",IF(AND(A32+B32>0,H32=""),"USt. ?",IF(OR(K32="USt. ?",K32="Name?"),K32,IF(ISERROR(INDEX(Konten!A:E,MATCH(M32,Konten!A:A,0),MATCH(H32,Konten!$A$3:$E$3,0))),"Konto ?",IF(AND(O32=0,RIGHT(K32,5)*1>=10000),RIGHT(K32,5),K32))))) ->  | K32: =IF(M32="","",IF(AND(A32+B32>0,H32=""),"USt. ?",IF(M32="diverse Kunden",INDEX(Kunden!A:E,MATCH(N32,Kunden!A:A,1),MATCH(H32,Kunden!$A$3:$E$3,0)),IF(M32="diverse Lieferanten",INDEX(Lief.!A:E,MATCH(N32,Lief.!A:A,1),MATCH(H32,Lief.!$A$3:$E$3,0)),IF(ISERROR(INDEX(Konten!A:E,MATCH(M32,Konten!A:A,0),MATCH(H32,Konten!$A$3:$E$3,0))),"Konto ?",INDEX(Konten!A:E,MATCH(M32,Konten!A:A,0),MATCH(H32,Konten!$A$3:$E$3,0))))))) ->  | L32: 1600 | P32: 0
C33: 0 | E33: =IF(K33="","",IF(AND(A33+B33>0,H33=""),"USt. ?",IF(OR(K33="USt. ?",K33="Name?"),K33,IF(ISERROR(INDEX(Konten!A:E,MATCH(M33,Konten!A:A,0),MATCH(H33,Konten!$A$3:$E$3,0))),"Konto ?",IF(AND(O33=0,RIGHT(K33,5)*1>=10000),RIGHT(K33,5),K33))))) ->  | K33: =IF(M33="","",IF(AND(A33+B33>0,H33=""),"USt. ?",IF(M33="diverse Kunden",INDEX(Kunden!A:E,MATCH(N33,Kunden!A:A,1),MATCH(H33,Kunden!$A$3:$E$3,0)),IF(M33="diverse Lieferanten",INDEX(Lief.!A:E,MATCH(N33,Lief.!A:A,1),MATCH(H33,Lief.!$A$3:$E$3,0)),IF(ISERROR(INDEX(Konten!A:E,MATCH(M33,Konten!A:A,0),MATCH(H33,Konten!$A$3:$E$3,0))),"Konto ?",INDEX(Konten!A:E,MATCH(M33,Konten!A:A,0),MATCH(H33,Konten!$A$3:$E$3,0))))))) ->  | L33: 1600 | P33: 0
C34: 0 | E34: =IF(K34="","",IF(AND(A34+B34>0,H34=""),"USt. ?",IF(OR(K34="USt. ?",K34="Name?"),K34,IF(ISERROR(INDEX(Konten!A:E,MATCH(M34,Konten!A:A,0),MATCH(H34,Konten!$A$3:$E$3,0))),"Konto ?",IF(AND(O34=0,RIGHT(K34,5)*1>=10000),RIGHT(K34,5),K34))))) ->  | K34: =IF(M34="","",IF(AND(A34+B34>0,H34=""),"USt. ?",IF(M34="diverse Kunden",INDEX(Kunden!A:E,MATCH(N34,Kunden!A:A,1),MATCH(H34,Kunden!$A$3:$E$3,0)),IF(M34="diverse Lieferanten",INDEX(Lief.!A:E,MATCH(N34,Lief.!A:A,1),MATCH(H34,Lief.!$A$3:$E$3,0)),IF(ISERROR(INDEX(Konten!A:E,MATCH(M34,Konten!A:A,0),MATCH(H34,Konten!$A$3:$E$3,0))),"Konto ?",INDEX(Konten!A:E,MATCH(M34,Konten!A:A,0),MATCH(H34,Konten!$A$3:$E$3,0))))))) ->  | L34: 1600 | P34: 0
C35: 0 | E35: =IF(K35="","",IF(AND(A35+B35>0,H35=""),"USt. ?",IF(OR(K35="USt. ?",K35="Name?"),K35,IF(ISERROR(INDEX(Konten!A:E,MATCH(M35,Konten!A:A,0),MATCH(H35,Konten!$A$3:$E$3,0))),"Konto ?",IF(AND(O35=0,RIGHT(K35,5)*1>=10000),RIGHT(K35,5),K35))))) ->  | K35: =IF(M35="","",IF(AND(A35+B35>0,H35=""),"USt. ?",IF(M35="diverse Kunden",INDEX(Kunden!A:E,MATCH(N35,Kunden!A:A,1),MATCH(H35,Kunden!$A$3:$E$3,0)),IF(M35="diverse Lieferanten",INDEX(Lief.!A:E,MATCH(N35,Lief.!A:A,1),MATCH(H35,Lief.!$A$3:$E$3,0)),IF(ISERROR(INDEX(Konten!A:E,MATCH(M35,Konten!A:A,0),MATCH(H35,Konten!$A$3:$E$3,0))),"Konto ?",INDEX(Konten!A:E,MATCH(M35,Konten!A:A,0),MATCH(H35,Konten!$A$3:$E$3,0))))))) ->  | L35: 1600 | P35: 0
C36: 0 | E36: =IF(K36="","",IF(AND(A36+B36>0,H36=""),"USt. ?",IF(OR(K36="USt. ?",K36="Name?"),K36,IF(ISERROR(INDEX(Konten!A:E,MATCH(M36,Konten!A:A,0),MATCH(H36,Konten!$A$3:$E$3,0))),"Konto ?",IF(AND(O36=0,RIGHT(K36,5)*1>=10000),RIGHT(K36,5),K36))))) ->  | K36: =IF(M36="","",IF(AND(A36+B36>0,H36=""),"USt. ?",IF(M36="diverse Kunden",INDEX(Kunden!A:E,MATCH(N36,Kunden!A:A,1),MATCH(H36,Kunden!$A$3:$E$3,0)),IF(M36="diverse Lieferanten",INDEX(Lief.!A:E,MATCH(N36,Lief.!A:A,1),MATCH(H36,Lief.!$A$3:$E$3,0)),IF(ISERROR(INDEX(Konten!A:E,MATCH(M36,Konten!A:A,0),MATCH(H36,Konten!$A$3:$E$3,0))),"Konto ?",INDEX(Konten!A:E,MATCH(M36,Konten!A:A,0),MATCH(H36,Konten!$A$3:$E$3,0))))))) ->  | L36: 1600 | P36: 0
C37: 0 | E37: =IF(K37="","",IF(AND(A37+B37>0,H37=""),"USt. ?",IF(OR(K37="USt. ?",K37="Name?"),K37,IF(ISERROR(INDEX(Konten!A:E,MATCH(M37,Konten!A:A,0),MATCH(H37,Konten!$A$3:$E$3,0))),"Konto ?",IF(AND(O37=0,RIGHT(K37,5)*1>=10000),RIGHT(K37,5),K37))))) ->  | K37: =IF(M37="","",IF(AND(A37+B37>0,H37=""),"USt. ?",IF(M37="diverse Kunden",INDEX(Kunden!A:E,MATCH(N37,Kunden!A:A,1),MATCH(H37,Kunden!$A$3:$E$3,0)),IF(M37="diverse Lieferanten",INDEX(Lief.!A:E,MATCH(N37,Lief.!A:A,1),MATCH(H37,Lief.!$A$3:$E$3,0)),IF(ISERROR(INDEX(Konten!A:E,MATCH(M37,Konten!A:A,0),MATCH(H37,Konten!$A$3:$E$3,0))),"Konto ?",INDEX(Konten!A:E,MATCH(M37,Konten!A:A,0),MATCH(H37,Konten!$A$3:$E$3,0))))))) ->  | L37: 1600 | P37: 0
C38: 0 | E38: =IF(K38="","",IF(AND(A38+B38>0,H38=""),"USt. ?",IF(OR(K38="USt. ?",K38="Name?"),K38,IF(ISERROR(INDEX(Konten!A:E,MATCH(M38,Konten!A:A,0),MATCH(H38,Konten!$A$3:$E$3,0))),"Konto ?",IF(AND(O38=0,RIGHT(K38,5)*1>=10000),RIGHT(K38,5),K38))))) ->  | K38: =IF(M38="","",IF(AND(A38+B38>0,H38=""),"USt. ?",IF(M38="diverse Kunden",INDEX(Kunden!A:E,MATCH(N38,Kunden!A:A,1),MATCH(H38,Kunden!$A$3:$E$3,0)),IF(M38="diverse Lieferanten",INDEX(Lief.!A:E,MATCH(N38,Lief.!A:A,1),MATCH(H38,Lief.!$A$3:$E$3,0)),IF(ISERROR(INDEX(Konten!A:E,MATCH(M38,Konten!A:A,0),MATCH(H38,Konten!$A$3:$E$3,0))),"Konto ?",INDEX(Konten!A:E,MATCH(M38,Konten!A:A,0),MATCH(H38,Konten!$A$3:$E$3,0))))))) ->  | L38: 1600 | P38: 0
C39: 0 | E39: =IF(K39="","",IF(AND(A39+B39>0,H39=""),"USt. ?",IF(OR(K39="USt. ?",K39="Name?"),K39,IF(ISERROR(INDEX(Konten!A:E,MATCH(M39,Konten!A:A,0),MATCH(H39,Konten!$A$3:$E$3,0))),"Konto ?",IF(AND(O39=0,RIGHT(K39,5)*1>=10000),RIGHT(K39,5),K39))))) ->  | K39: =IF(M39="","",IF(AND(A39+B39>0,H39=""),"USt. ?",IF(M39="diverse Kunden",INDEX(Kunden!A:E,MATCH(N39,Kunden!A:A,1),MATCH(H39,Kunden!$A$3:$E$3,0)),IF(M39="diverse Lieferanten",INDEX(Lief.!A:E,MATCH(N39,Lief.!A:A,1),MATCH(H39,Lief.!$A$3:$E$3,0)),IF(ISERROR(INDEX(Konten!A:E,MATCH(M39,Konten!A:A,0),MATCH(H39,Konten!$A$3:$E$3,0))),"Konto ?",INDEX(Konten!A:E,MATCH(M39,Konten!A:A,0),MATCH(H39,Konten!$A$3:$E$3,0))))))) ->  | L39: 1600 | P39: 0
C40: 0 | E40: =IF(K40="","",IF(AND(A40+B40>0,H40=""),"USt. ?",IF(OR(K40="USt. ?",K40="Name?"),K40,IF(ISERROR(INDEX(Konten!A:E,MATCH(M40,Konten!A:A,0),MATCH(H40,Konten!$A$3:$E$3,0))),"Konto ?",IF(AND(O40=0,RIGHT(K40,5)*1>=10000),RIGHT(K40,5),K40))))) ->  | K40: =IF(M40="","",IF(AND(A40+B40>0,H40=""),"USt. ?",IF(M40="diverse Kunden",INDEX(Kunden!A:E,MATCH(N40,Kunden!A:A,1),MATCH(H40,Kunden!$A$3:$E$3,0)),IF(M40="diverse Lieferanten",INDEX(Lief.!A:E,MATCH(N40,Lief.!A:A,1),MATCH(H40,Lief.!$A$3:$E$3,0)),IF(ISERROR(INDEX(Konten!A:E,MATCH(M40,Konten!A:A,0),MATCH(H40,Konten!$A$3:$E$3,0))),"Konto ?",INDEX(Konten!A:E,MATCH(M40,Konten!A:A,0),MATCH(H40,Konten!$A$3:$E$3,0))))))) ->  | L40: 1600 | P40: 0
A41: =SUM(A8:A40) -> 0 | B41: =SUM(B8:B40) -> 0 | D41: Summen | M41: Unterschrift:
A42: =D6 -> 0 | B42: =INDIRECT("D"&COUNT(D8:D40)+7) -> 0 | D42: Bestand Anfang / Ende | K42: =MIN(D8:D42) -> 0 | M42: geprüft: | N42: =IF(ROUND(A43-B43,2)<>0,"Kassendifferenz !!!","") -> 
A43: =SUM(A41:A42) -> 0 | B43: =SUM(B41:B42) -> 0 | D43: Kontrollsummen | K43: =MIN('S. 1:S. '!K42) -> 0 | M43: gebucht:
A44: =IF(ROUND(A43-B43,2)<>0,"Kassendifferenz !!!","") -> 

Sheet S. 12
A1: =INDIRECT("'S. "&N3-1&"'!A1") -> 0 | L1: =DATE(YEAR(B3),MONTH(B3),1) -> 2020-12-01 | M1: K a s s e n b u c h | P1: =INDIRECT("'S. "&N3-1&"'!B3") -> 2020-11-30 | Q1: 2 | Y1: =RIGHT(CELL("Dateiname",A1),LEN(CELL("Dateiname",A1))-FIND("]",CELL("Dateiname",A1))) -> S. 12 | Z1: =LEFT(Y1,SEARCH(" ",Y1)) -> S. | AA1: =RIGHT(Y1,LEN(Y1)-SEARCH(" ",Y1)) -> 12
A3: Monat: | B3: =DATE(YEAR(P1),MONTH(P1)+Q1,0) -> 2020-12-31 | J3: ="F"&LARGE(IF(F8:F40<>" ",ROW(F8:F40)),1) -> F8 | K3: =YEAR(L3) -> 2020 | L3: =B3 -> 2020-12-31 | M3: =INDIRECT("'S. "&N3-1&"'!M3") -> 1600 | N3: =IF(ISERROR(P3),1,IF(RIGHT(P3,1)=")",LEFT(RIGHT(P3,7),3)+1,Q3)) -> 12 | P3: =RIGHT(CELL("Dateiname",A1),LEN(CELL("Dateiname",A1))-FIND("]",CELL("Dateiname",A1))) -> S. 12 | Q3: =MID(P3,SEARCH(" ",P3)+1,3)*1 -> 12
K4: =MONTH(L4) -> 12 | L4: =L3 -> 2020-12-31 | N4: =IF(ISERROR(P3),"",IF(AND(RIGHT(P3,2)<>TEXT(N3," #"),RIGHT(P3,2)<>TEXT(N3,"##"),RIGHT(P3,3)<>TEXT(N3,"###")),"Name Tabellenblatt ändern in ' S. "&N3&" ' ","")) -> 
A5: Einnahmen | B5: Ausgaben | C5: Einnahmen | D5: Bestand | E5: Gegen- | F5: Beleg- | G5: Beleg- | H5: USt.- | I5: BU | J5: Gegenkonto | K5: Gegenkonto | L5: Konto | M5: Kontierung | N5: Text | O5: Skonto | P5: Festschreibung
A6: € | B6: € | C6: Ausgaben | D6: =INDIRECT("'S. "&N3-1&"'!B42") -> 0 | E6: konto | F6: Nr. | G6: Datum | H6: Satz | J6: ASCII | K6: ASCII
G7: =DATE(YEAR(B3),MONTH(B3),IF(MONTH(INDIRECT("'S. "&N3-1&"'!B3"))=MONTH(B3),DAY(INDIRECT("'S. "&N3-1&"'!L4")),1)) -> 44166
C8: =A8-B8 -> 0 | D8: =D6+C8 -> 0 | E8: =IF(K8="","",IF(AND(A8+B8>0,H8=""),"USt. ?",IF(OR(K8="USt. ?",K8="Name?"),K8,IF(ISERROR(INDEX(Konten!A:E,MATCH(M8,Konten!A:A,0),MATCH(H8,Konten!$A$3:$E$3,0))),"Konto ?",IF(AND(O8=0,RIGHT(K8,5)*1>=10000),RIGHT(K8,5),K8))))) ->  | F8: =IF(INDIRECT("'S. "&N3-1&"'!A43")=0,1,IF(ROUND(A41+B41,2)=0,INDIRECT("'S. "&N3-1&"'!"&INDIRECT("'S. "&N3-1&"'!J3")),INDIRECT("'S. "&N3-1&"'!"&INDIRECT("'S. "&N3-1&"'!J3"))+1)) -> 1 | I8: =IF(LEN(E8)<6,"",LEFT(E8,LEN(E8)-5)) ->  | J8: =RIGHT(E8,5) ->  | K8: =IF(M8="","",IF(AND(A8+B8>0,H8=""),"USt. ?",IF(M8="diverse Kunden",INDEX(Kunden!A:E,MATCH(N8,Kunden!A:A,1),MATCH(H8,Kunden!$A$3:$E$3,0)),IF(M8="diverse Lieferanten",INDEX(Lief.!A:E,MATCH(N8,Lief.!A:A,1),MATCH(H8,Lief.!$A$3:$E$3,0)),IF(ISERROR(INDEX(Konten!A:E,MATCH(M8,Konten!A:A,0),MATCH(H8,Konten!$A$3:$E$3,0))),"Konto ?",INDEX(Konten!A:E,MATCH(M8,Konten!A:A,0),MATCH(H8,Konten!$A$3:$E$3,0))))))) ->  | L8: =$M$3 -> 1600 | P8: 0
C9: =A9-B9 -> 0 | D9: =IF(ROUND(C9,2)=0,"",D8+C9) ->  | E9: =IF(K9="","",IF(AND(A9+B9>0,H9=""),"USt. ?",IF(OR(K9="USt. ?",K9="Name?"),K9,IF(ISERROR(INDEX(Konten!A:E,MATCH(M9,Konten!A:A,0),MATCH(H9,Konten!$A$3:$E$3,0))),"Konto ?",IF(AND(O9=0,RIGHT(K9,5)*1>=10000),RIGHT(K9,5),K9))))) ->  | F9: =IF(A9+B9=0," ",F8+1) ->  | I9: =IF(LEN(E9)<6,"",LEFT(E9,LEN(E9)-5)) ->  | J9: =RIGHT(E9,5) ->  | K9: =IF(M9="","",IF(AND(A9+B9>0,H9=""),"USt. ?",IF(M9="diverse Kunden",INDEX(Kunden!A:E,MATCH(N9,Kunden!A:A,1),MATCH(H9,Kunden!$A$3:$E$3,0)),IF(M9="diverse Lieferanten",INDEX(Lief.!A:E,MATCH(N9,Lief.!A:A,1),MATCH(H9,Lief.!$A$3:$E$3,0)),IF(ISERROR(INDEX(Konten!A:E,MATCH(M9,Konten!A:A,0),MATCH(H9,Konten!$A$3:$E$3,0))),"Konto ?",INDEX(Konten!A:E,MATCH(M9,Konten!A:A,0),MATCH(H9,Konten!$A$3:$E$3,0))))))) ->  | L9: 1600 | P9: 0
C10: 0 | D10: =IF(ROUND(C10,2)=0,"",D9+C10) ->  | E10: =IF(K10="","",IF(AND(A10+B10>0,H10=""),"USt. ?",IF(OR(K10="USt. ?",K10="Name?"),K10,IF(ISERROR(INDEX(Konten!A:E,MATCH(M10,Konten!A:A,0),MATCH(H10,Konten!$A$3:$E$3,0))),"Konto ?",IF(AND(O10=0,RIGHT(K10,5)*1>=10000),RIGHT(K10,5),K10))))) ->  | K10: =IF(M10="","",IF(AND(A10+B10>0,H10=""),"USt. ?",IF(M10="diverse Kunden",INDEX(Kunden!A:E,MATCH(N10,Kunden!A:A,1),MATCH(H10,Kunden!$A$3:$E$3,0)),IF(M10="diverse Lieferanten",INDEX(Lief.!A:E,MATCH(N10,Lief.!A:A,1),MATCH(H10,Lief.!$A$3:$E$3,0)),IF(ISERROR(INDEX(Konten!A:E,MATCH(M10,Konten!A:A,0),MATCH(H10,Konten!$A$3:$E$3,0))),"Konto ?",INDEX(Konten!A:E,MATCH(M10,Konten!A:A,0),MATCH(H10,Konten!$A$3:$E$3,0))))))) ->  | L10: 1600 | P10: 0
C11: 0 | E11: =IF(K11="","",IF(AND(A11+B11>0,H11=""),"USt. ?",IF(OR(K11="USt. ?",K11="Name?"),K11,IF(ISERROR(INDEX(Konten!A:E,MATCH(M11,Konten!A:A,0),MATCH(H11,Konten!$A$3:$E$3,0))),"Konto ?",IF(AND(O11=0,RIGHT(K11,5)*1>=10000),RIGHT(K11,5),K11))))) ->  | K11: =IF(M11="","",IF(AND(A11+B11>0,H11=""),"USt. ?",IF(M11="diverse Kunden",INDEX(Kunden!A:E,MATCH(N11,Kunden!A:A,1),MATCH(H11,Kunden!$A$3:$E$3,0)),IF(M11="diverse Lieferanten",INDEX(Lief.!A:E,MATCH(N11,Lief.!A:A,1),MATCH(H11,Lief.!$A$3:$E$3,0)),IF(ISERROR(INDEX(Konten!A:E,MATCH(M11,Konten!A:A,0),MATCH(H11,Konten!$A$3:$E$3,0))),"Konto ?",INDEX(Konten!A:E,MATCH(M11,Konten!A:A,0),MATCH(H11,Konten!$A$3:$E$3,0))))))) ->  | L11: 1600 | P11: 0
C12: 0 | E12: =IF(K12="","",IF(AND(A12+B12>0,H12=""),"USt. ?",IF(OR(K12="USt. ?",K12="Name?"),K12,IF(ISERROR(INDEX(Konten!A:E,MATCH(M12,Konten!A:A,0),MATCH(H12,Konten!$A$3:$E$3,0))),"Konto ?",IF(AND(O12=0,RIGHT(K12,5)*1>=10000),RIGHT(K12,5),K12))))) ->  | K12: =IF(M12="","",IF(AND(A12+B12>0,H12=""),"USt. ?",IF(M12="diverse Kunden",INDEX(Kunden!A:E,MATCH(N12,Kunden!A:A,1),MATCH(H12,Kunden!$A$3:$E$3,0)),IF(M12="diverse Lieferanten",INDEX(Lief.!A:E,MATCH(N12,Lief.!A:A,1),MATCH(H12,Lief.!$A$3:$E$3,0)),IF(ISERROR(INDEX(Konten!A:E,MATCH(M12,Konten!A:A,0),MATCH(H12,Konten!$A$3:$E$3,0))),"Konto ?",INDEX(Konten!A:E,MATCH(M12,Konten!A:A,0),MATCH(H12,Konten!$A$3:$E$3,0))))))) ->  | L12: 1600 | P12: 0
C13: 0 | E13: =IF(K13="","",IF(AND(A13+B13>0,H13=""),"USt. ?",IF(OR(K13="USt. ?",K13="Name?"),K13,IF(ISERROR(INDEX(Konten!A:E,MATCH(M13,Konten!A:A,0),MATCH(H13,Konten!$A$3:$E$3,0))),"Konto ?",IF(AND(O13=0,RIGHT(K13,5)*1>=10000),RIGHT(K13,5),K13))))) ->  | K13: =IF(M13="","",IF(AND(A13+B13>0,H13=""),"USt. ?",IF(M13="diverse Kunden",INDEX(Kunden!A:E,MATCH(N13,Kunden!A:A,1),MATCH(H13,Kunden!$A$3:$E$3,0)),IF(M13="diverse Lieferanten",INDEX(Lief.!A:E,MATCH(N13,Lief.!A:A,1),MATCH(H13,Lief.!$A$3:$E$3,0)),IF(ISERROR(INDEX(Konten!A:E,MATCH(M13,Konten!A:A,0),MATCH(H13,Konten!$A$3:$E$3,0))),"Konto ?",INDEX(Konten!A:E,MATCH(M13,Konten!A:A,0),MATCH(H13,Konten!$A$3:$E$3,0))))))) ->  | L13: 1600 | P13: 0
C14: 0 | E14: =IF(K14="","",IF(AND(A14+B14>0,H14=""),"USt. ?",IF(OR(K14="USt. ?",K14="Name?"),K14,IF(ISERROR(INDEX(Konten!A:E,MATCH(M14,Konten!A:A,0),MATCH(H14,Konten!$A$3:$E$3,0))),"Konto ?",IF(AND(O14=0,RIGHT(K14,5)*1>=10000),RIGHT(K14,5),K14))))) ->  | K14: =IF(M14="","",IF(AND(A14+B14>0,H14=""),"USt. ?",IF(M14="diverse Kunden",INDEX(Kunden!A:E,MATCH(N14,Kunden!A:A,1),MATCH(H14,Kunden!$A$3:$E$3,0)),IF(M14="diverse Lieferanten",INDEX(Lief.!A:E,MATCH(N14,Lief.!A:A,1),MATCH(H14,Lief.!$A$3:$E$3,0)),IF(ISERROR(INDEX(Konten!A:E,MATCH(M14,Konten!A:A,0),MATCH(H14,Konten!$A$3:$E$3,0))),"Konto ?",INDEX(Konten!A:E,MATCH(M14,Konten!A:A,0),MATCH(H14,Konten!$A$3:$E$3,0))))))) ->  | L14: 1600 | P14: 0
C15: 0 | E15: =IF(K15="","",IF(AND(A15+B15>0,H15=""),"USt. ?",IF(OR(K15="USt. ?",K15="Name?"),K15,IF(ISERROR(INDEX(Konten!A:E,MATCH(M15,Konten!A:A,0),MATCH(H15,Konten!$A$3:$E$3,0))),"Konto ?",IF(AND(O15=0,RIGHT(K15,5)*1>=10000),RIGHT(K15,5),K15))))) ->  | K15: =IF(M15="","",IF(AND(A15+B15>0,H15=""),"USt. ?",IF(M15="diverse Kunden",INDEX(Kunden!A:E,MATCH(N15,Kunden!A:A,1),MATCH(H15,Kunden!$A$3:$E$3,0)),IF(M15="diverse Lieferanten",INDEX(Lief.!A:E,MATCH(N15,Lief.!A:A,1),MATCH(H15,Lief.!$A$3:$E$3,0)),IF(ISERROR(INDEX(Konten!A:E,MATCH(M15,Konten!A:A,0),MATCH(H15,Konten!$A$3:$E$3,0))),"Konto ?",INDEX(Konten!A:E,MATCH(M15,Konten!A:A,0),MATCH(H15,Konten!$A$3:$E$3,0))))))) ->  | L15: 1600 | P15: 0
C16: 0 | E16: =IF(K16="","",IF(AND(A16+B16>0,H16=""),"USt. ?",IF(OR(K16="USt. ?",K16="Name?"),K16,IF(ISERROR(INDEX(Konten!A:E,MATCH(M16,Konten!A:A,0),MATCH(H16,Konten!$A$3:$E$3,0))),"Konto ?",IF(AND(O16=0,RIGHT(K16,5)*1>=10000),RIGHT(K16,5),K16))))) ->  | K16: =IF(M16="","",IF(AND(A16+B16>0,H16=""),"USt. ?",IF(M16="diverse Kunden",INDEX(Kunden!A:E,MATCH(N16,Kunden!A:A,1),MATCH(H16,Kunden!$A$3:$E$3,0)),IF(M16="diverse Lieferanten",INDEX(Lief.!A:E,MATCH(N16,Lief.!A:A,1),MATCH(H16,Lief.!$A$3:$E$3,0)),IF(ISERROR(INDEX(Konten!A:E,MATCH(M16,Konten!A:A,0),MATCH(H16,Konten!$A$3:$E$3,0))),"Konto ?",INDEX(Konten!A:E,MATCH(M16,Konten!A:A,0),MATCH(H16,Konten!$A$3:$E$3,0))))))) ->  | L16: 1600 | P16: 0
C17: 0 | E17: =IF(K17="","",IF(AND(A17+B17>0,H17=""),"USt. ?",IF(OR(K17="USt. ?",K17="Name?"),K17,IF(ISERROR(INDEX(Konten!A:E,MATCH(M17,Konten!A:A,0),MATCH(H17,Konten!$A$3:$E$3,0))),"Konto ?",IF(AND(O17=0,RIGHT(K17,5)*1>=10000),RIGHT(K17,5),K17))))) ->  | K17: =IF(M17="","",IF(AND(A17+B17>0,H17=""),"USt. ?",IF(M17="diverse Kunden",INDEX(Kunden!A:E,MATCH(N17,Kunden!A:A,1),MATCH(H17,Kunden!$A$3:$E$3,0)),IF(M17="diverse Lieferanten",INDEX(Lief.!A:E,MATCH(N17,Lief.!A:A,1),MATCH(H17,Lief.!$A$3:$E$3,0)),IF(ISERROR(INDEX(Konten!A:E,MATCH(M17,Konten!A:A,0),MATCH(H17,Konten!$A$3:$E$3,0))),"Konto ?",INDEX(Konten!A:E,MATCH(M17,Konten!A:A,0),MATCH(H17,Konten!$A$3:$E$3,0))))))) ->  | L17: 1600 | P17: 0
C18: 0 | E18: =IF(K18="","",IF(AND(A18+B18>0,H18=""),"USt. ?",IF(OR(K18="USt. ?",K18="Name?"),K18,IF(ISERROR(INDEX(Konten!A:E,MATCH(M18,Konten!A:A,0),MATCH(H18,Konten!$A$3:$E$3,0))),"Konto ?",IF(AND(O18=0,RIGHT(K18,5)*1>=10000),RIGHT(K18,5),K18))))) ->  | K18: =IF(M18="","",IF(AND(A18+B18>0,H18=""),"USt. ?",IF(M18="diverse Kunden",INDEX(Kunden!A:E,MATCH(N18,Kunden!A:A,1),MATCH(H18,Kunden!$A$3:$E$3,0)),IF(M18="diverse Lieferanten",INDEX(Lief.!A:E,MATCH(N18,Lief.!A:A,1),MATCH(H18,Lief.!$A$3:$E$3,0)),IF(ISERROR(INDEX(Konten!A:E,MATCH(M18,Konten!A:A,0),MATCH(H18,Konten!$A$3:$E$3,0))),"Konto ?",INDEX(Konten!A:E,MATCH(M18,Konten!A:A,0),MATCH(H18,Konten!$A$3:$E$3,0))))))) ->  | L18: 1600 | P18: 0
C19: 0 | E19: =IF(K19="","",IF(AND(A19+B19>0,H19=""),"USt. ?",IF(OR(K19="USt. ?",K19="Name?"),K19,IF(ISERROR(INDEX(Konten!A:E,MATCH(M19,Konten!A:A,0),MATCH(H19,Konten!$A$3:$E$3,0))),"Konto ?",IF(AND(O19=0,RIGHT(K19,5)*1>=10000),RIGHT(K19,5),K19))))) ->  | K19: =IF(M19="","",IF(AND(A19+B19>0,H19=""),"USt. ?",IF(M19="diverse Kunden",INDEX(Kunden!A:E,MATCH(N19,Kunden!A:A,1),MATCH(H19,Kunden!$A$3:$E$3,0)),IF(M19="diverse Lieferanten",INDEX(Lief.!A:E,MATCH(N19,Lief.!A:A,1),MATCH(H19,Lief.!$A$3:$E$3,0)),IF(ISERROR(INDEX(Konten!A:E,MATCH(M19,Konten!A:A,0),MATCH(H19,Konten!$A$3:$E$3,0))),"Konto ?",INDEX(Konten!A:E,MATCH(M19,Konten!A:A,0),MATCH(H19,Konten!$A$3:$E$3,0))))))) ->  | L19: 1600 | P19: 0
C20: 0 | E20: =IF(K20="","",IF(AND(A20+B20>0,H20=""),"USt. ?",IF(OR(K20="USt. ?",K20="Name?"),K20,IF(ISERROR(INDEX(Konten!A:E,MATCH(M20,Konten!A:A,0),MATCH(H20,Konten!$A$3:$E$3,0))),"Konto ?",IF(AND(O20=0,RIGHT(K20,5)*1>=10000),RIGHT(K20,5),K20))))) ->  | K20: =IF(M20="","",IF(AND(A20+B20>0,H20=""),"USt. ?",IF(M20="diverse Kunden",INDEX(Kunden!A:E,MATCH(N20,Kunden!A:A,1),MATCH(H20,Kunden!$A$3:$E$3,0)),IF(M20="diverse Lieferanten",INDEX(Lief.!A:E,MATCH(N20,Lief.!A:A,1),MATCH(H20,Lief.!$A$3:$E$3,0)),IF(ISERROR(INDEX(Konten!A:E,MATCH(M20,Konten!A:A,0),MATCH(H20,Konten!$A$3:$E$3,0))),"Konto ?",INDEX(Konten!A:E,MATCH(M20,Konten!A:A,0),MATCH(H20,Konten!$A$3:$E$3,0))))))) ->  | L20: 1600 | P20: 0
C21: 0 | E21: =IF(K21="","",IF(AND(A21+B21>0,H21=""),"USt. ?",IF(OR(K21="USt. ?",K21="Name?"),K21,IF(ISERROR(INDEX(Konten!A:E,MATCH(M21,Konten!A:A,0),MATCH(H21,Konten!$A$3:$E$3,0))),"Konto ?",IF(AND(O21=0,RIGHT(K21,5)*1>=10000),RIGHT(K21,5),K21))))) ->  | K21: =IF(M21="","",IF(AND(A21+B21>0,H21=""),"USt. ?",IF(M21="diverse Kunden",INDEX(Kunden!A:E,MATCH(N21,Kunden!A:A,1),MATCH(H21,Kunden!$A$3:$E$3,0)),IF(M21="diverse Lieferanten",INDEX(Lief.!A:E,MATCH(N21,Lief.!A:A,1),MATCH(H21,Lief.!$A$3:$E$3,0)),IF(ISERROR(INDEX(Konten!A:E,MATCH(M21,Konten!A:A,0),MATCH(H21,Konten!$A$3:$E$3,0))),"Konto ?",INDEX(Konten!A:E,MATCH(M21,Konten!A:A,0),MATCH(H21,Konten!$A$3:$E$3,0))))))) ->  | L21: 1600 | P21: 0
C22: 0 | E22: =IF(K22="","",IF(AND(A22+B22>0,H22=""),"USt. ?",IF(OR(K22="USt. ?",K22="Name?"),K22,IF(ISERROR(INDEX(Konten!A:E,MATCH(M22,Konten!A:A,0),MATCH(H22,Konten!$A$3:$E$3,0))),"Konto ?",IF(AND(O22=0,RIGHT(K22,5)*1>=10000),RIGHT(K22,5),K22))))) ->  | K22: =IF(M22="","",IF(AND(A22+B22>0,H22=""),"USt. ?",IF(M22="diverse Kunden",INDEX(Kunden!A:E,MATCH(N22,Kunden!A:A,1),MATCH(H22,Kunden!$A$3:$E$3,0)),IF(M22="diverse Lieferanten",INDEX(Lief.!A:E,MATCH(N22,Lief.!A:A,1),MATCH(H22,Lief.!$A$3:$E$3,0)),IF(ISERROR(INDEX(Konten!A:E,MATCH(M22,Konten!A:A,0),MATCH(H22,Konten!$A$3:$E$3,0))),"Konto ?",INDEX(Konten!A:E,MATCH(M22,Konten!A:A,0),MATCH(H22,Konten!$A$3:$E$3,0))))))) ->  | L22: 1600 | P22: 0
C23: 0 | E23: =IF(K23="","",IF(AND(A23+B23>0,H23=""),"USt. ?",IF(OR(K23="USt. ?",K23="Name?"),K23,IF(ISERROR(INDEX(Konten!A:E,MATCH(M23,Konten!A:A,0),MATCH(H23,Konten!$A$3:$E$3,0))),"Konto ?",IF(AND(O23=0,RIGHT(K23,5)*1>=10000),RIGHT(K23,5),K23))))) ->  | K23: =IF(M23="","",IF(AND(A23+B23>0,H23=""),"USt. ?",IF(M23="diverse Kunden",INDEX(Kunden!A:E,MATCH(N23,Kunden!A:A,1),MATCH(H23,Kunden!$A$3:$E$3,0)),IF(M23="diverse Lieferanten",INDEX(Lief.!A:E,MATCH(N23,Lief.!A:A,1),MATCH(H23,Lief.!$A$3:$E$3,0)),IF(ISERROR(INDEX(Konten!A:E,MATCH(M23,Konten!A:A,0),MATCH(H23,Konten!$A$3:$E$3,0))),"Konto ?",INDEX(Konten!A:E,MATCH(M23,Konten!A:A,0),MATCH(H23,Konten!$A$3:$E$3,0))))))) ->  | L23: 1600 | P23: 0
C24: 0 | E24: =IF(K24="","",IF(AND(A24+B24>0,H24=""),"USt. ?",IF(OR(K24="USt. ?",K24="Name?"),K24,IF(ISERROR(INDEX(Konten!A:E,MATCH(M24,Konten!A:A,0),MATCH(H24,Konten!$A$3:$E$3,0))),"Konto ?",IF(AND(O24=0,RIGHT(K24,5)*1>=10000),RIGHT(K24,5),K24))))) ->  | K24: =IF(M24="","",IF(AND(A24+B24>0,H24=""),"USt. ?",IF(M24="diverse Kunden",INDEX(Kunden!A:E,MATCH(N24,Kunden!A:A,1),MATCH(H24,Kunden!$A$3:$E$3,0)),IF(M24="diverse Lieferanten",INDEX(Lief.!A:E,MATCH(N24,Lief.!A:A,1),MATCH(H24,Lief.!$A$3:$E$3,0)),IF(ISERROR(INDEX(Konten!A:E,MATCH(M24,Konten!A:A,0),MATCH(H24,Konten!$A$3:$E$3,0))),"Konto ?",INDEX(Konten!A:E,MATCH(M24,Konten!A:A,0),MATCH(H24,Konten!$A$3:$E$3,0))))))) ->  | L24: 1600 | P24: 0
C25: 0 | E25: =IF(K25="","",IF(AND(A25+B25>0,H25=""),"USt. ?",IF(OR(K25="USt. ?",K25="Name?"),K25,IF(ISERROR(INDEX(Konten!A:E,MATCH(M25,Konten!A:A,0),MATCH(H25,Konten!$A$3:$E$3,0))),"Konto ?",IF(AND(O25=0,RIGHT(K25,5)*1>=10000),RIGHT(K25,5),K25))))) ->  | K25: =IF(M25="","",IF(AND(A25+B25>0,H25=""),"USt. ?",IF(M25="diverse Kunden",INDEX(Kunden!A:E,MATCH(N25,Kunden!A:A,1),MATCH(H25,Kunden!$A$3:$E$3,0)),IF(M25="diverse Lieferanten",INDEX(Lief.!A:E,MATCH(N25,Lief.!A:A,1),MATCH(H25,Lief.!$A$3:$E$3,0)),IF(ISERROR(INDEX(Konten!A:E,MATCH(M25,Konten!A:A,0),MATCH(H25,Konten!$A$3:$E$3,0))),"Konto ?",INDEX(Konten!A:E,MATCH(M25,Konten!A:A,0),MATCH(H25,Konten!$A$3:$E$3,0))))))) ->  | L25: 1600 | P25: 0
C26: 0 | E26: =IF(K26="","",IF(AND(A26+B26>0,H26=""),"USt. ?",IF(OR(K26="USt. ?",K26="Name?"),K26,IF(ISERROR(INDEX(Konten!A:E,MATCH(M26,Konten!A:A,0),MATCH(H26,Konten!$A$3:$E$3,0))),"Konto ?",IF(AND(O26=0,RIGHT(K26,5)*1>=10000),RIGHT(K26,5),K26))))) ->  | K26: =IF(M26="","",IF(AND(A26+B26>0,H26=""),"USt. ?",IF(M26="diverse Kunden",INDEX(Kunden!A:E,MATCH(N26,Kunden!A:A,1),MATCH(H26,Kunden!$A$3:$E$3,0)),IF(M26="diverse Lieferanten",INDEX(Lief.!A:E,MATCH(N26,Lief.!A:A,1),MATCH(H26,Lief.!$A$3:$E$3,0)),IF(ISERROR(INDEX(Konten!A:E,MATCH(M26,Konten!A:A,0),MATCH(H26,Konten!$A$3:$E$3,0))),"Konto ?",INDEX(Konten!A:E,MATCH(M26,Konten!A:A,0),MATCH(H26,Konten!$A$3:$E$3,0))))))) ->  | L26: 1600 | P26: 0
C27: 0 | E27: =IF(K27="","",IF(AND(A27+B27>0,H27=""),"USt. ?",IF(OR(K27="USt. ?",K27="Name?"),K27,IF(ISERROR(INDEX(Konten!A:E,MATCH(M27,Konten!A:A,0),MATCH(H27,Konten!$A$3:$E$3,0))),"Konto ?",IF(AND(O27=0,RIGHT(K27,5)*1>=10000),RIGHT(K27,5),K27))))) ->  | K27: =IF(M27="","",IF(AND(A27+B27>0,H27=""),"USt. ?",IF(M27="diverse Kunden",INDEX(Kunden!A:E,MATCH(N27,Kunden!A:A,1),MATCH(H27,Kunden!$A$3:$E$3,0)),IF(M27="diverse Lieferanten",INDEX(Lief.!A:E,MATCH(N27,Lief.!A:A,1),MATCH(H27,Lief.!$A$3:$E$3,0)),IF(ISERROR(INDEX(Konten!A:E,MATCH(M27,Konten!A:A,0),MATCH(H27,Konten!$A$3:$E$3,0))),"Konto ?",INDEX(Konten!A:E,MATCH(M27,Konten!A:A,0),MATCH(H27,Konten!$A$3:$E$3,0))))))) ->  | L27: 1600 | P27: 0
C28: 0 | E28: =IF(K28="","",IF(AND(A28+B28>0,H28=""),"USt. ?",IF(OR(K28="USt. ?",K28="Name?"),K28,IF(ISERROR(INDEX(Konten!A:E,MATCH(M28,Konten!A:A,0),MATCH(H28,Konten!$A$3:$E$3,0))),"Konto ?",IF(AND(O28=0,RIGHT(K28,5)*1>=10000),RIGHT(K28,5),K28))))) ->  | K28: =IF(M28="","",IF(AND(A28+B28>0,H28=""),"USt. ?",IF(M28="diverse Kunden",INDEX(Kunden!A:E,MATCH(N28,Kunden!A:A,1),MATCH(H28,Kunden!$A$3:$E$3,0)),IF(M28="diverse Lieferanten",INDEX(Lief.!A:E,MATCH(N28,Lief.!A:A,1),MATCH(H28,Lief.!$A$3:$E$3,0)),IF(ISERROR(INDEX(Konten!A:E,MATCH(M28,Konten!A:A,0),MATCH(H28,Konten!$A$3:$E$3,0))),"Konto ?",INDEX(Konten!A:E,MATCH(M28,Konten!A:A,0),MATCH(H28,Konten!$A$3:$E$3,0))))))) ->  | L28: 1600 | P28: 0
C29: 0 | E29: =IF(K29="","",IF(AND(A29+B29>0,H29=""),"USt. ?",IF(OR(K29="USt. ?",K29="Name?"),K29,IF(ISERROR(INDEX(Konten!A:E,MATCH(M29,Konten!A:A,0),MATCH(H29,Konten!$A$3:$E$3,0))),"Konto ?",IF(AND(O29=0,RIGHT(K29,5)*1>=10000),RIGHT(K29,5),K29))))) ->  | K29: =IF(M29="","",IF(AND(A29+B29>0,H29=""),"USt. ?",IF(M29="diverse Kunden",INDEX(Kunden!A:E,MATCH(N29,Kunden!A:A,1),MATCH(H29,Kunden!$A$3:$E$3,0)),IF(M29="diverse Lieferanten",INDEX(Lief.!A:E,MATCH(N29,Lief.!A:A,1),MATCH(H29,Lief.!$A$3:$E$3,0)),IF(ISERROR(INDEX(Konten!A:E,MATCH(M29,Konten!A:A,0),MATCH(H29,Konten!$A$3:$E$3,0))),"Konto ?",INDEX(Konten!A:E,MATCH(M29,Konten!A:A,0),MATCH(H29,Konten!$A$3:$E$3,0))))))) ->  | L29: 1600 | P29: 0
C30: 0 | E30: =IF(K30="","",IF(AND(A30+B30>0,H30=""),"USt. ?",IF(OR(K30="USt. ?",K30="Name?"),K30,IF(ISERROR(INDEX(Konten!A:E,MATCH(M30,Konten!A:A,0),MATCH(H30,Konten!$A$3:$E$3,0))),"Konto ?",IF(AND(O30=0,RIGHT(K30,5)*1>=10000),RIGHT(K30,5),K30))))) ->  | K30: =IF(M30="","",IF(AND(A30+B30>0,H30=""),"USt. ?",IF(M30="diverse Kunden",INDEX(Kunden!A:E,MATCH(N30,Kunden!A:A,1),MATCH(H30,Kunden!$A$3:$E$3,0)),IF(M30="diverse Lieferanten",INDEX(Lief.!A:E,MATCH(N30,Lief.!A:A,1),MATCH(H30,Lief.!$A$3:$E$3,0)),IF(ISERROR(INDEX(Konten!A:E,MATCH(M30,Konten!A:A,0),MATCH(H30,Konten!$A$3:$E$3,0))),"Konto ?",INDEX(Konten!A:E,MATCH(M30,Konten!A:A,0),MATCH(H30,Konten!$A$3:$E$3,0))))))) ->  | L30: 1600 | P30: 0
C31: 0 | E31: =IF(K31="","",IF(AND(A31+B31>0,H31=""),"USt. ?",IF(OR(K31="USt. ?",K31="Name?"),K31,IF(ISERROR(INDEX(Konten!A:E,MATCH(M31,Konten!A:A,0),MATCH(H31,Konten!$A$3:$E$3,0))),"Konto ?",IF(AND(O31=0,RIGHT(K31,5)*1>=10000),RIGHT(K31,5),K31))))) ->  | K31: =IF(M31="","",IF(AND(A31+B31>0,H31=""),"USt. ?",IF(M31="diverse Kunden",INDEX(Kunden!A:E,MATCH(N31,Kunden!A:A,1),MATCH(H31,Kunden!$A$3:$E$3,0)),IF(M31="diverse Lieferanten",INDEX(Lief.!A:E,MATCH(N31,Lief.!A:A,1),MATCH(H31,Lief.!$A$3:$E$3,0)),IF(ISERROR(INDEX(Konten!A:E,MATCH(M31,Konten!A:A,0),MATCH(H31,Konten!$A$3:$E$3,0))),"Konto ?",INDEX(Konten!A:E,MATCH(M31,Konten!A:A,0),MATCH(H31,Konten!$A$3:$E$3,0))))))) ->  | L31: 1600 | P31: 0
C32: 0 | E32: =IF(K32="","",IF(AND(A32+B32>0,H32=""),"USt. ?",IF(OR(K32="USt. ?",K32="Name?"),K32,IF(ISERROR(INDEX(Konten!A:E,MATCH(M32,Konten!A:A,0),MATCH(H32,Konten!$A$3:$E$3,0))),"Konto ?",IF(AND(O32=0,RIGHT(K32,5)*1>=10000),RIGHT(K32,5),K32))))) ->  | K32: =IF(M32="","",IF(AND(A32+B32>0,H32=""),"USt. ?",IF(M32="diverse Kunden",INDEX(Kunden!A:E,MATCH(N32,Kunden!A:A,1),MATCH(H32,Kunden!$A$3:$E$3,0)),IF(M32="diverse Lieferanten",INDEX(Lief.!A:E,MATCH(N32,Lief.!A:A,1),MATCH(H32,Lief.!$A$3:$E$3,0)),IF(ISERROR(INDEX(Konten!A:E,MATCH(M32,Konten!A:A,0),MATCH(H32,Konten!$A$3:$E$3,0))),"Konto ?",INDEX(Konten!A:E,MATCH(M32,Konten!A:A,0),MATCH(H32,Konten!$A$3:$E$3,0))))))) ->  | L32: 1600 | P32: 0
C33: 0 | E33: =IF(K33="","",IF(AND(A33+B33>0,H33=""),"USt. ?",IF(OR(K33="USt. ?",K33="Name?"),K33,IF(ISERROR(INDEX(Konten!A:E,MATCH(M33,Konten!A:A,0),MATCH(H33,Konten!$A$3:$E$3,0))),"Konto ?",IF(AND(O33=0,RIGHT(K33,5)*1>=10000),RIGHT(K33,5),K33))))) ->  | K33: =IF(M33="","",IF(AND(A33+B33>0,H33=""),"USt. ?",IF(M33="diverse Kunden",INDEX(Kunden!A:E,MATCH(N33,Kunden!A:A,1),MATCH(H33,Kunden!$A$3:$E$3,0)),IF(M33="diverse Lieferanten",INDEX(Lief.!A:E,MATCH(N33,Lief.!A:A,1),MATCH(H33,Lief.!$A$3:$E$3,0)),IF(ISERROR(INDEX(Konten!A:E,MATCH(M33,Konten!A:A,0),MATCH(H33,Konten!$A$3:$E$3,0))),"Konto ?",INDEX(Konten!A:E,MATCH(M33,Konten!A:A,0),MATCH(H33,Konten!$A$3:$E$3,0))))))) ->  | L33: 1600 | P33: 0
